Workbook

Sheet Intro
B1: Introduction
B4: Version
B6: This is version 2.16 of the Advanced Excel betting tracker. Versions 2.0 and onward use the .xlsx filename extension and require Microsoft Office 2007 or later due to the lengthy formulas and use of countifs() and sumifs() functions.
B8: Terms of Use
B10: This spreadsheet is free for personal use. Feel free to make amendments to the sheet to suit your needs. The password to unlock the sheet is sport.
B11: Do not make this spreadsheet, or any variant of it, available elsewhere on the Internet. If you wish to tell others about this betting tracker, please share the following URL:
B12: http://www.aussportsbetting.com/tools/betting-tracker-excel-worksheet/
B14: Setup - READ THIS BEFORE USING THE SPREADSHEET
B16: STEP 1: Delete the sample data in the Settings, Deposits and Bets worksheets. IMPORTANT: do not use the Ctrl+X keyboard combination to delete data because this can cause background calculations to go awry. To remove data we recommend you highlight the cells and press the Delete button on your keyboard.
B17: STEP 2: Go to the Settings worksheet and input the names of your betting agencies along with the sports you plan to bet on. We recommend you also input bet types. Change the odds format and currency rounding if necessary.
B18: STEP 3: Go to the Deposits worksheet and input your bookmaker account balances into the Deposits & Withdrawals table
B19: STEP 4: Go to the Bets worksheet and input your betting details
B20: STEP 5: Once each bet has resulted, update the Bets worksheet accordingly
B22: Worksheets
B24: This workbook enables you to monitor your sports betting performance. It consists of ten worksheets that can be selected using the tabs at the bottom of the screen. The yellow sheets display information and statistics, while the blue sheets are for data entry. Each worksheet is described below. Feel free to delete the Tipper Analysis, Closing Odds Analysis and Closing Line Analysis worksheets if you don't need them.
B26: INTRO (output) - provides an introduction to the spreadsheet along with usage instructions
B27: SETTINGS (input) - manages settings for bookmakers, sports categories, tippers, bet types, odds formats and currency rounding
B28: DEPOSITS (input) - lists your bookmaker deposits and withdrawals, including bonus credit and free bets
B29: BETS (input) - the main data entry sheet for your wagers
B30: AVAILABLE FUNDS (output) - tracks your net deposits and available credit with each bookmaker
B31: PERFORMANCE SUMMARY (output) - an interactive sheet that summarises your betting performance
B32: TIPPER ANALYSIS (output) - odds often move from the time a tip is published to the time you place your own wager. This worksheet tracks the betting performance of your tippers and compares your performance to theirs. This worksheet is only useful if you record the tipper's odds in addition to your own.
B33: CLOSING ODDS ANALYSIS (output) - provides closing odds statistics. This worksheet is only useful if you record closing odds.
B34: CLOSING LINE ANALYSIS (output) - provides closing line/spread statistics. This worksheet is only useful if you record the wager line/handicap and the closing line/handicap.
B35: PERFORMANCE GRAPH (output) - plots your betting performance over time
B37: Bets Worksheet - Field Explanations
B39: Below are descriptions of the fields in the Bets worksheet. Variables with black headers are required while those with blue headers are optional. Sample data is provided in the Bets worksheet so you can see how the fields are intended to be used. Input instructions are automatically displayed for the first 20 rows of the Bets worksheet to assist with the data entry process.
B41: Date (required) - this field is crucial for the Performance Graph and is handy for filtering your results in the Performance Summary. It is highly recommended that you input your wagers in chronological order to avoid erroneous looking graphs. For this reason we recommend entering the date that you placed the wager rather than the event date. This avoids having to re-sort the data to get a meaningful graph. The dates are displayed in the format d-mmm-yy (e.g. 3-Nov-14), although you can actually input dates in the format dd/mm/yyyy (e.g. 03/11/2014). Note that if you highlight a cell, the cell formula will have the dd/mm/yyyy format despite the fact that the cell is displayed on the page as d-mmm-yy.
B42: Bookmaker (required) - this field contains the bookmaker or betting exchange that the wager was placed with. To ensure data integrity, you must enter a list of your bookmakers on the Settings sheet first.
B43: Sport/League (required) - this field enables you to filter your results on the Performance Summary sheet by sport. To ensure data integrity, you must enter a list of sports/leagues into the Settings sheet first. Depending on how you use the Custom column (discussed below), you can either use this field for sport and league (e.g. "Football - EPL") or you can use this field for sport (e.g. "Football") and then use the Custom column for the league (e.g. "EPL").
B44: Selection (optional) - this is your wager selection. This field is for your reference only and is not referenced anywhere else in the spreadsheet. To give some input examples, if you back Team A to beat Team B your selection is "Team A". If you back the over in the total score market, your selection is "Over".
B45: Bet Type (optional) - this field is recommended because it can be used as an additional filter in the Performance Summary sheet. It records the type of wager you placed. To ensure data integrity you must input a list of bet types into the Settings sheet first. Examples include head-to-head (a.k.a. moneyline), line (a.k.a. handicap or spread), total score, correct score, etc.
B46: Tipper (optional) - subscribers of tipping services can use this field to track the betting performance of each tipper/capper. This field is referenced in the Performance Summary sheet and is required if you want to use the Tipper Analysis sheet. To ensure data integrity you need to enter your tippers into the Settings sheet first.
B47: My Variable (optional) - this field can be renamed in the Settings sheet. It provides an additional filter by which you can analyse your betting data in the Performance Summary sheet. To ensure data integrity you need to input a list of acceptable values into the Custom Filter table of the Settings sheet first. You can use this field any way you want. Some example uses are: - League - if you use the Sport / League column to enter just the sport, you can use this field for the specific league. - Pick attribute - you could filter your wager data based on the home favourite, home underdog, road favourite, etc. - Tip rating - if you subscribe to tippers who publish tip ratings you could enter them here.
B48: Fixture/event (optional) - this records the game that you wagered on. This field is for your reference only and is not referenced anywhere else in the spreadsheet. For futures markets you could enter something like "2014/15 NBA Championship" or "2014/15 NBA MVP".
B49: Live Bet (optional) - this is a simple Y or N field for whether your wager was placed in-play (a.k.a. live) or pre-game. You can leave this field blank for pre-game wagers.
B50: Score/result (optional) - this records the final score or result for your selection. This field is for your reference only and is not referenced anywhere else in the spreadsheet.
B51: Stake (required) - this is the currency amount wagered. For lay bets on betting exchanges you should input the backer's stake rather than the amount of money you're risking. Note that the amount of money at risk is automatically shown in the At Risk column. The at risk amount will equal the stake amount for all back bets (i.e. all wagers with traditional bookmakers). For betting exchange lay bets the stake could be greater or less than the at risk amount, depending on the odds.
B52: Odds (required) - the bookmaker odds for your selection go in this field. If you are using an odds system other then decimal/European, change the odds type in the Settings sheet first. The + sign is not required for American odds such as +200.
B53: FB (optional) - this is a simple Y or N field for whether your wager was placed using Free Bet money. You can leave this field blank for regular wagers.
B54: Win (required) - this field defaults to "P" for pending bets. It is the only field for which input instructions appear for all rows, not just the first 20. Once your bet has concluded, input the bet result using the instructions that automatically appear on the Bets worksheet. The standard accepted values are P (pending bet), Y (winning bet), N (losing bet), R (refund) and H (half payout). For Asian Handicap wagers there are also the values PU (push), HW (half win) and HL (half lose).
B56: Betting Exchange fields:
B57: The following fields only apply if you placed your wager with a betting exchange.
B58: Commission (optional) - enter the betting exchange commission here. The values are displayed in % form, so if the commission is 5%, enter "5" and not "0.05". Note that the commission is applied to your wager profit, which is the practice with most, but not all betting exchanges. If no commission applies to your wager you can leave this field blank.
B59: Lay Bet? (optional) - if you are placing a lay bet (a bet that the selection WON'T win), input Y. If the wager is a standard back bet you can input N or simply leave the field blank.
B61: Tipper's Betting Data fields:
B62: These optional fields enable you to input your tipper's wager details if they differ from your actual wager. It's not uncommon for odds and lines to change after a tipper has published a tip. For this reason your actual wager may be at different odds to what was quoted in the tip. For example, your tipper may have recommend you back Team A at 1.90 odds but the odds had dropped to 1.85 by the time you placed a wager. Alternatively, your tipper may have recommended you back Team A -8.5 at the line but the line had shifted to -9.0 by the time you placed your wager. In these circumstances your tipper's bet result and profit may differ from yours. If the tipper's bet details are the same as your wager you can leave these fields blank. This is because the spreadsheet will assume your wager details are identical to those provided by the tipper. These fields are referenced by the Tipper Analysis worksheet.
B63: Odds (optional) - if you placed a wager at different odds to what was published in the tip, enter the tip's odds here. Be sure to use the same odds convention as what you have selected in the Settings worksheet.
B64: Line (optional) - if you placed a line/spread/handicap wager at a different line to what was published in the tip, enter the tip's line here.
B65: Win (optional) - if the tipper's bet result differs from your own, enter the tipper's bet result here. An example of when this could happen is if the tipper recommended Team A -8.5 and you wagered Team A -9.0. If the winning margin is 9, your tipper's bet won while your bet result was a push/refund.
B67: Closing Odds & Lines Analysis fields:
B68: The following three fields are designed for those who want to track whether they've beaten the closing odds & lines. By "beat" the closing odds we mean you placed a wager at better odds than were available just before the event began. These fields are referenced by the Closing Odds Analysis and Closing Line Analysis worksheets.
B69: Closing Odds (optional) - input the closing odds for your selection (the odds available just before the event began). Be sure to use the same odds convention as what you selected in the Settings worksheet. Note that if you leave this field blank the spreadsheet will NOT assume that the closing odds were the same as your wager odds. Instead it will exclude the wager from the Closing Odds Analysis worksheet.
B70: Wager Line (optional) - if your wager is a line/spread/handicap bet (e.g. Team A +9.5), input the line into this field. For positive lines like +9.5 you can leave out the + sign. Note that this field is only effective if you use it in combination with the next field described below. Note that if you leave this and the next field blank the spreadsheet will NOT assume that the closing line was the same as your wager line. Instead it will exclude the wager from the Closing Line Analysis worksheet.
B71: Closing Line (optional) - if your wager is a line/spread/handicap bet (e.g. Team A +9.5), input the closing line (the line available just before the event started) into this field. For positive lines like +9.5 you can leave out the + sign. Note that this field is only effective if you use it in combination with the previous field described above. If you leave this and the previous field blank the spreadsheet will NOT assume that the closing line was the same as your wager line. Instead it will exclude the wager from the Closing Line Analysis worksheet.
B73: Data entry colour coding
B75: To clarify which cells are editable and which aren't, the following colour coding is used for table headers:
B77: Required input cells
B78: Optional input cells
B79: Automatically populated cells (do not edit)
B81: Worksheet protection
B83: As it stands, only limited sections of this spreadsheet can be edited. This is to prevent key formulas from being accidentally overwritten.
B84: To unlock a worksheet, go to that worksheet and select the Review header ribbon, then click on Unprotect Sheet.
B85: The password to unlock each worksheet is sport
B87: Betting exchange wagers
B89: If you do not use a betting exchange you can ignore columns O and P in the Bets worksheet.
B90: This spreadsheet enables you to input whether a wager is a back bet or a lay bet. It also enables you to input betting exchange commissions on winning wagers.
B91: Note that this sheet only supports betting exchanges that charge commissions on the profits of winning bets. If you are using Matchbook, which charges commissions on both winning and losing wagers, you will need to manually tweak the stake amounts of losing bets to give the correct value.
B92: Important: if you place a lay bet, input Y for the Win column in the Bets worksheet if your wager won and N if your wager lost. Input all other outcomes (HW, HL, PU, etc.) as per the result of the bet from a backing perspective. See the input examples below for clarification.
B93: If you place one or more back or lay bets on the same market, tweak the commission(s) for the winning wager(s) as required so that the payout corresponds to your exchange account. This involves revising the commission downward. For example if your commission is usually 5% and you win $10 on a back bet and at the same time lose $5 on a lay bet on the same market, input 2.5% as your commission on the winning back bet.
B94: Note that the inclusion of back and lay bets on the same market will distort the Performance Graph because the betting tracker won't acknowledge that the opposing bets were on the same market. Also, the Available Funds calculation will be off until the bet has concluded, because it won't acknowledge the fact that opposing bets on the same market free up funds. Lay bets at high odds will also inflate the concluded bet amounts, which will pull your percentage profit closer to zero. While this isn't ideal, this betting tracker is designed to be beginner friendly and versatile, hence the lack of additional exchange-specific features. Feel free to modify the spreadsheet further to suit your needs. The instructions to unlock the workbook are shown above in the 'Worksheet protection' section.
B96: Exchange input examples
B97: Example 1: you place a Back bet on Clijsters to win the Australian Open. The wager is for $10.00 at 4.50 odds.
B98: - Input 10.00 into the Wager field - Input 4.50 into the Odds field - Input your commission level (e.g. 5%) into the Commission field - Leave the Lay Bet field blank, or input N into this field At the conclusion of the event, input Y into the Win field if Clijsters wins the tournament. Input N into the Win field if she doesn't. A win will result in a profit of $35 (before commission), while a loss will result in a profit of negative $10.
B100: Example 2: you place a Lay bet on Clijsters to win the Australian Open. The wager is for $10.00 at 4.50 odds.
B101: - Input 10.00 into the Wager field - Input 4.50 into the Odds field - Input your commission level (e.g. 5%) into the Commission field - Input Y into the Lay Bet field At the conclusion of the event, input N into the Win field if Clijsters wins the tournament. Input Y into the Win field if she doesn't. A win will result in a profit of $10 (before commission), while a loss will result in a profit of negative $35.
B103: If the result is anything under than Y or N, input the result (R, HW, HL, etc.) from the backer's perspective, regardless of whether it is a back or lay bet. Note that the spreadsheet will calculate your profit/loss accordingly, depending on whether it is a lay bet.
B105: What if I run out of space?
B107: If you require more betting agencies, sports categories, or bet types you will need to edit the spreadsheet yourself. This will require fairly good knowledge of Microsoft Excel.
B109: If you require more rows for the Deposits worksheet you should:
B110: 1. Unlock the Deposits worksheet using the instructions above
B111: 2. Click on the Excel row number corresponding to the last row of the deposits table (make sure it is empty)
B112: 3. In the Home menu ribbon click on Insert (or Insert -> Insert Sheet Rows). Repeat as required.
B113: Be sure to insert rows above the last row rather than append rows below the last row.
B115: If you require more rows for the Bets worksheet you should:
B116: 1. Unlock the Bets worksheet using the instructions above
B117: 2. Click on the Excel row number corresponding to the last row of the bets table (make sure the row is empty)
B118: 3. In the Home menu ribbon click on Insert (or Insert -> Insert Sheet Rows). Repeat as required.
B119: 4. In the At Risk, Payout and Profit/Loss columns you will see blank cells for the new row(s). Highlight the row below the lowest blank cell by clicking on the row number.
B121: 5. Click on the small black box at the bottom right corner of the cell number and drag the mouse up without releasing the mouse button. Once you have reached the highest blank row release the mouse button.
B123: 6. The new Payout & Profit cells should now look as follows
B126: Frequently asked questions
B128: Why does the Performance Graph have vertical spikes in it?
B129: The Performance Graph uses the bet date for the x-axis. If you place more than one wager on the same date then vertical spikes can appear in the graph. These spikes represent the high point and low point for your profit level on that given day. As you accumulate more betting data these spikes will become less pronounced.
B131: How do I input multi bets (including exotic multis)?
B132: http://forum.aussportsbetting.com/showthread.php?317-Multi-betting-accumulators-parlays
B133: How to I input each way bets?
B134: http://forum.aussportsbetting.com/showthread.php?352-Entering-each-way-bets
B135: How do I remove unwanted columns?
B136: http://forum.aussportsbetting.com/showthread.php?351-Unwanted-columns
B137: How do I remove input instructions?
B138: http://forum.aussportsbetting.com/showthread.php?17-How-to-remove-input-instructions
B139: Please note that version 2.14 the betting tracker and above of only display betting instructions for the first 20 rows of the Bets sheet. These are designed to help you familiarise yourself with the spreadsheet. If you ever need to refer to the input instructions later, simply scroll to the top of the Bets sheet and click on a cell to read the instructions.
B140: What are the closing odds and lines columns for in the Bets worksheet?
B141: Note that these columns only appear in the Advanced version of the spreadsheet. You can use the Standard version of the betting tracker if you don't need them. These columns enable you to track whether your wager odds and/or line (a.k.a. spread) are better than the closing odds and lines prior to the event start. These columns are for advanced users only and can be safely ignored. Just be sure to remove the sample data in these columns before you use this spreadsheet.
B142: I'm getting ##### displayed instead of numbers. How can I fix this?
B143: If a number is too large for Excel to display you will see ##### displayed. Simply increase the column width to fix the issue. The instructions to unlock the workbook are shown above in the 'Worksheet protection' section.
B144: What are the Tipper Analysis columns for?
B145: Note that these columns only appear in the Advanced version of the spreadsheet. You can use the Standard version of the betting tracker if you don't need them. Many punters place bets based on the advice of a tipper/capper. Often the odds change after the tipper recommended a selection so if you follow the tipper's advice you may not be getting the same payout as their published tip. The Tipper odds and line columns enable you to track the tipper's betting performance using the odds & handicaps they published, rather than using the odds & handicaps available to you when you followed their tip.
B146: Does this spreadsheet support multiple currencies?
B147: No, this spreadsheet supports one currency only. Support for multiple currencies may be added to future versions. In the meantime we suggest you maintain a separate copy of the spreadsheet for each currency.
B149: Troubleshooting
B151: If you cut and paste bet data from one row or column to another you can sometimes throw off the rest of the spreadsheet's calculations. If you need to reset the background calculations, unlock the Bets sheet (see instructions above) and highlight cells BL12 to CF12 (note this is row 12, not row 11). You will need to scroll to the right to view these cells. Double click on the small black box at the bottom right hand corner of cell BG11. This will reset all formulas for the cells below based on row 10, which is likely to be in its original state.
B154: In the worst case scenario, simply start over by copying and pasting your betting data into a clean copy of the betting tracker. Use the procedure below when you do so.
B156: Pasting in data from a previous version
B158: Because some cell validation formulas have changed, it is strongly advised that when you copy betting data from a previous worksheet (using Edit -> Copy), instead of selecting Edit -> Paste, select Edit -> Paste Special… -> Select 'Values' and then click OK. This will paste in the new data without overriding the new validation formulas.
B160: Support
B162: The homepage for this spreadsheet is:
B163: http://www.aussportsbetting.com/tools/betting-tracker-excel-worksheet/
B165: Questions can be submitted through:
B166: http://www.aussportsbetting.com/contact/
B168: A support and discussion forum can be found here:
B169: http://www.aussportsbetting.com/forum/

Sheet Settings
B1: Settings
B3: Input Instructions | D3: Bookmakers | G3: Sports / Leagues | I3: Bet Types | K3: Tipsters / Cappers | M3: Custom Filter | O3: Custom Filter Name | Q3: Odds Type | S3: Currency Rounding | U3: Selection --> | V3: 1 | X3: =MAX(X6:X305) -> 2 | Y3: =MAX(Y6:Y305) -> 71 | Z3: 14 | AA3: 1 | AB3: 4
B5: Input the names of the bookmakers you have memberships with into the Betting Agencies table. For the credit facility, input 0 if you are unsure. Input names for the sports that you plan to bet on into the Sports table. This will enable you to track your performance for each sport. When you input details into the Bets worksheet, you will only be able to input agency and sport names that are on these lists. This ensures data integrity. Inputting bet types is optional. If you do so you will be able to select these from a drop down menu in the Bets worksheet. If you wish to track performance by bet type, you need to input the bet types to track here. Inputting tipsters/cappers is optional, and is for subscribers of tipping services. If you do so you will be able to select these from a drop down menu in the Bets worksheet. If you wish to track performance by tipster/capper, you need to input the tipster names here. | D5: Agency Name | E5: Credit Facility | G5: Sport Name | I5: Bet Type | K5: Tipster / Capper | M5: Custom Filters | O5: My Variable | S5: 2 | U5: 1 | V5: Decimal Odds (e.g. 1.77) | X5: Agencies | Y5: Sports | Z5: Bet Types | AA5: Tippers | AB5: Custom
D6: Sbobet | E6: 350 | G6: Basketball - VTB | I6: Winner | K6: My own bets | M6: Home Fav | U6: 2 | V6: American Odds (e.g. -130) | W6: 1 | X6: =IF(AND(D6<>"",D6<>"--"),W6,"") -> 1 | Y6: =IF(AND(G6<>"",G6<>"--"),W6,"") -> 1 | Z6: =IF(AND(I6<>"",I6<>"--"),W6,"") -> 1 | AA6: =IF(AND(K6<>"",K6<>"--"),W6,"") -> 1 | AB6: =IF(AND(M6<>"",M6<>"--"),W6,"") -> 1
D7: Pinnacle Sports | E7: 1500 | G7: Football - EPL | I7: Live | M7: Home Dog | O7: Custom Filter Notes | Q7: Odds Notes | S7: Rounding Notes | U7: 3 | V7: Fractional Odds (e.g. 10/13) | W7: 2 | X7: =IF(AND(D7<>"",D7<>"--"),W7,"") -> 2 | Y7: =IF(AND(G7<>"",G7<>"--"),W7,"") -> 2 | Z7: =IF(AND(I7<>"",I7<>"--"),W7,"") -> 2 | AA7: =IF(AND(K7<>"",K7<>"--"),W7,"") ->  | AB7: =IF(AND(M7<>"",M7<>"--"),W7,"") -> 2
G8: Football - LaLiga | I8: Head to Head | M8: Away Fav | U8: 4 | V8: Hong Kong Odds (e.g. 0.77) | W8: 3 | Y8: 3 | Z8: 3 | AB8: 3
E9: 0 | G9: Football - Russia | I9: Not to Win | M9: Away Dog | O9: The Custom Filter name can be renamed using the box above. The filters themselves can be set up using the Custom Filters table to the left. This provides an additional filter by which you can analyse your betting data in the Performance Summary sheet. You can use this field any way you want. Some example uses are: League - if you use the Sport / League column to enter just the sport, you can use this field for the specific league. Pick attribute - you could filter your wager data based on the home favourite, home underdog, road favourite, etc. Tip rating - if you subscribe to tippers who publish tip ratings you could enter them here. | Q9: The examples above in brackets would result in a $177 payoff and $77 profit for a winning $100 bet. Decimal odds are popular in Europe, Australia and New Zealand. To use fractional odds, input = then the fraction into the odds field in the Bets sheet. For example =10/13. Note that Excel will display the odds in decimal format in the sheet. To change this to fractional display, go to the Bets sheet and unlock it (if you have not done so already) by selecting Tools -> Protection -> Unprotect Sheet. The password to do so is sport. Then highlight the odds column and select Format -> Cells -> Number -> Fraction. This spreadsheet calculates profits based on decimal odds. This is the procedure used by many, but not all bookmakers, so results may vary from those calculated by your bookmaker. In this case it is recommended that you tweak the odds to achieve results that match those calculated by your bookmaker. If using American odds, leave out the + sign for odds such as +130. | S9: Input the number of decimal places that your currency supports. For most currencies this is 2 (i.e. $5.95 has two decimal places). If your currency doesn't have decimal places, input 0. I.e. 5.95 rounds to 6.00 in your calculated payouts and profits. If your betting currency only supports rounding to say, the nearest 10 units, input -1 for rounding. This means 25.95 will round to 30. This rounding input will determine the rounding used in the calculation of bet payoffs and profits. | U9: 5 | V9: Indonesian Odds (e.g. -1.30) | W9: 4 | Y9: 4 | Z9: 4 | AB9: 4
E10: 0 | G10: Football - Serie B | I10: Other | U10: 6 | V10: Malay Odds (e.g. 0.77) | W10: 5 | Y10: 5 | Z10: 5
E11: 0 | G11: Football - Serie A | I11: Doubles | W11: 6 | Y11: 6 | Z11: 6
E12: 0 | G12: Football - Bundesliga | I12: Triples | W12: 7 | Y12: 7 | Z12: 7
E13: 0 | G13: Basketball - Spain | I13: Accumulator | W13: 8 | Y13: 8 | Z13: 8
E14: 0 | G14: Basketball - Italy | I14: Each Way | W14: 9 | Y14: 9 | Z14: 9
E15: 0 | G15: Basketball - Eurocup | I15: Draw No Bet | W15: 10 | Y15: 10 | Z15: 10
E16: 0 | G16: Basketball - Eurochallenge | I16: Half Ball | W16: 11 | Y16: 11 | Z16: 11
E17: 0 | G17: Basketball - Serbia | I17: Over / Under | W17: 12 | Y17: 12 | Z17: 12
E18: 0 | G18: Basketball - Turkey | I18: Halftime Line | W18: 13 | Y18: 13 | Z18: 13
E19: 0 | G19: Football - Belgium | I19: Asian Handicap | W19: 14 | Y19: 14 | Z19: 14
E20: 0 | G20: Basketball - France | W20: 15 | Y20: 15
E21: 0 | G21: Basketball - Germany | W21: 16 | Y21: 16
E22: 0 | G22: Basketball - Adriatic | W22: 17 | Y22: 17
E23: 0 | G23: Football - Portugal | W23: 18 | Y23: 18
E24: 0 | G24: Basketball - Euroleague | W24: 19 | Y24: 19
E25: 0 | G25: Football - Turkey | W25: 20 | Y25: 20
E26: 0 | G26: Football - France Cup | W26: 21 | Y26: 21
E27: 0 | G27: Basketball - Israel | W27: 22 | Y27: 22
E28: 0 | G28: Basketball - Denmark | W28: 23 | Y28: 23
E29: 0 | G29: Football - Scotland | W29: 24 | Y29: 24
E30: 0 | G30: Football - FA Cup | W30: 25 | Y30: 25
E31: 0 | G31: Basketball - EuroW | W31: 26 | Y31: 26
E32: 0 | G32: Basketball - Slovakia | W32: 27 | Y32: 27
E33: 0 | G33: Football - France2 | W33: 28 | Y33: 28
E34: 0 | G34: Basketball - NBA | W34: 29 | Y34: 29
E35: 0 | G35: Football - France | W35: 30 | Y35: 30
E36: 0 | G36: Football - England 1 | W36: 31 | Y36: 31
E37: 0 | G37: Football - England Champ | W37: 32 | Y37: 32
E38: 0 | G38: Basketball - Slovenia | W38: 33 | Y38: 33
E39: 0 | G39: Asia Cup | W39: 34 | Y39: 34
E40: 0 | G40: NFL | W40: 35 | Y40: 35
E41: 0 | G41: Football - Greece | W41: 36 | Y41: 36
E42: 0 | G42: Football - Segunda | W42: 37 | Y42: 37
E43: 0 | G43: Football - Venezuela | W43: 38 | Y43: 38
E44: 0 | G44: Basketball - Spain-2 | W44: 39 | Y44: 39
E45: 0 | G45: Football - Friendlies | W45: 40 | Y45: 40
E46: 0 | G46: Basketball - Greece | W46: 41 | Y46: 41
E47: 0 | G47: Basketball - Bulgaria | W47: 42 | Y47: 42
E48: 0 | G48: Basketball - Finland | W48: 43 | Y48: 43
E49: 0 | G49: Football - African Cup | W49: 44 | Y49: 44
E50: 0 | G50: Football - Mex | W50: 45 | Y50: 45
E51: 0 | G51: Football - Ned | W51: 46 | Y51: 46
E52: 0 | G52: Basketball - Sweden | W52: 47 | Y52: 47
E53: 0 | G53: Football - Costa Rica | W53: 48 | Y53: 48
E54: 0 | G54: Football - England 2 | W54: 49 | Y54: 49
E55: 0 | G55: Football - Israel | W55: 50 | Y55: 50
E56: 0 | G56: Tennis | W56: 51 | Y56: 51
E57: 0 | G57: Basketball - Slovenia | W57: 52 | Y57: 52
E58: 0 | G58: Basketball - Italy2 | W58: 53 | Y58: 53
E59: 0 | G59: Basketball - Poland | W59: 54 | Y59: 54
E60: 0 | G60: Basketball - Romain | W60: 55 | Y60: 55
E61: 0 | G61: Football - Swiss | W61: 56 | Y61: 56
E62: 0 | G62: Football - Poland | W62: 57 | Y62: 57
E63: 0 | G63: Football - Chile | W63: 58 | Y63: 58
E64: 0 | G64: Football - EL | W64: 59 | Y64: 59
E65: 0 | G65: Football - CHL | W65: 60 | Y65: 60
E66: 0 | G66: Football - Libertadores | W66: 61 | Y66: 61
E67: 0 | G67: Basketball - Czech | W67: 62 | Y67: 62
E68: 0 | G68: Football - Spain 2 | W68: 63 | Y68: 63
E69: 0 | G69: Basketball - Norway | W69: 64 | Y69: 64
E70: 0 | G70: Football - Hungary | W70: 65 | Y70: 65
E71: 0 | G71: Football - Romain | W71: 66 | X71: =IF(AND(D71<>"",D71<>"--"),W71,"") ->  | Y71: =IF(AND(G71<>"",G71<>"--"),W71,"") -> 66 | Z71: =IF(AND(I71<>"",I71<>"--"),W71,"") ->  | AA71: =IF(AND(K71<>"",K71<>"--"),W71,"") ->  | AB71: =IF(AND(M71<>"",M71<>"--"),W71,"") -> 
E72: 0 | G72: Basketball - Swiss | W72: 67 | Y72: 67
E73: 0 | G73: Basketball - Lithuania | W73: 68 | Y73: 68
E74: 0 | G74: Football - Equador | W74: 69 | Y74: 69
E75: 0 | G75: Football - Concaff CL | W75: 70 | Y75: 70
E76: 0 | G76: Basketball - Austria | W76: 71 | Y76: 71
E77: 0 | W77: 72
E78: 0 | W78: 73
E79: 0 | W79: 74
E80: 0 | W80: 75
E81: 0 | W81: 76
E82: 0 | W82: 77
E83: 0 | W83: 78
E84: 0 | W84: 79
E85: 0 | W85: 80
E86: 0 | W86: 81
E87: 0 | W87: 82
E88: 0 | W88: 83
E89: 0 | W89: 84
E90: 0 | W90: 85
E91: 0 | W91: 86
E92: 0 | W92: 87
E93: 0 | W93: 88
E94: 0 | W94: 89
E95: 0 | W95: 90
E96: 0 | W96: 91
E97: 0 | W97: 92
E98: 0 | W98: 93
E99: 0 | W99: 94
E100: 0 | W100: 95
E101: 0 | W101: 96
E102: 0 | W102: 97
E103: 0 | W103: 98
E104: 0 | W104: 99
E105: 0 | W105: 100
E106: 0 | W106: 101
E107: 0 | W107: 102
E108: 0 | W108: 103
E109: 0 | W109: 104
E110: 0 | W110: 105
E111: 0 | W111: 106
E112: 0 | W112: 107
E113: 0 | W113: 108
E114: 0 | W114: 109
E115: 0 | W115: 110
E116: 0 | W116: 111
E117: 0 | W117: 112
E118: 0 | W118: 113
E119: 0 | W119: 114
E120: 0 | W120: 115
E121: 0 | W121: 116
E122: 0 | W122: 117
E123: 0 | W123: 118
E124: 0 | W124: 119
E125: 0 | W125: 120
E126: 0 | W126: 121
E127: 0 | W127: 122
E128: 0 | W128: 123
E129: 0 | W129: 124
E130: 0 | W130: 125
E131: 0 | W131: 126
E132: 0 | W132: 127
E133: 0 | W133: 128
E134: 0 | W134: 129
E135: 0 | W135: 130 | X135: =IF(AND(D135<>"",D135<>"--"),W135,"") ->  | Y135: =IF(AND(G135<>"",G135<>"--"),W135,"") ->  | Z135: =IF(AND(I135<>"",I135<>"--"),W135,"") ->  | AA135: =IF(AND(K135<>"",K135<>"--"),W135,"") ->  | AB135: =IF(AND(M135<>"",M135<>"--"),W135,"") -> 
E136: 0 | W136: 131
E137: 0 | W137: 132
E138: 0 | W138: 133
E139: 0 | W139: 134
E140: 0 | W140: 135
E141: 0 | W141: 136
E142: 0 | W142: 137
E143: 0 | W143: 138
E144: 0 | W144: 139
E145: 0 | W145: 140
E146: 0 | W146: 141
E147: 0 | W147: 142
E148: 0 | W148: 143
E149: 0 | W149: 144
E150: 0 | W150: 145
E151: 0 | W151: 146
E152: 0 | W152: 147
E153: 0 | W153: 148
E154: 0 | W154: 149
E155: 0 | W155: 150
E156: 0 | W156: 151
E157: 0 | W157: 152
E158: 0 | W158: 153
E159: 0 | W159: 154
E160: 0 | W160: 155
E161: 0 | W161: 156
E162: 0 | W162: 157
E163: 0 | W163: 158
E164: 0 | W164: 159
E165: 0 | W165: 160
E166: 0 | W166: 161
E167: 0 | W167: 162
E168: 0 | W168: 163
E169: 0 | W169: 164
E170: 0 | W170: 165
E171: 0 | W171: 166
E172: 0 | W172: 167
E173: 0 | W173: 168
E174: 0 | W174: 169
E175: 0 | W175: 170
E176: 0 | W176: 171
E177: 0 | W177: 172
E178: 0 | W178: 173
E179: 0 | W179: 174
E180: 0 | W180: 175
E181: 0 | W181: 176
E182: 0 | W182: 177
E183: 0 | W183: 178
E184: 0 | W184: 179
E185: 0 | W185: 180
E186: 0 | W186: 181
E187: 0 | W187: 182
E188: 0 | W188: 183
E189: 0 | W189: 184
E190: 0 | W190: 185
E191: 0 | W191: 186
E192: 0 | W192: 187
E193: 0 | W193: 188
E194: 0 | W194: 189
E195: 0 | W195: 190
E196: 0 | W196: 191
E197: 0 | W197: 192
E198: 0 | W198: 193
E199: 0 | W199: 194 | X199: =IF(AND(D199<>"",D199<>"--"),W199,"") ->  | Y199: =IF(AND(G199<>"",G199<>"--"),W199,"") ->  | Z199: =IF(AND(I199<>"",I199<>"--"),W199,"") ->  | AA199: =IF(AND(K199<>"",K199<>"--"),W199,"") ->  | AB199: =IF(AND(M199<>"",M199<>"--"),W199,"") -> 
E200: 0 | W200: 195
E201: 0 | W201: 196
E202: 0 | W202: 197
... 103 more rows

Sheet Deposits
B1: Deposits & Withdrawals
B3: Input Instructions
B5: Input positive amounts for deposits and negative amounts for withdrawals. The difference between free bets and bonus credit is that with free bets you only receive the net proceeds, if any, from the bet while bonus credit is treated by the system as an actual deposit. The columns marked with blue headers denote optional fields, and are for your reference only. Note that the Date field for the Bonus Credit table is required, while it is optional for the other two tables.
B7: Deposits & Withdrawals | G7: Bonus Bets / Free Bets | L7: Bonus Credit
B9: Date | C9: Agency | D9: Method | E9: Amount | G9: Date | H9: Agency | I9: Description | J9: Amount | L9: Date | M9: Agency | N9: Description | O9: Amount
B10: 2015-01-12 | C10: Pinnacle Sports | D10: Moneybookers | E10: 1500
B11: 2015-01-12 | C11: Sbobet | D11: Moneybookers | E11: 350

Sheet Bets
A1: Betting Data | T1: Input Key | X1: Recent Summary (Concluded Bets)
A3: Input your betting details into the table below. The optional columns represent data that are not used in the performance statistics worksheets. These columns are for your reference only. Two exceptions to this are the Bet Type and Tipster/Capper columns. While these two columns are optional, they are applied in the Performance Summary should you choose to use them. If you do not need to use the Tipster Analysis, Odds Analysis or Line/Spread Analysis features you can hide these columns (P through T). You can unlock this sheet using the instructions in the Intro worksheet. | T3: Required Field | Y3: At Risk | Z3: Payout | AA3: Profit / Loss
T4: Optional Field | X4: Today | Y4: =SUMIFS(AT_RISK,WIN,"<>P",WIN,"<>"&"",BET_DATE,">"&TODAY()-1,BET_DATE,"<="&TODAY()) -> 0 | Z4: =SUMIFS(PAYOUT,WIN,"<>P",WIN,"<>"&"",BET_DATE,">"&TODAY()-1,BET_DATE,"<="&TODAY()) -> 0 | AA4: =SUMIFS(PROFIT,WIN,"<>P",WIN,"<>"&"",BET_DATE,">"&TODAY()-1,BET_DATE,"<="&TODAY()) -> 0 | BM4: Your Data | BX4: Tipster / Capper Data
T5: Automatically Calculated | X5: Last 7 Days | Y5: =SUMIFS(AT_RISK,WIN,"<>P",WIN,"<>"&"",BET_DATE,">"&TODAY()-7,BET_DATE,"<="&TODAY()) -> 0 | Z5: =SUMIFS(PAYOUT,WIN,"<>P",WIN,"<>"&"",BET_DATE,">"&TODAY()-7,BET_DATE,"<="&TODAY()) -> 0 | AA5: =SUMIFS(PROFIT,WIN,"<>P",WIN,"<>"&"",BET_DATE,">"&TODAY()-7,BET_DATE,"<="&TODAY()) -> 0
X6: This Month | Y6: =SUMIFS(AT_RISK,WIN,"<>P",WIN,"<>"&"",BET_DATE,">="&DATE(YEAR(TODAY()),MONTH(TODAY()),1),BET_DATE,"<="&TODAY()) -> 0 | Z6: =SUMIFS(PAYOUT,WIN,"<>P",WIN,"<>"&"",BET_DATE,">="&DATE(YEAR(TODAY()),MONTH(TODAY()),1),BET_DATE,"<="&TODAY()) -> 0 | AA6: =SUMIFS(PROFIT,WIN,"<>P",WIN,"<>"&"",BET_DATE,">="&DATE(YEAR(TODAY()),MONTH(TODAY()),1),BET_DATE,"<="&TODAY()) -> 0 | BM6: Used for Performance Graph
A7: =CONCATENATE("Please note that you are currently using the following odds type: ",VLOOKUP(ODDS_TYPE,ODDS_TABLE,2),". You can change this setting in the Settings worksheet.") -> Please note that you are currently using the following odds type: Decimal Odds (e.g. 1.77). You can change this setting in the Settings worksheet. | O7: Betting Exchanges | Q7: Tipper's Betting Data (if different from yours) | T7: Closing Odds & Lines Analysis | X7: This Year | Y7: =SUMIFS(AT_RISK,WIN,"<>P",WIN,"<>"&"",BET_DATE,">="&DATE(YEAR(TODAY()),1,1),BET_DATE,"<="&TODAY()) -> 14745 | Z7: =SUMIFS(PAYOUT,WIN,"<>P",WIN,"<>"&"",BET_DATE,">="&DATE(YEAR(TODAY()),1,1),BET_DATE,"<="&TODAY()) -> 16282 | AA7: =SUMIFS(PROFIT,WIN,"<>P",WIN,"<>"&"",BET_DATE,">="&DATE(YEAR(TODAY()),1,1),BET_DATE,"<="&TODAY()) -> 1537
BU8: Odds | BW8: Line / Handicap | CC8: Odds | CD8: Line / Handicap
A9: Date | B9: Bookmaker | C9: Sport / League | D9: Selection | E9: Bet Type | F9: Tipper | G9: =CUSTOM_NAME -> My Variable | H9: Fixture / Event | I9: Live Bet | J9: Score / Result | K9: Stake | L9: =IF(ODDS_TYPE=2,"Odds (US)",IF(ODDS_TYPE=3,"Odds (frac)",IF(ODDS_TYPE=4,"Odds (HK)",IF(ODDS_TYPE=5,"Odds (ID)",IF(ODDS_TYPE=6,"Odds (MY)","Odds"))))) -> Odds | M9: FB | N9: Win | O9: Comm ission | P9: Lay Bet? | Q9: Odds | R9: Line | S9: Win | T9: Closing Odds | U9: Wager Line | V9: Closing Line | X9: At Risk | Y9: Potential Payout | Z9: Bet Result | AC9: Notes | BM9: Date | BN9: Profit | BO9: Working Odds | BP9: Potential payout before commission | BQ9: Payout before commission | BR9: Working close odds | BS9: Profit (%) (beat closing odds) | BT9: Profit (%) (beat closing line) | BU9: =IF(OR(ODDS_TYPE=1,ODDS_TYPE=2),"Beat Close","Beat Close (dec odds)") -> Beat Close | BV9: Beat Close (%) | BW9: Beat Close | BX9: Win | BY9: At Risk | BZ9: Potential Payout | CA9: Bet Result | CC9: =IF(OR(ODDS_TYPE=1,ODDS_TYPE=2),"Beat Close","Beat Close (dec odds)") -> Beat Close | CD9: Beat Close | CE9: Working Odds | CF9: Potential payout before commission | CG9: Payout before commission
Z10: Payout | AA10: Profit / Loss | BM10: =MIN(BM11:BM10010,TODAY()) -> 2015-01-12 | BN10: 0 | CA10: Payout | CB10: Profit / Loss | CI10: Win
A11: 2015-01-12 | B11: Pinnacle Sports | C11: Basketball - Israel | D11: Bnei +7.5 | E11: Asian Handicap | F11: My own bets | H11: Eilat - Bnei 2+7.5 | K11: 30 | L11: 1.87 | N11: Y | X11: =ROUND(IF(M11<>"Y",IF(P11<>"Y",K11,K11*(BO11-1)),0),ROUNDING) -> 30 | Y11: =ROUND(IF(O11>0,IF(M11="Y",BP11*(1-O11),IF(BP11>X11,X11 + (BP11 - X11)*(1-O11),BP11)),BP11),ROUNDING) -> 56.1 | Z11: =ROUND(IF(O11>0,IF(M11="Y",BQ11*(1-O11),IF(BQ11>X11,X11 + (BQ11 - X11)*(1-O11),BQ11)),BQ11),ROUNDING) -> 56.1 | AA11: =ROUND(IF(OR(N11="P",N11=""),0,IF(OR(M11="N",M11=""),Z11-X11,Z11)),ROUNDING) -> 26.1 | BL11: =COUNT(L$11:L11) -> 1 | BM11: =IF(A11>2,A11," ") -> 2015-01-12 | BN11: =BN10+AA11 -> 26.1 | BO11: =IF(L11<>"",IF(ODDS_TYPE=1,L11,IF(ODDS_TYPE=2,IF(L11>0,1+L11/100,IF(L11<0,1-100/L11,1)),IF(ODDS_TYPE=3,1+L11,IF(ODDS_TYPE=4,1+L11,IF(ODDS_TYPE=5,IF(L11>0,1+L11,1-1/L11),IF(ODDS_TYPE=6,IF(L11>=0,L11+1,1-1/L11),1)))))),1) -> 1.87 | BP11: =IF(P11<>"Y",IF(M11<>"Y",K11*BO11,K11*BO11 - K11),IF(M11<>"Y",K11*BO11,K11)) -> 56.1 | BQ11: =IF(P11<>"Y", IF(M11<>"Y", IF(N11="Y",K11*BO11,IF(N11="P",0,IF(OR(N11="R",N11="PU"),K11,IF(N11="H",K11*BO11*0.5,IF(N11="HW",K11*0.5*(1 + BO11),IF(N11="HL",K11*0.5,0)))))), IF(N11="Y",K11*BO11 - K11,IF(N11="P",0,IF(OR(N11="R",N11="PU"),0,IF(N11="H",IF(BO11>2,0.5*K11*BO11 - K11,0),IF(N11="HW",K11*0.5*(1 + BO11) - K11,IF(N11="HL",0,0))))))), IF(M11<>"Y", IF(N11="Y",K11*BO11,IF(N11="P",0,IF(OR(N11="R",N11="PU"),K11*(BO11-1),IF(N11="H",K11*BO11*0.5,IF(N11="HW",K11*(BO11-1)*0.5,IF(N11="HL",K11*BO11 - K11*0.5,0)))))), IF(N11="Y",K11,IF(N11="P",0,IF(OR(N11="R",N11="PU"),0,IF(N11="H",IF(BO11<2,K11*BO11*0.5 - K11*(BO11-1),0),IF(N11="HW",0,IF(N11="HL",K11*0.5,0))))))) ) -> 56.1 | BR11: =IF(T11<>"",IF(ODDS_TYPE=1,T11,IF(ODDS_TYPE=2,IF(T11>0,1+T11/100,IF(T11<0,1-100/T11,1)),IF(ODDS_TYPE=3,1+T11,IF(ODDS_TYPE=4,1+T11,IF(ODDS_TYPE=5,IF(T11>0,1+T11,1-1/T11),IF(ODDS_TYPE=6,IF(T11>=0,T11+1,1-1/T11),1)))))),1) -> 1 | BS11: =IF(AND(X11>0,N11<>"P",BV11<>""),AA11/X11,"") ->  | BT11: =IF(AND(X11>0,N11<>"P",BW11<>""),AA11/X11,"") ->  | BU11: =IF(AND(L11<>"",T11<>""), IF(P11="Y",IF(ODDS_TYPE<>2,BR11-BO11,IF(OR(AND(L11>0,T11>0),AND(L11<0,T11<0)),T11-L11,IF(AND(L11>0,T11<0),T11-L11-200,T11-L11+200))), IF(ODDS_TYPE<>2,BO11-BR11,IF(OR(AND(L11>0,T11>0),AND(L11<0,T11<0)),L11-T11,IF(AND(L11>0,T11<0),L11-T11-200,L11-T11+200))) ),"") ->  | BV11: =IF(AND(L11<>"",T11<>"",BR11<>1),IF(P11="Y",(BR11-BO11)/(BR11-1),(BO11-BR11)/(BR11-1)),"") ->  | BW11: =IF(AND(U11<>"",V11<>""),IF(P11<>"Y",U11-V11,V11-U11),"") ->  | BX11: =IF(LEN(S11)>0,S11,N11) -> Y | BY11: =ROUND(IF(M11<>"Y",IF(P11<>"Y",K11,K11*(CE11-1)),0),ROUNDING) -> 30 | BZ11: =ROUND(IF(O11>0,IF(M11="Y",CF11*(1-O11),IF(CF11>BY11,BY11 + (CF11 - BY11)*(1-O11),CF11)),CF11),ROUNDING) -> 56.1 | CA11: =ROUND(IF(O11>0,IF(M11="Y",CG11*(1-O11),IF(CG11>BY11,BY11 + (CG11 - BY11)*(1-O11),CG11)),CG11),ROUNDING) -> 56.1 | CB11: =ROUND(IF(OR(BX11="P",BX11=""),0,IF(OR(M11="N",M11=""),CA11-BY11,CA11)),ROUNDING) -> 26.1 | CC11: =IF(AND(L11<>"",T11<>""), IF(P11="Y",IF(ODDS_TYPE<>2,BR11-CE11,IF(OR(AND(L11>0,T11>0),AND(L11<0,T11<0)),T11-L11,IF(AND(L11>0,T11<0),T11-L11-200,T11-L11+200))), IF(ODDS_TYPE<>2,CE11-BR11,IF(OR(AND(L11>0,T11>0),AND(L11<0,T11<0)),L11-T11,IF(AND(L11>0,T11<0),L11-T11-200,L11-T11+200))) ),"") ->  | CD11: =IF(OR(AND(R11<>"",V11<>""),AND(U11<>"",V11<>"")),IF(AND(R11<>"",V11<>""),IF(P11<>"Y",R11-V11,V11-R11),IF(P11<>"Y",U11-V11,V11-U11)),"") ->  | CE11: =IF(Q11<>"",IF(ODDS_TYPE=1,Q11,IF(ODDS_TYPE=2,IF(Q11>0,1+Q11/100,IF(Q11<0,1-100/Q11,1)),IF(ODDS_TYPE=3,1+Q11,IF(ODDS_TYPE=4,1+Q11,IF(ODDS_TYPE=5,IF(Q11>0,1+Q11,1-1/Q11),IF(ODDS_TYPE=6,IF(Q11>=0,Q11+1,1-1/Q11),1)))))),BO11) -> 1.87 | CF11: =IF(P11<>"Y",IF(M11<>"Y",K11*CE11,K11*CE11 - K11),IF(M11<>"Y",K11*CE11,K11)) -> 56.1 | CG11: =IF(P11<>"Y", IF(M11<>"Y", IF(BX11="Y",K11*CE11,IF(BX11="P",0,IF(OR(BX11="R",BX11="PU"),K11,IF(BX11="H",K11*CE11*0.5,IF(BX11="HW",K11*0.5*(1 + CE11),IF(BX11="HL",K11*0.5,0)))))), IF(BX11="Y",K11*CE11 - K11,IF(BX11="P",0,IF(OR(BX11="R",BX11="PU"),0,IF(BX11="H",IF(CE11>2,0.5*K11*CE11 - K11,0),IF(BX11="HW",K11*0.5*(1 + CE11) - K11,IF(BX11="HL",0,0))))))), IF(M11<>"Y", IF(BX11="Y",K11*CE11,IF(BX11="P",0,IF(OR(BX11="R",BX11="PU"),K11*(CE11-1),IF(BX11="H",K11*CE11*0.5,IF(BX11="HW",K11*(CE11-1)*0.5,IF(BX11="HL",K11*CE11 - K11*0.5,0)))))), IF(BX11="Y",K11,IF(BX11="P",0,IF(OR(BX11="R",BX11="PU"),0,IF(BX11="H",IF(CE11<2,K11*CE11*0.5 - K11*(CE11-1),0),IF(BX11="HW",0,IF(BX11="HL",K11*0.5,0))))))) ) -> 56.1 | CI11: P
A12: 2015-01-12 | B12: Pinnacle Sports | C12: Basketball - Israel | D12: Bnei | E12: Winner | F12: My own bets | H12: Eilat - Bnei | K12: 10 | L12: 3.94 | N12: Y | X12: 10 | Y12: 39.4 | Z12: 39.4 | AA12: 29.4 | BL12: =COUNT(L$11:L12) -> 2 | BM12: =IF(A12>2,A12,BM11) -> 2015-01-12 | BN12: 55.5 | BO12: 3.94 | BP12: 39.4 | BQ12: 39.4 | BR12: 1 | BX12: Y | BY12: 10 | BZ12: 39.4 | CA12: 39.4 | CB12: 29.4 | CE12: 3.94 | CF12: 39.4 | CG12: 39.4 | CI12: Y
A13: 2015-01-12 | B13: Pinnacle Sports | C13: Basketball - Eurochallenge | D13: Energia | E13: Winner | F13: My own bets | H13: Energia - Okapi | K13: 40 | L13: 2.29 | N13: Y | X13: 40 | Y13: 91.6 | Z13: 91.6 | AA13: 51.6 | BL13: =COUNT(L$11:L13) -> 3 | BM13: 2015-01-12 | BN13: 107.1 | BO13: 2.29 | BP13: 91.6 | BQ13: 91.6 | BR13: 1 | BX13: Y | BY13: 40 | BZ13: 91.6 | CA13: 91.6 | CB13: 51.6 | CE13: 2.29 | CF13: 91.6 | CG13: 91.6 | CI13: N
A14: 2015-01-12 | B14: Pinnacle Sports | C14: Basketball - Eurochallenge | D14: Antwerpen +11.5 | E14: Asian Handicap | F14: My own bets | H14: Trabzonspor - Antwerpen 2+11.5 | K14: 40 | L14: 1.93 | N14: Y | X14: =ROUND(IF(M14<>"Y",IF(P14<>"Y",K14,K14*(BO14-1)),0),ROUNDING) -> 40 | Y14: =ROUND(IF(O14>0,IF(M14="Y",BP14*(1-O14),IF(BP14>X14,X14 + (BP14 - X14)*(1-O14),BP14)),BP14),ROUNDING) -> 77.2 | Z14: =ROUND(IF(O14>0,IF(M14="Y",BQ14*(1-O14),IF(BQ14>X14,X14 + (BQ14 - X14)*(1-O14),BQ14)),BQ14),ROUNDING) -> 77.2 | AA14: =ROUND(IF(OR(N14="P",N14=""),0,IF(OR(M14="N",M14=""),Z14-X14,Z14)),ROUNDING) -> 37.2 | BL14: =COUNT(L$11:L14) -> 4 | BM14: =IF(A14>2,A14,BM13) -> 2015-01-12 | BN14: =BN13+AA14 -> 144.3 | BO14: =IF(L14<>"",IF(ODDS_TYPE=1,L14,IF(ODDS_TYPE=2,IF(L14>0,1+L14/100,IF(L14<0,1-100/L14,1)),IF(ODDS_TYPE=3,1+L14,IF(ODDS_TYPE=4,1+L14,IF(ODDS_TYPE=5,IF(L14>0,1+L14,1-1/L14),IF(ODDS_TYPE=6,IF(L14>=0,L14+1,1-1/L14),1)))))),1) -> 1.93 | BP14: =IF(P14<>"Y",IF(M14<>"Y",K14*BO14,K14*BO14 - K14),IF(M14<>"Y",K14*BO14,K14)) -> 77.2 | BQ14: =IF(P14<>"Y", IF(M14<>"Y", IF(N14="Y",K14*BO14,IF(N14="P",0,IF(OR(N14="R",N14="PU"),K14,IF(N14="H",K14*BO14*0.5,IF(N14="HW",K14*0.5*(1 + BO14),IF(N14="HL",K14*0.5,0)))))), IF(N14="Y",K14*BO14 - K14,IF(N14="P",0,IF(OR(N14="R",N14="PU"),0,IF(N14="H",IF(BO14>2,0.5*K14*BO14 - K14,0),IF(N14="HW",K14*0.5*(1 + BO14) - K14,IF(N14="HL",0,0))))))), IF(M14<>"Y", IF(N14="Y",K14*BO14,IF(N14="P",0,IF(OR(N14="R",N14="PU"),K14*(BO14-1),IF(N14="H",K14*BO14*0.5,IF(N14="HW",K14*(BO14-1)*0.5,IF(N14="HL",K14*BO14 - K14*0.5,0)))))), IF(N14="Y",K14,IF(N14="P",0,IF(OR(N14="R",N14="PU"),0,IF(N14="H",IF(BO14<2,K14*BO14*0.5 - K14*(BO14-1),0),IF(N14="HW",0,IF(N14="HL",K14*0.5,0))))))) ) -> 77.2 | BR14: =IF(T14<>"",IF(ODDS_TYPE=1,T14,IF(ODDS_TYPE=2,IF(T14>0,1+T14/100,IF(T14<0,1-100/T14,1)),IF(ODDS_TYPE=3,1+T14,IF(ODDS_TYPE=4,1+T14,IF(ODDS_TYPE=5,IF(T14>0,1+T14,1-1/T14),IF(ODDS_TYPE=6,IF(T14>=0,T14+1,1-1/T14),1)))))),1) -> 1 | BS14: =IF(AND(X14>0,N14<>"P",BV14<>""),AA14/X14,"") ->  | BT14: =IF(AND(X14>0,N14<>"P",BW14<>""),AA14/X14,"") ->  | BU14: =IF(AND(L14<>"",T14<>""), IF(P14="Y",IF(ODDS_TYPE<>2,BR14-BO14,IF(OR(AND(L14>0,T14>0),AND(L14<0,T14<0)),T14-L14,IF(AND(L14>0,T14<0),T14-L14-200,T14-L14+200))), IF(ODDS_TYPE<>2,BO14-BR14,IF(OR(AND(L14>0,T14>0),AND(L14<0,T14<0)),L14-T14,IF(AND(L14>0,T14<0),L14-T14-200,L14-T14+200))) ),"") ->  | BV14: =IF(AND(L14<>"",T14<>"",BR14<>1),IF(P14="Y",(BR14-BO14)/(BR14-1),(BO14-BR14)/(BR14-1)),"") ->  | BW14: =IF(AND(U14<>"",V14<>""),IF(P14<>"Y",U14-V14,V14-U14),"") ->  | BX14: =IF(LEN(S14)>0,S14,N14) -> Y | BY14: =ROUND(IF(M14<>"Y",IF(P14<>"Y",K14,K14*(CE14-1)),0),ROUNDING) -> 40 | BZ14: =ROUND(IF(O14>0,IF(M14="Y",CF14*(1-O14),IF(CF14>BY14,BY14 + (CF14 - BY14)*(1-O14),CF14)),CF14),ROUNDING) -> 77.2 | CA14: =ROUND(IF(O14>0,IF(M14="Y",CG14*(1-O14),IF(CG14>BY14,BY14 + (CG14 - BY14)*(1-O14),CG14)),CG14),ROUNDING) -> 77.2 | CB14: =ROUND(IF(OR(BX14="P",BX14=""),0,IF(OR(M14="N",M14=""),CA14-BY14,CA14)),ROUNDING) -> 37.2 | CC14: =IF(AND(L14<>"",T14<>""), IF(P14="Y",IF(ODDS_TYPE<>2,BR14-CE14,IF(OR(AND(L14>0,T14>0),AND(L14<0,T14<0)),T14-L14,IF(AND(L14>0,T14<0),T14-L14-200,T14-L14+200))), IF(ODDS_TYPE<>2,CE14-BR14,IF(OR(AND(L14>0,T14>0),AND(L14<0,T14<0)),L14-T14,IF(AND(L14>0,T14<0),L14-T14-200,L14-T14+200))) ),"") ->  | CD14: =IF(OR(AND(R14<>"",V14<>""),AND(U14<>"",V14<>"")),IF(AND(R14<>"",V14<>""),IF(P14<>"Y",R14-V14,V14-R14),IF(P14<>"Y",U14-V14,V14-U14)),"") ->  | CE14: =IF(Q14<>"",IF(ODDS_TYPE=1,Q14,IF(ODDS_TYPE=2,IF(Q14>0,1+Q14/100,IF(Q14<0,1-100/Q14,1)),IF(ODDS_TYPE=3,1+Q14,IF(ODDS_TYPE=4,1+Q14,IF(ODDS_TYPE=5,IF(Q14>0,1+Q14,1-1/Q14),IF(ODDS_TYPE=6,IF(Q14>=0,Q14+1,1-1/Q14),1)))))),BO14) -> 1.93 | CF14: =IF(P14<>"Y",IF(M14<>"Y",K14*CE14,K14*CE14 - K14),IF(M14<>"Y",K14*CE14,K14)) -> 77.2 | CG14: =IF(P14<>"Y", IF(M14<>"Y", IF(BX14="Y",K14*CE14,IF(BX14="P",0,IF(OR(BX14="R",BX14="PU"),K14,IF(BX14="H",K14*CE14*0.5,IF(BX14="HW",K14*0.5*(1 + CE14),IF(BX14="HL",K14*0.5,0)))))), IF(BX14="Y",K14*CE14 - K14,IF(BX14="P",0,IF(OR(BX14="R",BX14="PU"),0,IF(BX14="H",IF(CE14>2,0.5*K14*CE14 - K14,0),IF(BX14="HW",K14*0.5*(1 + CE14) - K14,IF(BX14="HL",0,0))))))), IF(M14<>"Y", IF(BX14="Y",K14*CE14,IF(BX14="P",0,IF(OR(BX14="R",BX14="PU"),K14*(CE14-1),IF(BX14="H",K14*CE14*0.5,IF(BX14="HW",K14*(CE14-1)*0.5,IF(BX14="HL",K14*CE14 - K14*0.5,0)))))), IF(BX14="Y",K14,IF(BX14="P",0,IF(OR(BX14="R",BX14="PU"),0,IF(BX14="H",IF(CE14<2,K14*CE14*0.5 - K14*(CE14-1),0),IF(BX14="HW",0,IF(BX14="HL",K14*0.5,0))))))) ) -> 77.2 | CI14: R
A15: 2015-01-13 | B15: Pinnacle Sports | C15: Basketball - Euroleague | D15: Tartu | E15: Asian Handicap | F15: My own bets | H15: Tartu - Skyliners | K15: 40 | L15: 3.07 | N15: N | X15: 40 | Y15: 122.8 | Z15: 0 | AA15: -40 | BL15: =COUNT(L$11:L15) -> 5 | BM15: 2015-01-13 | BN15: 104.3 | BO15: 3.07 | BP15: 122.8 | BQ15: 0 | BR15: 1 | BX15: N | BY15: 40 | BZ15: 122.8 | CA15: 0 | CB15: -40 | CE15: 3.07 | CF15: 122.8 | CG15: 0 | CI15: H
A16: 2015-01-13 | B16: Pinnacle Sports | C16: Football - Friendlies | D16: Sparta | E16: Winner | F16: My own bets | H16: Celtic - Sparta | K16: 40 | L16: 2.19 | N16: Y | X16: 40 | Y16: 87.6 | Z16: 87.6 | AA16: 47.6 | BL16: =COUNT(L$11:L16) -> 6 | BM16: 2015-01-13 | BN16: 151.9 | BO16: 2.19 | BP16: 87.6 | BQ16: 87.6 | BR16: 1 | BX16: Y | BY16: 40 | BZ16: 87.6 | CA16: 87.6 | CB16: 47.6 | CE16: 2.19 | CF16: 87.6 | CG16: 87.6 | CI16: HW
A17: 2015-01-14 | B17: Pinnacle Sports | C17: Basketball - Eurocup | D17: Sevilla +10 | E17: Asian Handicap | F17: My own bets | H17: Turow - Sevilla +9.5 | K17: 40 | L17: 1.96 | N17: Y | X17: 40 | Y17: 78.4 | Z17: 78.4 | AA17: 38.4 | BL17: =COUNT(L$11:L17) -> 7 | BM17: 2015-01-14 | BN17: 190.3 | BO17: 1.96 | BP17: 78.4 | BQ17: 78.4 | BR17: 1 | BX17: Y | BY17: 40 | BZ17: 78.4 | CA17: 78.4 | CB17: 38.4 | CE17: 1.96 | CF17: 78.4 | CG17: 78.4 | CI17: HL
A18: 2015-01-14 | B18: Pinnacle Sports | C18: Football - FA Cup | D18: Bradford | E18: Winner | F18: My own bets | H18: Bradford - Millwall | K18: 40 | L18: 2.29 | N18: Y | X18: 40 | Y18: 91.6 | Z18: 91.6 | AA18: 51.6 | BL18: =COUNT(L$11:L18) -> 8 | BM18: 2015-01-14 | BN18: 241.9 | BO18: 2.29 | BP18: 91.6 | BQ18: 91.6 | BR18: 1 | BX18: Y | BY18: 40 | BZ18: 91.6 | CA18: 91.6 | CB18: 51.6 | CE18: 2.29 | CF18: 91.6 | CG18: 91.6 | CI18: PU
A19: 2015-01-14 | B19: Pinnacle Sports | C19: Basketball - Eurocup | D19: over163 | E19: Over / Under | F19: My own bets | H19: Ostende - Litovas o163 | K19: 40 | L19: 1.9 | N19: N | X19: 40 | Y19: 76 | Z19: 0 | AA19: -40 | BL19: =COUNT(L$11:L19) -> 9 | BM19: 2015-01-14 | BN19: 201.9 | BO19: 1.9 | BP19: 76 | BQ19: 0 | BR19: 1 | BX19: N | BY19: 40 | BZ19: 76 | CA19: 0 | CB19: -40 | CE19: 1.9 | CF19: 76 | CG19: 0
A20: 2015-01-15 | B20: Pinnacle Sports | C20: Basketball - Eurocup | D20: Limoges | E20: Winner | F20: My own bets | H20: Khimki - Limoges 2 | K20: 5 | L20: 7.32 | N20: N | X20: 5 | Y20: 36.6 | Z20: 0 | AA20: -5 | BL20: =COUNT(L$11:L20) -> 10 | BM20: 2015-01-15 | BN20: 196.9 | BO20: 7.32 | BP20: 36.6 | BQ20: 0 | BR20: 1 | BX20: N | BY20: 5 | BZ20: 36.6 | CA20: 0 | CB20: -5 | CE20: 7.32 | CF20: 36.6 | CG20: 0 | CI20: FB/In-Play
A21: 2015-01-15 | B21: Pinnacle Sports | C21: Basketball - Eurocup | D21: Olympia | E21: Winner | F21: My own bets | H21: Dijon - Olympia 2 | K21: 30 | L21: 3.16 | N21: Y | X21: 30 | Y21: 94.8 | Z21: 94.8 | AA21: 64.8 | BL21: =COUNT(L$11:L21) -> 11 | BM21: 2015-01-15 | BN21: 261.7 | BO21: 3.16 | BP21: 94.8 | BQ21: 94.8 | BR21: 1 | BX21: Y | BY21: 30 | BZ21: 94.8 | CA21: 94.8 | CB21: 64.8 | CE21: 3.16 | CF21: 94.8 | CG21: 94.8 | CI21: Y
A22: 2015-01-15 | B22: Pinnacle Sports | C22: Basketball - Eurocup | D22: Acesoft | E22: Winner | F22: My own bets | H22: Nancy - Acesoft 2 | K22: 30 | L22: 3.27 | N22: N | X22: 30 | Y22: 98.1 | Z22: 0 | AA22: -30 | BL22: =COUNT(L$11:L22) -> 12 | BM22: 2015-01-15 | BN22: 231.7 | BO22: 3.27 | BP22: 98.1 | BQ22: 0 | BR22: 1 | BX22: N | BY22: 30 | BZ22: 98.1 | CA22: 0 | CB22: -30 | CE22: 3.27 | CF22: 98.1 | CG22: 0 | CI22: N
A23: 2015-01-15 | B23: Pinnacle Sports | C23: Basketball - Eurocup | D23: Buducnost +12 | E23: Asian Handicap | F23: My own bets | H23: Gran Canaria - Buducnost +12 | K23: 40 | L23: 1.95 | N23: N | X23: 40 | Y23: 78 | Z23: 0 | AA23: -40 | BL23: =COUNT(L$11:L23) -> 13 | BM23: 2015-01-15 | BN23: 191.7 | BO23: 1.95 | BP23: 78 | BQ23: 0 | BR23: 1 | BX23: N | BY23: 40 | BZ23: 78 | CA23: 0 | CB23: -40 | CE23: 1.95 | CF23: 78 | CG23: 0
A24: 2015-01-15 | B24: Pinnacle Sports | C24: Basketball - Eurocup | D24: Budusnost | E24: Winner | F24: My own bets | H24: Gran Canaria - Buducnost 2 | K24: 5 | L24: 7 | N24: N | X24: 5 | Y24: 35 | Z24: 0 | AA24: -5 | BL24: =COUNT(L$11:L24) -> 14 | BM24: 2015-01-15 | BN24: 186.7 | BO24: 7 | BP24: 35 | BQ24: 0 | BR24: 1 | BX24: N | BY24: 5 | BZ24: 35 | CA24: 0 | CB24: -5 | CE24: 7 | CF24: 35 | CG24: 0 | CI24: Bet Types
A25: 2015-01-15 | B25: Pinnacle Sports | C25: Basketball - Eurocup | D25: Neprtunas | E25: Winner | F25: My own bets | H25: Pinar - Neptunas 2 | K25: 5 | L25: 4.59 | N25: N | X25: 5 | Y25: 22.95 | Z25: 0 | AA25: -5 | BL25: =COUNT(L$11:L25) -> 15 | BM25: 2015-01-15 | BN25: 181.7 | BO25: 4.59 | BP25: 22.95 | BQ25: 0 | BR25: 1 | BX25: N | BY25: 5 | BZ25: 22.95 | CA25: 0 | CB25: -5 | CE25: 4.59 | CF25: 22.95 | CG25: 0 | CI25: Y
A26: 2015-01-12 | B26: Pinnacle Sports | C26: Asia Cup | D26: Kuwait +0.75 | E26: Asian Handicap | F26: My own bets | H26: Korea - Kuwait | K26: 30 | L26: 3.06 | N26: HL | X26: 30 | Y26: 91.8 | Z26: 15 | AA26: -15 | BL26: =COUNT(L$11:L26) -> 16 | BM26: 2015-01-12 | BN26: 166.7 | BO26: 3.06 | BP26: 91.8 | BQ26: 15 | BR26: 1 | BX26: HL | BY26: 30 | BZ26: 91.8 | CA26: 15 | CB26: -15 | CE26: 3.06 | CF26: 91.8 | CG26: 15 | CI26: N
A27: 2015-01-12 | B27: Pinnacle Sports | C27: Asia Cup | D27: Kuwait | E27: Winner | F27: My own bets | H27: Korea - Kuwait | K27: 10 | L27: 11.3 | N27: N | X27: 10 | Y27: 113 | Z27: 0 | AA27: -10 | BL27: =COUNT(L$11:L27) -> 17 | BM27: 2015-01-12 | BN27: 156.7 | BO27: 11.3 | BP27: 113 | BQ27: 0 | BR27: 1 | BX27: N | BY27: 10 | BZ27: 113 | CA27: 0 | CB27: -10 | CE27: 11.3 | CF27: 113 | CG27: 0
A28: 2015-01-15 | B28: Pinnacle Sports | C28: Asia Cup | D28: Palestine | E28: Winner | F28: My own bets | H28: Palestine - Jordan | K28: 10 | L28: 9 | N28: N | X28: 10 | Y28: 90 | Z28: 0 | AA28: -10 | BL28: =COUNT(L$11:L28) -> 18 | BM28: 2015-01-15 | BN28: 146.7 | BO28: 9 | BP28: 90 | BQ28: 0 | BR28: 1 | BX28: N | BY28: 10 | BZ28: 90 | CA28: 0 | CB28: -10 | CE28: 9 | CF28: 90 | CG28: 0
A29: 2015-01-15 | B29: Pinnacle Sports | C29: Asia Cup | D29: Palestine +0.5 | E29: Asian Handicap | F29: My own bets | H29: Palestine - Jordan | K29: 30 | L29: 2.82 | N29: N | X29: 30 | Y29: 84.6 | Z29: 0 | AA29: -30 | BL29: =COUNT(L$11:L29) -> 19 | BM29: 2015-01-15 | BN29: 116.7 | BO29: 2.82 | BP29: 84.6 | BQ29: 0 | BR29: 1 | BX29: N | BY29: 30 | BZ29: 84.6 | CA29: 0 | CB29: -30 | CE29: 2.82 | CF29: 84.6 | CG29: 0
A30: 2015-01-15 | B30: Pinnacle Sports | C30: Football - Greece | D30: Platanas(0) | E30: Asian Handicap | F30: My own bets | H30: Platanas - Atromitos 1(0) | K30: 45 | L30: 1.93 | N30: PU | X30: 45 | Y30: 86.85 | Z30: 45 | AA30: 0 | BL30: =COUNT(L$11:L30) -> 20 | BM30: 2015-01-15 | BN30: 116.7 | BO30: 1.93 | BP30: 86.85 | BQ30: 45 | BR30: 1 | BX30: PU | BY30: 45 | BZ30: 86.85 | CA30: 45 | CB30: 0 | CE30: 1.93 | CF30: 86.85 | CG30: 45
A31: 2015-01-17 | B31: Pinnacle Sports | C31: Football - Segunda | D31: Sabadell +0.5 | E31: Asian Handicap | F31: My own bets | H31: Osasuna - Sabadell | K31: 40 | L31: 1.9 | N31: Y | X31: 40 | Y31: 76 | Z31: 76 | AA31: 36 | BL31: =COUNT(L$11:L31) -> 21 | BM31: 2015-01-17 | BN31: 152.7 | BO31: 1.9 | BP31: 76 | BQ31: 76 | BR31: 1 | BX31: Y | BY31: 40 | BZ31: 76 | CA31: 76 | CB31: 36 | CE31: 1.9 | CF31: 76 | CG31: 76
A32: 2015-01-17 | B32: Pinnacle Sports | C32: Football - Segunda | D32: Sabadell | E32: Winner | F32: My own bets | H32: Osasuna - Sabadell | K32: 10 | L32: 4.22 | N32: N | X32: 10 | Y32: 42.2 | Z32: 0 | AA32: -10 | BL32: =COUNT(L$11:L32) -> 22 | BM32: 2015-01-17 | BN32: 142.7 | BO32: 4.22 | BP32: 42.2 | BQ32: 0 | BR32: 1 | BX32: N | BY32: 10 | BZ32: 42.2 | CA32: 0 | CB32: -10 | CE32: 4.22 | CF32: 42.2 | CG32: 0
A33: 2015-01-14 | B33: Pinnacle Sports | C33: Football - France | D33: Nice | E33: Asian Handicap | F33: My own bets | H33: Bordeux - Nice | K33: 10 | L33: 4.22 | N33: Y | X33: 10 | Y33: 42.2 | Z33: 42.2 | AA33: 32.2 | BL33: =COUNT(L$11:L33) -> 23 | BM33: 2015-01-14 | BN33: 174.9 | BO33: 4.22 | BP33: 42.2 | BQ33: 42.2 | BR33: 1 | BX33: Y | BY33: 10 | BZ33: 42.2 | CA33: 42.2 | CB33: 32.2 | CE33: 4.22 | CF33: 42.2 | CG33: 42.2
A34: 2015-01-15 | B34: Pinnacle Sports | C34: Basketball - Euroleague | D34: Alba +7 | E34: Asian Handicap | F34: My own bets | H34: Alba - Real 1 +7 | K34: 40 | L34: 1.94 | N34: N | X34: 40 | Y34: 77.6 | Z34: 0 | AA34: -40 | BL34: =COUNT(L$11:L34) -> 24 | BM34: 2015-01-15 | BN34: 134.9 | BO34: 1.94 | BP34: 77.6 | BQ34: 0 | BR34: 1 | BX34: N | BY34: 40 | BZ34: 77.6 | CA34: 0 | CB34: -40 | CE34: 1.94 | CF34: 77.6 | CG34: 0
A35: 2015-01-15 | B35: Pinnacle Sports | C35: Basketball - EuroW | D35: Famila | E35: Winner | F35: My own bets | H35: Famila - Burges | K35: 45 | L35: 2.64 | N35: Y | X35: 45 | Y35: 118.8 | Z35: 118.8 | AA35: 73.8 | BL35: =COUNT(L$11:L35) -> 25 | BM35: 2015-01-15 | BN35: 208.7 | BO35: 2.64 | BP35: 118.8 | BQ35: 118.8 | BR35: 1 | BX35: Y | BY35: 45 | BZ35: 118.8 | CA35: 118.8 | CB35: 73.8 | CE35: 2.64 | CF35: 118.8 | CG35: 118.8
A36: 2015-01-14 | B36: Sbobet | C36: Football - France | D36: Nice | E36: Asian Handicap | F36: My own bets | H36: Bordeux - Nice | K36: 40 | L36: 1.92 | N36: Y | X36: 40 | Y36: 76.8 | Z36: 76.8 | AA36: 36.8 | BL36: =COUNT(L$11:L36) -> 26 | BM36: 2015-01-14 | BN36: 245.5 | BO36: 1.92 | BP36: 76.8 | BQ36: 76.8 | BR36: 1 | BX36: Y | BY36: 40 | BZ36: 76.8 | CA36: 76.8 | CB36: 36.8 | CE36: 1.92 | CF36: 76.8 | CG36: 76.8
A37: 2015-01-15 | B37: Pinnacle Sports | C37: Basketball - Euroleague | D37: Galatasaray +7.5 | E37: Asian Handicap | F37: My own bets | H37: Crvena - Galatasaray +7.5 | K37: 30 | L37: 1.89 | N37: Y | X37: 30 | Y37: 56.7 | Z37: 56.7 | AA37: 26.7 | BL37: =COUNT(L$11:L37) -> 27 | BM37: 2015-01-15 | BN37: 272.2 | BO37: 1.89 | BP37: 56.7 | BQ37: 56.7 | BR37: 1 | BX37: Y | BY37: 30 | BZ37: 56.7 | CA37: 56.7 | CB37: 26.7 | CE37: 1.89 | CF37: 56.7 | CG37: 56.7
A38: 2015-01-15 | B38: Pinnacle Sports | C38: Basketball - Euroleague | D38: Galatasaray | E38: Winner | F38: My own bets | H38: Crvena - Galatasaray 2 | K38: 10 | L38: 3.73 | N38: Y | X38: 10 | Y38: 37.3 | Z38: 37.3 | AA38: 27.3 | BL38: =COUNT(L$11:L38) -> 28 | BM38: 2015-01-15 | BN38: 299.5 | BO38: 3.73 | BP38: 37.3 | BQ38: 37.3 | BR38: 1 | BX38: Y | BY38: 10 | BZ38: 37.3 | CA38: 37.3 | CB38: 27.3 | CE38: 3.73 | CF38: 37.3 | CG38: 37.3
A39: 2015-01-16 | B39: Pinnacle Sports | C39: Basketball - Spain | D39: Sevilla +14 | E39: Asian Handicap | F39: My own bets | H39: Joventud - Sevilla +14 | K39: 40 | L39: 1.9 | N39: Y | X39: 40 | Y39: 76 | Z39: 76 | AA39: 36 | BL39: =COUNT(L$11:L39) -> 29 | BM39: 2015-01-16 | BN39: 335.5 | BO39: 1.9 | BP39: 76 | BQ39: 76 | BR39: 1 | BX39: Y | BY39: 40 | BZ39: 76 | CA39: 76 | CB39: 36 | CE39: 1.9 | CF39: 76 | CG39: 76
A40: 2015-01-16 | B40: Pinnacle Sports | C40: Basketball - VTB | D40: Riga | E40: Winner | F40: My own bets | H40: Enisey - Riga 2 | K40: 30 | L40: 3.22 | N40: Y | X40: 30 | Y40: 96.6 | Z40: 96.6 | AA40: 66.6 | BL40: =COUNT(L$11:L40) -> 30 | BM40: 2015-01-16 | BN40: 402.1 | BO40: 3.22 | BP40: 96.6 | BQ40: 96.6 | BR40: 1 | BX40: Y | BY40: 30 | BZ40: 96.6 | CA40: 96.6 | CB40: 66.6 | CE40: 3.22 | CF40: 96.6 | CG40: 96.6
A41: 2015-01-16 | B41: Pinnacle Sports | C41: Basketball - Greece | E41: Asian Handicap | F41: My own bets | H41: Aris - Retymno+7.5 | K41: 40 | L41: 1.95 | N41: Y | X41: 40 | Y41: 78 | Z41: 78 | AA41: 38 | BL41: =COUNT(L$11:L41) -> 31 | BM41: 2015-01-16 | BN41: 440.1 | BO41: 1.95 | BP41: 78 | BQ41: 78 | BR41: 1 | BX41: Y | BY41: 40 | BZ41: 78 | CA41: 78 | CB41: 38 | CE41: 1.95 | CF41: 78 | CG41: 78
X42: 0 | Y42: 0 | Z42: 0 | AA42: 0 | BL42: =COUNT(L$11:L42) -> 31 | BM42: 2015-01-16 | BN42: 440.1 | BO42: 1 | BP42: 0 | BQ42: 0 | BR42: 1 | BX42: 0 | BY42: 0 | BZ42: 0 | CA42: 0 | CB42: 0 | CE42: 1 | CF42: 0 | CG42: 0
A43: 2015-01-16 | B43: Pinnacle Sports | C43: Basketball - Greece | E43: Asian Handicap | F43: My own bets | H43: AENK - Panionis +7 | K43: 40 | L43: 1.87 | N43: Y | X43: 40 | Y43: 74.8 | Z43: 74.8 | AA43: 34.8 | BL43: =COUNT(L$11:L43) -> 32 | BM43: 2015-01-16 | BN43: 474.9 | BO43: 1.87 | BP43: 74.8 | BQ43: 74.8 | BR43: 1 | BX43: Y | BY43: 40 | BZ43: 74.8 | CA43: 74.8 | CB43: 34.8 | CE43: 1.87 | CF43: 74.8 | CG43: 74.8
A44: 2015-01-16 | B44: Pinnacle Sports | C44: Basketball - Bulgaria | E44: Asian Handicap | F44: My own bets | H44: Spartak +11 Beroe | K44: 40 | L44: 1.9 | N44: Y | X44: 40 | Y44: 76 | Z44: 76 | AA44: 36 | BL44: =COUNT(L$11:L44) -> 33 | BM44: 2015-01-16 | BN44: 510.9 | BO44: 1.9 | BP44: 76 | BQ44: 76 | BR44: 1 | BX44: Y | BY44: 40 | BZ44: 76 | CA44: 76 | CB44: 36 | CE44: 1.9 | CF44: 76 | CG44: 76
A45: 2015-01-16 | B45: Pinnacle Sports | C45: Basketball - France | D45: Pari-Levallois | E45: Winner | F45: My own bets | H45: Cholet - Pari-Levallois | K45: 40 | L45: 2.15 | N45: Y | X45: 40 | Y45: 86 | Z45: 86 | AA45: 46 | BL45: =COUNT(L$11:L45) -> 34 | BM45: 2015-01-16 | BN45: 556.9 | BO45: 2.15 | BP45: 86 | BQ45: 86 | BR45: 1 | BX45: Y | BY45: 40 | BZ45: 86 | CA45: 86 | CB45: 46 | CE45: 2.15 | CF45: 86 | CG45: 86
A46: 2015-01-16 | B46: Pinnacle Sports | C46: Football - Serie A | D46: Palermo | E46: Winner | F46: My own bets | H46: Palermo - Roma | K46: 30 | L46: 3.61 | N46: N | X46: 30 | Y46: 108.3 | Z46: 0 | AA46: -30 | BL46: =COUNT(L$11:L46) -> 35 | BM46: 2015-01-16 | BN46: 526.9 | BO46: 3.61 | BP46: 108.3 | BQ46: 0 | BR46: 1 | BX46: N | BY46: 30 | BZ46: 108.3 | CA46: 0 | CB46: -30 | CE46: 3.61 | CF46: 108.3 | CG46: 0
A47: 2015-01-16 | B47: Pinnacle Sports | C47: Basketball - Greece | D47: Trikala | E47: Winner | F47: My own bets | H47: Trikala - Paok 1 | K47: 30 | L47: 2.59 | N47: N | X47: 30 | Y47: 77.7 | Z47: 0 | AA47: -30 | BL47: =COUNT(L$11:L47) -> 36 | BM47: 2015-01-16 | BN47: 496.9 | BO47: 2.59 | BP47: 77.7 | BQ47: 0 | BR47: 1 | BX47: N | BY47: 30 | BZ47: 77.7 | CA47: 0 | CB47: -30 | CE47: 2.59 | CF47: 77.7 | CG47: 0
A48: 2015-01-16 | B48: Pinnacle Sports | C48: Basketball - France | D48: Nant | E48: Winner | F48: My own bets | H48: Nant - Landes | K48: 40 | L48: 2.32 | N48: Y | X48: 40 | Y48: 92.8 | Z48: 92.8 | AA48: 52.8 | BL48: =COUNT(L$11:L48) -> 37 | BM48: 2015-01-16 | BN48: 549.7 | BO48: 2.32 | BP48: 92.8 | BQ48: 92.8 | BR48: 1 | BX48: Y | BY48: 40 | BZ48: 92.8 | CA48: 92.8 | CB48: 52.8 | CE48: 2.32 | CF48: 92.8 | CG48: 92.8
A49: 2015-01-16 | B49: Pinnacle Sports | C49: Basketball - France | D49: Po-Orthez | E49: Winner | F49: My own bets | H49: Le havre - Po-Ortez | K49: 30 | L49: 2.73 | N49: N | X49: 30 | Y49: 81.9 | Z49: 0 | AA49: -30 | BL49: =COUNT(L$11:L49) -> 38 | BM49: 2015-01-16 | BN49: 519.7 | BO49: 2.73 | BP49: 81.9 | BQ49: 0 | BR49: 1 | BX49: N | BY49: 30 | BZ49: 81.9 | CA49: 0 | CB49: -30 | CE49: 2.73 | CF49: 81.9 | CG49: 0
A50: 2015-01-17 | B50: Pinnacle Sports | C50: Basketball - France | D50: Arras +9 | E50: Winner | F50: My own bets | H50: Montpellier - Arras +.5 | K50: 30 | L50: 1.95 | N50: N | X50: 30 | Y50: 58.5 | Z50: 0 | AA50: -30 | BL50: =COUNT(L$11:L50) -> 39 | BM50: 2015-01-17 | BN50: 489.7 | BO50: 1.95 | BP50: 58.5 | BQ50: 0 | BR50: 1 | BX50: N | BY50: 30 | BZ50: 58.5 | CA50: 0 | CB50: -30 | CE50: 1.95 | CF50: 58.5 | CG50: 0
A51: 2015-01-17 | B51: Pinnacle Sports | C51: Basketball - Spain | D51: Andorra +9 | E51: Asian Handicap | F51: My own bets | H51: Andorra - Barcelona | K51: 50 | L51: 1.93 | N51: N | X51: 50 | Y51: 96.5 | Z51: 0 | AA51: -50 | BL51: =COUNT(L$11:L51) -> 40 | BM51: 2015-01-17 | BN51: 439.7 | BO51: 1.93 | BP51: 96.5 | BQ51: 0 | BR51: 1 | BX51: N | BY51: 50 | BZ51: 96.5 | CA51: 0 | CB51: -50 | CE51: 1.93 | CF51: 96.5 | CG51: 0
A52: 2015-01-17 | B52: Pinnacle Sports | C52: Basketball - France | D52: Arras | E52: Winner | F52: My own bets | H52: Montpellier - Arras 2 | K52: 10 | L52: 4.65 | N52: N | X52: 10 | Y52: 46.5 | Z52: 0 | AA52: -10 | BL52: =COUNT(L$11:L52) -> 41 | BM52: 2015-01-17 | BN52: 429.7 | BO52: 4.65 | BP52: 46.5 | BQ52: 0 | BR52: 1 | BX52: N | BY52: 10 | BZ52: 46.5 | CA52: 0 | CB52: -10 | CE52: 4.65 | CF52: 46.5 | CG52: 0
A53: 2015-01-17 | B53: Pinnacle Sports | C53: Football - African Cup | D53: Dr Congo(0) | E53: Asian Handicap | F53: My own bets | H53: Zambia - Dr Congo | K53: 50 | L53: 2 | N53: PU | X53: 50 | Y53: 100 | Z53: 50 | AA53: 0 | BL53: =COUNT(L$11:L53) -> 42 | BM53: 2015-01-17 | BN53: 429.7 | BO53: 2 | BP53: 100 | BQ53: 50 | BR53: 1 | BX53: PU | BY53: 50 | BZ53: 100 | CA53: 50 | CB53: 0 | CE53: 2 | CF53: 100 | CG53: 50
A54: 2015-01-18 | B54: Pinnacle Sports | C54: Basketball - Germany | D54: Braunsweig | E54: Winner | F54: My own bets | H54: Braunsweig - Oldenburg | K54: 30 | L54: 3.05 | N54: Y | X54: 30 | Y54: 91.5 | Z54: 91.5 | AA54: 61.5 | BL54: =COUNT(L$11:L54) -> 43 | BM54: 2015-01-18 | BN54: 491.2 | BO54: 3.05 | BP54: 91.5 | BQ54: 91.5 | BR54: 1 | BX54: Y | BY54: 30 | BZ54: 91.5 | CA54: 91.5 | CB54: 61.5 | CE54: 3.05 | CF54: 91.5 | CG54: 91.5
A55: 2015-01-19 | B55: Pinnacle Sports | C55: Basketball - Adriatic | D55: Zadar +13 | E55: Asian Handicap | F55: My own bets | H55: Crvena - Zadar | K55: 50 | L55: 1.96 | N55: N | X55: 50 | Y55: 98 | Z55: 0 | AA55: -50 | BL55: =COUNT(L$11:L55) -> 44 | BM55: 2015-01-19 | BN55: 441.2 | BO55: 1.96 | BP55: 98 | BQ55: 0 | BR55: 1 | BX55: N | BY55: 50 | BZ55: 98 | CA55: 0 | CB55: -50 | CE55: 1.96 | CF55: 98 | CG55: 0
A56: 2015-01-19 | B56: Pinnacle Sports | C56: Basketball - Israel | D56: Nes Ziona | E56: Winner | F56: My own bets | H56: Haifa - Nes Ziona 2 | K56: 50 | L56: 2.1 | N56: N | X56: 50 | Y56: 105 | Z56: 0 | AA56: -50 | BL56: =COUNT(L$11:L56) -> 45 | BM56: 2015-01-19 | BN56: 391.2 | BO56: 2.1 | BP56: 105 | BQ56: 0 | BR56: 1 | BX56: N | BY56: 50 | BZ56: 105 | CA56: 0 | CB56: -50 | CE56: 2.1 | CF56: 105 | CG56: 0
A57: 2015-01-20 | B57: Pinnacle Sports | C57: Basketball - Eurochallenge | D57: GK +7 | E57: Asian Handicap | F57: My own bets | H57: Usak - GK | K57: 40 | L57: 1.86 | N57: Y | X57: 40 | Y57: 74.4 | Z57: 74.4 | AA57: 34.4 | BL57: =COUNT(L$11:L57) -> 46 | BM57: 2015-01-20 | BN57: 425.6 | BO57: 1.86 | BP57: 74.4 | BQ57: 74.4 | BR57: 1 | BX57: Y | BY57: 40 | BZ57: 74.4 | CA57: 74.4 | CB57: 34.4 | CE57: 1.86 | CF57: 74.4 | CG57: 74.4
A58: 2015-01-20 | B58: Pinnacle Sports | C58: Basketball - Eurochallenge | D58: GK | E58: Winner | F58: My own bets | H58: Usak - GK | K58: 10 | L58: 3.51 | N58: N | X58: 10 | Y58: 35.1 | Z58: 0 | AA58: -10 | BL58: =COUNT(L$11:L58) -> 47 | BM58: 2015-01-20 | BN58: 415.6 | BO58: 3.51 | BP58: 35.1 | BQ58: 0 | BR58: 1 | BX58: N | BY58: 10 | BZ58: 35.1 | CA58: 0 | CB58: -10 | CE58: 3.51 | CF58: 35.1 | CG58: 0
X59: 0 | Y59: 0 | Z59: 0 | AA59: 0 | BL59: =COUNT(L$11:L59) -> 47 | BM59: 2015-01-20 | BN59: 415.6 | BO59: 1 | BP59: 0 | BQ59: 0 | BR59: 1 | BX59: 0 | BY59: 0 | BZ59: 0 | CA59: 0 | CB59: 0 | CE59: 1 | CF59: 0 | CG59: 0
A60: 2015-05-21 | B60: Pinnacle Sports | C60: Basketball - Eurocup | D60: Ostende | E60: Winner | F60: My own bets | H60: Turow - Ostende | K60: 30 | L60: 2.91 | N60: N | X60: 30 | Y60: 87.3 | Z60: 0 | AA60: -30 | BL60: =COUNT(L$11:L60) -> 48 | BM60: 2015-05-21 | BN60: 385.6 | BO60: 2.91 | BP60: 87.3 | BQ60: 0 | BR60: 1 | BX60: N | BY60: 30 | BZ60: 87.3 | CA60: 0 | CB60: -30 | CE60: 2.91 | CF60: 87.3 | CG60: 0
A61: 2015-01-21 | B61: Pinnacle Sports | C61: Basketball - Eurocup | D61: Besiktas | E61: Winner | F61: My own bets | H61: Neptunas - Besiktas | K61: 30 | L61: 3.05 | N61: Y | X61: 30 | Y61: 91.5 | Z61: 91.5 | AA61: 61.5 | BL61: =COUNT(L$11:L61) -> 49 | BM61: 2015-01-21 | BN61: 447.1 | BO61: 3.05 | BP61: 91.5 | BQ61: 91.5 | BR61: 1 | BX61: Y | BY61: 30 | BZ61: 91.5 | CA61: 91.5 | CB61: 61.5 | CE61: 3.05 | CF61: 91.5 | CG61: 91.5
A62: 2015-01-21 | B62: Pinnacle Sports | C62: Basketball - Eurocup | D62: Zenit | E62: Winner | F62: My own bets | H62: Unics - Zenit | K62: 15 | L62: 4.98 | N62: N | X62: 15 | Y62: 74.7 | Z62: 0 | AA62: -15 | BL62: =COUNT(L$11:L62) -> 50 | BM62: 2015-01-21 | BN62: 432.1 | BO62: 4.98 | BP62: 74.7 | BQ62: 0 | BR62: 1 | BX62: N | BY62: 15 | BZ62: 74.7 | CA62: 0 | CB62: -15 | CE62: 4.98 | CF62: 74.7 | CG62: 0
A63: 2015-01-21 | B63: Pinnacle Sports | C63: Basketball - Eurocup | D63: Zenit +8.5 | E63: Asian Handicap | F63: My own bets | H63: Unics - Zenit | K63: 45 | L63: 1.93 | N63: N | X63: 45 | Y63: 86.85 | Z63: 0 | AA63: -45 | BL63: =COUNT(L$11:L63) -> 51 | BM63: 2015-01-21 | BN63: 387.1 | BO63: 1.93 | BP63: 86.85 | BQ63: 0 | BR63: 1 | BX63: N | BY63: 45 | BZ63: 86.85 | CA63: 0 | CB63: -45 | CE63: 1.93 | CF63: 86.85 | CG63: 0
A64: 2015-01-21 | B64: Pinnacle Sports | C64: Football - Portugal | D64: Belen +0.75 | E64: Asian Handicap | F64: My own bets | H64: Belenenses +0.75 - Sporting | K64: 50 | L64: 1.9 | N64: Y | X64: 50 | Y64: 95 | Z64: 95 | AA64: 45 | BL64: =COUNT(L$11:L64) -> 52 | BM64: 2015-01-21 | BN64: 432.1 | BO64: 1.9 | BP64: 95 | BQ64: 95 | BR64: 1 | BX64: Y | BY64: 50 | BZ64: 95 | CA64: 95 | CB64: 45 | CE64: 1.9 | CF64: 95 | CG64: 95
A65: 2015-01-21 | B65: Pinnacle Sports | C65: Football - Portugal | D65: Belen | E65: Winner | F65: My own bets | H65: Belenenses - Sporting | K65: 10 | L65: 5.43 | N65: Y | X65: 10 | Y65: 54.3 | Z65: 54.3 | AA65: 44.3 | BL65: =COUNT(L$11:L65) -> 53 | BM65: 2015-01-21 | BN65: 476.4 | BO65: 5.43 | BP65: 54.3 | BQ65: 54.3 | BR65: 1 | BX65: Y | BY65: 10 | BZ65: 54.3 | CA65: 54.3 | CB65: 44.3 | CE65: 5.43 | CF65: 54.3 | CG65: 54.3
A66: 2015-01-21 | B66: Pinnacle Sports | C66: Football - Friendlies | D66: Kyrgystan(0) | E66: Asian Handicap | F66: My own bets | H66: Kygrystan - Findland 1(0) | K66: 50 | L66: 1.93 | N66: N | X66: 50 | Y66: 96.5 | Z66: 0 | AA66: -50 | BL66: =COUNT(L$11:L66) -> 54 | BM66: 2015-01-21 | BN66: 426.4 | BO66: 1.93 | BP66: 96.5 | BQ66: 0 | BR66: 1 | BX66: N | BY66: 50 | BZ66: 96.5 | CA66: 0 | CB66: -50 | CE66: 1.93 | CF66: 96.5 | CG66: 0
A67: 2015-01-21 | B67: Pinnacle Sports | C67: Basketball - EuroW | D67: Kosice +9 | E67: Asian Handicap | F67: My own bets | H67: Montpellier - Kosice | K67: 50 | L67: 1.87 | N67: Y | X67: 50 | Y67: 93.5 | Z67: 93.5 | AA67: 43.5 | BL67: =COUNT(L$11:L67) -> 55 | BM67: 2015-01-21 | BN67: 469.9 | BO67: 1.87 | BP67: 93.5 | BQ67: 93.5 | BR67: 1 | BX67: Y | BY67: 50 | BZ67: 93.5 | CA67: 93.5 | CB67: 43.5 | CE67: 1.87 | CF67: 93.5 | CG67: 93.5
A68: 2015-01-21 | B68: Pinnacle Sports | C68: Basketball - EuroW | D68: Kosice | E68: Winner | F68: My own bets | H68: Montpellier - Kosice | K68: 10 | L68: 4.65 | N68: N | X68: 10 | Y68: 46.5 | Z68: 0 | AA68: -10 | BL68: =COUNT(L$11:L68) -> 56 | BM68: 2015-01-21 | BN68: 459.9 | BO68: 4.65 | BP68: 46.5 | BQ68: 0 | BR68: 1 | BX68: N | BY68: 10 | BZ68: 46.5 | CA68: 0 | CB68: -10 | CE68: 4.65 | CF68: 46.5 | CG68: 0
A69: 2015-01-21 | B69: Pinnacle Sports | C69: Basketball - NBA | D69: Brooklyn | E69: Winner | F69: My own bets | H69: Brooklyn - Scaramento | K69: 20 | L69: 2.99 | N69: Y | X69: 20 | Y69: 59.8 | Z69: 59.8 | AA69: 39.8 | BL69: =COUNT(L$11:L69) -> 57 | BM69: 2015-01-21 | BN69: 499.7 | BO69: 2.99 | BP69: 59.8 | BQ69: 59.8 | BR69: 1 | BX69: Y | BY69: 20 | BZ69: 59.8 | CA69: 59.8 | CB69: 39.8 | CE69: 2.99 | CF69: 59.8 | CG69: 59.8
A70: 2015-01-21 | B70: Pinnacle Sports | C70: Basketball - NBA | D70: Indiana | E70: Winner | F70: My own bets | H70: Indiana - Atlanta | K70: 10 | L70: 6.87 | N70: N | X70: 10 | Y70: 68.7 | Z70: 0 | AA70: -10 | BL70: =COUNT(L$11:L70) -> 58 | BM70: 2015-01-21 | BN70: 489.7 | BO70: 6.87 | BP70: 68.7 | BQ70: 0 | BR70: 1 | BX70: N | BY70: 10 | BZ70: 68.7 | CA70: 0 | CB70: -10 | CE70: 6.87 | CF70: 68.7 | CG70: 0
A71: 2015-01-22 | B71: Pinnacle Sports | C71: Asia Cup | D71: over2.5 | E71: Over / Under | F71: My own bets | H71: Aus - China over2.5 | K71: 50 | L71: 2.31 | N71: N | X71: 50 | Y71: 115.5 | Z71: 0 | AA71: -50 | BL71: =COUNT(L$11:L71) -> 59 | BM71: 2015-01-22 | BN71: 439.7 | BO71: 2.31 | BP71: 115.5 | BQ71: 0 | BR71: 1 | BX71: N | BY71: 50 | BZ71: 115.5 | CA71: 0 | CB71: -50 | CE71: 2.31 | CF71: 115.5 | CG71: 0
A72: 2015-01-22 | B72: Pinnacle Sports | C72: Football - African Cup | D72: over2.5 | E72: Over / Under | F72: My own bets | H72: Cape Verde - Dr Congo over2.5 | K72: 50 | L72: 2.48 | N72: N | X72: 50 | Y72: 124 | Z72: 0 | AA72: -50 | BL72: =COUNT(L$11:L72) -> 60 | BM72: 2015-01-22 | BN72: 389.7 | BO72: 2.48 | BP72: 124 | BQ72: 0 | BR72: 1 | BX72: N | BY72: 50 | BZ72: 124 | CA72: 0 | CB72: -50 | CE72: 2.48 | CF72: 124 | CG72: 0
A73: 2015-01-22 | B73: Pinnacle Sports | C73: Basketball - Euroleague | D73: Alba | E73: Winner | F73: My own bets | H73: Galatasaray - Alba 2 | K73: 30 | L73: 3.23 | N73: Y | X73: 30 | Y73: 96.9 | Z73: 96.9 | AA73: 66.9 | BL73: =COUNT(L$11:L73) -> 61 | BM73: 2015-01-22 | BN73: 456.6 | BO73: 3.23 | BP73: 96.9 | BQ73: 96.9 | BR73: 1 | BX73: Y | BY73: 30 | BZ73: 96.9 | CA73: 96.9 | CB73: 66.9 | CE73: 3.23 | CF73: 96.9 | CG73: 96.9
A74: 2015-01-22 | B74: Pinnacle Sports | C74: Basketball - Denmark | D74: Nestved | E74: Winner | F74: My own bets | H74: Nestved - Bakken | K74: 30 | L74: 2.93 | N74: N | X74: 30 | Y74: 87.9 | Z74: 0 | AA74: -30 | BL74: =COUNT(L$11:L74) -> 62 | BM74: 2015-01-22 | BN74: 426.6 | BO74: 2.93 | BP74: 87.9 | BQ74: 0 | BR74: 1 | BX74: N | BY74: 30 | BZ74: 87.9 | CA74: 0 | CB74: -30 | CE74: 2.93 | CF74: 87.9 | CG74: 0
A75: 2015-01-23 | B75: Pinnacle Sports | C75: Basketball - Serbia | D75: Sloga +6.5 | E75: Asian Handicap | F75: My own bets | H75: Spartak - Sloga(+6.5) | K75: 40 | L75: 1.92 | N75: Y | X75: 40 | Y75: 76.8 | Z75: 76.8 | AA75: 36.8 | BL75: =COUNT(L$11:L75) -> 63 | BM75: 2015-01-23 | BN75: 463.4 | BO75: 1.92 | BP75: 76.8 | BQ75: 76.8 | BR75: 1 | BX75: Y | BY75: 40 | BZ75: 76.8 | CA75: 76.8 | CB75: 36.8 | CE75: 1.92 | CF75: 76.8 | CG75: 76.8
A76: 2015-01-23 | B76: Pinnacle Sports | C76: Basketball - Euroleague | D76: Laboral +10 | E76: Asian Handicap | F76: My own bets | H76: Olympiacos - Laboral(+10) | K76: 50 | L76: 1.94 | N76: N | X76: 50 | Y76: 97 | Z76: 0 | AA76: -50 | BL76: =COUNT(L$11:L76) -> 64 | BM76: 2015-01-23 | BN76: 413.4 | BO76: 1.94 | BP76: 97 | BQ76: 0 | BR76: 1 | BX76: N | BY76: 50 | BZ76: 97 | CA76: 0 | CB76: -50 | CE76: 1.94 | CF76: 97 | CG76: 0
A77: 2015-01-23 | B77: Pinnacle Sports | C77: Basketball - Euroleague | D77: Laboral | E77: Winner | F77: My own bets | H77: Olympiacos - Laboral | K77: 10 | L77: 5.6 | N77: N | X77: 10 | Y77: 56 | Z77: 0 | AA77: -10 | BL77: =COUNT(L$11:L77) -> 65 | BM77: 2015-01-23 | BN77: 403.4 | BO77: 5.6 | BP77: 56 | BQ77: 0 | BR77: 1 | BX77: N | BY77: 10 | BZ77: 56 | CA77: 0 | CB77: -10 | CE77: 5.6 | CF77: 56 | CG77: 0
A78: 2015-01-23 | B78: Pinnacle Sports | C78: Basketball - Spain-2 | D78: Rincon | E78: Winner | F78: My own bets | H78: Rincon - Valladolid | K78: 30 | L78: 3.57 | N78: N | X78: =ROUND(IF(M78<>"Y",IF(P78<>"Y",K78,K78*(BO78-1)),0),ROUNDING) -> 30 | Y78: =ROUND(IF(O78>0,IF(M78="Y",BP78*(1-O78),IF(BP78>X78,X78 + (BP78 - X78)*(1-O78),BP78)),BP78),ROUNDING) -> 107.1 | Z78: =ROUND(IF(O78>0,IF(M78="Y",BQ78*(1-O78),IF(BQ78>X78,X78 + (BQ78 - X78)*(1-O78),BQ78)),BQ78),ROUNDING) -> 0 | AA78: =ROUND(IF(OR(N78="P",N78=""),0,IF(OR(M78="N",M78=""),Z78-X78,Z78)),ROUNDING) -> -30 | BL78: =COUNT(L$11:L78) -> 66 | BM78: =IF(A78>2,A78,BM77) -> 2015-01-23 | BN78: =BN77+AA78 -> 373.4 | BO78: =IF(L78<>"",IF(ODDS_TYPE=1,L78,IF(ODDS_TYPE=2,IF(L78>0,1+L78/100,IF(L78<0,1-100/L78,1)),IF(ODDS_TYPE=3,1+L78,IF(ODDS_TYPE=4,1+L78,IF(ODDS_TYPE=5,IF(L78>0,1+L78,1-1/L78),IF(ODDS_TYPE=6,IF(L78>=0,L78+1,1-1/L78),1)))))),1) -> 3.57 | BP78: =IF(P78<>"Y",IF(M78<>"Y",K78*BO78,K78*BO78 - K78),IF(M78<>"Y",K78*BO78,K78)) -> 107.1 | BQ78: =IF(P78<>"Y", IF(M78<>"Y", IF(N78="Y",K78*BO78,IF(N78="P",0,IF(OR(N78="R",N78="PU"),K78,IF(N78="H",K78*BO78*0.5,IF(N78="HW",K78*0.5*(1 + BO78),IF(N78="HL",K78*0.5,0)))))), IF(N78="Y",K78*BO78 - K78,IF(N78="P",0,IF(OR(N78="R",N78="PU"),0,IF(N78="H",IF(BO78>2,0.5*K78*BO78 - K78,0),IF(N78="HW",K78*0.5*(1 + BO78) - K78,IF(N78="HL",0,0))))))), IF(M78<>"Y", IF(N78="Y",K78*BO78,IF(N78="P",0,IF(OR(N78="R",N78="PU"),K78*(BO78-1),IF(N78="H",K78*BO78*0.5,IF(N78="HW",K78*(BO78-1)*0.5,IF(N78="HL",K78*BO78 - K78*0.5,0)))))), IF(N78="Y",K78,IF(N78="P",0,IF(OR(N78="R",N78="PU"),0,IF(N78="H",IF(BO78<2,K78*BO78*0.5 - K78*(BO78-1),0),IF(N78="HW",0,IF(N78="HL",K78*0.5,0))))))) ) -> 0 | BR78: =IF(T78<>"",IF(ODDS_TYPE=1,T78,IF(ODDS_TYPE=2,IF(T78>0,1+T78/100,IF(T78<0,1-100/T78,1)),IF(ODDS_TYPE=3,1+T78,IF(ODDS_TYPE=4,1+T78,IF(ODDS_TYPE=5,IF(T78>0,1+T78,1-1/T78),IF(ODDS_TYPE=6,IF(T78>=0,T78+1,1-1/T78),1)))))),1) -> 1 | BS78: =IF(AND(X78>0,N78<>"P",BV78<>""),AA78/X78,"") ->  | BT78: =IF(AND(X78>0,N78<>"P",BW78<>""),AA78/X78,"") ->  | BU78: =IF(AND(L78<>"",T78<>""), IF(P78="Y",IF(ODDS_TYPE<>2,BR78-BO78,IF(OR(AND(L78>0,T78>0),AND(L78<0,T78<0)),T78-L78,IF(AND(L78>0,T78<0),T78-L78-200,T78-L78+200))), IF(ODDS_TYPE<>2,BO78-BR78,IF(OR(AND(L78>0,T78>0),AND(L78<0,T78<0)),L78-T78,IF(AND(L78>0,T78<0),L78-T78-200,L78-T78+200))) ),"") ->  | BV78: =IF(AND(L78<>"",T78<>"",BR78<>1),IF(P78="Y",(BR78-BO78)/(BR78-1),(BO78-BR78)/(BR78-1)),"") ->  | BW78: =IF(AND(U78<>"",V78<>""),IF(P78<>"Y",U78-V78,V78-U78),"") ->  | BX78: =IF(LEN(S78)>0,S78,N78) -> N | BY78: =ROUND(IF(M78<>"Y",IF(P78<>"Y",K78,K78*(CE78-1)),0),ROUNDING) -> 30 | BZ78: =ROUND(IF(O78>0,IF(M78="Y",CF78*(1-O78),IF(CF78>BY78,BY78 + (CF78 - BY78)*(1-O78),CF78)),CF78),ROUNDING) -> 107.1 | CA78: =ROUND(IF(O78>0,IF(M78="Y",CG78*(1-O78),IF(CG78>BY78,BY78 + (CG78 - BY78)*(1-O78),CG78)),CG78),ROUNDING) -> 0 | CB78: =ROUND(IF(OR(BX78="P",BX78=""),0,IF(OR(M78="N",M78=""),CA78-BY78,CA78)),ROUNDING) -> -30 | CC78: =IF(AND(L78<>"",T78<>""), IF(P78="Y",IF(ODDS_TYPE<>2,BR78-CE78,IF(OR(AND(L78>0,T78>0),AND(L78<0,T78<0)),T78-L78,IF(AND(L78>0,T78<0),T78-L78-200,T78-L78+200))), IF(ODDS_TYPE<>2,CE78-BR78,IF(OR(AND(L78>0,T78>0),AND(L78<0,T78<0)),L78-T78,IF(AND(L78>0,T78<0),L78-T78-200,L78-T78+200))) ),"") ->  | CD78: =IF(OR(AND(R78<>"",V78<>""),AND(U78<>"",V78<>"")),IF(AND(R78<>"",V78<>""),IF(P78<>"Y",R78-V78,V78-R78),IF(P78<>"Y",U78-V78,V78-U78)),"") ->  | CE78: =IF(Q78<>"",IF(ODDS_TYPE=1,Q78,IF(ODDS_TYPE=2,IF(Q78>0,1+Q78/100,IF(Q78<0,1-100/Q78,1)),IF(ODDS_TYPE=3,1+Q78,IF(ODDS_TYPE=4,1+Q78,IF(ODDS_TYPE=5,IF(Q78>0,1+Q78,1-1/Q78),IF(ODDS_TYPE=6,IF(Q78>=0,Q78+1,1-1/Q78),1)))))),BO78) -> 3.57 | CF78: =IF(P78<>"Y",IF(M78<>"Y",K78*CE78,K78*CE78 - K78),IF(M78<>"Y",K78*CE78,K78)) -> 107.1 | CG78: =IF(P78<>"Y", IF(M78<>"Y", IF(BX78="Y",K78*CE78,IF(BX78="P",0,IF(OR(BX78="R",BX78="PU"),K78,IF(BX78="H",K78*CE78*0.5,IF(BX78="HW",K78*0.5*(1 + CE78),IF(BX78="HL",K78*0.5,0)))))), IF(BX78="Y",K78*CE78 - K78,IF(BX78="P",0,IF(OR(BX78="R",BX78="PU"),0,IF(BX78="H",IF(CE78>2,0.5*K78*CE78 - K78,0),IF(BX78="HW",K78*0.5*(1 + CE78) - K78,IF(BX78="HL",0,0))))))), IF(M78<>"Y", IF(BX78="Y",K78*CE78,IF(BX78="P",0,IF(OR(BX78="R",BX78="PU"),K78*(CE78-1),IF(BX78="H",K78*CE78*0.5,IF(BX78="HW",K78*(CE78-1)*0.5,IF(BX78="HL",K78*CE78 - K78*0.5,0)))))), IF(BX78="Y",K78,IF(BX78="P",0,IF(OR(BX78="R",BX78="PU"),0,IF(BX78="H",IF(CE78<2,K78*CE78*0.5 - K78*(CE78-1),0),IF(BX78="HW",0,IF(BX78="HL",K78*0.5,0))))))) ) -> 0
A79: 2015-01-23 | B79: Pinnacle Sports | C79: Basketball - Serbia | D79: Sloga | E79: Winner | F79: My own bets | H79: Spartak - Sloga 2 | K79: 10 | L79: 3.49 | N79: N | X79: 10 | Y79: 34.9 | Z79: 0 | AA79: -10 | BL79: =COUNT(L$11:L79) -> 67 | BM79: 2015-01-23 | BN79: 363.4 | BO79: 3.49 | BP79: 34.9 | BQ79: 0 | BR79: 1 | BX79: N | BY79: 10 | BZ79: 34.9 | CA79: 0 | CB79: -10 | CE79: 3.49 | CF79: 34.9 | CG79: 0
A80: 2015-01-23 | B80: Pinnacle Sports | C80: Football - France2 | D80: Nancy | E80: Winner | F80: My own bets | H80: Arles - Nancy | K80: 50 | L80: 2.3 | N80: N | X80: 50 | Y80: 115 | Z80: 0 | AA80: -50 | BL80: =COUNT(L$11:L80) -> 68 | BM80: 2015-01-23 | BN80: 313.4 | BO80: 2.3 | BP80: 115 | BQ80: 0 | BR80: 1 | BX80: N | BY80: 50 | BZ80: 115 | CA80: 0 | CB80: -50 | CE80: 2.3 | CF80: 115 | CG80: 0
A81: 2015-01-23 | B81: Pinnacle Sports | C81: Football - France | D81: Nice | E81: Winner | F81: My own bets | H81: Nice - Marseille | K81: 20 | L81: 3.78 | N81: Y | X81: 20 | Y81: 75.6 | Z81: 75.6 | AA81: 55.6 | BL81: =COUNT(L$11:L81) -> 69 | BM81: 2015-01-23 | BN81: 369 | BO81: 3.78 | BP81: 75.6 | BQ81: 75.6 | BR81: 1 | BX81: Y | BY81: 20 | BZ81: 75.6 | CA81: 75.6 | CB81: 55.6 | CE81: 3.78 | CF81: 75.6 | CG81: 75.6
A82: 2015-01-23 | B82: Pinnacle Sports | C82: Football - Turkey | D82: Sivas | E82: Winner | F82: My own bets | H82: Trabzonspor - Sivasspor | K82: 20 | L82: 4.29 | N82: N | X82: 20 | Y82: 85.8 | Z82: 0 | AA82: -20 | BL82: =COUNT(L$11:L82) -> 70 | BM82: 2015-01-23 | BN82: 349 | BO82: 4.29 | BP82: 85.8 | BQ82: 0 | BR82: 1 | BX82: N | BY82: 20 | BZ82: 85.8 | CA82: 0 | CB82: -20 | CE82: 4.29 | CF82: 85.8 | CG82: 0
A83: 2015-01-23 | B83: Pinnacle Sports | C83: Football - Ned | D83: Heracles | E83: Winner | F83: My own bets | H83: Twente - Heracles | K83: 10 | L83: 7.84 | N83: N | X83: 10 | Y83: 78.4 | Z83: 0 | AA83: -10 | BL83: =COUNT(L$11:L83) -> 71 | BM83: 2015-01-23 | BN83: 339 | BO83: 7.84 | BP83: 78.4 | BQ83: 0 | BR83: 1 | BX83: N | BY83: 10 | BZ83: 78.4 | CA83: 0 | CB83: -10 | CE83: 7.84 | CF83: 78.4 | CG83: 0
A84: 2015-01-23 | B84: Pinnacle Sports | C84: Basketball - NBA | D84: Chicago | E84: Winner | F84: My own bets | H84: Chicago - Dallas | K84: 20 | L84: 3.52 | N84: Y | X84: 20 | Y84: 70.4 | Z84: 70.4 | AA84: 50.4 | BL84: =COUNT(L$11:L84) -> 72 | BM84: 2015-01-23 | BN84: 389.4 | BO84: 3.52 | BP84: 70.4 | BQ84: 70.4 | BR84: 1 | BX84: Y | BY84: 20 | BZ84: 70.4 | CA84: 70.4 | CB84: 50.4 | CE84: 3.52 | CF84: 70.4 | CG84: 70.4
A85: 2015-01-23 | B85: Pinnacle Sports | C85: Basketball - NBA | D85: Minnesota | E85: Winner | F85: My own bets | H85: NO - Minnesota | K85: 20 | L85: 3.31 | N85: N | X85: 20 | Y85: 66.2 | Z85: 0 | AA85: -20 | BL85: =COUNT(L$11:L85) -> 73 | BM85: 2015-01-23 | BN85: 369.4 | BO85: 3.31 | BP85: 66.2 | BQ85: 0 | BR85: 1 | BX85: N | BY85: 20 | BZ85: 66.2 | CA85: 0 | CB85: -20 | CE85: 3.31 | CF85: 66.2 | CG85: 0
A86: 2015-01-23 | B86: Pinnacle Sports | C86: Football - African Cup | D86: over2.5 | E86: Over / Under | F86: My own bets | H86: Senegal - SA over 2 | K86: 50 | L86: 2.58 | N86: N | X86: 50 | Y86: 129 | Z86: 0 | AA86: -50 | BL86: =COUNT(L$11:L86) -> 74 | BM86: 2015-01-23 | BN86: 319.4 | BO86: 2.58 | BP86: 129 | BQ86: 0 | BR86: 1 | BX86: N | BY86: 50 | BZ86: 129 | CA86: 0 | CB86: -50 | CE86: 2.58 | CF86: 129 | CG86: 0
A87: 2015-01-23 | B87: Pinnacle Sports | C87: Basketball - NBA | D87: Houston | E87: Winner | F87: My own bets | H87: Houston - Phoenix | K87: 40 | L87: 2.29 | N87: Y | X87: 40 | Y87: 91.6 | Z87: 91.6 | AA87: 51.6 | BL87: =COUNT(L$11:L87) -> 75 | BM87: 2015-01-23 | BN87: 371 | BO87: 2.29 | BP87: 91.6 | BQ87: 91.6 | BR87: 1 | BX87: Y | BY87: 40 | BZ87: 91.6 | CA87: 91.6 | CB87: 51.6 | CE87: 2.29 | CF87: 91.6 | CG87: 91.6
A88: 2015-01-23 | B88: Pinnacle Sports | C88: Basketball - Spain | D88: Andorra +7 | E88: Asian Handicap | F88: My own bets | H88: Andorra+7 - Unicaja | K88: 45 | L88: 1.93 | N88: Y | X88: 45 | Y88: 86.85 | Z88: 86.85 | AA88: 41.85 | BL88: =COUNT(L$11:L88) -> 76 | BM88: 2015-01-23 | BN88: 412.85 | BO88: 1.93 | BP88: 86.85 | BQ88: 86.85 | BR88: 1 | BX88: Y | BY88: 45 | BZ88: 86.85 | CA88: 86.85 | CB88: 41.85 | CE88: 1.93 | CF88: 86.85 | CG88: 86.85
A89: 2015-01-23 | B89: Pinnacle Sports | C89: Basketball - Turkey | D89: Pinar | E89: Winner | F89: My own bets | H89: Banvit - Pinar | K89: 40 | L89: 2.52 | N89: Y | X89: 40 | Y89: 100.8 | Z89: 100.8 | AA89: 60.8 | BL89: =COUNT(L$11:L89) -> 77 | BM89: 2015-01-23 | BN89: 473.65 | BO89: 2.52 | BP89: 100.8 | BQ89: 100.8 | BR89: 1 | BX89: Y | BY89: 40 | BZ89: 100.8 | CA89: 100.8 | CB89: 60.8 | CE89: 2.52 | CF89: 100.8 | CG89: 100.8
A90: 2015-01-23 | B90: Pinnacle Sports | C90: Basketball - Serbia | D90: Napredak +6 | E90: Asian Handicap | F90: My own bets | H90: Napredak(+6.5) - Borac | K90: 45 | L90: 1.93 | N90: Y | X90: 45 | Y90: 86.85 | Z90: 86.85 | AA90: 41.85 | BL90: =COUNT(L$11:L90) -> 78 | BM90: 2015-01-23 | BN90: 515.5 | BO90: 1.93 | BP90: 86.85 | BQ90: 86.85 | BR90: 1 | BX90: Y | BY90: 45 | BZ90: 86.85 | CA90: 86.85 | CB90: 41.85 | CE90: 1.93 | CF90: 86.85 | CG90: 86.85
A91: 2015-01-23 | B91: Pinnacle Sports | C91: Basketball - Turkey | D91: Usak | E91: Winner | F91: My own bets | H91: Usak - Galatasaray | K91: 30 | L91: 2.94 | N91: N | X91: 30 | Y91: 88.2 | Z91: 0 | AA91: -30 | BL91: =COUNT(L$11:L91) -> 79 | BM91: 2015-01-23 | BN91: 485.5 | BO91: 2.94 | BP91: 88.2 | BQ91: 0 | BR91: 1 | BX91: N | BY91: 30 | BZ91: 88.2 | CA91: 0 | CB91: -30 | CE91: 2.94 | CF91: 88.2 | CG91: 0
A92: 2015-01-23 | B92: Pinnacle Sports | C92: Basketball - Spain | D92: Murcia+11 | E92: Asian Handicap | F92: My own bets | H92: Valencia - Murica | K92: 45 | L92: 1.93 | N92: N | X92: 45 | Y92: 86.85 | Z92: 0 | AA92: -45 | BL92: =COUNT(L$11:L92) -> 80 | BM92: 2015-01-23 | BN92: 440.5 | BO92: 1.93 | BP92: 86.85 | BQ92: 0 | BR92: 1 | BX92: N | BY92: 45 | BZ92: 86.85 | CA92: 0 | CB92: -45 | CE92: 1.93 | CF92: 86.85 | CG92: 0
A93: 2015-01-23 | B93: Pinnacle Sports | C93: Football - England 1 | D93: Morecamb | E93: Winner | F93: My own bets | H93: Plymouth - Morecambe | K93: 20 | L93: 3.95 | N93: N | X93: 20 | Y93: 79 | Z93: 0 | AA93: -20 | BL93: =COUNT(L$11:L93) -> 81 | BM93: 2015-01-23 | BN93: 420.5 | BO93: 3.95 | BP93: 79 | BQ93: 0 | BR93: 1 | BX93: N | BY93: 20 | BZ93: 79 | CA93: 0 | CB93: -20 | CE93: 3.95 | CF93: 79 | CG93: 0
A94: 2015-01-23 | B94: Pinnacle Sports | C94: Football - Ned | D94: Vitesse | E94: Winner | F94: My own bets | H94: Herenven - Vitesse | K94: 30 | L94: 2.63 | N94: N | X94: 30 | Y94: 78.9 | Z94: 0 | AA94: -30 | BL94: =COUNT(L$11:L94) -> 82 | BM94: 2015-01-23 | BN94: 390.5 | BO94: 2.63 | BP94: 78.9 | BQ94: 0 | BR94: 1 | BX94: N | BY94: 30 | BZ94: 78.9 | CA94: 0 | CB94: -30 | CE94: 2.63 | CF94: 78.9 | CG94: 0
A95: 2015-01-23 | B95: Pinnacle Sports | C95: Basketball - France | D95: Angers | E95: Winner | F95: My own bets | H95: Tarbes - Angers | K95: 30 | L95: 3.21 | N95: Y | X95: 30 | Y95: 96.3 | Z95: 96.3 | AA95: 66.3 | BL95: =COUNT(L$11:L95) -> 83 | BM95: 2015-01-23 | BN95: 456.8 | BO95: 3.21 | BP95: 96.3 | BQ95: 96.3 | BR95: 1 | BX95: Y | BY95: 30 | BZ95: 96.3 | CA95: 96.3 | CB95: 66.3 | CE95: 3.21 | CF95: 96.3 | CG95: 96.3
A96: 2015-01-25 | B96: Pinnacle Sports | C96: Football - LaLiga | D96: Almeria | E96: Winner | F96: My own bets | H96: Espanyol - Almeria | K96: 10 | L96: 5.2 | N96: N | X96: 10 | Y96: 52 | Z96: 0 | AA96: -10 | BL96: =COUNT(L$11:L96) -> 84 | BM96: 2015-01-25 | BN96: 446.8 | BO96: 5.2 | BP96: 52 | BQ96: 0 | BR96: 1 | BX96: N | BY96: 10 | BZ96: 52 | CA96: 0 | CB96: -10 | CE96: 5.2 | CF96: 52 | CG96: 0
A97: 2015-01-25 | B97: Pinnacle Sports | C97: Football - LaLiga | D97: Almeria +0.5 | E97: Asian Handicap | F97: My own bets | H97: Espanyol - Almeria | K97: 45 | L97: 2.16 | N97: N | X97: 45 | Y97: 97.2 | Z97: 0 | AA97: -45 | BL97: =COUNT(L$11:L97) -> 85 | BM97: 2015-01-25 | BN97: 401.8 | BO97: 2.16 | BP97: 97.2 | BQ97: 0 | BR97: 1 | BX97: N | BY97: 45 | BZ97: 97.2 | CA97: 0 | CB97: -45 | CE97: 2.16 | CF97: 97.2 | CG97: 0
A98: 2015-01-25 | B98: Pinnacle Sports | C98: Basketball - Israel | D98: Bnei+11,5 | E98: Asian Handicap | F98: My own bets | H98: Hapoel - Bnei | K98: 50 | L98: 1.9 | N98: N | X98: 50 | Y98: 95 | Z98: 0 | AA98: -50 | BL98: =COUNT(L$11:L98) -> 86 | BM98: 2015-01-25 | BN98: 351.8 | BO98: 1.9 | BP98: 95 | BQ98: 0 | BR98: 1 | BX98: N | BY98: 50 | BZ98: 95 | CA98: 0 | CB98: -50 | CE98: 1.9 | CF98: 95 | CG98: 0
A99: 2015-01-25 | B99: Pinnacle Sports | C99: Basketball - Spain | D99: Fuenlabrada | E99: Winner | F99: My own bets | H99: Fuenlabrada - Bilbao | K99: 45 | L99: 2.49 | N99: N | X99: 45 | Y99: 112.05 | Z99: 0 | AA99: -45 | BL99: =COUNT(L$11:L99) -> 87 | BM99: 2015-01-25 | BN99: 306.8 | BO99: 2.49 | BP99: 112.05 | BQ99: 0 | BR99: 1 | BX99: N | BY99: 45 | BZ99: 112.05 | CA99: 0 | CB99: -45 | CE99: 2.49 | CF99: 112.05 | CG99: 0
A100: 2015-01-25 | B100: Pinnacle Sports | C100: Basketball - Spain | D100: Zaragoza | E100: Winner | F100: My own bets | H100: Joventud - Zaragoza | K100: 30 | L100: 3.27 | N100: N | X100: 30 | Y100: 98.1 | Z100: 0 | AA100: -30 | BL100: =COUNT(L$11:L100) -> 88 | BM100: 2015-01-25 | BN100: 276.8 | BO100: 3.27 | BP100: 98.1 | BQ100: 0 | BR100: 1 | BX100: N | BY100: 30 | BZ100: 98.1 | CA100: 0 | CB100: -30 | CE100: 3.27 | CF100: 98.1 | CG100: 0
A101: 2015-01-25 | B101: Pinnacle Sports | C101: Basketball - Israel | D101: Bnei | E101: Winner | F101: My own bets | H101: HapoelM - Bnei | K101: 10 | L101: 6.69 | N101: N | X101: 10 | Y101: 66.9 | Z101: 0 | AA101: -10 | BL101: =COUNT(L$11:L101) -> 89 | BM101: 2015-01-25 | BN101: 266.8 | BO101: 6.69 | BP101: 66.9 | BQ101: 0 | BR101: 1 | BX101: N | BY101: 10 | BZ101: 66.9 | CA101: 0 | CB101: -10 | CE101: 6.69 | CF101: 66.9 | CG101: 0
A102: 2015-01-25 | B102: Pinnacle Sports | C102: Basketball - Turkey | D102: Trabzon | E102: Asian Handicap | F102: My own bets | H102: Torku - Trabzon 2 | K102: 50 | L102: 2.3 | N102: Y | X102: 50 | Y102: 115 | Z102: 115 | AA102: 65 | BL102: =COUNT(L$11:L102) -> 90 | BM102: 2015-01-25 | BN102: 331.8 | BO102: 2.3 | BP102: 115 | BQ102: 115 | BR102: 1 | BX102: Y | BY102: 50 | BZ102: 115 | CA102: 115 | CB102: 65 | CE102: 2.3 | CF102: 115 | CG102: 115
A103: 2015-01-25 | B103: Pinnacle Sports | C103: Football - Turkey | D103: Risespor | E103: Winner | F103: My own bets | H103: Galatasaray - Risespor | K103: 20 | L103: 9.28 | N103: N | X103: 20 | Y103: 185.6 | Z103: 0 | AA103: -20 | BL103: =COUNT(L$11:L103) -> 91 | BM103: 2015-01-25 | BN103: 311.8 | BO103: 9.28 | BP103: 185.6 | BQ103: 0 | BR103: 1 | BX103: N | BY103: 20 | BZ103: 185.6 | CA103: 0 | CB103: -20 | CE103: 9.28 | CF103: 185.6 | CG103: 0
A104: 2015-01-25 | B104: Pinnacle Sports | C104: Basketball - NBA | D104: Miami | E104: Winner | F104: My own bets | H104: Miami - Chicago | K104: 20 | L104: 4.5 | N104: Y | X104: 20 | Y104: 90 | Z104: 90 | AA104: 70 | BL104: =COUNT(L$11:L104) -> 92 | BM104: 2015-01-25 | BN104: 381.8 | BO104: 4.5 | BP104: 90 | BQ104: 90 | BR104: 1 | BX104: Y | BY104: 20 | BZ104: 90 | CA104: 90 | CB104: 70 | CE104: 4.5 | CF104: 90 | CG104: 90
A105: 2015-01-25 | B105: Pinnacle Sports | C105: Basketball - NBA | D105: Phoenix | E105: Winner | F105: My own bets | H105: LAC - Phoenix | K105: 40 | L105: 2.29 | N105: N | X105: 40 | Y105: 91.6 | Z105: 0 | AA105: -40 | BL105: =COUNT(L$11:L105) -> 93 | BM105: 2015-01-25 | BN105: 341.8 | BO105: 2.29 | BP105: 91.6 | BQ105: 0 | BR105: 1 | BX105: N | BY105: 40 | BZ105: 91.6 | CA105: 0 | CB105: -40 | CE105: 2.29 | CF105: 91.6 | CG105: 0
A106: 2015-01-25 | B106: Pinnacle Sports | C106: Basketball - Israel | D106: Hapoel +7.5 | E106: Asian Handicap | F106: My own bets | H106: Hapoel TA +7.5 Maccabi | K106: 45 | L106: 1.95 | N106: Y | X106: 45 | Y106: 87.75 | Z106: 87.75 | AA106: 42.75 | BL106: =COUNT(L$11:L106) -> 94 | BM106: 2015-01-25 | BN106: 384.55 | BO106: 1.95 | BP106: 87.75 | BQ106: 87.75 | BR106: 1 | BX106: Y | BY106: 45 | BZ106: 87.75 | CA106: 87.75 | CB106: 42.75 | CE106: 1.95 | CF106: 87.75 | CG106: 87.75
A107: 2015-01-25 | B107: Pinnacle Sports | C107: Basketball - Israel | D107: Hapoel | E107: Winner | F107: My own bets | H107: Hapoel TA - Maccabi | K107: 10 | L107: 4.07 | N107: N | X107: 10 | Y107: 40.7 | Z107: 0 | AA107: -10 | BL107: =COUNT(L$11:L107) -> 95 | BM107: 2015-01-25 | BN107: 374.55 | BO107: 4.07 | BP107: 40.7 | BQ107: 0 | BR107: 1 | BX107: N | BY107: 10 | BZ107: 40.7 | CA107: 0 | CB107: -10 | CE107: 4.07 | CF107: 40.7 | CG107: 0
A108: 2015-01-26 | B108: Pinnacle Sports | C108: Basketball - Turkey | D108: Gaizntep +8.5 | E108: Asian Handicap | F108: My own bets | H108: Efes - Gaziantep +8.5 | K108: 45 | L108: 1.9 | N108: N | X108: 45 | Y108: 85.5 | Z108: 0 | AA108: -45 | BL108: =COUNT(L$11:L108) -> 96 | BM108: 2015-01-26 | BN108: 329.55 | BO108: 1.9 | BP108: 85.5 | BQ108: 0 | BR108: 1 | BX108: N | BY108: 45 | BZ108: 85.5 | CA108: 0 | CB108: -45 | CE108: 1.9 | CF108: 85.5 | CG108: 0
A109: 2015-01-26 | B109: Pinnacle Sports | C109: Basketball - Greece | D109: Kifisia +9.5 | E109: Asian Handicap | F109: My own bets | H109: Kifisia(+10) - Panatinaikos | K109: 45 | L109: 1.95 | N109: Y | X109: 45 | Y109: 87.75 | Z109: 87.75 | AA109: 42.75 | BL109: =COUNT(L$11:L109) -> 97 | BM109: 2015-01-26 | BN109: 372.3 | BO109: 1.95 | BP109: 87.75 | BQ109: 87.75 | BR109: 1 | BX109: Y | BY109: 45 | BZ109: 87.75 | CA109: 87.75 | CB109: 42.75 | CE109: 1.95 | CF109: 87.75 | CG109: 87.75
A110: 2015-01-26 | B110: Pinnacle Sports | C110: Basketball - Germany | D110: Bayreuth | E110: Winner | F110: My own bets | H110: Bayreuth - Bonn | K110: 45 | L110: 2.61 | N110: Y | X110: 45 | Y110: 117.45 | Z110: 117.45 | AA110: 72.45 | BL110: =COUNT(L$11:L110) -> 98 | BM110: 2015-01-26 | BN110: 444.75 | BO110: 2.61 | BP110: 117.45 | BQ110: 117.45 | BR110: 1 | BX110: Y | BY110: 45 | BZ110: 117.45 | CA110: 117.45 | CB110: 72.45 | CE110: 2.61 | CF110: 117.45 | CG110: 117.45
A111: 2015-01-26 | B111: Pinnacle Sports | C111: Basketball - Eurochallenge | D111: Usak +9 | E111: Asian Handicap | F111: My own bets | H111: Le Mans - Usak | K111: 45 | L111: 1.95 | N111: N | X111: 45 | Y111: 87.75 | Z111: 0 | AA111: -45 | BL111: =COUNT(L$11:L111) -> 99 | BM111: 2015-01-26 | BN111: 399.75 | BO111: 1.95 | BP111: 87.75 | BQ111: 0 | BR111: 1 | BX111: N | BY111: 45 | BZ111: 87.75 | CA111: 0 | CB111: -45 | CE111: 1.95 | CF111: 87.75 | CG111: 0
A112: 2015-01-27 | B112: Pinnacle Sports | C112: Basketball - Eurochallenge | D112: Avtodor -1.5 | E112: Asian Handicap | F112: My own bets | H112: Skyliners - Avtodor -1.5 | K112: 45 | L112: 1.95 | N112: Y | X112: 45 | Y112: 87.75 | Z112: 87.75 | AA112: 42.75 | BL112: =COUNT(L$11:L112) -> 100 | BM112: 2015-01-27 | BN112: 442.5 | BO112: 1.95 | BP112: 87.75 | BQ112: 87.75 | BR112: 1 | BX112: Y | BY112: 45 | BZ112: 87.75 | CA112: 87.75 | CB112: 42.75 | CE112: 1.95 | CF112: 87.75 | CG112: 87.75
A113: 2015-01-27 | B113: Pinnacle Sports | C113: Basketball - Eurochallenge | D113: Mons | E113: Winner | F113: My own bets | H113: Mons - Tabzon | K113: 45 | L113: 2.38 | N113: N | X113: 45 | Y113: 107.1 | Z113: 0 | AA113: -45 | BL113: =COUNT(L$11:L113) -> 101 | BM113: 2015-01-27 | BN113: 397.5 | BO113: 2.38 | BP113: 107.1 | BQ113: 0 | BR113: 1 | BX113: N | BY113: 45 | BZ113: 107.1 | CA113: 0 | CB113: -45 | CE113: 2.38 | CF113: 107.1 | CG113: 0
A114: 2015-01-27 | B114: Pinnacle Sports | C114: Football - England Champ | D114: Blackburn | E114: Winner | F114: My own bets | H114: Derby - Blackburn | K114: 20 | L114: 4.27 | N114: N | X114: 20 | Y114: 85.4 | Z114: 0 | AA114: -20 | BL114: =COUNT(L$11:L114) -> 102 | BM114: 2015-01-27 | BN114: 377.5 | BO114: 4.27 | BP114: 85.4 | BQ114: 0 | BR114: 1 | BX114: N | BY114: 20 | BZ114: 85.4 | CA114: 0 | CB114: -20 | CE114: 4.27 | CF114: 85.4 | CG114: 0
A115: 2015-01-27 | B115: Pinnacle Sports | C115: Football - England 2 | D115: Scuntrouphe | E115: Winner | F115: My own bets | H115: Scunthroupe - Milton | K115: 20 | L115: 4.23 | N115: N | X115: 20 | Y115: 84.6 | Z115: 0 | AA115: -20 | BL115: =COUNT(L$11:L115) -> 103 | BM115: 2015-01-27 | BN115: 357.5 | BO115: 4.23 | BP115: 84.6 | BQ115: 0 | BR115: 1 | BX115: N | BY115: 20 | BZ115: 84.6 | CA115: 0 | CB115: -20 | CE115: 4.23 | CF115: 84.6 | CG115: 0
A116: 2015-01-27 | B116: Pinnacle Sports | C116: Football - Ned | D116: AZ +0.5 | E116: Asian Handicap | F116: My own bets | H116: Twente - AZ | K116: 40 | L116: 2.3 | N116: N | X116: 40 | Y116: 92 | Z116: 0 | AA116: -40 | BL116: =COUNT(L$11:L116) -> 104 | BM116: 2015-01-27 | BN116: 317.5 | BO116: 2.3 | BP116: 92 | BQ116: 0 | BR116: 1 | BX116: N | BY116: 40 | BZ116: 92 | CA116: 0 | CB116: -40 | CE116: 2.3 | CF116: 92 | CG116: 0
A117: 2015-01-27 | B117: Pinnacle Sports | C117: Basketball - Eurochallenge | D117: Tartu | E117: Winner | F117: My own bets | H117: Den Boash - Tartu | K117: 30 | L117: 3.11 | N117: N | X117: 30 | Y117: 93.3 | Z117: 0 | AA117: -30 | BL117: =COUNT(L$11:L117) -> 105 | BM117: 2015-01-27 | BN117: 287.5 | BO117: 3.11 | BP117: 93.3 | BQ117: 0 | BR117: 1 | BX117: N | BY117: 30 | BZ117: 93.3 | CA117: 0 | CB117: -30 | CE117: 3.11 | CF117: 93.3 | CG117: 0
A118: 2015-01-27 | B118: Pinnacle Sports | C118: Basketball - NBA | D118: Chicago | E118: Winner | F118: My own bets | H118: Chicago - GS | K118: 15 | L118: 5.12 | N118: Y | X118: 15 | Y118: 76.8 | Z118: 76.8 | AA118: 61.8 | BL118: =COUNT(L$11:L118) -> 106 | BM118: 2015-01-27 | BN118: 349.3 | BO118: 5.12 | BP118: 76.8 | BQ118: 76.8 | BR118: 1 | BX118: Y | BY118: 15 | BZ118: 76.8 | CA118: 76.8 | CB118: 61.8 | CE118: 5.12 | CF118: 76.8 | CG118: 76.8
A119: 2015-01-27 | B119: Pinnacle Sports | C119: Basketball - NBA | D119: Miami | E119: Winner | F119: My own bets | H119: Milwaukee - Miami | K119: 30 | L119: 2.44 | N119: Y | X119: 30 | Y119: 73.2 | Z119: 73.2 | AA119: 43.2 | BL119: =COUNT(L$11:L119) -> 107 | BM119: 2015-01-27 | BN119: 392.5 | BO119: 2.44 | BP119: 73.2 | BQ119: 73.2 | BR119: 1 | BX119: Y | BY119: 30 | BZ119: 73.2 | CA119: 73.2 | CB119: 43.2 | CE119: 2.44 | CF119: 73.2 | CG119: 73.2
A120: 2015-01-27 | B120: Pinnacle Sports | C120: Football - Israel | D120: Hapoel | E120: Winner | F120: My own bets | H120: Maccabi - Hapoel PT | K120: 20 | L120: 3.64 | N120: N | X120: 20 | Y120: 72.8 | Z120: 0 | AA120: -20 | BL120: =COUNT(L$11:L120) -> 108 | BM120: 2015-01-27 | BN120: 372.5 | BO120: 3.64 | BP120: 72.8 | BQ120: 0 | BR120: 1 | BX120: N | BY120: 20 | BZ120: 72.8 | CA120: 0 | CB120: -20 | CE120: 3.64 | CF120: 72.8 | CG120: 0
A121: 2015-01-27 | B121: Pinnacle Sports | C121: Football - Greece | D121: Iraklis +0.5 | E121: Asian Handicap | F121: My own bets | H121: Asteras - Iraklis | K121: 30 | L121: 2.62 | N121: Y | X121: 30 | Y121: 78.6 | Z121: 78.6 | AA121: 48.6 | BL121: =COUNT(L$11:L121) -> 109 | BM121: 2015-01-27 | BN121: 421.1 | BO121: 2.62 | BP121: 78.6 | BQ121: 78.6 | BR121: 1 | BX121: Y | BY121: 30 | BZ121: 78.6 | CA121: 78.6 | CB121: 48.6 | CE121: 2.62 | CF121: 78.6 | CG121: 78.6
A122: 2015-01-28 | B122: Pinnacle Sports | C122: Football - Portugal | D122: Madeira | E122: Winner | F122: My own bets | H122: Madeira - Rio Ave | K122: 30 | L122: 3.17 | N122: Y | X122: 30 | Y122: 95.1 | Z122: 95.1 | AA122: 65.1 | BL122: =COUNT(L$11:L122) -> 110 | BM122: 2015-01-28 | BN122: 486.2 | BO122: 3.17 | BP122: 95.1 | BQ122: 95.1 | BR122: 1 | BX122: Y | BY122: 30 | BZ122: 95.1 | CA122: 95.1 | CB122: 65.1 | CE122: 3.17 | CF122: 95.1 | CG122: 95.1
A123: 2015-01-28 | B123: Pinnacle Sports | C123: Football - Portugal | D123: Boavista | E123: Winner | F123: My own bets | H123: Boavista - Vitoria | K123: 30 | L123: 3.31 | N123: N | X123: 30 | Y123: 99.3 | Z123: 0 | AA123: -30 | BL123: =COUNT(L$11:L123) -> 111 | BM123: 2015-01-28 | BN123: 456.2 | BO123: 3.31 | BP123: 99.3 | BQ123: 0 | BR123: 1 | BX123: N | BY123: 30 | BZ123: 99.3 | CA123: 0 | CB123: -30 | CE123: 3.31 | CF123: 99.3 | CG123: 0
X124: 0 | Y124: 0 | Z124: 0 | AA124: 0 | BL124: =COUNT(L$11:L124) -> 111 | BM124: 2015-01-28 | BN124: 456.2 | BO124: 1 | BP124: 0 | BQ124: 0 | BR124: 1 | BX124: 0 | BY124: 0 | BZ124: 0 | CA124: 0 | CB124: 0 | CE124: 1 | CF124: 0 | CG124: 0
A125: 2015-01-28 | B125: Pinnacle Sports | C125: Basketball - Eurochallenge | D125: GK +12 | E125: Asian Handicap | F125: My own bets | H125: Nanterre - GK | K125: 45 | L125: 1.94 | N125: Y | X125: 45 | Y125: 87.3 | Z125: 87.3 | AA125: 42.3 | BL125: =COUNT(L$11:L125) -> 112 | BM125: 2015-01-28 | BN125: 498.5 | BO125: 1.94 | BP125: 87.3 | BQ125: 87.3 | BR125: 1 | BX125: Y | BY125: 45 | BZ125: 87.3 | CA125: 87.3 | CB125: 42.3 | CE125: 1.94 | CF125: 87.3 | CG125: 87.3
A126: 2015-01-28 | B126: Pinnacle Sports | C126: Basketball - EuroW | D126: Galatasaray | E126: Winner | F126: My own bets | H126: USK Praga - Galatasaray | K126: 30 | L126: 3.13 | N126: Y | X126: 30 | Y126: 93.9 | Z126: 93.9 | AA126: 63.9 | BL126: =COUNT(L$11:L126) -> 113 | BM126: 2015-01-28 | BN126: 562.4 | BO126: 3.13 | BP126: 93.9 | BQ126: 93.9 | BR126: 1 | BX126: Y | BY126: 30 | BZ126: 93.9 | CA126: 93.9 | CB126: 63.9 | CE126: 3.13 | CF126: 93.9 | CG126: 93.9
A127: 2015-01-28 | B127: Pinnacle Sports | C127: Basketball - Eurocup | D127: Sevilla | E127: Winner | F127: My own bets | H127: Sevilla - Lietovus Rytas | K127: 30 | L127: 2.95 | N127: Y | X127: 30 | Y127: 88.5 | Z127: 88.5 | AA127: 58.5 | BL127: =COUNT(L$11:L127) -> 114 | BM127: 2015-01-28 | BN127: 620.9 | BO127: 2.95 | BP127: 88.5 | BQ127: 88.5 | BR127: 1 | BX127: Y | BY127: 30 | BZ127: 88.5 | CA127: 88.5 | CB127: 58.5 | CE127: 2.95 | CF127: 88.5 | CG127: 88.5
A128: 2015-01-28 | B128: Pinnacle Sports | C128: Basketball - Eurocup | D128: Turow | E128: Winner | F128: My own bets | H128: Ostende - Turow | K128: 30 | L128: 2.85 | N128: Y | X128: 30 | Y128: 85.5 | Z128: 85.5 | AA128: 55.5 | BL128: =COUNT(L$11:L128) -> 115 | BM128: 2015-01-28 | BN128: 676.4 | BO128: 2.85 | BP128: 85.5 | BQ128: 85.5 | BR128: 1 | BX128: Y | BY128: 30 | BZ128: 85.5 | CA128: 85.5 | CB128: 55.5 | CE128: 2.85 | CF128: 85.5 | CG128: 85.5
A129: 2015-01-28 | B129: Pinnacle Sports | C129: Basketball - Slovakia | D129: Spisska | E129: Winner | F129: My own bets | H129: Karlovka - Spisska | K129: 30 | L129: 2.9 | N129: N | X129: 30 | Y129: 87 | Z129: 0 | AA129: -30 | BL129: =COUNT(L$11:L129) -> 116 | BM129: 2015-01-28 | BN129: 646.4 | BO129: 2.9 | BP129: 87 | BQ129: 0 | BR129: 1 | BX129: N | BY129: 30 | BZ129: 87 | CA129: 0 | CB129: -30 | CE129: 2.9 | CF129: 87 | CG129: 0
A130: 2015-01-28 | B130: Pinnacle Sports | C130: Basketball - Eurocup | D130: Oktyabr +10.5 | E130: Asian Handicap | F130: My own bets | H130: Zaragoza - Krasniy Oktyabr | K130: 45 | L130: 1.93 | N130: Y | X130: 45 | Y130: 86.85 | Z130: 86.85 | AA130: 41.85 | BL130: =COUNT(L$11:L130) -> 117 | BM130: 2015-01-28 | BN130: 688.25 | BO130: 1.93 | BP130: 86.85 | BQ130: 86.85 | BR130: 1 | BX130: Y | BY130: 45 | BZ130: 86.85 | CA130: 86.85 | CB130: 41.85 | CE130: 1.93 | CF130: 86.85 | CG130: 86.85
A131: 2015-01-28 | B131: Pinnacle Sports | C131: Basketball - EuroW | D131: Famila +9.5 | E131: Asian Handicap | F131: My own bets | H131: Nadezhda - Famila +9.5 | K131: 45 | L131: 1.89 | N131: N | X131: 45 | Y131: 85.05 | Z131: 0 | AA131: -45 | BL131: =COUNT(L$11:L131) -> 118 | BM131: 2015-01-28 | BN131: 643.25 | BO131: 1.89 | BP131: 85.05 | BQ131: 0 | BR131: 1 | BX131: N | BY131: 45 | BZ131: 85.05 | CA131: 0 | CB131: -45 | CE131: 1.89 | CF131: 85.05 | CG131: 0
A132: 2015-01-28 | B132: Pinnacle Sports | C132: Basketball - Eurocup | D132: Neptunas | E132: Winner | F132: My own bets | H132: Besiktas - Neptunas | K132: 30 | L132: 3.7 | N132: N | X132: 30 | Y132: 111 | Z132: 0 | AA132: -30 | BL132: =COUNT(L$11:L132) -> 119 | BM132: 2015-01-28 | BN132: 613.25 | BO132: 3.7 | BP132: 111 | BQ132: 0 | BR132: 1 | BX132: N | BY132: 30 | BZ132: 111 | CA132: 0 | CB132: -30 | CE132: 3.7 | CF132: 111 | CG132: 0
A133: 2015-01-28 | B133: Pinnacle Sports | C133: Basketball - EuroW | D133: Brno +20 | E133: Asian Handicap | F133: My own bets | H133: Energa Torun - Brno | K133: 45 | L133: 1.96 | N133: Y | X133: 45 | Y133: 88.2 | Z133: 88.2 | AA133: 43.2 | BL133: =COUNT(L$11:L133) -> 120 | BM133: 2015-01-28 | BN133: 656.45 | BO133: 1.96 | BP133: 88.2 | BQ133: 88.2 | BR133: 1 | BX133: Y | BY133: 45 | BZ133: 88.2 | CA133: 88.2 | CB133: 43.2 | CE133: 1.96 | CF133: 88.2 | CG133: 88.2
A134: 2015-01-28 | B134: Pinnacle Sports | C134: Basketball - NBA | D134: Denver | E134: Winner | F134: My own bets | H134: Denver - NO | K134: 30 | L134: 3.1 | N134: Y | X134: 30 | Y134: 93 | Z134: 93 | AA134: 63 | BL134: =COUNT(L$11:L134) -> 121 | BM134: 2015-01-28 | BN134: 719.45 | BO134: 3.1 | BP134: 93 | BQ134: 93 | BR134: 1 | BX134: Y | BY134: 30 | BZ134: 93 | CA134: 93 | CB134: 63 | CE134: 3.1 | CF134: 93 | CG134: 93
A135: 2015-01-28 | B135: Pinnacle Sports | C135: Basketball - NBA | D135: Washington | E135: Winner | F135: My own bets | H135: Washington - Phoenix | K135: 30 | L135: 3.39 | N135: N | X135: 30 | Y135: 101.7 | Z135: 0 | AA135: -30 | BL135: =COUNT(L$11:L135) -> 122 | BM135: 2015-01-28 | BN135: 689.45 | BO135: 3.39 | BP135: 101.7 | BQ135: 0 | BR135: 1 | BX135: N | BY135: 30 | BZ135: 101.7 | CA135: 0 | CB135: -30 | CE135: 3.39 | CF135: 101.7 | CG135: 0
A136: 2015-01-29 | B136: Pinnacle Sports | C136: Basketball - Euroleague | D136: Maccabi | E136: Winner | F136: My own bets | H136: Maccabi - Real | K136: 30 | L136: 2.84 | N136: Y | X136: 30 | Y136: 85.2 | Z136: 85.2 | AA136: 55.2 | BL136: =COUNT(L$11:L136) -> 123 | BM136: 2015-01-29 | BN136: 744.65 | BO136: 2.84 | BP136: 85.2 | BQ136: 85.2 | BR136: 1 | BX136: Y | BY136: 30 | BZ136: 85.2 | CA136: 85.2 | CB136: 55.2 | CE136: 2.84 | CF136: 85.2 | CG136: 85.2
A137: 2015-01-29 | B137: Pinnacle Sports | C137: Basketball - Euroleague | D137: Milan | E137: Winner | F137: My own bets | H137: Laboral - Milan | K137: 30 | L137: 3 | N137: N | X137: 30 | Y137: 90 | Z137: 0 | AA137: -30 | BL137: =COUNT(L$11:L137) -> 124 | BM137: 2015-01-29 | BN137: 714.65 | BO137: 3 | BP137: 90 | BQ137: 0 | BR137: 1 | BX137: N | BY137: 30 | BZ137: 90 | CA137: 0 | CB137: -30 | CE137: 3 | CF137: 90 | CG137: 0
A138: 2015-01-29 | B138: Pinnacle Sports | C138: Football - Friendlies | D138: Paraguya +0.5 | E138: Asian Handicap | F138: My own bets | H138: Paraguya +0.5 Brazil | K138: 30 | L138: 2.8 | N138: N | X138: 30 | Y138: 84 | Z138: 0 | AA138: -30 | BL138: =COUNT(L$11:L138) -> 125 | BM138: 2015-01-29 | BN138: 684.65 | BO138: 2.8 | BP138: 84 | BQ138: 0 | BR138: 1 | BX138: N | BY138: 30 | BZ138: 84 | CA138: 0 | CB138: -30 | CE138: 2.8 | CF138: 84 | CG138: 0
A139: 2015-01-29 | B139: Pinnacle Sports | C139: Basketball - NBA | D139: NY | E139: Winner | F139: My own bets | H139: NY - Indiana | K139: 20 | L139: 3.97 | N139: N | X139: 20 | Y139: 79.4 | Z139: 0 | AA139: -20 | BL139: =COUNT(L$11:L139) -> 126 | BM139: 2015-01-29 | BN139: 664.65 | BO139: 3.97 | BP139: 79.4 | BQ139: 0 | BR139: 1 | BX139: N | BY139: 20 | BZ139: 79.4 | CA139: 0 | CB139: -20 | CE139: 3.97 | CF139: 79.4 | CG139: 0
A140: 2015-01-30 | B140: Pinnacle Sports | C140: Basketball - France | D140: Rouen | E140: Winner | F140: My own bets | H140: Le Havre - Rouen | K140: 15 | L140: 4.36 | N140: N | X140: 15 | Y140: 65.4 | Z140: 0 | AA140: -15 | BL140: =COUNT(L$11:L140) -> 127 | BM140: 2015-01-30 | BN140: 649.65 | BO140: 4.36 | BP140: 65.4 | BQ140: 0 | BR140: 1 | BX140: N | BY140: 15 | BZ140: 65.4 | CA140: 0 | CB140: -15 | CE140: 4.36 | CF140: 65.4 | CG140: 0
A141: 2015-01-30 | B141: Pinnacle Sports | C141: Basketball - France | D141: Rouen +8 | E141: Asian Handicap | F141: My own bets | H141: Le Havre - Rouen +8 | K141: 50 | L141: 1.95 | N141: PU | X141: 50 | Y141: 97.5 | Z141: 50 | AA141: 0 | BL141: =COUNT(L$11:L141) -> 128 | BM141: 2015-01-30 | BN141: 649.65 | BO141: 1.95 | BP141: 97.5 | BQ141: 50 | BR141: 1 | BX141: PU | BY141: 50 | BZ141: 97.5 | CA141: 50 | CB141: 0 | CE141: 1.95 | CF141: 97.5 | CG141: 50
A142: 2015-01-30 | B142: Pinnacle Sports | C142: Basketball - Euroleague | E142: Asian Handicap | F142: My own bets | H142: Panathinaikos - Galatasaray +8.5 | K142: 50 | L142: 1.96 | N142: N | X142: =ROUND(IF(M142<>"Y",IF(P142<>"Y",K142,K142*(BO142-1)),0),ROUNDING) -> 50 | Y142: =ROUND(IF(O142>0,IF(M142="Y",BP142*(1-O142),IF(BP142>X142,X142 + (BP142 - X142)*(1-O142),BP142)),BP142),ROUNDING) -> 98 | Z142: =ROUND(IF(O142>0,IF(M142="Y",BQ142*(1-O142),IF(BQ142>X142,X142 + (BQ142 - X142)*(1-O142),BQ142)),BQ142),ROUNDING) -> 0 | AA142: =ROUND(IF(OR(N142="P",N142=""),0,IF(OR(M142="N",M142=""),Z142-X142,Z142)),ROUNDING) -> -50 | BL142: =COUNT(L$11:L142) -> 129 | BM142: =IF(A142>2,A142,BM141) -> 2015-01-30 | BN142: =BN141+AA142 -> 599.65 | BO142: =IF(L142<>"",IF(ODDS_TYPE=1,L142,IF(ODDS_TYPE=2,IF(L142>0,1+L142/100,IF(L142<0,1-100/L142,1)),IF(ODDS_TYPE=3,1+L142,IF(ODDS_TYPE=4,1+L142,IF(ODDS_TYPE=5,IF(L142>0,1+L142,1-1/L142),IF(ODDS_TYPE=6,IF(L142>=0,L142+1,1-1/L142),1)))))),1) -> 1.96 | BP142: =IF(P142<>"Y",IF(M142<>"Y",K142*BO142,K142*BO142 - K142),IF(M142<>"Y",K142*BO142,K142)) -> 98 | BQ142: =IF(P142<>"Y", IF(M142<>"Y", IF(N142="Y",K142*BO142,IF(N142="P",0,IF(OR(N142="R",N142="PU"),K142,IF(N142="H",K142*BO142*0.5,IF(N142="HW",K142*0.5*(1 + BO142),IF(N142="HL",K142*0.5,0)))))), IF(N142="Y",K142*BO142 - K142,IF(N142="P",0,IF(OR(N142="R",N142="PU"),0,IF(N142="H",IF(BO142>2,0.5*K142*BO142 - K142,0),IF(N142="HW",K142*0.5*(1 + BO142) - K142,IF(N142="HL",0,0))))))), IF(M142<>"Y", IF(N142="Y",K142*BO142,IF(N142="P",0,IF(OR(N142="R",N142="PU"),K142*(BO142-1),IF(N142="H",K142*BO142*0.5,IF(N142="HW",K142*(BO142-1)*0.5,IF(N142="HL",K142*BO142 - K142*0.5,0)))))), IF(N142="Y",K142,IF(N142="P",0,IF(OR(N142="R",N142="PU"),0,IF(N142="H",IF(BO142<2,K142*BO142*0.5 - K142*(BO142-1),0),IF(N142="HW",0,IF(N142="HL",K142*0.5,0))))))) ) -> 0 | BR142: =IF(T142<>"",IF(ODDS_TYPE=1,T142,IF(ODDS_TYPE=2,IF(T142>0,1+T142/100,IF(T142<0,1-100/T142,1)),IF(ODDS_TYPE=3,1+T142,IF(ODDS_TYPE=4,1+T142,IF(ODDS_TYPE=5,IF(T142>0,1+T142,1-1/T142),IF(ODDS_TYPE=6,IF(T142>=0,T142+1,1-1/T142),1)))))),1) -> 1 | BS142: =IF(AND(X142>0,N142<>"P",BV142<>""),AA142/X142,"") ->  | BT142: =IF(AND(X142>0,N142<>"P",BW142<>""),AA142/X142,"") ->  | BU142: =IF(AND(L142<>"",T142<>""), IF(P142="Y",IF(ODDS_TYPE<>2,BR142-BO142,IF(OR(AND(L142>0,T142>0),AND(L142<0,T142<0)),T142-L142,IF(AND(L142>0,T142<0),T142-L142-200,T142-L142+200))), IF(ODDS_TYPE<>2,BO142-BR142,IF(OR(AND(L142>0,T142>0),AND(L142<0,T142<0)),L142-T142,IF(AND(L142>0,T142<0),L142-T142-200,L142-T142+200))) ),"") ->  | BV142: =IF(AND(L142<>"",T142<>"",BR142<>1),IF(P142="Y",(BR142-BO142)/(BR142-1),(BO142-BR142)/(BR142-1)),"") ->  | BW142: =IF(AND(U142<>"",V142<>""),IF(P142<>"Y",U142-V142,V142-U142),"") ->  | BX142: =IF(LEN(S142)>0,S142,N142) -> N | BY142: =ROUND(IF(M142<>"Y",IF(P142<>"Y",K142,K142*(CE142-1)),0),ROUNDING) -> 50 | BZ142: =ROUND(IF(O142>0,IF(M142="Y",CF142*(1-O142),IF(CF142>BY142,BY142 + (CF142 - BY142)*(1-O142),CF142)),CF142),ROUNDING) -> 98 | CA142: =ROUND(IF(O142>0,IF(M142="Y",CG142*(1-O142),IF(CG142>BY142,BY142 + (CG142 - BY142)*(1-O142),CG142)),CG142),ROUNDING) -> 0 | CB142: =ROUND(IF(OR(BX142="P",BX142=""),0,IF(OR(M142="N",M142=""),CA142-BY142,CA142)),ROUNDING) -> -50 | CC142: =IF(AND(L142<>"",T142<>""), IF(P142="Y",IF(ODDS_TYPE<>2,BR142-CE142,IF(OR(AND(L142>0,T142>0),AND(L142<0,T142<0)),T142-L142,IF(AND(L142>0,T142<0),T142-L142-200,T142-L142+200))), IF(ODDS_TYPE<>2,CE142-BR142,IF(OR(AND(L142>0,T142>0),AND(L142<0,T142<0)),L142-T142,IF(AND(L142>0,T142<0),L142-T142-200,L142-T142+200))) ),"") ->  | CD142: =IF(OR(AND(R142<>"",V142<>""),AND(U142<>"",V142<>"")),IF(AND(R142<>"",V142<>""),IF(P142<>"Y",R142-V142,V142-R142),IF(P142<>"Y",U142-V142,V142-U142)),"") ->  | CE142: =IF(Q142<>"",IF(ODDS_TYPE=1,Q142,IF(ODDS_TYPE=2,IF(Q142>0,1+Q142/100,IF(Q142<0,1-100/Q142,1)),IF(ODDS_TYPE=3,1+Q142,IF(ODDS_TYPE=4,1+Q142,IF(ODDS_TYPE=5,IF(Q142>0,1+Q142,1-1/Q142),IF(ODDS_TYPE=6,IF(Q142>=0,Q142+1,1-1/Q142),1)))))),BO142) -> 1.96 | CF142: =IF(P142<>"Y",IF(M142<>"Y",K142*CE142,K142*CE142 - K142),IF(M142<>"Y",K142*CE142,K142)) -> 98 | CG142: =IF(P142<>"Y", IF(M142<>"Y", IF(BX142="Y",K142*CE142,IF(BX142="P",0,IF(OR(BX142="R",BX142="PU"),K142,IF(BX142="H",K142*CE142*0.5,IF(BX142="HW",K142*0.5*(1 + CE142),IF(BX142="HL",K142*0.5,0)))))), IF(BX142="Y",K142*CE142 - K142,IF(BX142="P",0,IF(OR(BX142="R",BX142="PU"),0,IF(BX142="H",IF(CE142>2,0.5*K142*CE142 - K142,0),IF(BX142="HW",K142*0.5*(1 + CE142) - K142,IF(BX142="HL",0,0))))))), IF(M142<>"Y", IF(BX142="Y",K142*CE142,IF(BX142="P",0,IF(OR(BX142="R",BX142="PU"),K142*(CE142-1),IF(BX142="H",K142*CE142*0.5,IF(BX142="HW",K142*(CE142-1)*0.5,IF(BX142="HL",K142*CE142 - K142*0.5,0)))))), IF(BX142="Y",K142,IF(BX142="P",0,IF(OR(BX142="R",BX142="PU"),0,IF(BX142="H",IF(CE142<2,K142*CE142*0.5 - K142*(CE142-1),0),IF(BX142="HW",0,IF(BX142="HL",K142*0.5,0))))))) ) -> 0
A143: 2015-01-30 | B143: Pinnacle Sports | C143: Basketball - Serbia | D143: Vrsac +10.5 | E143: Asian Handicap | F143: My own bets | H143: FMP - Vrac +10.5 | K143: 50 | L143: 1.9 | N143: N | X143: 50 | Y143: 95 | Z143: 0 | AA143: -50 | BL143: =COUNT(L$11:L143) -> 130 | BM143: 2015-01-30 | BN143: 549.65 | BO143: 1.9 | BP143: 95 | BQ143: 0 | BR143: 1 | BX143: N | BY143: 50 | BZ143: 95 | CA143: 0 | CB143: -50 | CE143: 1.9 | CF143: 95 | CG143: 0
A144: 2015-01-30 | B144: Pinnacle Sports | C144: Basketball - NBA | D144: Atlanta | E144: Winner | F144: My own bets | H144: Portland - Atlanta | K144: 20 | L144: 3 | N144: N | X144: 20 | Y144: 60 | Z144: 0 | AA144: -20 | BL144: =COUNT(L$11:L144) -> 131 | BM144: 2015-01-30 | BN144: 529.65 | BO144: 3 | BP144: 60 | BQ144: 0 | BR144: 1 | BX144: N | BY144: 20 | BZ144: 60 | CA144: 0 | CB144: -20 | CE144: 3 | CF144: 60 | CG144: 0
A145: 2015-01-30 | B145: Pinnacle Sports | C145: Basketball - NBA | D145: Chicago | E145: Winner | F145: My own bets | H145: Chicago - Phoenix | K145: 30 | L145: 2.99 | N145: N | X145: 30 | Y145: 89.7 | Z145: 0 | AA145: -30 | BL145: =COUNT(L$11:L145) -> 132 | BM145: 2015-01-30 | BN145: 499.65 | BO145: 2.99 | BP145: 89.7 | BQ145: 0 | BR145: 1 | BX145: N | BY145: 30 | BZ145: 89.7 | CA145: 0 | CB145: -30 | CE145: 2.99 | CF145: 89.7 | CG145: 0
A146: 2015-01-30 | B146: Pinnacle Sports | C146: Basketball - NBA | D146: Brooklyn | E146: Winner | F146: My own bets | H146: Toronto - Brooklyn | K146: 20 | L146: 3.48 | N146: N | X146: 20 | Y146: 69.6 | Z146: 0 | AA146: -20 | BL146: =COUNT(L$11:L146) -> 133 | BM146: 2015-01-30 | BN146: 479.65 | BO146: 3.48 | BP146: 69.6 | BQ146: 0 | BR146: 1 | BX146: N | BY146: 20 | BZ146: 69.6 | CA146: 0 | CB146: -20 | CE146: 3.48 | CF146: 69.6 | CG146: 0
A147: 2015-01-31 | B147: Pinnacle Sports | C147: Football - LaLiga | D147: Cordoba | E147: Winner | F147: My own bets | H147: Celta - Cordoba | K147: 45 | L147: 7.83 | N147: N | X147: 45 | Y147: 352.35 | Z147: 0 | AA147: -45 | BL147: =COUNT(L$11:L147) -> 134 | BM147: 2015-01-31 | BN147: 434.65 | BO147: 7.83 | BP147: 352.35 | BQ147: 0 | BR147: 1 | BX147: N | BY147: 45 | BZ147: 352.35 | CA147: 0 | CB147: -45 | CE147: 7.83 | CF147: 352.35 | CG147: 0
A148: 2015-01-31 | B148: Pinnacle Sports | C148: Football - LaLiga | D148: X | E148: Winner | F148: My own bets | H148: Celta - Cordoba X | K148: 10 | L148: 4.4 | N148: N | X148: 10 | Y148: 44 | Z148: 0 | AA148: -10 | BL148: =COUNT(L$11:L148) -> 135 | BM148: 2015-01-31 | BN148: 424.65 | BO148: 4.4 | BP148: 44 | BQ148: 0 | BR148: 1 | BX148: N | BY148: 10 | BZ148: 44 | CA148: 0 | CB148: -10 | CE148: 4.4 | CF148: 44 | CG148: 0
A149: 2015-01-31 | B149: Pinnacle Sports | C149: Football - England 2 | D149: Scuntroupe | E149: Winner | F149: My own bets | H149: Leyton - Scunthroupe | K149: 40 | L149: 3.75 | N149: Y | X149: 40 | Y149: 150 | Z149: 150 | AA149: 110 | BL149: =COUNT(L$11:L149) -> 136 | BM149: 2015-01-31 | BN149: 534.65 | BO149: 3.75 | BP149: 150 | BQ149: 150 | BR149: 1 | BX149: Y | BY149: 40 | BZ149: 150 | CA149: 150 | CB149: 110 | CE149: 3.75 | CF149: 150 | CG149: 150
A150: 2015-01-31 | B150: Pinnacle Sports | C150: Basketball - France | D150: Lille +11 | E150: Asian Handicap | F150: My own bets | H150: Bourges - Lille +11 | K150: 50 | L150: 1.93 | N150: N | X150: 50 | Y150: 96.5 | Z150: 0 | AA150: -50 | BL150: =COUNT(L$11:L150) -> 137 | BM150: 2015-01-31 | BN150: 484.65 | BO150: 1.93 | BP150: 96.5 | BQ150: 0 | BR150: 1 | BX150: N | BY150: 50 | BZ150: 96.5 | CA150: 0 | CB150: -50 | CE150: 1.93 | CF150: 96.5 | CG150: 0
A151: 2015-01-31 | B151: Pinnacle Sports | C151: Basketball - Serbia | D151: Napredak +20.5 | E151: Asian Handicap | F151: My own bets | H151: Konstantin - Napredak +20.5 | K151: 50 | L151: 1.93 | N151: Y | X151: 50 | Y151: 96.5 | Z151: 96.5 | AA151: 46.5 | BL151: =COUNT(L$11:L151) -> 138 | BM151: 2015-01-31 | BN151: 531.15 | BO151: 1.93 | BP151: 96.5 | BQ151: 96.5 | BR151: 1 | BX151: Y | BY151: 50 | BZ151: 96.5 | CA151: 96.5 | CB151: 46.5 | CE151: 1.93 | CF151: 96.5 | CG151: 96.5
A152: 2015-01-31 | B152: Pinnacle Sports | C152: Basketball - Slovenia | D152: Electra +14 | E152: Asian Handicap | F152: My own bets | H152: Electra +14 - Grossbasket | K152: 50 | L152: 1.89 | N152: Y | X152: 50 | Y152: 94.5 | Z152: 94.5 | AA152: 44.5 | BL152: =COUNT(L$11:L152) -> 139 | BM152: 2015-01-31 | BN152: 575.65 | BO152: 1.89 | BP152: 94.5 | BQ152: 94.5 | BR152: 1 | BX152: Y | BY152: 50 | BZ152: 94.5 | CA152: 94.5 | CB152: 44.5 | CE152: 1.89 | CF152: 94.5 | CG152: 94.5
A153: 2015-01-31 | B153: Pinnacle Sports | C153: Football - Scotland | D153: Ross County +1 | E153: Asian Handicap | F153: My own bets | H153: Inverness - Ross County | K153: 50 | L153: 1.93 | N153: Y | X153: 50 | Y153: 96.5 | Z153: 96.5 | AA153: 46.5 | BL153: =COUNT(L$11:L153) -> 140 | BM153: 2015-01-31 | BN153: 622.15 | BO153: 1.93 | BP153: 96.5 | BQ153: 96.5 | BR153: 1 | BX153: Y | BY153: 50 | BZ153: 96.5 | CA153: 96.5 | CB153: 46.5 | CE153: 1.93 | CF153: 96.5 | CG153: 96.5
A154: 2015-01-31 | B154: Pinnacle Sports | C154: Basketball - Serbia | D154: Tamis | E154: Asian Handicap | F154: My own bets | H154: Boras - Tamis 2 | K154: 50 | L154: 2.68 | N154: N | X154: 50 | Y154: 134 | Z154: 0 | AA154: -50 | BL154: =COUNT(L$11:L154) -> 141 | BM154: 2015-01-31 | BN154: 572.15 | BO154: 2.68 | BP154: 134 | BQ154: 0 | BR154: 1 | BX154: N | BY154: 50 | BZ154: 134 | CA154: 0 | CB154: -50 | CE154: 2.68 | CF154: 134 | CG154: 0
A155: 2015-02-01 | B155: Pinnacle Sports | C155: Basketball - Spain | E155: Asian Handicap | F155: My own bets | H155: Bilbao - Andorra +11 | K155: 50 | L155: 1.9 | N155: N | X155: 50 | Y155: 95 | Z155: 0 | AA155: -50 | BL155: =COUNT(L$11:L155) -> 142 | BM155: 2015-02-01 | BN155: 522.15 | BO155: 1.9 | BP155: 95 | BQ155: 0 | BR155: 1 | BX155: N | BY155: 50 | BZ155: 95 | CA155: 0 | CB155: -50 | CE155: 1.9 | CF155: 95 | CG155: 0
A156: 2015-02-01 | B156: Pinnacle Sports | C156: Basketball - Germany | E156: Asian Handicap | F156: My own bets | H156: Braunshweig - Tubingen +6/5 | K156: 50 | L156: 1.9 | N156: N | X156: 50 | Y156: 95 | Z156: 0 | AA156: -50 | BL156: =COUNT(L$11:L156) -> 143 | BM156: 2015-02-01 | BN156: 472.15 | BO156: 1.9 | BP156: 95 | BQ156: 0 | BR156: 1 | BX156: N | BY156: 50 | BZ156: 95 | CA156: 0 | CB156: -50 | CE156: 1.9 | CF156: 95 | CG156: 0
A157: 2015-02-01 | B157: Pinnacle Sports | C157: Basketball - VTB | E157: Asian Handicap | F157: My own bets | H157: CSKA - Loko Kuban +11.5 | K157: 50 | L157: 1.88 | N157: Y | X157: 50 | Y157: 94 | Z157: 94 | AA157: 44 | BL157: =COUNT(L$11:L157) -> 144 | BM157: 2015-02-01 | BN157: 516.15 | BO157: 1.88 | BP157: 94 | BQ157: 94 | BR157: 1 | BX157: Y | BY157: 50 | BZ157: 94 | CA157: 94 | CB157: 44 | CE157: 1.88 | CF157: 94 | CG157: 94
A158: 2015-02-01 | B158: Pinnacle Sports | C158: Basketball - Spain | E158: Winner | F158: My own bets | H158: Estudiantes - Jventud | K158: 50 | L158: 2.09 | N158: Y | X158: 50 | Y158: 104.5 | Z158: 104.5 | AA158: 54.5 | BL158: =COUNT(L$11:L158) -> 145 | BM158: 2015-02-01 | BN158: 570.65 | BO158: 2.09 | BP158: 104.5 | BQ158: 104.5 | BR158: 1 | BX158: Y | BY158: 50 | BZ158: 104.5 | CA158: 104.5 | CB158: 54.5 | CE158: 2.09 | CF158: 104.5 | CG158: 104.5
A159: 2015-02-01 | B159: Pinnacle Sports | C159: Basketball - Romania | E159: Winner | F159: My own bets | H159: Gaz Metan - Pitesti | K159: 50 | L159: 2.27 | N159: N | X159: 50 | Y159: 113.5 | Z159: 0 | AA159: -50 | BL159: =COUNT(L$11:L159) -> 146 | BM159: 2015-02-01 | BN159: 520.65 | BO159: 2.27 | BP159: 113.5 | BQ159: 0 | BR159: 1 | BX159: N | BY159: 50 | BZ159: 113.5 | CA159: 0 | CB159: -50 | CE159: 2.27 | CF159: 113.5 | CG159: 0
A160: 2015-02-01 | B160: Pinnacle Sports | C160: Basketball - Turkey | E160: Asian Handicap | F160: My own bets | H160: Trabzon +6 - Efes | K160: 50 | L160: 1.9 | N160: N | X160: 50 | Y160: 95 | Z160: 0 | AA160: -50 | BL160: =COUNT(L$11:L160) -> 147 | BM160: 2015-02-01 | BN160: 470.65 | BO160: 1.9 | BP160: 95 | BQ160: 0 | BR160: 1 | BX160: N | BY160: 50 | BZ160: 95 | CA160: 0 | CB160: -50 | CE160: 1.9 | CF160: 95 | CG160: 0
A161: 2015-02-02 | B161: Pinnacle Sports | C161: Basketball - Turkey | E161: Asian Handicap | F161: My own bets | H161: Gazintep +8.5 - Fenerbahce | K161: 50 | L161: 1.88 | N161: N | X161: 50 | Y161: 94 | Z161: 0 | AA161: -50 | BL161: =COUNT(L$11:L161) -> 148 | BM161: 2015-02-02 | BN161: 420.65 | BO161: 1.88 | BP161: 94 | BQ161: 0 | BR161: 1 | BX161: N | BY161: 50 | BZ161: 94 | CA161: 0 | CB161: -50 | CE161: 1.88 | CF161: 94 | CG161: 0
A162: 2015-02-02 | B162: Pinnacle Sports | C162: Basketball - Israel | E162: Winner | F162: My own bets | H162: Nes Ziona - Eilat | K162: 50 | L162: 2.73 | N162: Y | X162: 50 | Y162: 136.5 | Z162: 136.5 | AA162: 86.5 | BL162: =COUNT(L$11:L162) -> 149 | BM162: 2015-02-02 | BN162: 507.15 | BO162: 2.73 | BP162: 136.5 | BQ162: 136.5 | BR162: 1 | BX162: Y | BY162: 50 | BZ162: 136.5 | CA162: 136.5 | CB162: 86.5 | CE162: 2.73 | CF162: 136.5 | CG162: 136.5
A163: 2015-02-02 | B163: Pinnacle Sports | C163: Basketball - Israel | E163: Asian Handicap | F163: My own bets | H163: Rishon - Ironi Naharia +10 | K163: 50 | L163: 1.89 | N163: Y | X163: 50 | Y163: 94.5 | Z163: 94.5 | AA163: 44.5 | BL163: =COUNT(L$11:L163) -> 150 | BM163: 2015-02-02 | BN163: 551.65 | BO163: 1.89 | BP163: 94.5 | BQ163: 94.5 | BR163: 1 | BX163: Y | BY163: 50 | BZ163: 94.5 | CA163: 94.5 | CB163: 44.5 | CE163: 1.89 | CF163: 94.5 | CG163: 94.5
A164: 2015-02-02 | B164: Pinnacle Sports | C164: Basketball - NBA | E164: Winner | F164: My own bets | H164: Milwaukee - Toronto | K164: 30 | L164: 3.22 | N164: Y | X164: 30 | Y164: 96.6 | Z164: 96.6 | AA164: 66.6 | BL164: =COUNT(L$11:L164) -> 151 | BM164: 2015-02-02 | BN164: 618.25 | BO164: 3.22 | BP164: 96.6 | BQ164: 96.6 | BR164: 1 | BX164: Y | BY164: 30 | BZ164: 96.6 | CA164: 96.6 | CB164: 66.6 | CE164: 3.22 | CF164: 96.6 | CG164: 96.6
A165: 2015-02-03 | B165: Pinnacle Sports | C165: Basketball - NBA | E165: Winner | F165: My own bets | H165: Utah - Portland | K165: 20 | L165: 4.18 | N165: N | X165: 20 | Y165: 83.6 | Z165: 0 | AA165: -20 | BL165: =COUNT(L$11:L165) -> 152 | BM165: 2015-02-03 | BN165: 598.25 | BO165: 4.18 | BP165: 83.6 | BQ165: 0 | BR165: 1 | BX165: N | BY165: 20 | BZ165: 83.6 | CA165: 0 | CB165: -20 | CE165: 4.18 | CF165: 83.6 | CG165: 0
A166: 2015-02-04 | B166: Pinnacle Sports | C166: Football - African Cup | E166: Over / Under | F166: My own bets | H166: Cote d Ivoire - Congo o2.5 | K166: 50 | L166: 2.48 | N166: Y | X166: 50 | Y166: 124 | Z166: 124 | AA166: 74 | BL166: =COUNT(L$11:L166) -> 153 | BM166: 2015-02-04 | BN166: 672.25 | BO166: 2.48 | BP166: 124 | BQ166: 124 | BR166: 1 | BX166: Y | BY166: 50 | BZ166: 124 | CA166: 124 | CB166: 74 | CE166: 2.48 | CF166: 124 | CG166: 124
A167: 2015-02-04 | B167: Pinnacle Sports | C167: Football - Ned | E167: Winner | F167: My own bets | H167: Cambur - Vitess | K167: 30 | L167: 3.05 | N167: N | X167: 30 | Y167: 91.5 | Z167: 0 | AA167: -30 | BL167: =COUNT(L$11:L167) -> 154 | BM167: 2015-02-04 | BN167: 642.25 | BO167: 3.05 | BP167: 91.5 | BQ167: 0 | BR167: 1 | BX167: N | BY167: 30 | BZ167: 91.5 | CA167: 0 | CB167: -30 | CE167: 3.05 | CF167: 91.5 | CG167: 0
A168: 2015-02-04 | B168: Pinnacle Sports | C168: Football - Portugal | E168: Asian Handicap | F168: My own bets | H168: Academica - Madeira(0) | K168: 30 | L168: 2.62 | N168: N | X168: 30 | Y168: 78.6 | Z168: 0 | AA168: -30 | BL168: =COUNT(L$11:L168) -> 155 | BM168: 2015-02-04 | BN168: 612.25 | BO168: 2.62 | BP168: 78.6 | BQ168: 0 | BR168: 1 | BX168: N | BY168: 30 | BZ168: 78.6 | CA168: 0 | CB168: -30 | CE168: 2.62 | CF168: 78.6 | CG168: 0
A169: 2015-02-04 | B169: Pinnacle Sports | C169: Football - Portugal | E169: Winner | F169: My own bets | H169: Gimaraes - Belenenses | K169: 30 | L169: 2.5 | N169: N | X169: 30 | Y169: 75 | Z169: 0 | AA169: -30 | BL169: =COUNT(L$11:L169) -> 156 | BM169: 2015-02-04 | BN169: 582.25 | BO169: 2.5 | BP169: 75 | BQ169: 0 | BR169: 1 | BX169: N | BY169: 30 | BZ169: 75 | CA169: 0 | CB169: -30 | CE169: 2.5 | CF169: 75 | CG169: 0
A170: 2015-02-04 | B170: Pinnacle Sports | C170: Basketball - EuroW | E170: Asian Handicap | F170: My own bets | H170: Kosice +8 - USG Praha | K170: 50 | L170: 1.95 | N170: Y | X170: 50 | Y170: 97.5 | Z170: 97.5 | AA170: 47.5 | BL170: =COUNT(L$11:L170) -> 157 | BM170: 2015-02-04 | BN170: 629.75 | BO170: =IF(L170<>"",IF(ODDS_TYPE=1,L170,IF(ODDS_TYPE=2,IF(L170>0,1+L170/100,IF(L170<0,1-100/L170,1)),IF(ODDS_TYPE=3,1+L170,IF(ODDS_TYPE=4,1+L170,IF(ODDS_TYPE=5,IF(L170>0,1+L170,1-1/L170),IF(ODDS_TYPE=6,IF(L170>=0,L170+1,1-1/L170),1)))))),1) -> 1.95 | BP170: 97.5 | BQ170: 97.5 | BR170: 1 | BU170: =IF(AND(L170<>"",T170<>""), IF(P170="Y",IF(ODDS_TYPE<>2,BR170-BO170,IF(OR(AND(L170>0,T170>0),AND(L170<0,T170<0)),T170-L170,IF(AND(L170>0,T170<0),T170-L170-200,T170-L170+200))), IF(ODDS_TYPE<>2,BO170-BR170,IF(OR(AND(L170>0,T170>0),AND(L170<0,T170<0)),L170-T170,IF(AND(L170>0,T170<0),L170-T170-200,L170-T170+200))) ),"") ->  | BV170: =IF(AND(L170<>"",T170<>"",BR170<>1),IF(P170="Y",(BR170-BO170)/(BR170-1),(BO170-BR170)/(BR170-1)),"") ->  | BX170: Y | BY170: 50 | BZ170: 97.5 | CA170: 97.5 | CB170: 47.5 | CC170: =IF(AND(L170<>"",T170<>""), IF(P170="Y",IF(ODDS_TYPE<>2,BR170-CE170,IF(OR(AND(L170>0,T170>0),AND(L170<0,T170<0)),T170-L170,IF(AND(L170>0,T170<0),T170-L170-200,T170-L170+200))), IF(ODDS_TYPE<>2,CE170-BR170,IF(OR(AND(L170>0,T170>0),AND(L170<0,T170<0)),L170-T170,IF(AND(L170>0,T170<0),L170-T170-200,L170-T170+200))) ),"") ->  | CE170: 1.95 | CF170: 97.5 | CG170: 97.5
A171: 2015-02-04 | B171: Pinnacle Sports | C171: Basketball - EuroW | E171: Winner | F171: My own bets | H171: Kosice - USK Praha | K171: 15 | L171: 4.05 | N171: N | X171: 15 | Y171: 60.75 | Z171: 0 | AA171: -15 | BL171: =COUNT(L$11:L171) -> 158 | BM171: 2015-02-04 | BN171: 614.75 | BO171: =IF(L171<>"",IF(ODDS_TYPE=1,L171,IF(ODDS_TYPE=2,IF(L171>0,1+L171/100,IF(L171<0,1-100/L171,1)),IF(ODDS_TYPE=3,1+L171,IF(ODDS_TYPE=4,1+L171,IF(ODDS_TYPE=5,IF(L171>0,1+L171,1-1/L171),IF(ODDS_TYPE=6,IF(L171>=0,L171+1,1-1/L171),1)))))),1) -> 4.05 | BP171: 60.75 | BQ171: 0 | BR171: 1 | BU171: =IF(AND(L171<>"",T171<>""), IF(P171="Y",IF(ODDS_TYPE<>2,BR171-BO171,IF(OR(AND(L171>0,T171>0),AND(L171<0,T171<0)),T171-L171,IF(AND(L171>0,T171<0),T171-L171-200,T171-L171+200))), IF(ODDS_TYPE<>2,BO171-BR171,IF(OR(AND(L171>0,T171>0),AND(L171<0,T171<0)),L171-T171,IF(AND(L171>0,T171<0),L171-T171-200,L171-T171+200))) ),"") ->  | BV171: =IF(AND(L171<>"",T171<>"",BR171<>1),IF(P171="Y",(BR171-BO171)/(BR171-1),(BO171-BR171)/(BR171-1)),"") ->  | BX171: N | BY171: 15 | BZ171: 60.75 | CA171: 0 | CB171: -15 | CC171: =IF(AND(L171<>"",T171<>""), IF(P171="Y",IF(ODDS_TYPE<>2,BR171-CE171,IF(OR(AND(L171>0,T171>0),AND(L171<0,T171<0)),T171-L171,IF(AND(L171>0,T171<0),T171-L171-200,T171-L171+200))), IF(ODDS_TYPE<>2,CE171-BR171,IF(OR(AND(L171>0,T171>0),AND(L171<0,T171<0)),L171-T171,IF(AND(L171>0,T171<0),L171-T171-200,L171-T171+200))) ),"") ->  | CE171: 4.05 | CF171: 60.75 | CG171: 0
A172: 2015-02-04 | B172: Pinnacle Sports | C172: Football - Ned | E172: Winner | F172: My own bets | H172: Willem-2 Utrecht | K172: 50 | L172: 3.81 | N172: N | X172: 50 | Y172: 190.5 | Z172: 0 | AA172: -50 | BL172: =COUNT(L$11:L172) -> 159 | BM172: 2015-02-04 | BN172: 564.75 | BO172: 3.81 | BP172: 190.5 | BQ172: 0 | BR172: 1 | BX172: N | BY172: 50 | BZ172: 190.5 | CA172: 0 | CB172: -50 | CE172: 3.81 | CF172: 190.5 | CG172: 0
A173: 2015-02-04 | B173: Pinnacle Sports | C173: Basketball - Eurocup | E173: Asian Handicap | F173: My own bets | H173: Brose - Olympia +12 | K173: 50 | L173: 1.92 | N173: Y | X173: 50 | Y173: 96 | Z173: 96 | AA173: 46 | BL173: =COUNT(L$11:L173) -> 160 | BM173: 2015-02-04 | BN173: 610.75 | BO173: 1.92 | BP173: 96 | BQ173: 96 | BR173: 1 | BX173: Y | BY173: 50 | BZ173: 96 | CA173: 96 | CB173: 46 | CE173: 1.92 | CF173: 96 | CG173: 96
A174: 2015-02-04 | B174: Pinnacle Sports | C174: Basketball - Eurocup | E174: Winner | F174: My own bets | H174: Zenit - Nymburk | K174: 50 | L174: 2.89 | N174: Y | X174: 50 | Y174: 144.5 | Z174: 144.5 | AA174: 94.5 | BL174: =COUNT(L$11:L174) -> 161 | BM174: 2015-02-04 | BN174: 705.25 | BO174: 2.89 | BP174: 144.5 | BQ174: 144.5 | BR174: 1 | BX174: Y | BY174: 50 | BZ174: 144.5 | CA174: 144.5 | CB174: 94.5 | CE174: 2.89 | CF174: 144.5 | CG174: 144.5
A175: 2015-02-04 | B175: Pinnacle Sports | C175: Basketball - Eurocup | E175: Winner | F175: My own bets | H175: Pinar - Besiktas | K175: 50 | L175: 2.79 | N175: N | X175: 50 | Y175: 139.5 | Z175: 0 | AA175: -50 | BL175: =COUNT(L$11:L175) -> 162 | BM175: 2015-02-04 | BN175: 655.25 | BO175: 2.79 | BP175: 139.5 | BQ175: 0 | BR175: 1 | BX175: N | BY175: 50 | BZ175: 139.5 | CA175: 0 | CB175: -50 | CE175: 2.79 | CF175: 139.5 | CG175: 0
A176: 2015-02-04 | B176: Pinnacle Sports | C176: Basketball - Eurocup | E176: Winner | F176: My own bets | H176: Nancy - Valencia | K176: 50 | L176: 3.22 | N176: N | X176: 50 | Y176: 161 | Z176: 0 | AA176: -50 | BL176: =COUNT(L$11:L176) -> 163 | BM176: 2015-02-04 | BN176: 605.25 | BO176: 3.22 | BP176: 161 | BQ176: 0 | BR176: 1 | BX176: N | BY176: 50 | BZ176: 161 | CA176: 0 | CB176: -50 | CE176: 3.22 | CF176: 161 | CG176: 0
A177: 2015-02-04 | B177: Pinnacle Sports | C177: Basketball - Eurocup | E177: Asian Handicap | F177: My own bets | H177: Gran Caraia - Sassari +8.5 | K177: 50 | L177: 1.89 | N177: N | X177: 50 | Y177: 94.5 | Z177: 0 | AA177: -50 | BL177: =COUNT(L$11:L177) -> 164 | BM177: 2015-02-04 | BN177: 555.25 | BO177: 1.89 | BP177: 94.5 | BQ177: 0 | BR177: 1 | BX177: N | BY177: 50 | BZ177: 94.5 | CA177: 0 | CB177: -50 | CE177: 1.89 | CF177: 94.5 | CG177: 0
A178: 2015-02-04 | B178: Pinnacle Sports | C178: Basketball - Eurocup | E178: Asian Handicap | F178: My own bets | H178: Unics - Strassburg | K178: 50 | L178: 1.94 | N178: Y | X178: 50 | Y178: 97 | Z178: 97 | AA178: 47 | BL178: =COUNT(L$11:L178) -> 165 | BM178: 2015-02-04 | BN178: 602.25 | BO178: 1.94 | BP178: 97 | BQ178: 97 | BR178: 1 | BX178: Y | BY178: 50 | BZ178: 97 | CA178: 97 | CB178: 47 | CE178: 1.94 | CF178: 97 | CG178: 97
A179: 2015-02-05 | B179: Pinnacle Sports | C179: Football - Ned | E179: Asian Handicap | F179: My own bets | H179: Ajax - AZ+0.5 | K179: 30 | L179: 2.72 | N179: Y | X179: 30 | Y179: 81.6 | Z179: 81.6 | AA179: 51.6 | BL179: =COUNT(L$11:L179) -> 166 | BM179: 2015-02-05 | BN179: 653.85 | BO179: 2.72 | BP179: 81.6 | BQ179: 81.6 | BR179: 1 | BX179: Y | BY179: 30 | BZ179: 81.6 | CA179: 81.6 | CB179: 51.6 | CE179: 2.72 | CF179: 81.6 | CG179: 81.6
A180: 2015-02-08 | B180: Pinnacle Sports | C180: Basketball - France | E180: Asian Handicap | F180: My own bets | H180: Mondeville-Hainaut(+12) | K180: 30 | L180: 1.92 | N180: Y | X180: 30 | Y180: 57.6 | Z180: 57.6 | AA180: 27.6 | BL180: =COUNT(L$11:L180) -> 167 | BM180: 2015-02-08 | BN180: 681.45 | BO180: 1.92 | BP180: 57.6 | BQ180: 57.6 | BR180: 1 | BX180: Y | BY180: 30 | BZ180: 57.6 | CA180: 57.6 | CB180: 27.6 | CE180: 1.92 | CF180: 57.6 | CG180: 57.6
A181: 2015-02-08 | B181: Pinnacle Sports | C181: Basketball - France | E181: Winner | F181: My own bets | H181: Mondeville-Hainaut 2 | K181: 20 | L181: 7 | N181: N | X181: 20 | Y181: 140 | Z181: 0 | AA181: -20 | BL181: =COUNT(L$11:L181) -> 168 | BM181: 2015-02-08 | BN181: 661.45 | BO181: 7 | BP181: 140 | BQ181: 0 | BR181: 1 | BX181: N | BY181: 20 | BZ181: 140 | CA181: 0 | CB181: -20 | CE181: 7 | CF181: 140 | CG181: 0
A182: 2015-02-08 | B182: Pinnacle Sports | C182: Football - France | E182: Asian Handicap | F182: My own bets | H182: St. Etiene - Lens(+1) | K182: 50 | L182: 1.85 | N182: Y | X182: 50 | Y182: 92.5 | Z182: 92.5 | AA182: 42.5 | BL182: =COUNT(L$11:L182) -> 169 | BM182: 2015-02-08 | BN182: 703.95 | BO182: 1.85 | BP182: 92.5 | BQ182: 92.5 | BR182: 1 | BX182: Y | BY182: 50 | BZ182: 92.5 | CA182: 92.5 | CB182: 42.5 | CE182: 1.85 | CF182: 92.5 | CG182: 92.5
A183: 2015-02-08 | B183: Pinnacle Sports | C183: Basketball - Euroleague | E183: Winner | F183: My own bets | H183: Unicaja - NN 2 | K183: 50 | L183: 2.8 | N183: N | X183: 50 | Y183: 140 | Z183: 0 | AA183: -50 | BL183: =COUNT(L$11:L183) -> 170 | BM183: 2015-02-08 | BN183: 653.95 | BO183: 2.8 | BP183: 140 | BQ183: 0 | BR183: 1 | BX183: N | BY183: 50 | BZ183: 140 | CA183: 0 | CB183: -50 | CE183: 2.8 | CF183: 140 | CG183: 0
A184: 2015-02-08 | B184: Pinnacle Sports | C184: Basketball - Bulgaria | E184: Winner | F184: My own bets | H184: Levski - Beroe 2 | K184: 30 | L184: 3.23 | N184: N | X184: 30 | Y184: 96.9 | Z184: 0 | AA184: -30 | BL184: =COUNT(L$11:L184) -> 171 | BM184: 2015-02-08 | BN184: 623.95 | BO184: 3.23 | BP184: 96.9 | BQ184: 0 | BR184: 1 | BX184: N | BY184: 30 | BZ184: 96.9 | CA184: 0 | CB184: -30 | CE184: 3.23 | CF184: 96.9 | CG184: 0
A185: 2015-02-08 | B185: Pinnacle Sports | C185: Basketball - Italy2 | E185: Winner | F185: My own bets | H185: Triest - Trapani 2 | K185: 50 | L185: 2.44 | N185: N | X185: 50 | Y185: 122 | Z185: 0 | AA185: -50 | BL185: =COUNT(L$11:L185) -> 172 | BM185: 2015-02-08 | BN185: 573.95 | BO185: 2.44 | BP185: 122 | BQ185: 0 | BR185: 1 | BX185: N | BY185: 50 | BZ185: 122 | CA185: 0 | CB185: -50 | CE185: 2.44 | CF185: 122 | CG185: 0
A186: 2015-02-08 | B186: Pinnacle Sports | C186: Basketball - Serbia | E186: Asian Handicap | F186: My own bets | H186: Vrsac - Borac(+6.5) | K186: 50 | L186: 1.93 | N186: Y | X186: 50 | Y186: 96.5 | Z186: 96.5 | AA186: 46.5 | BL186: =COUNT(L$11:L186) -> 173 | BM186: 2015-02-08 | BN186: 620.45 | BO186: 1.93 | BP186: 96.5 | BQ186: 96.5 | BR186: 1 | BX186: Y | BY186: 50 | BZ186: 96.5 | CA186: 96.5 | CB186: 46.5 | CE186: 1.93 | CF186: 96.5 | CG186: 96.5
A187: 2015-02-08 | B187: Pinnacle Sports | C187: Basketball - Germany | E187: Asian Handicap | F187: My own bets | H187: Trier - Carlshaim(+9.5) | K187: 50 | L187: 1.9 | N187: Y | X187: 50 | Y187: 95 | Z187: 95 | AA187: 45 | BL187: =COUNT(L$11:L187) -> 174 | BM187: 2015-02-08 | BN187: 665.45 | BO187: 1.9 | BP187: 95 | BQ187: 95 | BR187: 1 | BX187: Y | BY187: 50 | BZ187: 95 | CA187: 95 | CB187: 45 | CE187: 1.9 | CF187: 95 | CG187: 95
A188: 2015-02-08 | B188: Pinnacle Sports | C188: Basketball - Germany | E188: Winner | F188: My own bets | H188: Trier - Carlshaim 2 | K188: 10 | L188: 4.95 | N188: Y | X188: 10 | Y188: 49.5 | Z188: 49.5 | AA188: 39.5 | BL188: =COUNT(L$11:L188) -> 175 | BM188: 2015-02-08 | BN188: 704.95 | BO188: 4.95 | BP188: 49.5 | BQ188: 49.5 | BR188: 1 | BX188: Y | BY188: 10 | BZ188: 49.5 | CA188: 49.5 | CB188: 39.5 | CE188: 4.95 | CF188: 49.5 | CG188: 49.5
A189: 2015-02-08 | B189: Pinnacle Sports | C189: Basketball - Greece | E189: Asian Handicap | F189: My own bets | H189: Panionis - AEK(+6.5) | K189: 20 | L189: 1.93 | N189: N | X189: 20 | Y189: 38.6 | Z189: 0 | AA189: -20 | BL189: =COUNT(L$11:L189) -> 176 | BM189: 2015-02-08 | BN189: 684.95 | BO189: 1.93 | BP189: 38.6 | BQ189: 0 | BR189: 1 | BX189: N | BY189: 20 | BZ189: 38.6 | CA189: 0 | CB189: -20 | CE189: 1.93 | CF189: 38.6 | CG189: 0
A190: 2015-02-08 | B190: Pinnacle Sports | C190: Basketball - Greece | E190: Winner | F190: My own bets | H190: Panionis - AEK 1 | K190: 30 | L190: 3.53 | N190: N | X190: 30 | Y190: 105.9 | Z190: 0 | AA190: -30 | BL190: =COUNT(L$11:L190) -> 177 | BM190: 2015-02-08 | BN190: 654.95 | BO190: 3.53 | BP190: 105.9 | BQ190: 0 | BR190: 1 | BX190: N | BY190: 30 | BZ190: 105.9 | CA190: 0 | CB190: -30 | CE190: 3.53 | CF190: 105.9 | CG190: 0
A191: 2015-02-08 | B191: Pinnacle Sports | C191: Basketball - Germany | E191: Asian Handicap | F191: My own bets | H191: Oldenburg - Ludwinsburg(+8.5) | K191: 50 | L191: 1.93 | N191: Y | X191: 50 | Y191: 96.5 | Z191: 96.5 | AA191: 46.5 | BL191: =COUNT(L$11:L191) -> 178 | BM191: 2015-02-08 | BN191: 701.45 | BO191: 1.93 | BP191: 96.5 | BQ191: 96.5 | BR191: 1 | BX191: Y | BY191: 50 | BZ191: 96.5 | CA191: 96.5 | CB191: 46.5 | CE191: 1.93 | CF191: 96.5 | CG191: 96.5
A192: 2015-02-08 | B192: Pinnacle Sports | C192: Basketball - Germany | E192: Winner | F192: My own bets | H192: Oldenburg - Ludwinsburg 2 | K192: 10 | L192: 4.85 | N192: Y | X192: 10 | Y192: 48.5 | Z192: 48.5 | AA192: 38.5 | BL192: =COUNT(L$11:L192) -> 179 | BM192: 2015-02-08 | BN192: 739.95 | BO192: 4.85 | BP192: 48.5 | BQ192: 48.5 | BR192: 1 | BX192: Y | BY192: 10 | BZ192: 48.5 | CA192: 48.5 | CB192: 38.5 | CE192: 4.85 | CF192: 48.5 | CG192: 48.5
A193: 2015-02-08 | B193: Pinnacle Sports | C193: Basketball - Turkey | E193: Winner | F193: My own bets | H193: Besitas - Gaziantep 2 | K193: 50 | L193: 3.1 | N193: Y | X193: 50 | Y193: 155 | Z193: 155 | AA193: 105 | BL193: =COUNT(L$11:L193) -> 180 | BM193: 2015-02-08 | BN193: 844.95 | BO193: 3.1 | BP193: 155 | BQ193: 155 | BR193: 1 | BX193: Y | BY193: 50 | BZ193: 155 | CA193: 155 | CB193: 105 | CE193: 3.1 | CF193: 155 | CG193: 155
A194: 2015-02-08 | B194: Pinnacle Sports | C194: Basketball - Turkey | E194: Winner | F194: My own bets | H194: Usak - Kolejir 2 | K194: 50 | L194: 2.36 | N194: N | X194: 50 | Y194: 118 | Z194: 0 | AA194: -50 | BL194: =COUNT(L$11:L194) -> 181 | BM194: 2015-02-08 | BN194: 794.95 | BO194: 2.36 | BP194: 118 | BQ194: 0 | BR194: 1 | BX194: N | BY194: 50 | BZ194: 118 | CA194: 0 | CB194: -50 | CE194: 2.36 | CF194: 118 | CG194: 0
A195: 2015-02-08 | B195: Pinnacle Sports | C195: Basketball - VTB | E195: Asian Handicap | F195: My own bets | H195: Lokomotiv Kuban - Unics(+7) | K195: 50 | L195: 1.93 | N195: Y | X195: 50 | Y195: 96.5 | Z195: 96.5 | AA195: 46.5 | BL195: =COUNT(L$11:L195) -> 182 | BM195: 2015-02-08 | BN195: 841.45 | BO195: 1.93 | BP195: 96.5 | BQ195: 96.5 | BR195: 1 | BX195: Y | BY195: 50 | BZ195: 96.5 | CA195: 96.5 | CB195: 46.5 | CE195: 1.93 | CF195: 96.5 | CG195: 96.5
A196: 2015-02-08 | B196: Pinnacle Sports | C196: Basketball - Serbia | E196: Winner | F196: My own bets | H196: Tamis - Konstanstin 1 | K196: 50 | L196: 2.22 | N196: Y | X196: 50 | Y196: 111 | Z196: 111 | AA196: 61 | BL196: =COUNT(L$11:L196) -> 183 | BM196: 2015-02-08 | BN196: 902.45 | BO196: 2.22 | BP196: 111 | BQ196: 111 | BR196: 1 | BX196: Y | BY196: 50 | BZ196: 111 | CA196: 111 | CB196: 61 | CE196: 2.22 | CF196: 111 | CG196: 111
A197: 2015-02-08 | B197: Pinnacle Sports | C197: Basketball - Spain | E197: Winner | F197: My own bets | H197: Rio Natura - Valencia 1 | K197: 50 | L197: 2.44 | N197: N | X197: 50 | Y197: 122 | Z197: 0 | AA197: -50 | BL197: =COUNT(L$11:L197) -> 184 | BM197: 2015-02-08 | BN197: 852.45 | BO197: 2.44 | BP197: 122 | BQ197: 0 | BR197: 1 | BX197: N | BY197: 50 | BZ197: 122 | CA197: 0 | CB197: -50 | CE197: 2.44 | CF197: 122 | CG197: 0
A198: 2015-02-08 | B198: Pinnacle Sports | C198: Football - France | E198: Winner | F198: My own bets | H198: Caen - Tolouse 1 | K198: 50 | L198: 2.44 | N198: Y | X198: 50 | Y198: 122 | Z198: 122 | AA198: 72 | BL198: =COUNT(L$11:L198) -> 185 | BM198: 2015-02-08 | BN198: 924.45 | BO198: 2.44 | BP198: 122 | BQ198: 122 | BR198: 1 | BX198: Y | BY198: 50 | BZ198: 122 | CA198: 122 | CB198: 72 | CE198: 2.44 | CF198: 122 | CG198: 122
A199: 2015-02-08 | B199: Pinnacle Sports | C199: Football - LaLiga | E199: Winner | F199: My own bets | H199: Levante - Malaga 2 | K199: 50 | L199: 2.34 | N199: N | X199: 50 | Y199: 117 | Z199: 0 | AA199: -50 | BL199: =COUNT(L$11:L199) -> 186 | BM199: 2015-02-08 | BN199: 874.45 | BO199: 2.34 | BP199: 117 | BQ199: 0 | BR199: 1 | BX199: N | BY199: 50 | BZ199: 117 | CA199: 0 | CB199: -50 | CE199: 2.34 | CF199: 117 | CG199: 0
A200: 2015-02-08 | B200: Pinnacle Sports | C200: Football - Friendlies | E200: Asian Handicap | F200: My own bets | H200: Romain - Bulgaria (+0.5) | K200: 50 | L200: 2.08 | N200: Y | X200: 50 | Y200: 104 | Z200: 104 | AA200: 54 | BL200: =COUNT(L$11:L200) -> 187 | BM200: 2015-02-08 | BN200: 928.45 | BO200: 2.08 | BP200: 104 | BQ200: 104 | BR200: 1 | BX200: Y | BY200: 50 | BZ200: 104 | CA200: 104 | CB200: 54 | CE200: 2.08 | CF200: 104 | CG200: 104
A201: 2015-02-08 | B201: Pinnacle Sports | C201: Football - Friendlies | E201: Winner | F201: My own bets | H201: Romain - Bulgaria 2 | K201: 20 | L201: 4.86 | N201: N | X201: 20 | Y201: 97.2 | Z201: 0 | AA201: -20 | BL201: =COUNT(L$11:L201) -> 188 | BM201: 2015-02-08 | BN201: 908.45 | BO201: 4.86 | BP201: 97.2 | BQ201: 0 | BR201: 1 | BX201: N | BY201: 20 | BZ201: 97.2 | CA201: 0 | CB201: -20 | CE201: 4.86 | CF201: 97.2 | CG201: 0
... 2049 more rows

Sheet Performance Summary
B1: Performance Summary
B3: Date filter: | C3: 2 | H3: Performance by Sport / Event | P3: Performance by Bet Type | X3: Performance by Tipper | AF3: =CONCATENATE("Performance by ",CUSTOM_NAME) -> Performance by My Variable | AN3: Performance by Bookmaker
B4: Date start: | C4: 1 | D4: 2 | E4: 4 | X4: Note: these stats use your odds & lines, not those quoted by the tipper.
B5: Date end: | C5: 31 | D5: 2 | E5: 4 | H5: Date filter: | I5: =IF(FILT_D=1,"All Dates",CONCATENATE(FILT_DS, " ",OFFSET($BA$11,FILT_MS,0)," ",OFFSET($AZ$11,FILT_YS,0)," to ",FILT_DE, " ",OFFSET($BA$11,FILT_ME,0)," ",OFFSET($AZ$11,FILT_YE,0))) -> 1 Feb 2015 to 31 Feb 2015 | P5: Date filter: | Q5: =IF(FILT_D=1,"All Dates",CONCATENATE(FILT_DS, " ",OFFSET($BA$11,FILT_MS,0)," ",OFFSET($AZ$11,FILT_YS,0)," to ",FILT_DE, " ",OFFSET($BA$11,FILT_ME,0)," ",OFFSET($AZ$11,FILT_YE,0))) -> 1 Feb 2015 to 31 Feb 2015 | X5: Date filter: | Y5: =IF(FILT_D=1,"All Dates",CONCATENATE(FILT_DS, " ",OFFSET($BA$11,FILT_MS,0)," ",OFFSET($AZ$11,FILT_YS,0)," to ",FILT_DE, " ",OFFSET($BA$11,FILT_ME,0)," ",OFFSET($AZ$11,FILT_YE,0))) -> 1 Feb 2015 to 31 Feb 2015 | AF5: Date filter: | AG5: =IF(FILT_D=1,"All Dates",CONCATENATE(FILT_DS, " ",OFFSET($BA$11,FILT_MS,0)," ",OFFSET($AZ$11,FILT_YS,0)," to ",FILT_DE, " ",OFFSET($BA$11,FILT_ME,0)," ",OFFSET($AZ$11,FILT_YE,0))) -> 1 Feb 2015 to 31 Feb 2015 | AN5: Date filter: | AO5: =IF(FILT_D=1,"All Dates",CONCATENATE(FILT_DS, " ",OFFSET($BA$11,FILT_MS,0)," ",OFFSET($AZ$11,FILT_YS,0)," to ",FILT_DE, " ",OFFSET($BA$11,FILT_ME,0)," ",OFFSET($AZ$11,FILT_YE,0))) -> 1 Feb 2015 to 31 Feb 2015 | AW5: =OFFSET(AV$10,FILT_S,0) -> All Sports/Events | AY5: s | AZ5: =SUM(I12:I310) -> 10015 | BA5: =SUM(J12:J310) -> 914.85
B6: Bet type filter: | C6: 1 | H6: Bet type filter: | I6: =OFFSET($AW$11,FILT_B-1,0) -> All Bet Types | P6: Bet type filter: | Q6: All Bet Types | X6: Bet type filter: | Y6: =OFFSET($AW$11,FILT_B-1,0) -> All Bet Types | AF6: Bet type filter: | AG6: =OFFSET($AW$11,FILT_B-1,0) -> All Bet Types | AN6: Bet type filter: | AO6: =OFFSET($AW$11,FILT_B-1,0) -> All Bet Types | AW6: =OFFSET(AW$10,FILT_B,0) -> All Bet Types | AY6: b | AZ6: =SUM(Q12:Q310) -> 10185 | BA6: =SUM(R12:R310) -> 934.85
B7: Tipper filter | C7: 1 | H7: Capper filter: | I7: =OFFSET($AX$11,FILT_T-1,0) -> All Tippers | P7: Capper filter: | Q7: =OFFSET($AX$11,FILT_T-1,0) -> All Tippers | X7: Capper filter: | Y7: All Tippers | AF7: Capper filter: | AG7: =OFFSET($AX$11,FILT_T-1,0) -> All Tippers | AN7: Capper filter: | AO7: =OFFSET($AX$11,FILT_T-1,0) -> All Tippers | AW7: =OFFSET(AX$10,FILT_T,0) -> All Tippers | AY7: c | AZ7: =SUM(Y12:Y310) -> 10185 | BA7: =SUM(Z12:Z310) -> 934.85
B8: Sports filter: | C8: 1 | H8: Sports filter: | I8: All Sports/Events | P8: Sports filter: | Q8: =OFFSET($AV$11,FILT_S-1,0) -> All Sports/Events | X8: Sports filter: | Y8: =OFFSET($AV$11,FILT_S-1,0) -> All Sports/Events | AF8: Sports filter: | AG8: =OFFSET($AV$11,FILT_S-1,0) -> All Sports/Events | AN8: Sports filter: | AO8: =OFFSET($AV$11,FILT_S-1,0) -> All Sports/Events | AW8: =OFFSET(AY$10,FILT_C,0) -> All Data | AY8: a | AZ8: =SUM(AO12:AO71) -> 10185 | BA8: =SUM(AP12:AP71) -> 934.85
B9: =CONCATENATE(CUSTOM_NAME," filter:") -> My Variable filter: | C9: 1 | H9: =CONCATENATE(CUSTOM_NAME," filter:") -> My Variable filter: | I9: =OFFSET($AY$11,FILT_C-1,0) -> All Data | P9: =CONCATENATE(CUSTOM_NAME," filter:") -> My Variable filter: | Q9: =OFFSET($AY$11,FILT_C-1,0) -> All Data | X9: =CONCATENATE(CUSTOM_NAME," filter:") -> My Variable filter: | Y9: =OFFSET($AY$11,FILT_C-1,0) -> All Data | AF9: =CONCATENATE(CUSTOM_NAME," filter:") -> My Variable filter: | AG9: All Data | AN9: =CONCATENATE(CUSTOM_NAME," filter:") -> My Variable filter: | AO9: =OFFSET($AY$11,FILT_C-1,0) -> All Data
AV10: Sports | AW10: Bet types | AX10: Tippers | AY10: Custom
B11: Betting Profit / Loss | H11: Sport / Event | I11: Wagers | J11: Net Profit | K11: Return | L11: Wins | M11: Bets* | N11: Win %* | P11: Bet Type | Q11: Wagers | R11: Net Profit | S11: Return | T11: Wins | U11: Bets* | V11: Win %* | X11: Tipper | Y11: Wagers | Z11: Net Profit | AA11: Return | AB11: Wins | AC11: Bets* | AD11: Win %* | AF11: Custom Filter | AG11: Wagers | AH11: Net Profit | AI11: Return | AJ11: Wins | AK11: Bets* | AL11: Win %* | AN11: Bookmaker | AO11: Wagers | AP11: Net Profit | AQ11: Return | AR11: Incl Bonus Credit | AS11: Wins | AT11: Bets* | AU11: Win %* | AV11: All Sports/Events | AW11: All Bet Types | AX11: All Tippers | AY11: All Data | AZ11: All Years | BA11: All Months | BB11: All Days
H12: =IF(AND(Settings!G6<>"",Settings!G6<>"--"),Settings!G6,"") -> Basketball - VTB | I12: =IF(H12<>"", IF(AND(FILT_D=1,FILT_T=1,FILT_B=1,FILT_C=1),SUMIFS(AT_RISK,SPORT,H12,WIN,"<>P"), IF(AND(FILT_D>1,FILT_T=1,FILT_B=1,FILT_C=1),SUMIFS(AT_RISK,SPORT,H12,WIN,"<>P",BET_DATE,">="&DATE(OFFSET(AZ$11,FILT_YS,0),FILT_MS,FILT_DS),BET_DATE,"<="&DATE(OFFSET(AZ$11,FILT_YE,0),FILT_ME,FILT_DE)), IF(AND(FILT_D=1,FILT_T>1,FILT_B=1,FILT_C=1),SUMIFS(AT_RISK,SPORT,H12,WIN,"<>P",CAPPER,OFFSET(AX$10,FILT_T,0)), IF(AND(FILT_D=1,FILT_T=1,FILT_B>1,FILT_C=1),SUMIFS(AT_RISK,SPORT,H12,WIN,"<>P",BET_TYPE,OFFSET(AW$10,FILT_B,0)), IF(AND(FILT_D=1,FILT_T=1,FILT_B=1,FILT_C>1),SUMIFS(AT_RISK,SPORT,H12,WIN,"<>P",CUSTOM,OFFSET(AY$10,FILT_C,0)), IF(AND(FILT_D>1,FILT_T>1,FILT_B=1,FILT_C=1),SUMIFS(AT_RISK,SPORT,H12,WIN,"<>P",BET_DATE,">="&DATE(OFFSET(AZ$11,FILT_YS,0),FILT_MS,FILT_DS),BET_DATE,"<="&DATE(OFFSET(AZ$11,FILT_YE,0),FILT_ME,FILT_DE),CAPPER,OFFSET(AX$10,FILT_T,0)), IF(AND(FILT_D>1,FILT_T=1,FILT_B>1,FILT_C=1),SUMIFS(AT_RISK,SPORT,H12,WIN,"<>P",BET_DATE,">="&DATE(OFFSET(AZ$11,FILT_YS,0),FILT_MS,FILT_DS),BET_DATE,"<="&DATE(OFFSET(AZ$11,FILT_YE,0),FILT_ME,FILT_DE),BET_TYPE,OFFSET(AW$10,FILT_B,0)), IF(AND(FILT_D>1,FILT_T=1,FILT_B=1,FILT_C>1),SUMIFS(AT_RISK,SPORT,H12,WIN,"<>P",BET_DATE,">="&DATE(OFFSET(AZ$11,FILT_YS,0),FILT_MS,FILT_DS),BET_DATE,"<="&DATE(OFFSET(AZ$11,FILT_YE,0),FILT_ME,FILT_DE),CUSTOM,OFFSET(AY$10,FILT_C,0)), IF(AND(FILT_D=1,FILT_T>1,FILT_B>1,FILT_C=1),SUMIFS(AT_RISK,SPORT,H12,WIN,"<>P",CAPPER,OFFSET(AX$10,FILT_T,0),BET_TYPE,OFFSET(AW$10,FILT_B,0)), IF(AND(FILT_D=1,FILT_T>1,FILT_B=1,FILT_C>1),SUMIFS(AT_RISK,SPORT,H12,WIN,"<>P",CAPPER,OFFSET(AX$10,FILT_T,0),CUSTOM,OFFSET(AY$10,FILT_C,0)), IF(AND(FILT_D=1,FILT_T=1,FILT_B>1,FILT_C>1),SUMIFS(AT_RISK,SPORT,H12,WIN,"<>P",BET_TYPE,OFFSET(AW$10,FILT_B,0),CUSTOM,OFFSET(AY$10,FILT_C,0)), IF(AND(FILT_D>1,FILT_T>1,FILT_B>1,FILT_C=1),SUMIFS(AT_RISK,SPORT,H12,WIN,"<>P",BET_DATE,">="&DATE(OFFSET(AZ$11,FILT_YS,0),FILT_MS,FILT_DS),BET_DATE,"<="&DATE(OFFSET(AZ$11,FILT_YE,0),FILT_ME,FILT_DE),CAPPER,OFFSET(AX$10,FILT_T,0),BET_TYPE,OFFSET(AW$10,FILT_B,0)), IF(AND(FILT_D=1,FILT_T>1,FILT_B>1,FILT_C>1),SUMIFS(AT_RISK,SPORT,H12,WIN,"<>P",CAPPER,OFFSET(AX$10,FILT_T,0),BET_TYPE,OFFSET(AW$10,FILT_B,0),CUSTOM,OFFSET(AY$10,FILT_C,0)), IF(AND(FILT_D>1,FILT_T=1,FILT_B>1,FILT_C>1),SUMIFS(AT_RISK,SPORT,H12,WIN,"<>P",BET_DATE,">="&DATE(OFFSET(AZ$11,FILT_YS,0),FILT_MS,FILT_DS),BET_DATE,"<="&DATE(OFFSET(AZ$11,FILT_YE,0),FILT_ME,FILT_DE),BET_TYPE,OFFSET(AW$10,FILT_B,0),CUSTOM,OFFSET(AY$10,FILT_C,0)), IF(AND(FILT_D>1,FILT_T>1,FILT_B=1,FILT_C>1),SUMIFS(AT_RISK,SPORT,H12,WIN,"<>P",BET_DATE,">="&DATE(OFFSET(AZ$11,FILT_YS,0),FILT_MS,FILT_DS),BET_DATE,"<="&DATE(OFFSET(AZ$11,FILT_YE,0),FILT_ME,FILT_DE),CAPPER,OFFSET(AX$10,FILT_T,0),CUSTOM,OFFSET(AY$10,FILT_C,0)), IF(AND(FILT_D>1,FILT_T>1,FILT_B>1,FILT_C>1),SUMIFS(AT_RISK,SPORT,H12,WIN,"<>P",BET_DATE,">="&DATE(OFFSET(AZ$11,FILT_YS,0),FILT_MS,FILT_DS),BET_DATE,"<="&DATE(OFFSET(AZ$11,FILT_YE,0),FILT_ME,FILT_DE),CAPPER,OFFSET(AX$10,FILT_T,0),BET_TYPE,OFFSET(AW$10,FILT_B,0),CUSTOM,OFFSET(AY$10,FILT_C,0)), "")))))))))))))))), "") -> 530 | J12: =IF(H12<>"", IF(AND(FILT_D=1,FILT_T=1,FILT_B=1,FILT_C=1),SUMIFS(PROFIT,SPORT,H12,WIN,"<>P"), IF(AND(FILT_D>1,FILT_T=1,FILT_B=1,FILT_C=1),SUMIFS(PROFIT,SPORT,H12,WIN,"<>P",BET_DATE,">="&DATE(OFFSET(AZ$11,FILT_YS,0),FILT_MS,FILT_DS),BET_DATE,"<="&DATE(OFFSET(AZ$11,FILT_YE,0),FILT_ME,FILT_DE)), IF(AND(FILT_D=1,FILT_T>1,FILT_B=1,FILT_C=1),SUMIFS(PROFIT,SPORT,H12,WIN,"<>P",CAPPER,OFFSET(AX$10,FILT_T,0)), IF(AND(FILT_D=1,FILT_T=1,FILT_B>1,FILT_C=1),SUMIFS(PROFIT,SPORT,H12,WIN,"<>P",BET_TYPE,OFFSET(AW$10,FILT_B,0)), IF(AND(FILT_D=1,FILT_T=1,FILT_B=1,FILT_C>1),SUMIFS(PROFIT,SPORT,H12,WIN,"<>P",CUSTOM,OFFSET(AY$10,FILT_C,0)), IF(AND(FILT_D>1,FILT_T>1,FILT_B=1,FILT_C=1),SUMIFS(PROFIT,SPORT,H12,WIN,"<>P",BET_DATE,">="&DATE(OFFSET(AZ$11,FILT_YS,0),FILT_MS,FILT_DS),BET_DATE,"<="&DATE(OFFSET(AZ$11,FILT_YE,0),FILT_ME,FILT_DE),CAPPER,OFFSET(AX$10,FILT_T,0)), IF(AND(FILT_D>1,FILT_T=1,FILT_B>1,FILT_C=1),SUMIFS(PROFIT,SPORT,H12,WIN,"<>P",BET_DATE,">="&DATE(OFFSET(AZ$11,FILT_YS,0),FILT_MS,FILT_DS),BET_DATE,"<="&DATE(OFFSET(AZ$11,FILT_YE,0),FILT_ME,FILT_DE),BET_TYPE,OFFSET(AW$10,FILT_B,0)), IF(AND(FILT_D>1,FILT_T=1,FILT_B=1,FILT_C>1),SUMIFS(PROFIT,SPORT,H12,WIN,"<>P",BET_DATE,">="&DATE(OFFSET(AZ$11,FILT_YS,0),FILT_MS,FILT_DS),BET_DATE,"<="&DATE(OFFSET(AZ$11,FILT_YE,0),FILT_ME,FILT_DE),CUSTOM,OFFSET(AY$10,FILT_C,0)), IF(AND(FILT_D=1,FILT_T>1,FILT_B>1,FILT_C=1),SUMIFS(PROFIT,SPORT,H12,WIN,"<>P",CAPPER,OFFSET(AX$10,FILT_T,0),BET_TYPE,OFFSET(AW$10,FILT_B,0)), IF(AND(FILT_D=1,FILT_T>1,FILT_B=1,FILT_C>1),SUMIFS(PROFIT,SPORT,H12,WIN,"<>P",CAPPER,OFFSET(AX$10,FILT_T,0),CUSTOM,OFFSET(AY$10,FILT_C,0)), IF(AND(FILT_D=1,FILT_T=1,FILT_B>1,FILT_C>1),SUMIFS(PROFIT,SPORT,H12,WIN,"<>P",BET_TYPE,OFFSET(AW$10,FILT_B,0),CUSTOM,OFFSET(AY$10,FILT_C,0)), IF(AND(FILT_D>1,FILT_T>1,FILT_B>1,FILT_C=1),SUMIFS(PROFIT,SPORT,H12,WIN,"<>P",BET_DATE,">="&DATE(OFFSET(AZ$11,FILT_YS,0),FILT_MS,FILT_DS),BET_DATE,"<="&DATE(OFFSET(AZ$11,FILT_YE,0),FILT_ME,FILT_DE),CAPPER,OFFSET(AX$10,FILT_T,0),BET_TYPE,OFFSET(AW$10,FILT_B,0)), IF(AND(FILT_D=1,FILT_T>1,FILT_B>1,FILT_C>1),SUMIFS(PROFIT,SPORT,H12,WIN,"<>P",CAPPER,OFFSET(AX$10,FILT_T,0),BET_TYPE,OFFSET(AW$10,FILT_B,0),CUSTOM,OFFSET(AY$10,FILT_C,0)), IF(AND(FILT_D>1,FILT_T=1,FILT_B>1,FILT_C>1),SUMIFS(PROFIT,SPORT,H12,WIN,"<>P",BET_DATE,">="&DATE(OFFSET(AZ$11,FILT_YS,0),FILT_MS,FILT_DS),BET_DATE,"<="&DATE(OFFSET(AZ$11,FILT_YE,0),FILT_ME,FILT_DE),BET_TYPE,OFFSET(AW$10,FILT_B,0),CUSTOM,OFFSET(AY$10,FILT_C,0)), IF(AND(FILT_D>1,FILT_T>1,FILT_B=1,FILT_C>1),SUMIFS(PROFIT,SPORT,H12,WIN,"<>P",BET_DATE,">="&DATE(OFFSET(AZ$11,FILT_YS,0),FILT_MS,FILT_DS),BET_DATE,"<="&DATE(OFFSET(AZ$11,FILT_YE,0),FILT_ME,FILT_DE),CAPPER,OFFSET(AX$10,FILT_T,0),CUSTOM,OFFSET(AY$10,FILT_C,0)), IF(AND(FILT_D>1,FILT_T>1,FILT_B>1,FILT_C>1),SUMIFS(PROFIT,SPORT,H12,WIN,"<>P",BET_DATE,">="&DATE(OFFSET(AZ$11,FILT_YS,0),FILT_MS,FILT_DS),BET_DATE,"<="&DATE(OFFSET(AZ$11,FILT_YE,0),FILT_ME,FILT_DE),CAPPER,OFFSET(AX$10,FILT_T,0),BET_TYPE,OFFSET(AW$10,FILT_B,0),CUSTOM,OFFSET(AY$10,FILT_C,0)), "")))))))))))))))), "") -> 355.2 | K12: =IF(AND(I12<>"",I12>0),J12/I12,"") -> 0.6701886792 | L12: =IF(H12<>"", IF(AND(FILT_D=1,FILT_T=1,FILT_B=1,FILT_C=1),COUNTIFS(SPORT,H12,WIN,"Y"), IF(AND(FILT_D>1,FILT_T=1,FILT_B=1,FILT_C=1),COUNTIFS(SPORT,H12,WIN,"Y",BET_DATE,">="&DATE(OFFSET(AZ$11,FILT_YS,0),FILT_MS,FILT_DS),BET_DATE,"<="&DATE(OFFSET(AZ$11,FILT_YE,0),FILT_ME,FILT_DE)), IF(AND(FILT_D=1,FILT_T>1,FILT_B=1,FILT_C=1),COUNTIFS(SPORT,H12,WIN,"Y",CAPPER,OFFSET(AX$10,FILT_T,0)), IF(AND(FILT_D=1,FILT_T=1,FILT_B>1,FILT_C=1),COUNTIFS(SPORT,H12,WIN,"Y",BET_TYPE,OFFSET(AW$10,FILT_B,0)), IF(AND(FILT_D=1,FILT_T=1,FILT_B=1,FILT_C>1),COUNTIFS(SPORT,H12,WIN,"Y",CUSTOM,OFFSET(AY$10,FILT_C,0)), IF(AND(FILT_D>1,FILT_T>1,FILT_B=1,FILT_C=1),COUNTIFS(SPORT,H12,WIN,"Y",BET_DATE,">="&DATE(OFFSET(AZ$11,FILT_YS,0),FILT_MS,FILT_DS),BET_DATE,"<="&DATE(OFFSET(AZ$11,FILT_YE,0),FILT_ME,FILT_DE),CAPPER,OFFSET(AX$10,FILT_T,0)), IF(AND(FILT_D>1,FILT_T=1,FILT_B>1,FILT_C=1),COUNTIFS(SPORT,H12,WIN,"Y",BET_DATE,">="&DATE(OFFSET(AZ$11,FILT_YS,0),FILT_MS,FILT_DS),BET_DATE,"<="&DATE(OFFSET(AZ$11,FILT_YE,0),FILT_ME,FILT_DE),BET_TYPE,OFFSET(AW$10,FILT_B,0)), IF(AND(FILT_D>1,FILT_T=1,FILT_B=1,FILT_C>1),COUNTIFS(SPORT,H12,WIN,"Y",BET_DATE,">="&DATE(OFFSET(AZ$11,FILT_YS,0),FILT_MS,FILT_DS),BET_DATE,"<="&DATE(OFFSET(AZ$11,FILT_YE,0),FILT_ME,FILT_DE),CUSTOM,OFFSET(AY$10,FILT_C,0)), IF(AND(FILT_D=1,FILT_T>1,FILT_B>1,FILT_C=1),COUNTIFS(SPORT,H12,WIN,"Y",CAPPER,OFFSET(AX$10,FILT_T,0),BET_TYPE,OFFSET(AW$10,FILT_B,0)), IF(AND(FILT_D=1,FILT_T>1,FILT_B=1,FILT_C>1),COUNTIFS(SPORT,H12,WIN,"Y",CAPPER,OFFSET(AX$10,FILT_T,0),CUSTOM,OFFSET(AY$10,FILT_C,0)), IF(AND(FILT_D=1,FILT_T=1,FILT_B>1,FILT_C>1),COUNTIFS(SPORT,H12,WIN,"Y",BET_TYPE,OFFSET(AW$10,FILT_B,0),CUSTOM,OFFSET(AY$10,FILT_C,0)), IF(AND(FILT_D>1,FILT_T>1,FILT_B>1,FILT_C=1),COUNTIFS(SPORT,H12,WIN,"Y",BET_DATE,">="&DATE(OFFSET(AZ$11,FILT_YS,0),FILT_MS,FILT_DS),BET_DATE,"<="&DATE(OFFSET(AZ$11,FILT_YE,0),FILT_ME,FILT_DE),CAPPER,OFFSET(AX$10,FILT_T,0),BET_TYPE,OFFSET(AW$10,FILT_B,0)), IF(AND(FILT_D=1,FILT_T>1,FILT_B>1,FILT_C>1),COUNTIFS(SPORT,H12,WIN,"Y",CAPPER,OFFSET(AX$10,FILT_T,0),BET_TYPE,OFFSET(AW$10,FILT_B,0),CUSTOM,OFFSET(AY$10,FILT_C,0)), IF(AND(FILT_D>1,FILT_T=1,FILT_B>1,FILT_C>1),COUNTIFS(SPORT,H12,WIN,"Y",BET_DATE,">="&DATE(OFFSET(AZ$11,FILT_YS,0),FILT_MS,FILT_DS),BET_DATE,"<="&DATE(OFFSET(AZ$11,FILT_YE,0),FILT_ME,FILT_DE),BET_TYPE,OFFSET(AW$10,FILT_B,0),CUSTOM,OFFSET(AY$10,FILT_C,0)), IF(AND(FILT_D>1,FILT_T>1,FILT_B=1,FILT_C>1),COUNTIFS(SPORT,H12,WIN,"Y",BET_DATE,">="&DATE(OFFSET(AZ$11,FILT_YS,0),FILT_MS,FILT_DS),BET_DATE,"<="&DATE(OFFSET(AZ$11,FILT_YE,0),FILT_ME,FILT_DE),CAPPER,OFFSET(AX$10,FILT_T,0),CUSTOM,OFFSET(AY$10,FILT_C,0)), IF(AND(FILT_D>1,FILT_T>1,FILT_B>1,FILT_C>1),COUNTIFS(SPORT,H12,WIN,"Y",BET_DATE,">="&DATE(OFFSET(AZ$11,FILT_YS,0),FILT_MS,FILT_DS),BET_DATE,"<="&DATE(OFFSET(AZ$11,FILT_YE,0),FILT_ME,FILT_DE),CAPPER,OFFSET(AX$10,FILT_T,0),BET_TYPE,OFFSET(AW$10,FILT_B,0),CUSTOM,OFFSET(AY$10,FILT_C,0)), "")))))))))))))))), "") -> 9 | M12: =IF(H12<>"", IF(AND(FILT_D=1,FILT_T=1,FILT_B=1,FILT_C=1),COUNTIFS(SPORT,H12,WIN,"<>P",WIN,"<>R",WIN,"<>PU"), IF(AND(FILT_D>1,FILT_T=1,FILT_B=1,FILT_C=1),COUNTIFS(SPORT,H12,WIN,"<>P",WIN,"<>R",WIN,"<>PU",BET_DATE,">="&DATE(OFFSET(AZ$11,FILT_YS,0),FILT_MS,FILT_DS),BET_DATE,"<="&DATE(OFFSET(AZ$11,FILT_YE,0),FILT_ME,FILT_DE)), IF(AND(FILT_D=1,FILT_T>1,FILT_B=1,FILT_C=1),COUNTIFS(SPORT,H12,WIN,"<>P",WIN,"<>R",WIN,"<>PU",CAPPER,OFFSET(AX$10,FILT_T,0)), IF(AND(FILT_D=1,FILT_T=1,FILT_B>1,FILT_C=1),COUNTIFS(SPORT,H12,WIN,"<>P",WIN,"<>R",WIN,"<>PU",BET_TYPE,OFFSET(AW$10,FILT_B,0)), IF(AND(FILT_D=1,FILT_T=1,FILT_B=1,FILT_C>1),COUNTIFS(SPORT,H12,WIN,"<>P",WIN,"<>R",WIN,"<>PU",CUSTOM,OFFSET(AY$10,FILT_C,0)), IF(AND(FILT_D>1,FILT_T>1,FILT_B=1,FILT_C=1),COUNTIFS(SPORT,H12,WIN,"<>P",WIN,"<>R",WIN,"<>PU",BET_DATE,">="&DATE(OFFSET(AZ$11,FILT_YS,0),FILT_MS,FILT_DS),BET_DATE,"<="&DATE(OFFSET(AZ$11,FILT_YE,0),FILT_ME,FILT_DE),CAPPER,OFFSET(AX$10,FILT_T,0)), IF(AND(FILT_D>1,FILT_T=1,FILT_B>1,FILT_C=1),COUNTIFS(SPORT,H12,WIN,"<>P",WIN,"<>R",WIN,"<>PU",BET_DATE,">="&DATE(OFFSET(AZ$11,FILT_YS,0),FILT_MS,FILT_DS),BET_DATE,"<="&DATE(OFFSET(AZ$11,FILT_YE,0),FILT_ME,FILT_DE),BET_TYPE,OFFSET(AW$10,FILT_B,0)), IF(AND(FILT_D>1,FILT_T=1,FILT_B=1,FILT_C>1),COUNTIFS(SPORT,H12,WIN,"<>P",WIN,"<>R",WIN,"<>PU",BET_DATE,">="&DATE(OFFSET(AZ$11,FILT_YS,0),FILT_MS,FILT_DS),BET_DATE,"<="&DATE(OFFSET(AZ$11,FILT_YE,0),FILT_ME,FILT_DE),CUSTOM,OFFSET(AY$10,FILT_C,0)), IF(AND(FILT_D=1,FILT_T>1,FILT_B>1,FILT_C=1),COUNTIFS(SPORT,H12,WIN,"<>P",WIN,"<>R",WIN,"<>PU",CAPPER,OFFSET(AX$10,FILT_T,0),BET_TYPE,OFFSET(AW$10,FILT_B,0)), IF(AND(FILT_D=1,FILT_T>1,FILT_B=1,FILT_C>1),COUNTIFS(SPORT,H12,WIN,"<>P",WIN,"<>R",WIN,"<>PU",CAPPER,OFFSET(AX$10,FILT_T,0),CUSTOM,OFFSET(AY$10,FILT_C,0)), IF(AND(FILT_D=1,FILT_T=1,FILT_B>1,FILT_C>1),COUNTIFS(SPORT,H12,WIN,"<>P",WIN,"<>R",WIN,"<>PU",BET_TYPE,OFFSET(AW$10,FILT_B,0),CUSTOM,OFFSET(AY$10,FILT_C,0)), IF(AND(FILT_D>1,FILT_T>1,FILT_B>1,FILT_C=1),COUNTIFS(SPORT,H12,WIN,"<>P",WIN,"<>R",WIN,"<>PU",BET_DATE,">="&DATE(OFFSET(AZ$11,FILT_YS,0),FILT_MS,FILT_DS),BET_DATE,"<="&DATE(OFFSET(AZ$11,FILT_YE,0),FILT_ME,FILT_DE),CAPPER,OFFSET(AX$10,FILT_T,0),BET_TYPE,OFFSET(AW$10,FILT_B,0)), IF(AND(FILT_D=1,FILT_T>1,FILT_B>1,FILT_C>1),COUNTIFS(SPORT,H12,WIN,"<>P",WIN,"<>R",WIN,"<>PU",CAPPER,OFFSET(AX$10,FILT_T,0),BET_TYPE,OFFSET(AW$10,FILT_B,0),CUSTOM,OFFSET(AY$10,FILT_C,0)), IF(AND(FILT_D>1,FILT_T=1,FILT_B>1,FILT_C>1),COUNTIFS(SPORT,H12,WIN,"<>P",WIN,"<>R",WIN,"<>PU",BET_DATE,">="&DATE(OFFSET(AZ$11,FILT_YS,0),FILT_MS,FILT_DS),BET_DATE,"<="&DATE(OFFSET(AZ$11,FILT_YE,0),FILT_ME,FILT_DE),BET_TYPE,OFFSET(AW$10,FILT_B,0),CUSTOM,OFFSET(AY$10,FILT_C,0)), IF(AND(FILT_D>1,FILT_T>1,FILT_B=1,FILT_C>1),COUNTIFS(SPORT,H12,WIN,"<>P",WIN,"<>R",WIN,"<>PU",BET_DATE,">="&DATE(OFFSET(AZ$11,FILT_YS,0),FILT_MS,FILT_DS),BET_DATE,"<="&DATE(OFFSET(AZ$11,FILT_YE,0),FILT_ME,FILT_DE),CAPPER,OFFSET(AX$10,FILT_T,0),CUSTOM,OFFSET(AY$10,FILT_C,0)), IF(AND(FILT_D>1,FILT_T>1,FILT_B>1,FILT_C>1),COUNTIFS(SPORT,H12,WIN,"<>P",WIN,"<>R",WIN,"<>PU",BET_DATE,">="&DATE(OFFSET(AZ$11,FILT_YS,0),FILT_MS,FILT_DS),BET_DATE,"<="&DATE(OFFSET(AZ$11,FILT_YE,0),FILT_ME,FILT_DE),CAPPER,OFFSET(AX$10,FILT_T,0),BET_TYPE,OFFSET(AW$10,FILT_B,0),CUSTOM,OFFSET(AY$10,FILT_C,0)), "")))))))))))))))), "") -> 13 | N12: =IF(AND(M12<>"",M12>0),L12/M12,"") -> 0.6923076923 | P12: =IF(AND(Settings!I6<>"",Settings!I6<>"--"),Settings!I6,"") -> Winner | Q12: =IF(P12<>"", IF(AND(FILT_D=1,FILT_T=1,FILT_S=1,FILT_C=1),SUMIFS(AT_RISK,BET_TYPE,P12,WIN,"<>P"), IF(AND(FILT_D>1,FILT_T=1,FILT_S=1,FILT_C=1),SUMIFS(AT_RISK,BET_TYPE,P12,WIN,"<>P",BET_DATE,">="&DATE(OFFSET(AZ$11,FILT_YS,0),FILT_MS,FILT_DS),BET_DATE,"<="&DATE(OFFSET(AZ$11,FILT_YE,0),FILT_ME,FILT_DE)), IF(AND(FILT_D=1,FILT_T>1,FILT_S=1,FILT_C=1),SUMIFS(AT_RISK,BET_TYPE,P12,WIN,"<>P",CAPPER,OFFSET(AX$10,FILT_T,0)), IF(AND(FILT_D=1,FILT_T=1,FILT_S>1,FILT_C=1),SUMIFS(AT_RISK,BET_TYPE,P12,WIN,"<>P",SPORT,OFFSET(AV$10,FILT_S,0)), IF(AND(FILT_D=1,FILT_T=1,FILT_S=1,FILT_C>1),SUMIFS(AT_RISK,BET_TYPE,P12,WIN,"<>P",CUSTOM,OFFSET(AY$10,FILT_C,0)), IF(AND(FILT_D>1,FILT_T>1,FILT_S=1,FILT_C=1),SUMIFS(AT_RISK,BET_TYPE,P12,WIN,"<>P",BET_DATE,">="&DATE(OFFSET(AZ$11,FILT_YS,0),FILT_MS,FILT_DS),BET_DATE,"<="&DATE(OFFSET(AZ$11,FILT_YE,0),FILT_ME,FILT_DE),CAPPER,OFFSET(AX$10,FILT_T,0)), IF(AND(FILT_D>1,FILT_T=1,FILT_S>1,FILT_C=1),SUMIFS(AT_RISK,BET_TYPE,P12,WIN,"<>P",BET_DATE,">="&DATE(OFFSET(AZ$11,FILT_YS,0),FILT_MS,FILT_DS),BET_DATE,"<="&DATE(OFFSET(AZ$11,FILT_YE,0),FILT_ME,FILT_DE),SPORT,OFFSET(AV$10,FILT_S,0)), IF(AND(FILT_D>1,FILT_T=1,FILT_S=1,FILT_C>1),SUMIFS(AT_RISK,BET_TYPE,P12,WIN,"<>P",BET_DATE,">="&DATE(OFFSET(AZ$11,FILT_YS,0),FILT_MS,FILT_DS),BET_DATE,"<="&DATE(OFFSET(AZ$11,FILT_YE,0),FILT_ME,FILT_DE),CUSTOM,OFFSET(AY$10,FILT_C,0)), IF(AND(FILT_D=1,FILT_T>1,FILT_S>1,FILT_C=1),SUMIFS(AT_RISK,BET_TYPE,P12,WIN,"<>P",CAPPER,OFFSET(AX$10,FILT_T,0),SPORT,OFFSET(AV$10,FILT_S,0)), IF(AND(FILT_D=1,FILT_T>1,FILT_S=1,FILT_C>1),SUMIFS(AT_RISK,BET_TYPE,P12,WIN,"<>P",CAPPER,OFFSET(AX$10,FILT_T,0),CUSTOM,OFFSET(AY$10,FILT_C,0)), IF(AND(FILT_D=1,FILT_T=1,FILT_S>1,FILT_C>1),SUMIFS(AT_RISK,BET_TYPE,P12,WIN,"<>P",SPORT,OFFSET(AV$10,FILT_S,0),CUSTOM,OFFSET(AY$10,FILT_C,0)), IF(AND(FILT_D>1,FILT_T>1,FILT_S>1,FILT_C=1),SUMIFS(AT_RISK,BET_TYPE,P12,WIN,"<>P",BET_DATE,">="&DATE(OFFSET(AZ$11,FILT_YS,0),FILT_MS,FILT_DS),BET_DATE,"<="&DATE(OFFSET(AZ$11,FILT_YE,0),FILT_ME,FILT_DE),CAPPER,OFFSET(AX$10,FILT_T,0),SPORT,OFFSET(AV$10,FILT_S,0)), IF(AND(FILT_D=1,FILT_T>1,FILT_S>1,FILT_C>1),SUMIFS(AT_RISK,BET_TYPE,P12,WIN,"<>P",CAPPER,OFFSET(AX$10,FILT_T,0),SPORT,OFFSET(AV$10,FILT_S,0),CUSTOM,OFFSET(AY$10,FILT_C,0)), IF(AND(FILT_D>1,FILT_T=1,FILT_S>1,FILT_C>1),SUMIFS(AT_RISK,BET_TYPE,P12,WIN,"<>P",BET_DATE,">="&DATE(OFFSET(AZ$11,FILT_YS,0),FILT_MS,FILT_DS),BET_DATE,"<="&DATE(OFFSET(AZ$11,FILT_YE,0),FILT_ME,FILT_DE),SPORT,OFFSET(AV$10,FILT_S,0),CUSTOM,OFFSET(AY$10,FILT_C,0)), IF(AND(FILT_D>1,FILT_T>1,FILT_S=1,FILT_C>1),SUMIFS(AT_RISK,BET_TYPE,P12,WIN,"<>P",BET_DATE,">="&DATE(OFFSET(AZ$11,FILT_YS,0),FILT_MS,FILT_DS),BET_DATE,"<="&DATE(OFFSET(AZ$11,FILT_YE,0),FILT_ME,FILT_DE),CAPPER,OFFSET(AX$10,FILT_T,0),CUSTOM,OFFSET(AY$10,FILT_C,0)), IF(AND(FILT_D>1,FILT_T>1,FILT_S>1,FILT_C>1),SUMIFS(AT_RISK,BET_TYPE,P12,WIN,"<>P",BET_DATE,">="&DATE(OFFSET(AZ$11,FILT_YS,0),FILT_MS,FILT_DS),BET_DATE,"<="&DATE(OFFSET(AZ$11,FILT_YE,0),FILT_ME,FILT_DE),CAPPER,OFFSET(AX$10,FILT_T,0),SPORT,OFFSET(AV$10,FILT_S,0),CUSTOM,OFFSET(AY$10,FILT_C,0)), "")))))))))))))))), "") -> 4885 | R12: =IF(P12<>"", IF(AND(FILT_D=1,FILT_T=1,FILT_S=1,FILT_C=1),SUMIFS(PROFIT,BET_TYPE,P12,WIN,"<>P"), IF(AND(FILT_D>1,FILT_T=1,FILT_S=1,FILT_C=1),SUMIFS(PROFIT,BET_TYPE,P12,WIN,"<>P",BET_DATE,">="&DATE(OFFSET(AZ$11,FILT_YS,0),FILT_MS,FILT_DS),BET_DATE,"<="&DATE(OFFSET(AZ$11,FILT_YE,0),FILT_ME,FILT_DE)), IF(AND(FILT_D=1,FILT_T>1,FILT_S=1,FILT_C=1),SUMIFS(PROFIT,BET_TYPE,P12,WIN,"<>P",CAPPER,OFFSET(AX$10,FILT_T,0)), IF(AND(FILT_D=1,FILT_T=1,FILT_S>1,FILT_C=1),SUMIFS(PROFIT,BET_TYPE,P12,WIN,"<>P",SPORT,OFFSET(AV$10,FILT_S,0)), IF(AND(FILT_D=1,FILT_T=1,FILT_S=1,FILT_C>1),SUMIFS(PROFIT,BET_TYPE,P12,WIN,"<>P",CUSTOM,OFFSET(AY$10,FILT_C,0)), IF(AND(FILT_D>1,FILT_T>1,FILT_S=1,FILT_C=1),SUMIFS(PROFIT,BET_TYPE,P12,WIN,"<>P",BET_DATE,">="&DATE(OFFSET(AZ$11,FILT_YS,0),FILT_MS,FILT_DS),BET_DATE,"<="&DATE(OFFSET(AZ$11,FILT_YE,0),FILT_ME,FILT_DE),CAPPER,OFFSET(AX$10,FILT_T,0)), IF(AND(FILT_D>1,FILT_T=1,FILT_S>1,FILT_C=1),SUMIFS(PROFIT,BET_TYPE,P12,WIN,"<>P",BET_DATE,">="&DATE(OFFSET(AZ$11,FILT_YS,0),FILT_MS,FILT_DS),BET_DATE,"<="&DATE(OFFSET(AZ$11,FILT_YE,0),FILT_ME,FILT_DE),SPORT,OFFSET(AV$10,FILT_S,0)), IF(AND(FILT_D>1,FILT_T=1,FILT_S=1,FILT_C>1),SUMIFS(PROFIT,BET_TYPE,P12,WIN,"<>P",BET_DATE,">="&DATE(OFFSET(AZ$11,FILT_YS,0),FILT_MS,FILT_DS),BET_DATE,"<="&DATE(OFFSET(AZ$11,FILT_YE,0),FILT_ME,FILT_DE),CUSTOM,OFFSET(AY$10,FILT_C,0)), IF(AND(FILT_D=1,FILT_T>1,FILT_S>1,FILT_C=1),SUMIFS(PROFIT,BET_TYPE,P12,WIN,"<>P",CAPPER,OFFSET(AX$10,FILT_T,0),SPORT,OFFSET(AV$10,FILT_S,0)), IF(AND(FILT_D=1,FILT_T>1,FILT_S=1,FILT_C>1),SUMIFS(PROFIT,BET_TYPE,P12,WIN,"<>P",CAPPER,OFFSET(AX$10,FILT_T,0),CUSTOM,OFFSET(AY$10,FILT_C,0)), IF(AND(FILT_D=1,FILT_T=1,FILT_S>1,FILT_C>1),SUMIFS(PROFIT,BET_TYPE,P12,WIN,"<>P",SPORT,OFFSET(AV$10,FILT_S,0),CUSTOM,OFFSET(AY$10,FILT_C,0)), IF(AND(FILT_D>1,FILT_T>1,FILT_S>1,FILT_C=1),SUMIFS(PROFIT,BET_TYPE,P12,WIN,"<>P",BET_DATE,">="&DATE(OFFSET(AZ$11,FILT_YS,0),FILT_MS,FILT_DS),BET_DATE,"<="&DATE(OFFSET(AZ$11,FILT_YE,0),FILT_ME,FILT_DE),CAPPER,OFFSET(AX$10,FILT_T,0),SPORT,OFFSET(AV$10,FILT_S,0)), IF(AND(FILT_D=1,FILT_T>1,FILT_S>1,FILT_C>1),SUMIFS(PROFIT,BET_TYPE,P12,WIN,"<>P",CAPPER,OFFSET(AX$10,FILT_T,0),SPORT,OFFSET(AV$10,FILT_S,0),CUSTOM,OFFSET(AY$10,FILT_C,0)), IF(AND(FILT_D>1,FILT_T=1,FILT_S>1,FILT_C>1),SUMIFS(PROFIT,BET_TYPE,P12,WIN,"<>P",BET_DATE,">="&DATE(OFFSET(AZ$11,FILT_YS,0),FILT_MS,FILT_DS),BET_DATE,"<="&DATE(OFFSET(AZ$11,FILT_YE,0),FILT_ME,FILT_DE),SPORT,OFFSET(AV$10,FILT_S,0),CUSTOM,OFFSET(AY$10,FILT_C,0)), IF(AND(FILT_D>1,FILT_T>1,FILT_S=1,FILT_C>1),SUMIFS(PROFIT,BET_TYPE,P12,WIN,"<>P",BET_DATE,">="&DATE(OFFSET(AZ$11,FILT_YS,0),FILT_MS,FILT_DS),BET_DATE,"<="&DATE(OFFSET(AZ$11,FILT_YE,0),FILT_ME,FILT_DE),CAPPER,OFFSET(AX$10,FILT_T,0),CUSTOM,OFFSET(AY$10,FILT_C,0)), IF(AND(FILT_D>1,FILT_T>1,FILT_S>1,FILT_C>1),SUMIFS(PROFIT,BET_TYPE,P12,WIN,"<>P",BET_DATE,">="&DATE(OFFSET(AZ$11,FILT_YS,0),FILT_MS,FILT_DS),BET_DATE,"<="&DATE(OFFSET(AZ$11,FILT_YE,0),FILT_ME,FILT_DE),CAPPER,OFFSET(AX$10,FILT_T,0),SPORT,OFFSET(AV$10,FILT_S,0),CUSTOM,OFFSET(AY$10,FILT_C,0)), "")))))))))))))))), "") -> 278.95 | S12: =IF(AND(Q12<>"",Q12>0),R12/Q12,"") -> 0.05710337769 | T12: =IF(P12<>"", IF(AND(FILT_D=1,FILT_T=1,FILT_S=1,FILT_C=1),COUNTIFS(BET_TYPE,P12,WIN,"Y"), IF(AND(FILT_D>1,FILT_T=1,FILT_S=1,FILT_C=1),COUNTIFS(BET_TYPE,P12,WIN,"Y",BET_DATE,">="&DATE(OFFSET(AZ$11,FILT_YS,0),FILT_MS,FILT_DS),BET_DATE,"<="&DATE(OFFSET(AZ$11,FILT_YE,0),FILT_ME,FILT_DE)), IF(AND(FILT_D=1,FILT_T>1,FILT_S=1,FILT_C=1),COUNTIFS(BET_TYPE,P12,WIN,"Y",CAPPER,OFFSET(AX$10,FILT_T,0)), IF(AND(FILT_D=1,FILT_T=1,FILT_S>1,FILT_C=1),COUNTIFS(BET_TYPE,P12,WIN,"Y",SPORT,OFFSET(AV$10,FILT_S,0)), IF(AND(FILT_D=1,FILT_T=1,FILT_S=1,FILT_C>1),COUNTIFS(BET_TYPE,P12,WIN,"Y",CUSTOM,OFFSET(AY$10,FILT_C,0)), IF(AND(FILT_D>1,FILT_T>1,FILT_S=1,FILT_C=1),COUNTIFS(BET_TYPE,P12,WIN,"Y",BET_DATE,">="&DATE(OFFSET(AZ$11,FILT_YS,0),FILT_MS,FILT_DS),BET_DATE,"<="&DATE(OFFSET(AZ$11,FILT_YE,0),FILT_ME,FILT_DE),CAPPER,OFFSET(AX$10,FILT_T,0)), IF(AND(FILT_D>1,FILT_T=1,FILT_S>1,FILT_C=1),COUNTIFS(BET_TYPE,P12,WIN,"Y",BET_DATE,">="&DATE(OFFSET(AZ$11,FILT_YS,0),FILT_MS,FILT_DS),BET_DATE,"<="&DATE(OFFSET(AZ$11,FILT_YE,0),FILT_ME,FILT_DE),SPORT,OFFSET(AV$10,FILT_S,0)), IF(AND(FILT_D>1,FILT_T=1,FILT_S=1,FILT_C>1),COUNTIFS(BET_TYPE,P12,WIN,"Y",BET_DATE,">="&DATE(OFFSET(AZ$11,FILT_YS,0),FILT_MS,FILT_DS),BET_DATE,"<="&DATE(OFFSET(AZ$11,FILT_YE,0),FILT_ME,FILT_DE),CUSTOM,OFFSET(AY$10,FILT_C,0)), IF(AND(FILT_D=1,FILT_T>1,FILT_S>1,FILT_C=1),COUNTIFS(BET_TYPE,P12,WIN,"Y",CAPPER,OFFSET(AX$10,FILT_T,0),SPORT,OFFSET(AV$10,FILT_S,0)), IF(AND(FILT_D=1,FILT_T>1,FILT_S=1,FILT_C>1),COUNTIFS(BET_TYPE,P12,WIN,"Y",CAPPER,OFFSET(AX$10,FILT_T,0),CUSTOM,OFFSET(AY$10,FILT_C,0)), IF(AND(FILT_D=1,FILT_T=1,FILT_S>1,FILT_C>1),COUNTIFS(BET_TYPE,P12,WIN,"Y",SPORT,OFFSET(AV$10,FILT_S,0),CUSTOM,OFFSET(AY$10,FILT_C,0)), IF(AND(FILT_D>1,FILT_T>1,FILT_S>1,FILT_C=1),COUNTIFS(BET_TYPE,P12,WIN,"Y",BET_DATE,">="&DATE(OFFSET(AZ$11,FILT_YS,0),FILT_MS,FILT_DS),BET_DATE,"<="&DATE(OFFSET(AZ$11,FILT_YE,0),FILT_ME,FILT_DE),CAPPER,OFFSET(AX$10,FILT_T,0),SPORT,OFFSET(AV$10,FILT_S,0)), IF(AND(FILT_D=1,FILT_T>1,FILT_S>1,FILT_C>1),COUNTIFS(BET_TYPE,P12,WIN,"Y",CAPPER,OFFSET(AX$10,FILT_T,0),SPORT,OFFSET(AV$10,FILT_S,0),CUSTOM,OFFSET(AY$10,FILT_C,0)), IF(AND(FILT_D>1,FILT_T=1,FILT_S>1,FILT_C>1),COUNTIFS(BET_TYPE,P12,WIN,"Y",BET_DATE,">="&DATE(OFFSET(AZ$11,FILT_YS,0),FILT_MS,FILT_DS),BET_DATE,"<="&DATE(OFFSET(AZ$11,FILT_YE,0),FILT_ME,FILT_DE),SPORT,OFFSET(AV$10,FILT_S,0),CUSTOM,OFFSET(AY$10,FILT_C,0)), IF(AND(FILT_D>1,FILT_T>1,FILT_S=1,FILT_C>1),COUNTIFS(BET_TYPE,P12,WIN,"Y",BET_DATE,">="&DATE(OFFSET(AZ$11,FILT_YS,0),FILT_MS,FILT_DS),BET_DATE,"<="&DATE(OFFSET(AZ$11,FILT_YE,0),FILT_ME,FILT_DE),CAPPER,OFFSET(AX$10,FILT_T,0),CUSTOM,OFFSET(AY$10,FILT_C,0)), IF(AND(FILT_D>1,FILT_T>1,FILT_S>1,FILT_C>1),COUNTIFS(BET_TYPE,P12,WIN,"Y",BET_DATE,">="&DATE(OFFSET(AZ$11,FILT_YS,0),FILT_MS,FILT_DS),BET_DATE,"<="&DATE(OFFSET(AZ$11,FILT_YE,0),FILT_ME,FILT_DE),CAPPER,OFFSET(AX$10,FILT_T,0),SPORT,OFFSET(AV$10,FILT_S,0),CUSTOM,OFFSET(AY$10,FILT_C,0)), "")))))))))))))))), "") -> 50 | U12: =IF(P12<>"", IF(AND(FILT_D=1,FILT_T=1,FILT_S=1,FILT_C=1),COUNTIFS(BET_TYPE,P12,WIN,"<>P",WIN,"<>R",WIN,"<>PU"), IF(AND(FILT_D>1,FILT_T=1,FILT_S=1,FILT_C=1),COUNTIFS(BET_TYPE,P12,WIN,"<>P",WIN,"<>R",WIN,"<>PU",BET_DATE,">="&DATE(OFFSET(AZ$11,FILT_YS,0),FILT_MS,FILT_DS),BET_DATE,"<="&DATE(OFFSET(AZ$11,FILT_YE,0),FILT_ME,FILT_DE)), IF(AND(FILT_D=1,FILT_T>1,FILT_S=1,FILT_C=1),COUNTIFS(BET_TYPE,P12,WIN,"<>P",WIN,"<>R",WIN,"<>PU",CAPPER,OFFSET(AX$10,FILT_T,0)), IF(AND(FILT_D=1,FILT_T=1,FILT_S>1,FILT_C=1),COUNTIFS(BET_TYPE,P12,WIN,"<>P",WIN,"<>R",WIN,"<>PU",SPORT,OFFSET(AV$10,FILT_S,0)), IF(AND(FILT_D=1,FILT_T=1,FILT_S=1,FILT_C>1),COUNTIFS(BET_TYPE,P12,WIN,"<>P",WIN,"<>R",WIN,"<>PU",CUSTOM,OFFSET(AY$10,FILT_C,0)), IF(AND(FILT_D>1,FILT_T>1,FILT_S=1,FILT_C=1),COUNTIFS(BET_TYPE,P12,WIN,"<>P",WIN,"<>R",WIN,"<>PU",BET_DATE,">="&DATE(OFFSET(AZ$11,FILT_YS,0),FILT_MS,FILT_DS),BET_DATE,"<="&DATE(OFFSET(AZ$11,FILT_YE,0),FILT_ME,FILT_DE),CAPPER,OFFSET(AX$10,FILT_T,0)), IF(AND(FILT_D>1,FILT_T=1,FILT_S>1,FILT_C=1),COUNTIFS(BET_TYPE,P12,WIN,"<>P",WIN,"<>R",WIN,"<>PU",BET_DATE,">="&DATE(OFFSET(AZ$11,FILT_YS,0),FILT_MS,FILT_DS),BET_DATE,"<="&DATE(OFFSET(AZ$11,FILT_YE,0),FILT_ME,FILT_DE),SPORT,OFFSET(AV$10,FILT_S,0)), IF(AND(FILT_D>1,FILT_T=1,FILT_S=1,FILT_C>1),COUNTIFS(BET_TYPE,P12,WIN,"<>P",WIN,"<>R",WIN,"<>PU",BET_DATE,">="&DATE(OFFSET(AZ$11,FILT_YS,0),FILT_MS,FILT_DS),BET_DATE,"<="&DATE(OFFSET(AZ$11,FILT_YE,0),FILT_ME,FILT_DE),CUSTOM,OFFSET(AY$10,FILT_C,0)), IF(AND(FILT_D=1,FILT_T>1,FILT_S>1,FILT_C=1),COUNTIFS(BET_TYPE,P12,WIN,"<>P",WIN,"<>R",WIN,"<>PU",CAPPER,OFFSET(AX$10,FILT_T,0),SPORT,OFFSET(AV$10,FILT_S,0)), IF(AND(FILT_D=1,FILT_T>1,FILT_S=1,FILT_C>1),COUNTIFS(BET_TYPE,P12,WIN,"<>P",WIN,"<>R",WIN,"<>PU",CAPPER,OFFSET(AX$10,FILT_T,0),CUSTOM,OFFSET(AY$10,FILT_C,0)), IF(AND(FILT_D=1,FILT_T=1,FILT_S>1,FILT_C>1),COUNTIFS(BET_TYPE,P12,WIN,"<>P",WIN,"<>R",WIN,"<>PU",SPORT,OFFSET(AV$10,FILT_S,0),CUSTOM,OFFSET(AY$10,FILT_C,0)), IF(AND(FILT_D>1,FILT_T>1,FILT_S>1,FILT_C=1),COUNTIFS(BET_TYPE,P12,WIN,"<>P",WIN,"<>R",WIN,"<>PU",BET_DATE,">="&DATE(OFFSET(AZ$11,FILT_YS,0),FILT_MS,FILT_DS),BET_DATE,"<="&DATE(OFFSET(AZ$11,FILT_YE,0),FILT_ME,FILT_DE),CAPPER,OFFSET(AX$10,FILT_T,0),SPORT,OFFSET(AV$10,FILT_S,0)), IF(AND(FILT_D=1,FILT_T>1,FILT_S>1,FILT_C>1),COUNTIFS(BET_TYPE,P12,WIN,"<>P",WIN,"<>R",WIN,"<>PU",CAPPER,OFFSET(AX$10,FILT_T,0),SPORT,OFFSET(AV$10,FILT_S,0),CUSTOM,OFFSET(AY$10,FILT_C,0)), IF(AND(FILT_D>1,FILT_T=1,FILT_S>1,FILT_C>1),COUNTIFS(BET_TYPE,P12,WIN,"<>P",WIN,"<>R",WIN,"<>PU",BET_DATE,">="&DATE(OFFSET(AZ$11,FILT_YS,0),FILT_MS,FILT_DS),BET_DATE,"<="&DATE(OFFSET(AZ$11,FILT_YE,0),FILT_ME,FILT_DE),SPORT,OFFSET(AV$10,FILT_S,0),CUSTOM,OFFSET(AY$10,FILT_C,0)), IF(AND(FILT_D>1,FILT_T>1,FILT_S=1,FILT_C>1),COUNTIFS(BET_TYPE,P12,WIN,"<>P",WIN,"<>R",WIN,"<>PU",BET_DATE,">="&DATE(OFFSET(AZ$11,FILT_YS,0),FILT_MS,FILT_DS),BET_DATE,"<="&DATE(OFFSET(AZ$11,FILT_YE,0),FILT_ME,FILT_DE),CAPPER,OFFSET(AX$10,FILT_T,0),CUSTOM,OFFSET(AY$10,FILT_C,0)), IF(AND(FILT_D>1,FILT_T>1,FILT_S>1,FILT_C>1),COUNTIFS(BET_TYPE,P12,WIN,"<>P",WIN,"<>R",WIN,"<>PU",BET_DATE,">="&DATE(OFFSET(AZ$11,FILT_YS,0),FILT_MS,FILT_DS),BET_DATE,"<="&DATE(OFFSET(AZ$11,FILT_YE,0),FILT_ME,FILT_DE),CAPPER,OFFSET(AX$10,FILT_T,0),SPORT,OFFSET(AV$10,FILT_S,0),CUSTOM,OFFSET(AY$10,FILT_C,0)), "")))))))))))))))), "") -> 143 | V12: =IF(AND(U12<>"",U12>0),T12/U12,"") -> 0.3496503497 | X12: =IF(AND(Settings!K6<>"",Settings!K6<>"--"),Settings!K6,"") -> My own bets | Y12: =IF(X12<>"", IF(AND(FILT_D=1,FILT_B=1,FILT_S=1,FILT_C=1),SUMIFS(AT_RISK,CAPPER,X12,WIN,"<>P"), IF(AND(FILT_D>1,FILT_B=1,FILT_S=1,FILT_C=1),SUMIFS(AT_RISK,CAPPER,X12,WIN,"<>P",BET_DATE,">="&DATE(OFFSET(AZ$11,FILT_YS,0),FILT_MS,FILT_DS),BET_DATE,"<="&DATE(OFFSET(AZ$11,FILT_YE,0),FILT_ME,FILT_DE)), IF(AND(FILT_D=1,FILT_B>1,FILT_S=1,FILT_C=1),SUMIFS(AT_RISK,CAPPER,X12,WIN,"<>P",BET_TYPE,OFFSET(AW$10,FILT_B,0)), IF(AND(FILT_D=1,FILT_B=1,FILT_S>1,FILT_C=1),SUMIFS(AT_RISK,CAPPER,X12,WIN,"<>P",SPORT,OFFSET(AV$10,FILT_S,0)), IF(AND(FILT_D=1,FILT_B=1,FILT_S=1,FILT_C>1),SUMIFS(AT_RISK,CAPPER,X12,WIN,"<>P",CUSTOM,OFFSET(AY$10,FILT_C,0)), IF(AND(FILT_D>1,FILT_B>1,FILT_S=1,FILT_C=1),SUMIFS(AT_RISK,CAPPER,X12,WIN,"<>P",BET_DATE,">="&DATE(OFFSET(AZ$11,FILT_YS,0),FILT_MS,FILT_DS),BET_DATE,"<="&DATE(OFFSET(AZ$11,FILT_YE,0),FILT_ME,FILT_DE),BET_TYPE,OFFSET(AW$10,FILT_B,0)), IF(AND(FILT_D>1,FILT_B=1,FILT_S>1,FILT_C=1),SUMIFS(AT_RISK,CAPPER,X12,WIN,"<>P",BET_DATE,">="&DATE(OFFSET(AZ$11,FILT_YS,0),FILT_MS,FILT_DS),BET_DATE,"<="&DATE(OFFSET(AZ$11,FILT_YE,0),FILT_ME,FILT_DE),SPORT,OFFSET(AV$10,FILT_S,0)), IF(AND(FILT_D>1,FILT_B=1,FILT_S=1,FILT_C>1),SUMIFS(AT_RISK,CAPPER,X12,WIN,"<>P",BET_DATE,">="&DATE(OFFSET(AZ$11,FILT_YS,0),FILT_MS,FILT_DS),BET_DATE,"<="&DATE(OFFSET(AZ$11,FILT_YE,0),FILT_ME,FILT_DE),CUSTOM,OFFSET(AY$10,FILT_C,0)), IF(AND(FILT_D=1,FILT_B>1,FILT_S>1,FILT_C=1),SUMIFS(AT_RISK,CAPPER,X12,WIN,"<>P",BET_TYPE,OFFSET(AW$10,FILT_B,0),SPORT,OFFSET(AV$10,FILT_S,0)), IF(AND(FILT_D=1,FILT_B>1,FILT_S=1,FILT_C>1),SUMIFS(AT_RISK,CAPPER,X12,WIN,"<>P",BET_TYPE,OFFSET(AW$10,FILT_B,0),CUSTOM,OFFSET(AY$10,FILT_C,0)), IF(AND(FILT_D=1,FILT_B=1,FILT_S>1,FILT_C>1),SUMIFS(AT_RISK,CAPPER,X12,WIN,"<>P",SPORT,OFFSET(AV$10,FILT_S,0),CUSTOM,OFFSET(AY$10,FILT_C,0)), IF(AND(FILT_D>1,FILT_B>1,FILT_S>1,FILT_C=1),SUMIFS(AT_RISK,CAPPER,X12,WIN,"<>P",BET_DATE,">="&DATE(OFFSET(AZ$11,FILT_YS,0),FILT_MS,FILT_DS),BET_DATE,"<="&DATE(OFFSET(AZ$11,FILT_YE,0),FILT_ME,FILT_DE),BET_TYPE,OFFSET(AW$10,FILT_B,0),SPORT,OFFSET(AV$10,FILT_S,0)), IF(AND(FILT_D=1,FILT_B>1,FILT_S>1,FILT_C>1),SUMIFS(AT_RISK,CAPPER,X12,WIN,"<>P",BET_TYPE,OFFSET(AW$10,FILT_B,0),SPORT,OFFSET(AV$10,FILT_S,0),CUSTOM,OFFSET(AY$10,FILT_C,0)), IF(AND(FILT_D>1,FILT_B=1,FILT_S>1,FILT_C>1),SUMIFS(AT_RISK,CAPPER,X12,WIN,"<>P",BET_DATE,">="&DATE(OFFSET(AZ$11,FILT_YS,0),FILT_MS,FILT_DS),BET_DATE,"<="&DATE(OFFSET(AZ$11,FILT_YE,0),FILT_ME,FILT_DE),SPORT,OFFSET(AV$10,FILT_S,0),CUSTOM,OFFSET(AY$10,FILT_C,0)), IF(AND(FILT_D>1,FILT_B>1,FILT_S=1,FILT_C>1),SUMIFS(AT_RISK,CAPPER,X12,WIN,"<>P",BET_DATE,">="&DATE(OFFSET(AZ$11,FILT_YS,0),FILT_MS,FILT_DS),BET_DATE,"<="&DATE(OFFSET(AZ$11,FILT_YE,0),FILT_ME,FILT_DE),BET_TYPE,OFFSET(AW$10,FILT_B,0),CUSTOM,OFFSET(AY$10,FILT_C,0)), IF(AND(FILT_D>1,FILT_B>1,FILT_S>1,FILT_C>1),SUMIFS(AT_RISK,CAPPER,X12,WIN,"<>P",BET_DATE,">="&DATE(OFFSET(AZ$11,FILT_YS,0),FILT_MS,FILT_DS),BET_DATE,"<="&DATE(OFFSET(AZ$11,FILT_YE,0),FILT_ME,FILT_DE),BET_TYPE,OFFSET(AW$10,FILT_B,0),SPORT,OFFSET(AV$10,FILT_S,0),CUSTOM,OFFSET(AY$10,FILT_C,0)), "")))))))))))))))), "") -> 10185 | Z12: =IF(X12<>"", IF(AND(FILT_D=1,FILT_B=1,FILT_S=1,FILT_C=1),SUMIFS(PROFIT,CAPPER,X12,WIN,"<>P"), IF(AND(FILT_D>1,FILT_B=1,FILT_S=1,FILT_C=1),SUMIFS(PROFIT,CAPPER,X12,WIN,"<>P",BET_DATE,">="&DATE(OFFSET(AZ$11,FILT_YS,0),FILT_MS,FILT_DS),BET_DATE,"<="&DATE(OFFSET(AZ$11,FILT_YE,0),FILT_ME,FILT_DE)), IF(AND(FILT_D=1,FILT_B>1,FILT_S=1,FILT_C=1),SUMIFS(PROFIT,CAPPER,X12,WIN,"<>P",BET_TYPE,OFFSET(AW$10,FILT_B,0)), IF(AND(FILT_D=1,FILT_B=1,FILT_S>1,FILT_C=1),SUMIFS(PROFIT,CAPPER,X12,WIN,"<>P",SPORT,OFFSET(AV$10,FILT_S,0)), IF(AND(FILT_D=1,FILT_B=1,FILT_S=1,FILT_C>1),SUMIFS(PROFIT,CAPPER,X12,WIN,"<>P",CUSTOM,OFFSET(AY$10,FILT_C,0)), IF(AND(FILT_D>1,FILT_B>1,FILT_S=1,FILT_C=1),SUMIFS(PROFIT,CAPPER,X12,WIN,"<>P",BET_DATE,">="&DATE(OFFSET(AZ$11,FILT_YS,0),FILT_MS,FILT_DS),BET_DATE,"<="&DATE(OFFSET(AZ$11,FILT_YE,0),FILT_ME,FILT_DE),BET_TYPE,OFFSET(AW$10,FILT_B,0)), IF(AND(FILT_D>1,FILT_B=1,FILT_S>1,FILT_C=1),SUMIFS(PROFIT,CAPPER,X12,WIN,"<>P",BET_DATE,">="&DATE(OFFSET(AZ$11,FILT_YS,0),FILT_MS,FILT_DS),BET_DATE,"<="&DATE(OFFSET(AZ$11,FILT_YE,0),FILT_ME,FILT_DE),SPORT,OFFSET(AV$10,FILT_S,0)), IF(AND(FILT_D>1,FILT_B=1,FILT_S=1,FILT_C>1),SUMIFS(PROFIT,CAPPER,X12,WIN,"<>P",BET_DATE,">="&DATE(OFFSET(AZ$11,FILT_YS,0),FILT_MS,FILT_DS),BET_DATE,"<="&DATE(OFFSET(AZ$11,FILT_YE,0),FILT_ME,FILT_DE),CUSTOM,OFFSET(AY$10,FILT_C,0)), IF(AND(FILT_D=1,FILT_B>1,FILT_S>1,FILT_C=1),SUMIFS(PROFIT,CAPPER,X12,WIN,"<>P",BET_TYPE,OFFSET(AW$10,FILT_B,0),SPORT,OFFSET(AV$10,FILT_S,0)), IF(AND(FILT_D=1,FILT_B>1,FILT_S=1,FILT_C>1),SUMIFS(PROFIT,CAPPER,X12,WIN,"<>P",BET_TYPE,OFFSET(AW$10,FILT_B,0),CUSTOM,OFFSET(AY$10,FILT_C,0)), IF(AND(FILT_D=1,FILT_B=1,FILT_S>1,FILT_C>1),SUMIFS(PROFIT,CAPPER,X12,WIN,"<>P",SPORT,OFFSET(AV$10,FILT_S,0),CUSTOM,OFFSET(AY$10,FILT_C,0)), IF(AND(FILT_D>1,FILT_B>1,FILT_S>1,FILT_C=1),SUMIFS(PROFIT,CAPPER,X12,WIN,"<>P",BET_DATE,">="&DATE(OFFSET(AZ$11,FILT_YS,0),FILT_MS,FILT_DS),BET_DATE,"<="&DATE(OFFSET(AZ$11,FILT_YE,0),FILT_ME,FILT_DE),BET_TYPE,OFFSET(AW$10,FILT_B,0),SPORT,OFFSET(AV$10,FILT_S,0)), IF(AND(FILT_D=1,FILT_B>1,FILT_S>1,FILT_C>1),SUMIFS(PROFIT,CAPPER,X12,WIN,"<>P",BET_TYPE,OFFSET(AW$10,FILT_B,0),SPORT,OFFSET(AV$10,FILT_S,0),CUSTOM,OFFSET(AY$10,FILT_C,0)), IF(AND(FILT_D>1,FILT_B=1,FILT_S>1,FILT_C>1),SUMIFS(PROFIT,CAPPER,X12,WIN,"<>P",BET_DATE,">="&DATE(OFFSET(AZ$11,FILT_YS,0),FILT_MS,FILT_DS),BET_DATE,"<="&DATE(OFFSET(AZ$11,FILT_YE,0),FILT_ME,FILT_DE),SPORT,OFFSET(AV$10,FILT_S,0),CUSTOM,OFFSET(AY$10,FILT_C,0)), IF(AND(FILT_D>1,FILT_B>1,FILT_S=1,FILT_C>1),SUMIFS(PROFIT,CAPPER,X12,WIN,"<>P",BET_DATE,">="&DATE(OFFSET(AZ$11,FILT_YS,0),FILT_MS,FILT_DS),BET_DATE,"<="&DATE(OFFSET(AZ$11,FILT_YE,0),FILT_ME,FILT_DE),BET_TYPE,OFFSET(AW$10,FILT_B,0),CUSTOM,OFFSET(AY$10,FILT_C,0)), IF(AND(FILT_D>1,FILT_B>1,FILT_S>1,FILT_C>1),SUMIFS(PROFIT,CAPPER,X12,WIN,"<>P",BET_DATE,">="&DATE(OFFSET(AZ$11,FILT_YS,0),FILT_MS,FILT_DS),BET_DATE,"<="&DATE(OFFSET(AZ$11,FILT_YE,0),FILT_ME,FILT_DE),BET_TYPE,OFFSET(AW$10,FILT_B,0),SPORT,OFFSET(AV$10,FILT_S,0),CUSTOM,OFFSET(AY$10,FILT_C,0)), "")))))))))))))))), "") -> 934.85 | AA12: =IF(AND(Y12<>"",Y12>0),Z12/Y12,"") -> 0.09178694158 | AB12: =IF(X12<>"", IF(AND(FILT_D=1,FILT_B=1,FILT_S=1,FILT_C=1),COUNTIFS(CAPPER,X12,WIN,"Y"), IF(AND(FILT_D>1,FILT_B=1,FILT_S=1,FILT_C=1),COUNTIFS(CAPPER,X12,WIN,"Y",BET_DATE,">="&DATE(OFFSET(AZ$11,FILT_YS,0),FILT_MS,FILT_DS),BET_DATE,"<="&DATE(OFFSET(AZ$11,FILT_YE,0),FILT_ME,FILT_DE)), IF(AND(FILT_D=1,FILT_B>1,FILT_S=1,FILT_C=1),COUNTIFS(CAPPER,X12,WIN,"Y",BET_TYPE,OFFSET(AW$10,FILT_B,0)), IF(AND(FILT_D=1,FILT_B=1,FILT_S>1,FILT_C=1),COUNTIFS(CAPPER,X12,WIN,"Y",SPORT,OFFSET(AV$10,FILT_S,0)), IF(AND(FILT_D=1,FILT_B=1,FILT_S=1,FILT_C>1),COUNTIFS(CAPPER,X12,WIN,"Y",CUSTOM,OFFSET(AY$10,FILT_C,0)), IF(AND(FILT_D>1,FILT_B>1,FILT_S=1,FILT_C=1),COUNTIFS(CAPPER,X12,WIN,"Y",BET_DATE,">="&DATE(OFFSET(AZ$11,FILT_YS,0),FILT_MS,FILT_DS),BET_DATE,"<="&DATE(OFFSET(AZ$11,FILT_YE,0),FILT_ME,FILT_DE),BET_TYPE,OFFSET(AW$10,FILT_B,0)), IF(AND(FILT_D>1,FILT_B=1,FILT_S>1,FILT_C=1),COUNTIFS(CAPPER,X12,WIN,"Y",BET_DATE,">="&DATE(OFFSET(AZ$11,FILT_YS,0),FILT_MS,FILT_DS),BET_DATE,"<="&DATE(OFFSET(AZ$11,FILT_YE,0),FILT_ME,FILT_DE),SPORT,OFFSET(AV$10,FILT_S,0)), IF(AND(FILT_D>1,FILT_B=1,FILT_S=1,FILT_C>1),COUNTIFS(CAPPER,X12,WIN,"Y",BET_DATE,">="&DATE(OFFSET(AZ$11,FILT_YS,0),FILT_MS,FILT_DS),BET_DATE,"<="&DATE(OFFSET(AZ$11,FILT_YE,0),FILT_ME,FILT_DE),CUSTOM,OFFSET(AY$10,FILT_C,0)), IF(AND(FILT_D=1,FILT_B>1,FILT_S>1,FILT_C=1),COUNTIFS(CAPPER,X12,WIN,"Y",BET_TYPE,OFFSET(AW$10,FILT_B,0),SPORT,OFFSET(AV$10,FILT_S,0)), IF(AND(FILT_D=1,FILT_B>1,FILT_S=1,FILT_C>1),COUNTIFS(CAPPER,X12,WIN,"Y",BET_TYPE,OFFSET(AW$10,FILT_B,0),CUSTOM,OFFSET(AY$10,FILT_C,0)), IF(AND(FILT_D=1,FILT_B=1,FILT_S>1,FILT_C>1),COUNTIFS(CAPPER,X12,WIN,"Y",SPORT,OFFSET(AV$10,FILT_S,0),CUSTOM,OFFSET(AY$10,FILT_C,0)), IF(AND(FILT_D>1,FILT_B>1,FILT_S>1,FILT_C=1),COUNTIFS(CAPPER,X12,WIN,"Y",BET_DATE,">="&DATE(OFFSET(AZ$11,FILT_YS,0),FILT_MS,FILT_DS),BET_DATE,"<="&DATE(OFFSET(AZ$11,FILT_YE,0),FILT_ME,FILT_DE),BET_TYPE,OFFSET(AW$10,FILT_B,0),SPORT,OFFSET(AV$10,FILT_S,0)), IF(AND(FILT_D=1,FILT_B>1,FILT_S>1,FILT_C>1),COUNTIFS(CAPPER,X12,WIN,"Y",BET_TYPE,OFFSET(AW$10,FILT_B,0),SPORT,OFFSET(AV$10,FILT_S,0),CUSTOM,OFFSET(AY$10,FILT_C,0)), IF(AND(FILT_D>1,FILT_B=1,FILT_S>1,FILT_C>1),COUNTIFS(CAPPER,X12,WIN,"Y",BET_DATE,">="&DATE(OFFSET(AZ$11,FILT_YS,0),FILT_MS,FILT_DS),BET_DATE,"<="&DATE(OFFSET(AZ$11,FILT_YE,0),FILT_ME,FILT_DE),SPORT,OFFSET(AV$10,FILT_S,0),CUSTOM,OFFSET(AY$10,FILT_C,0)), IF(AND(FILT_D>1,FILT_B>1,FILT_S=1,FILT_C>1),COUNTIFS(CAPPER,X12,WIN,"Y",BET_DATE,">="&DATE(OFFSET(AZ$11,FILT_YS,0),FILT_MS,FILT_DS),BET_DATE,"<="&DATE(OFFSET(AZ$11,FILT_YE,0),FILT_ME,FILT_DE),BET_TYPE,OFFSET(AW$10,FILT_B,0),CUSTOM,OFFSET(AY$10,FILT_C,0)), IF(AND(FILT_D>1,FILT_B>1,FILT_S>1,FILT_C>1),COUNTIFS(CAPPER,X12,WIN,"Y",BET_DATE,">="&DATE(OFFSET(AZ$11,FILT_YS,0),FILT_MS,FILT_DS),BET_DATE,"<="&DATE(OFFSET(AZ$11,FILT_YE,0),FILT_ME,FILT_DE),BET_TYPE,OFFSET(AW$10,FILT_B,0),SPORT,OFFSET(AV$10,FILT_S,0),CUSTOM,OFFSET(AY$10,FILT_C,0)), "")))))))))))))))), "") -> 106 | AC12: =IF(X12<>"", IF(AND(FILT_D=1,FILT_B=1,FILT_S=1,FILT_C=1),COUNTIFS(CAPPER,X12,WIN,"<>P",WIN,"<>R",WIN,"<>PU"), IF(AND(FILT_D>1,FILT_B=1,FILT_S=1,FILT_C=1),COUNTIFS(CAPPER,X12,WIN,"<>P",WIN,"<>R",WIN,"<>PU",BET_DATE,">="&DATE(OFFSET(AZ$11,FILT_YS,0),FILT_MS,FILT_DS),BET_DATE,"<="&DATE(OFFSET(AZ$11,FILT_YE,0),FILT_ME,FILT_DE)), IF(AND(FILT_D=1,FILT_B>1,FILT_S=1,FILT_C=1),COUNTIFS(CAPPER,X12,WIN,"<>P",WIN,"<>R",WIN,"<>PU",BET_TYPE,OFFSET(AW$10,FILT_B,0)), IF(AND(FILT_D=1,FILT_B=1,FILT_S>1,FILT_C=1),COUNTIFS(CAPPER,X12,WIN,"<>P",WIN,"<>R",WIN,"<>PU",SPORT,OFFSET(AV$10,FILT_S,0)), IF(AND(FILT_D=1,FILT_B=1,FILT_S=1,FILT_C>1),COUNTIFS(CAPPER,X12,WIN,"<>P",WIN,"<>R",WIN,"<>PU",CUSTOM,OFFSET(AY$10,FILT_C,0)), IF(AND(FILT_D>1,FILT_B>1,FILT_S=1,FILT_C=1),COUNTIFS(CAPPER,X12,WIN,"<>P",WIN,"<>R",WIN,"<>PU",BET_DATE,">="&DATE(OFFSET(AZ$11,FILT_YS,0),FILT_MS,FILT_DS),BET_DATE,"<="&DATE(OFFSET(AZ$11,FILT_YE,0),FILT_ME,FILT_DE),BET_TYPE,OFFSET(AW$10,FILT_B,0)), IF(AND(FILT_D>1,FILT_B=1,FILT_S>1,FILT_C=1),COUNTIFS(CAPPER,X12,WIN,"<>P",WIN,"<>R",WIN,"<>PU",BET_DATE,">="&DATE(OFFSET(AZ$11,FILT_YS,0),FILT_MS,FILT_DS),BET_DATE,"<="&DATE(OFFSET(AZ$11,FILT_YE,0),FILT_ME,FILT_DE),SPORT,OFFSET(AV$10,FILT_S,0)), IF(AND(FILT_D>1,FILT_B=1,FILT_S=1,FILT_C>1),COUNTIFS(CAPPER,X12,WIN,"<>P",WIN,"<>R",WIN,"<>PU",BET_DATE,">="&DATE(OFFSET(AZ$11,FILT_YS,0),FILT_MS,FILT_DS),BET_DATE,"<="&DATE(OFFSET(AZ$11,FILT_YE,0),FILT_ME,FILT_DE),CUSTOM,OFFSET(AY$10,FILT_C,0)), IF(AND(FILT_D=1,FILT_B>1,FILT_S>1,FILT_C=1),COUNTIFS(CAPPER,X12,WIN,"<>P",WIN,"<>R",WIN,"<>PU",BET_TYPE,OFFSET(AW$10,FILT_B,0),SPORT,OFFSET(AV$10,FILT_S,0)), IF(AND(FILT_D=1,FILT_B>1,FILT_S=1,FILT_C>1),COUNTIFS(CAPPER,X12,WIN,"<>P",WIN,"<>R",WIN,"<>PU",BET_TYPE,OFFSET(AW$10,FILT_B,0),CUSTOM,OFFSET(AY$10,FILT_C,0)), IF(AND(FILT_D=1,FILT_B=1,FILT_S>1,FILT_C>1),COUNTIFS(CAPPER,X12,WIN,"<>P",WIN,"<>R",WIN,"<>PU",SPORT,OFFSET(AV$10,FILT_S,0),CUSTOM,OFFSET(AY$10,FILT_C,0)), IF(AND(FILT_D>1,FILT_B>1,FILT_S>1,FILT_C=1),COUNTIFS(CAPPER,X12,WIN,"<>P",WIN,"<>R",WIN,"<>PU",BET_DATE,">="&DATE(OFFSET(AZ$11,FILT_YS,0),FILT_MS,FILT_DS),BET_DATE,"<="&DATE(OFFSET(AZ$11,FILT_YE,0),FILT_ME,FILT_DE),BET_TYPE,OFFSET(AW$10,FILT_B,0),SPORT,OFFSET(AV$10,FILT_S,0)), IF(AND(FILT_D=1,FILT_B>1,FILT_S>1,FILT_C>1),COUNTIFS(CAPPER,X12,WIN,"<>P",WIN,"<>R",WIN,"<>PU",BET_TYPE,OFFSET(AW$10,FILT_B,0),SPORT,OFFSET(AV$10,FILT_S,0),CUSTOM,OFFSET(AY$10,FILT_C,0)), IF(AND(FILT_D>1,FILT_B=1,FILT_S>1,FILT_C>1),COUNTIFS(CAPPER,X12,WIN,"<>P",WIN,"<>R",WIN,"<>PU",BET_DATE,">="&DATE(OFFSET(AZ$11,FILT_YS,0),FILT_MS,FILT_DS),BET_DATE,"<="&DATE(OFFSET(AZ$11,FILT_YE,0),FILT_ME,FILT_DE),SPORT,OFFSET(AV$10,FILT_S,0),CUSTOM,OFFSET(AY$10,FILT_C,0)), IF(AND(FILT_D>1,FILT_B>1,FILT_S=1,FILT_C>1),COUNTIFS(CAPPER,X12,WIN,"<>P",WIN,"<>R",WIN,"<>PU",BET_DATE,">="&DATE(OFFSET(AZ$11,FILT_YS,0),FILT_MS,FILT_DS),BET_DATE,"<="&DATE(OFFSET(AZ$11,FILT_YE,0),FILT_ME,FILT_DE),BET_TYPE,OFFSET(AW$10,FILT_B,0),CUSTOM,OFFSET(AY$10,FILT_C,0)), IF(AND(FILT_D>1,FILT_B>1,FILT_S>1,FILT_C>1),COUNTIFS(CAPPER,X12,WIN,"<>P",WIN,"<>R",WIN,"<>PU",BET_DATE,">="&DATE(OFFSET(AZ$11,FILT_YS,0),FILT_MS,FILT_DS),BET_DATE,"<="&DATE(OFFSET(AZ$11,FILT_YE,0),FILT_ME,FILT_DE),BET_TYPE,OFFSET(AW$10,FILT_B,0),SPORT,OFFSET(AV$10,FILT_S,0),CUSTOM,OFFSET(AY$10,FILT_C,0)), "")))))))))))))))), "") -> 242 | AD12: =IF(AND(AC12<>"",AC12>0),AB12/AC12,"") -> 0.4380165289 | AF12: =IF(AND(Settings!M6<>"",Settings!M6<>"--"),Settings!M6,"") -> Home Fav | AG12: =IF(AF12<>"", IF(AND(FILT_D=1,FILT_B=1,FILT_S=1,FILT_T=1),SUMIFS(AT_RISK,CUSTOM,AF12,WIN,"<>P"), IF(AND(FILT_D>1,FILT_B=1,FILT_S=1,FILT_T=1),SUMIFS(AT_RISK,CUSTOM,AF12,WIN,"<>P",BET_DATE,">="&DATE(OFFSET(AZ$11,FILT_YS,0),FILT_MS,FILT_DS),BET_DATE,"<="&DATE(OFFSET(AZ$11,FILT_YE,0),FILT_ME,FILT_DE)), IF(AND(FILT_D=1,FILT_B>1,FILT_S=1,FILT_T=1),SUMIFS(AT_RISK,CUSTOM,AF12,WIN,"<>P",BET_TYPE,OFFSET(AW$10,FILT_B,0)), IF(AND(FILT_D=1,FILT_B=1,FILT_S>1,FILT_T=1),SUMIFS(AT_RISK,CUSTOM,AF12,WIN,"<>P",SPORT,OFFSET(AV$10,FILT_S,0)), IF(AND(FILT_D=1,FILT_B=1,FILT_S=1,FILT_T>1),SUMIFS(AT_RISK,CUSTOM,AF12,WIN,"<>P",CAPPER,OFFSET(AX$10,FILT_T,0)), IF(AND(FILT_D>1,FILT_B>1,FILT_S=1,FILT_T=1),SUMIFS(AT_RISK,CUSTOM,AF12,WIN,"<>P",BET_DATE,">="&DATE(OFFSET(AZ$11,FILT_YS,0),FILT_MS,FILT_DS),BET_DATE,"<="&DATE(OFFSET(AZ$11,FILT_YE,0),FILT_ME,FILT_DE),BET_TYPE,OFFSET(AW$10,FILT_B,0)), IF(AND(FILT_D>1,FILT_B=1,FILT_S>1,FILT_T=1),SUMIFS(AT_RISK,CUSTOM,AF12,WIN,"<>P",BET_DATE,">="&DATE(OFFSET(AZ$11,FILT_YS,0),FILT_MS,FILT_DS),BET_DATE,"<="&DATE(OFFSET(AZ$11,FILT_YE,0),FILT_ME,FILT_DE),SPORT,OFFSET(AV$10,FILT_S,0)), IF(AND(FILT_D>1,FILT_B=1,FILT_S=1,FILT_T>1),SUMIFS(AT_RISK,CUSTOM,AF12,WIN,"<>P",BET_DATE,">="&DATE(OFFSET(AZ$11,FILT_YS,0),FILT_MS,FILT_DS),BET_DATE,"<="&DATE(OFFSET(AZ$11,FILT_YE,0),FILT_ME,FILT_DE),CAPPER,OFFSET(AX$10,FILT_T,0)), IF(AND(FILT_D=1,FILT_B>1,FILT_S>1,FILT_T=1),SUMIFS(AT_RISK,CUSTOM,AF12,WIN,"<>P",BET_TYPE,OFFSET(AW$10,FILT_B,0),SPORT,OFFSET(AV$10,FILT_S,0)), IF(AND(FILT_D=1,FILT_B>1,FILT_S=1,FILT_T>1),SUMIFS(AT_RISK,CUSTOM,AF12,WIN,"<>P",BET_TYPE,OFFSET(AW$10,FILT_B,0),CAPPER,OFFSET(AX$10,FILT_T,0)), IF(AND(FILT_D=1,FILT_B=1,FILT_S>1,FILT_T>1),SUMIFS(AT_RISK,CUSTOM,AF12,WIN,"<>P",SPORT,OFFSET(AV$10,FILT_S,0),CAPPER,OFFSET(AX$10,FILT_T,0)), IF(AND(FILT_D>1,FILT_B>1,FILT_S>1,FILT_T=1),SUMIFS(AT_RISK,CUSTOM,AF12,WIN,"<>P",BET_DATE,">="&DATE(OFFSET(AZ$11,FILT_YS,0),FILT_MS,FILT_DS),BET_DATE,"<="&DATE(OFFSET(AZ$11,FILT_YE,0),FILT_ME,FILT_DE),BET_TYPE,OFFSET(AW$10,FILT_B,0),SPORT,OFFSET(AV$10,FILT_S,0)), IF(AND(FILT_D=1,FILT_B>1,FILT_S>1,FILT_T>1),SUMIFS(AT_RISK,CUSTOM,AF12,WIN,"<>P",BET_TYPE,OFFSET(AW$10,FILT_B,0),SPORT,OFFSET(AV$10,FILT_S,0),CAPPER,OFFSET(AX$10,FILT_T,0)), IF(AND(FILT_D>1,FILT_B=1,FILT_S>1,FILT_T>1),SUMIFS(AT_RISK,CUSTOM,AF12,WIN,"<>P",BET_DATE,">="&DATE(OFFSET(AZ$11,FILT_YS,0),FILT_MS,FILT_DS),BET_DATE,"<="&DATE(OFFSET(AZ$11,FILT_YE,0),FILT_ME,FILT_DE),SPORT,OFFSET(AV$10,FILT_S,0),CAPPER,OFFSET(AX$10,FILT_T,0)), IF(AND(FILT_D>1,FILT_B>1,FILT_S=1,FILT_T>1),SUMIFS(AT_RISK,CUSTOM,AF12,WIN,"<>P",BET_DATE,">="&DATE(OFFSET(AZ$11,FILT_YS,0),FILT_MS,FILT_DS),BET_DATE,"<="&DATE(OFFSET(AZ$11,FILT_YE,0),FILT_ME,FILT_DE),BET_TYPE,OFFSET(AW$10,FILT_B,0),CAPPER,OFFSET(AX$10,FILT_T,0)), IF(AND(FILT_D>1,FILT_B>1,FILT_S>1,FILT_T>1),SUMIFS(AT_RISK,CUSTOM,AF12,WIN,"<>P",BET_DATE,">="&DATE(OFFSET(AZ$11,FILT_YS,0),FILT_MS,FILT_DS),BET_DATE,"<="&DATE(OFFSET(AZ$11,FILT_YE,0),FILT_ME,FILT_DE),BET_TYPE,OFFSET(AW$10,FILT_B,0),SPORT,OFFSET(AV$10,FILT_S,0),CAPPER,OFFSET(AX$10,FILT_T,0)), "")))))))))))))))), "") -> 0 | AH12: =IF(AF12<>"", IF(AND(FILT_D=1,FILT_B=1,FILT_S=1,FILT_T=1),SUMIFS(PROFIT,CUSTOM,AF12,WIN,"<>P"), IF(AND(FILT_D>1,FILT_B=1,FILT_S=1,FILT_T=1),SUMIFS(PROFIT,CUSTOM,AF12,WIN,"<>P",BET_DATE,">="&DATE(OFFSET(AZ$11,FILT_YS,0),FILT_MS,FILT_DS),BET_DATE,"<="&DATE(OFFSET(AZ$11,FILT_YE,0),FILT_ME,FILT_DE)), IF(AND(FILT_D=1,FILT_B>1,FILT_S=1,FILT_T=1),SUMIFS(PROFIT,CUSTOM,AF12,WIN,"<>P",BET_TYPE,OFFSET(AW$10,FILT_B,0)), IF(AND(FILT_D=1,FILT_B=1,FILT_S>1,FILT_T=1),SUMIFS(PROFIT,CUSTOM,AF12,WIN,"<>P",SPORT,OFFSET(AV$10,FILT_S,0)), IF(AND(FILT_D=1,FILT_B=1,FILT_S=1,FILT_T>1),SUMIFS(PROFIT,CUSTOM,AF12,WIN,"<>P",CAPPER,OFFSET(AX$10,FILT_T,0)), IF(AND(FILT_D>1,FILT_B>1,FILT_S=1,FILT_T=1),SUMIFS(PROFIT,CUSTOM,AF12,WIN,"<>P",BET_DATE,">="&DATE(OFFSET(AZ$11,FILT_YS,0),FILT_MS,FILT_DS),BET_DATE,"<="&DATE(OFFSET(AZ$11,FILT_YE,0),FILT_ME,FILT_DE),BET_TYPE,OFFSET(AW$10,FILT_B,0)), IF(AND(FILT_D>1,FILT_B=1,FILT_S>1,FILT_T=1),SUMIFS(PROFIT,CUSTOM,AF12,WIN,"<>P",BET_DATE,">="&DATE(OFFSET(AZ$11,FILT_YS,0),FILT_MS,FILT_DS),BET_DATE,"<="&DATE(OFFSET(AZ$11,FILT_YE,0),FILT_ME,FILT_DE),SPORT,OFFSET(AV$10,FILT_S,0)), IF(AND(FILT_D>1,FILT_B=1,FILT_S=1,FILT_T>1),SUMIFS(PROFIT,CUSTOM,AF12,WIN,"<>P",BET_DATE,">="&DATE(OFFSET(AZ$11,FILT_YS,0),FILT_MS,FILT_DS),BET_DATE,"<="&DATE(OFFSET(AZ$11,FILT_YE,0),FILT_ME,FILT_DE),CAPPER,OFFSET(AX$10,FILT_T,0)), IF(AND(FILT_D=1,FILT_B>1,FILT_S>1,FILT_T=1),SUMIFS(PROFIT,CUSTOM,AF12,WIN,"<>P",BET_TYPE,OFFSET(AW$10,FILT_B,0),SPORT,OFFSET(AV$10,FILT_S,0)), IF(AND(FILT_D=1,FILT_B>1,FILT_S=1,FILT_T>1),SUMIFS(PROFIT,CUSTOM,AF12,WIN,"<>P",BET_TYPE,OFFSET(AW$10,FILT_B,0),CAPPER,OFFSET(AX$10,FILT_T,0)), IF(AND(FILT_D=1,FILT_B=1,FILT_S>1,FILT_T>1),SUMIFS(PROFIT,CUSTOM,AF12,WIN,"<>P",SPORT,OFFSET(AV$10,FILT_S,0),CAPPER,OFFSET(AX$10,FILT_T,0)), IF(AND(FILT_D>1,FILT_B>1,FILT_S>1,FILT_T=1),SUMIFS(PROFIT,CUSTOM,AF12,WIN,"<>P",BET_DATE,">="&DATE(OFFSET(AZ$11,FILT_YS,0),FILT_MS,FILT_DS),BET_DATE,"<="&DATE(OFFSET(AZ$11,FILT_YE,0),FILT_ME,FILT_DE),BET_TYPE,OFFSET(AW$10,FILT_B,0),SPORT,OFFSET(AV$10,FILT_S,0)), IF(AND(FILT_D=1,FILT_B>1,FILT_S>1,FILT_T>1),SUMIFS(PROFIT,CUSTOM,AF12,WIN,"<>P",BET_TYPE,OFFSET(AW$10,FILT_B,0),SPORT,OFFSET(AV$10,FILT_S,0),CAPPER,OFFSET(AX$10,FILT_T,0)), IF(AND(FILT_D>1,FILT_B=1,FILT_S>1,FILT_T>1),SUMIFS(PROFIT,CUSTOM,AF12,WIN,"<>P",BET_DATE,">="&DATE(OFFSET(AZ$11,FILT_YS,0),FILT_MS,FILT_DS),BET_DATE,"<="&DATE(OFFSET(AZ$11,FILT_YE,0),FILT_ME,FILT_DE),SPORT,OFFSET(AV$10,FILT_S,0),CAPPER,OFFSET(AX$10,FILT_T,0)), IF(AND(FILT_D>1,FILT_B>1,FILT_S=1,FILT_T>1),SUMIFS(PROFIT,CUSTOM,AF12,WIN,"<>P",BET_DATE,">="&DATE(OFFSET(AZ$11,FILT_YS,0),FILT_MS,FILT_DS),BET_DATE,"<="&DATE(OFFSET(AZ$11,FILT_YE,0),FILT_ME,FILT_DE),BET_TYPE,OFFSET(AW$10,FILT_B,0),CAPPER,OFFSET(AX$10,FILT_T,0)), IF(AND(FILT_D>1,FILT_B>1,FILT_S>1,FILT_T>1),SUMIFS(PROFIT,CUSTOM,AF12,WIN,"<>P",BET_DATE,">="&DATE(OFFSET(AZ$11,FILT_YS,0),FILT_MS,FILT_DS),BET_DATE,"<="&DATE(OFFSET(AZ$11,FILT_YE,0),FILT_ME,FILT_DE),BET_TYPE,OFFSET(AW$10,FILT_B,0),SPORT,OFFSET(AV$10,FILT_S,0),CAPPER,OFFSET(AX$10,FILT_T,0)), "")))))))))))))))), "") -> 0 | AI12: =IF(AND(AG12<>"",AG12>0),AH12/AG12,"") ->  | AJ12: =IF(AF12<>"", IF(AND(FILT_D=1,FILT_B=1,FILT_S=1,FILT_T=1),COUNTIFS(CUSTOM,AF12,WIN,"Y"), IF(AND(FILT_D>1,FILT_B=1,FILT_S=1,FILT_T=1),COUNTIFS(CUSTOM,AF12,WIN,"Y",BET_DATE,">="&DATE(OFFSET(AZ$11,FILT_YS,0),FILT_MS,FILT_DS),BET_DATE,"<="&DATE(OFFSET(AZ$11,FILT_YE,0),FILT_ME,FILT_DE)), IF(AND(FILT_D=1,FILT_B>1,FILT_S=1,FILT_T=1),COUNTIFS(CUSTOM,AF12,WIN,"Y",BET_TYPE,OFFSET(AW$10,FILT_B,0)), IF(AND(FILT_D=1,FILT_B=1,FILT_S>1,FILT_T=1),COUNTIFS(CUSTOM,AF12,WIN,"Y",SPORT,OFFSET(AV$10,FILT_S,0)), IF(AND(FILT_D=1,FILT_B=1,FILT_S=1,FILT_T>1),COUNTIFS(CUSTOM,AF12,WIN,"Y",CAPPER,OFFSET(AX$10,FILT_T,0)), IF(AND(FILT_D>1,FILT_B>1,FILT_S=1,FILT_T=1),COUNTIFS(CUSTOM,AF12,WIN,"Y",BET_DATE,">="&DATE(OFFSET(AZ$11,FILT_YS,0),FILT_MS,FILT_DS),BET_DATE,"<="&DATE(OFFSET(AZ$11,FILT_YE,0),FILT_ME,FILT_DE),BET_TYPE,OFFSET(AW$10,FILT_B,0)), IF(AND(FILT_D>1,FILT_B=1,FILT_S>1,FILT_T=1),COUNTIFS(CUSTOM,AF12,WIN,"Y",BET_DATE,">="&DATE(OFFSET(AZ$11,FILT_YS,0),FILT_MS,FILT_DS),BET_DATE,"<="&DATE(OFFSET(AZ$11,FILT_YE,0),FILT_ME,FILT_DE),SPORT,OFFSET(AV$10,FILT_S,0)), IF(AND(FILT_D>1,FILT_B=1,FILT_S=1,FILT_T>1),COUNTIFS(CUSTOM,AF12,WIN,"Y",BET_DATE,">="&DATE(OFFSET(AZ$11,FILT_YS,0),FILT_MS,FILT_DS),BET_DATE,"<="&DATE(OFFSET(AZ$11,FILT_YE,0),FILT_ME,FILT_DE),CAPPER,OFFSET(AX$10,FILT_T,0)), IF(AND(FILT_D=1,FILT_B>1,FILT_S>1,FILT_T=1),COUNTIFS(CUSTOM,AF12,WIN,"Y",BET_TYPE,OFFSET(AW$10,FILT_B,0),SPORT,OFFSET(AV$10,FILT_S,0)), IF(AND(FILT_D=1,FILT_B>1,FILT_S=1,FILT_T>1),COUNTIFS(CUSTOM,AF12,WIN,"Y",BET_TYPE,OFFSET(AW$10,FILT_B,0),CAPPER,OFFSET(AX$10,FILT_T,0)), IF(AND(FILT_D=1,FILT_B=1,FILT_S>1,FILT_T>1),COUNTIFS(CUSTOM,AF12,WIN,"Y",SPORT,OFFSET(AV$10,FILT_S,0),CAPPER,OFFSET(AX$10,FILT_T,0)), IF(AND(FILT_D>1,FILT_B>1,FILT_S>1,FILT_T=1),COUNTIFS(CUSTOM,AF12,WIN,"Y",BET_DATE,">="&DATE(OFFSET(AZ$11,FILT_YS,0),FILT_MS,FILT_DS),BET_DATE,"<="&DATE(OFFSET(AZ$11,FILT_YE,0),FILT_ME,FILT_DE),BET_TYPE,OFFSET(AW$10,FILT_B,0),SPORT,OFFSET(AV$10,FILT_S,0)), IF(AND(FILT_D=1,FILT_B>1,FILT_S>1,FILT_T>1),COUNTIFS(CUSTOM,AF12,WIN,"Y",BET_TYPE,OFFSET(AW$10,FILT_B,0),SPORT,OFFSET(AV$10,FILT_S,0),CAPPER,OFFSET(AX$10,FILT_T,0)), IF(AND(FILT_D>1,FILT_B=1,FILT_S>1,FILT_T>1),COUNTIFS(CUSTOM,AF12,WIN,"Y",BET_DATE,">="&DATE(OFFSET(AZ$11,FILT_YS,0),FILT_MS,FILT_DS),BET_DATE,"<="&DATE(OFFSET(AZ$11,FILT_YE,0),FILT_ME,FILT_DE),SPORT,OFFSET(AV$10,FILT_S,0),CAPPER,OFFSET(AX$10,FILT_T,0)), IF(AND(FILT_D>1,FILT_B>1,FILT_S=1,FILT_T>1),COUNTIFS(CUSTOM,AF12,WIN,"Y",BET_DATE,">="&DATE(OFFSET(AZ$11,FILT_YS,0),FILT_MS,FILT_DS),BET_DATE,"<="&DATE(OFFSET(AZ$11,FILT_YE,0),FILT_ME,FILT_DE),BET_TYPE,OFFSET(AW$10,FILT_B,0),CAPPER,OFFSET(AX$10,FILT_T,0)), IF(AND(FILT_D>1,FILT_B>1,FILT_S>1,FILT_T>1),COUNTIFS(CUSTOM,AF12,WIN,"Y",BET_DATE,">="&DATE(OFFSET(AZ$11,FILT_YS,0),FILT_MS,FILT_DS),BET_DATE,"<="&DATE(OFFSET(AZ$11,FILT_YE,0),FILT_ME,FILT_DE),BET_TYPE,OFFSET(AW$10,FILT_B,0),SPORT,OFFSET(AV$10,FILT_S,0),CAPPER,OFFSET(AX$10,FILT_T,0)), "")))))))))))))))), "") -> 0 | AK12: =IF(AF12<>"", IF(AND(FILT_D=1,FILT_B=1,FILT_S=1,FILT_T=1),COUNTIFS(CUSTOM,AF12,WIN,"<>P",WIN,"<>R",WIN,"<>PU"), IF(AND(FILT_D>1,FILT_B=1,FILT_S=1,FILT_T=1),COUNTIFS(CUSTOM,AF12,WIN,"<>P",WIN,"<>R",WIN,"<>PU",BET_DATE,">="&DATE(OFFSET(AZ$11,FILT_YS,0),FILT_MS,FILT_DS),BET_DATE,"<="&DATE(OFFSET(AZ$11,FILT_YE,0),FILT_ME,FILT_DE)), IF(AND(FILT_D=1,FILT_B>1,FILT_S=1,FILT_T=1),COUNTIFS(CUSTOM,AF12,WIN,"<>P",WIN,"<>R",WIN,"<>PU",BET_TYPE,OFFSET(AW$10,FILT_B,0)), IF(AND(FILT_D=1,FILT_B=1,FILT_S>1,FILT_T=1),COUNTIFS(CUSTOM,AF12,WIN,"<>P",WIN,"<>R",WIN,"<>PU",SPORT,OFFSET(AV$10,FILT_S,0)), IF(AND(FILT_D=1,FILT_B=1,FILT_S=1,FILT_T>1),COUNTIFS(CUSTOM,AF12,WIN,"<>P",WIN,"<>R",WIN,"<>PU",CAPPER,OFFSET(AX$10,FILT_T,0)), IF(AND(FILT_D>1,FILT_B>1,FILT_S=1,FILT_T=1),COUNTIFS(CUSTOM,AF12,WIN,"<>P",WIN,"<>R",WIN,"<>PU",BET_DATE,">="&DATE(OFFSET(AZ$11,FILT_YS,0),FILT_MS,FILT_DS),BET_DATE,"<="&DATE(OFFSET(AZ$11,FILT_YE,0),FILT_ME,FILT_DE),BET_TYPE,OFFSET(AW$10,FILT_B,0)), IF(AND(FILT_D>1,FILT_B=1,FILT_S>1,FILT_T=1),COUNTIFS(CUSTOM,AF12,WIN,"<>P",WIN,"<>R",WIN,"<>PU",BET_DATE,">="&DATE(OFFSET(AZ$11,FILT_YS,0),FILT_MS,FILT_DS),BET_DATE,"<="&DATE(OFFSET(AZ$11,FILT_YE,0),FILT_ME,FILT_DE),SPORT,OFFSET(AV$10,FILT_S,0)), IF(AND(FILT_D>1,FILT_B=1,FILT_S=1,FILT_T>1),COUNTIFS(CUSTOM,AF12,WIN,"<>P",WIN,"<>R",WIN,"<>PU",BET_DATE,">="&DATE(OFFSET(AZ$11,FILT_YS,0),FILT_MS,FILT_DS),BET_DATE,"<="&DATE(OFFSET(AZ$11,FILT_YE,0),FILT_ME,FILT_DE),CAPPER,OFFSET(AX$10,FILT_T,0)), IF(AND(FILT_D=1,FILT_B>1,FILT_S>1,FILT_T=1),COUNTIFS(CUSTOM,AF12,WIN,"<>P",WIN,"<>R",WIN,"<>PU",BET_TYPE,OFFSET(AW$10,FILT_B,0),SPORT,OFFSET(AV$10,FILT_S,0)), IF(AND(FILT_D=1,FILT_B>1,FILT_S=1,FILT_T>1),COUNTIFS(CUSTOM,AF12,WIN,"<>P",WIN,"<>R",WIN,"<>PU",BET_TYPE,OFFSET(AW$10,FILT_B,0),CAPPER,OFFSET(AX$10,FILT_T,0)), IF(AND(FILT_D=1,FILT_B=1,FILT_S>1,FILT_T>1),COUNTIFS(CUSTOM,AF12,WIN,"<>P",WIN,"<>R",WIN,"<>PU",SPORT,OFFSET(AV$10,FILT_S,0),CAPPER,OFFSET(AX$10,FILT_T,0)), IF(AND(FILT_D>1,FILT_B>1,FILT_S>1,FILT_T=1),COUNTIFS(CUSTOM,AF12,WIN,"<>P",WIN,"<>R",WIN,"<>PU",BET_DATE,">="&DATE(OFFSET(AZ$11,FILT_YS,0),FILT_MS,FILT_DS),BET_DATE,"<="&DATE(OFFSET(AZ$11,FILT_YE,0),FILT_ME,FILT_DE),BET_TYPE,OFFSET(AW$10,FILT_B,0),SPORT,OFFSET(AV$10,FILT_S,0)), IF(AND(FILT_D=1,FILT_B>1,FILT_S>1,FILT_T>1),COUNTIFS(CUSTOM,AF12,WIN,"<>P",WIN,"<>R",WIN,"<>PU",BET_TYPE,OFFSET(AW$10,FILT_B,0),SPORT,OFFSET(AV$10,FILT_S,0),CAPPER,OFFSET(AX$10,FILT_T,0)), IF(AND(FILT_D>1,FILT_B=1,FILT_S>1,FILT_T>1),COUNTIFS(CUSTOM,AF12,WIN,"<>P",WIN,"<>R",WIN,"<>PU",BET_DATE,">="&DATE(OFFSET(AZ$11,FILT_YS,0),FILT_MS,FILT_DS),BET_DATE,"<="&DATE(OFFSET(AZ$11,FILT_YE,0),FILT_ME,FILT_DE),SPORT,OFFSET(AV$10,FILT_S,0),CAPPER,OFFSET(AX$10,FILT_T,0)), IF(AND(FILT_D>1,FILT_B>1,FILT_S=1,FILT_T>1),COUNTIFS(CUSTOM,AF12,WIN,"<>P",WIN,"<>R",WIN,"<>PU",BET_DATE,">="&DATE(OFFSET(AZ$11,FILT_YS,0),FILT_MS,FILT_DS),BET_DATE,"<="&DATE(OFFSET(AZ$11,FILT_YE,0),FILT_ME,FILT_DE),BET_TYPE,OFFSET(AW$10,FILT_B,0),CAPPER,OFFSET(AX$10,FILT_T,0)), IF(AND(FILT_D>1,FILT_B>1,FILT_S>1,FILT_T>1),COUNTIFS(CUSTOM,AF12,WIN,"<>P",WIN,"<>R",WIN,"<>PU",BET_DATE,">="&DATE(OFFSET(AZ$11,FILT_YS,0),FILT_MS,FILT_DS),BET_DATE,"<="&DATE(OFFSET(AZ$11,FILT_YE,0),FILT_ME,FILT_DE),BET_TYPE,OFFSET(AW$10,FILT_B,0),SPORT,OFFSET(AV$10,FILT_S,0),CAPPER,OFFSET(AX$10,FILT_T,0)), "")))))))))))))))), "") -> 0 | AL12: =IF(AND(AK12<>"",AK12>0),AJ12/AK12,"") ->  | AN12: =IF(AND(Settings!D6<>"",Settings!D6<>"--"),Settings!D6,"") -> Sbobet | AO12: =IF(AN12<>"", IF(AND(FILT_D=1,FILT_B=1,FILT_S=1,FILT_T=1,FILT_C=1),SUMIFS(AT_RISK,AGENCY,AN12,WIN,"<>P"), IF(AND(FILT_D>1,FILT_B=1,FILT_S=1,FILT_T=1,FILT_C=1),SUMIFS(AT_RISK,AGENCY,AN12,WIN,"<>P",BET_DATE,">="&DATE(OFFSET(AZ$11,FILT_YS,0),FILT_MS,FILT_DS),BET_DATE,"<="&DATE(OFFSET(AZ$11,FILT_YE,0),FILT_ME,FILT_DE)), IF(AND(FILT_D=1,FILT_B>1,FILT_S=1,FILT_T=1,FILT_C=1),SUMIFS(AT_RISK,AGENCY,AN12,WIN,"<>P",BET_TYPE,OFFSET(AW$10,FILT_B,0)), IF(AND(FILT_D=1,FILT_B=1,FILT_S>1,FILT_T=1,FILT_C=1),SUMIFS(AT_RISK,AGENCY,AN12,WIN,"<>P",SPORT,OFFSET(AV$10,FILT_S,0)), IF(AND(FILT_D=1,FILT_B=1,FILT_S=1,FILT_T>1,FILT_C=1),SUMIFS(AT_RISK,AGENCY,AN12,WIN,"<>P",CAPPER,OFFSET(AX$10,FILT_T,0)), IF(AND(FILT_D>1,FILT_B>1,FILT_S=1,FILT_T=1,FILT_C=1),SUMIFS(AT_RISK,AGENCY,AN12,WIN,"<>P",BET_DATE,">="&DATE(OFFSET(AZ$11,FILT_YS,0),FILT_MS,FILT_DS),BET_DATE,"<="&DATE(OFFSET(AZ$11,FILT_YE,0),FILT_ME,FILT_DE),BET_TYPE,OFFSET(AW$10,FILT_B,0)), IF(AND(FILT_D>1,FILT_B=1,FILT_S>1,FILT_T=1,FILT_C=1),SUMIFS(AT_RISK,AGENCY,AN12,WIN,"<>P",BET_DATE,">="&DATE(OFFSET(AZ$11,FILT_YS,0),FILT_MS,FILT_DS),BET_DATE,"<="&DATE(OFFSET(AZ$11,FILT_YE,0),FILT_ME,FILT_DE),SPORT,OFFSET(AV$10,FILT_S,0)), IF(AND(FILT_D>1,FILT_B=1,FILT_S=1,FILT_T>1,FILT_C=1),SUMIFS(AT_RISK,AGENCY,AN12,WIN,"<>P",BET_DATE,">="&DATE(OFFSET(AZ$11,FILT_YS,0),FILT_MS,FILT_DS),BET_DATE,"<="&DATE(OFFSET(AZ$11,FILT_YE,0),FILT_ME,FILT_DE),CAPPER,OFFSET(AX$10,FILT_T,0)), IF(AND(FILT_D=1,FILT_B>1,FILT_S>1,FILT_T=1,FILT_C=1),SUMIFS(AT_RISK,AGENCY,AN12,WIN,"<>P",BET_TYPE,OFFSET(AW$10,FILT_B,0),SPORT,OFFSET(AV$10,FILT_S,0)), IF(AND(FILT_D=1,FILT_B>1,FILT_S=1,FILT_T>1,FILT_C=1),SUMIFS(AT_RISK,AGENCY,AN12,WIN,"<>P",BET_TYPE,OFFSET(AW$10,FILT_B,0),CAPPER,OFFSET(AX$10,FILT_T,0)), IF(AND(FILT_D=1,FILT_B=1,FILT_S>1,FILT_T>1,FILT_C=1),SUMIFS(AT_RISK,AGENCY,AN12,WIN,"<>P",SPORT,OFFSET(AV$10,FILT_S,0),CAPPER,OFFSET(AX$10,FILT_T,0)), IF(AND(FILT_D>1,FILT_B>1,FILT_S>1,FILT_T=1,FILT_C=1),SUMIFS(AT_RISK,AGENCY,AN12,WIN,"<>P",BET_DATE,">="&DATE(OFFSET(AZ$11,FILT_YS,0),FILT_MS,FILT_DS),BET_DATE,"<="&DATE(OFFSET(AZ$11,FILT_YE,0),FILT_ME,FILT_DE),BET_TYPE,OFFSET(AW$10,FILT_B,0),SPORT,OFFSET(AV$10,FILT_S,0)), IF(AND(FILT_D=1,FILT_B>1,FILT_S>1,FILT_T>1,FILT_C=1),SUMIFS(AT_RISK,AGENCY,AN12,WIN,"<>P",BET_TYPE,OFFSET(AW$10,FILT_B,0),SPORT,OFFSET(AV$10,FILT_S,0),CAPPER,OFFSET(AX$10,FILT_T,0)), IF(AND(FILT_D>1,FILT_B=1,FILT_S>1,FILT_T>1,FILT_C=1),SUMIFS(AT_RISK,AGENCY,AN12,WIN,"<>P",BET_DATE,">="&DATE(OFFSET(AZ$11,FILT_YS,0),FILT_MS,FILT_DS),BET_DATE,"<="&DATE(OFFSET(AZ$11,FILT_YE,0),FILT_ME,FILT_DE),SPORT,OFFSET(AV$10,FILT_S,0),CAPPER,OFFSET(AX$10,FILT_T,0)), IF(AND(FILT_D>1,FILT_B>1,FILT_S=1,FILT_T>1,FILT_C=1),SUMIFS(AT_RISK,AGENCY,AN12,WIN,"<>P",BET_DATE,">="&DATE(OFFSET(AZ$11,FILT_YS,0),FILT_MS,FILT_DS),BET_DATE,"<="&DATE(OFFSET(AZ$11,FILT_YE,0),FILT_ME,FILT_DE),BET_TYPE,OFFSET(AW$10,FILT_B,0),CAPPER,OFFSET(AX$10,FILT_T,0)), IF(AND(FILT_D>1,FILT_B>1,FILT_S>1,FILT_T>1,FILT_C=1),SUMIFS(AT_RISK,AGENCY,AN12,WIN,"<>P",BET_DATE,">="&DATE(OFFSET(AZ$11,FILT_YS,0),FILT_MS,FILT_DS),BET_DATE,"<="&DATE(OFFSET(AZ$11,FILT_YE,0),FILT_ME,FILT_DE),BET_TYPE,OFFSET(AW$10,FILT_B,0),SPORT,OFFSET(AV$10,FILT_S,0),CAPPER,OFFSET(AX$10,FILT_T,0)), IF(AND(FILT_D=1,FILT_B=1,FILT_S=1,FILT_T=1,FILT_C>1),SUMIFS(AT_RISK,AGENCY,AN12,WIN,"<>P",CUSTOM,OFFSET(AY$10,FILT_C,0)), IF(AND(FILT_D>1,FILT_B=1,FILT_S=1,FILT_T=1,FILT_C>1),SUMIFS(AT_RISK,AGENCY,AN12,WIN,"<>P",CUSTOM,OFFSET(AY$10,FILT_C,0),BET_DATE,">="&DATE(OFFSET(AZ$11,FILT_YS,0),FILT_MS,FILT_DS),BET_DATE,"<="&DATE(OFFSET(AZ$11,FILT_YE,0),FILT_ME,FILT_DE)), IF(AND(FILT_D=1,FILT_B>1,FILT_S=1,FILT_T=1,FILT_C>1),SUMIFS(AT_RISK,AGENCY,AN12,WIN,"<>P",CUSTOM,OFFSET(AY$10,FILT_C,0),BET_TYPE,OFFSET(AW$10,FILT_B,0)), IF(AND(FILT_D=1,FILT_B=1,FILT_S>1,FILT_T=1,FILT_C>1),SUMIFS(AT_RISK,AGENCY,AN12,WIN,"<>P",CUSTOM,OFFSET(AY$10,FILT_C,0),SPORT,OFFSET(AV$10,FILT_S,0)), IF(AND(FILT_D=1,FILT_B=1,FILT_S=1,FILT_T>1,FILT_C>1),SUMIFS(AT_RISK,AGENCY,AN12,WIN,"<>P",CUSTOM,OFFSET(AY$10,FILT_C,0),CAPPER,OFFSET(AX$10,FILT_T,0)), IF(AND(FILT_D>1,FILT_B>1,FILT_S=1,FILT_T=1,FILT_C>1),SUMIFS(AT_RISK,AGENCY,AN12,WIN,"<>P",CUSTOM,OFFSET(AY$10,FILT_C,0),BET_DATE,">="&DATE(OFFSET(AZ$11,FILT_YS,0),FILT_MS,FILT_DS),BET_DATE,"<="&DATE(OFFSET(AZ$11,FILT_YE,0),FILT_ME,FILT_DE),BET_TYPE,OFFSET(AW$10,FILT_B,0)), IF(AND(FILT_D>1,FILT_B=1,FILT_S>1,FILT_T=1,FILT_C>1),SUMIFS(AT_RISK,AGENCY,AN12,WIN,"<>P",CUSTOM,OFFSET(AY$10,FILT_C,0),BET_DATE,">="&DATE(OFFSET(AZ$11,FILT_YS,0),FILT_MS,FILT_DS),BET_DATE,"<="&DATE(OFFSET(AZ$11,FILT_YE,0),FILT_ME,FILT_DE),SPORT,OFFSET(AV$10,FILT_S,0)), IF(AND(FILT_D>1,FILT_B=1,FILT_S=1,FILT_T>1,FILT_C>1),SUMIFS(AT_RISK,AGENCY,AN12,WIN,"<>P",CUSTOM,OFFSET(AY$10,FILT_C,0),BET_DATE,">="&DATE(OFFSET(AZ$11,FILT_YS,0),FILT_MS,FILT_DS),BET_DATE,"<="&DATE(OFFSET(AZ$11,FILT_YE,0),FILT_ME,FILT_DE),CAPPER,OFFSET(AX$10,FILT_T,0)), IF(AND(FILT_D=1,FILT_B>1,FILT_S>1,FILT_T=1,FILT_C>1),SUMIFS(AT_RISK,AGENCY,AN12,WIN,"<>P",CUSTOM,OFFSET(AY$10,FILT_C,0),BET_TYPE,OFFSET(AW$10,FILT_B,0),SPORT,OFFSET(AV$10,FILT_S,0)), IF(AND(FILT_D=1,FILT_B>1,FILT_S=1,FILT_T>1,FILT_C>1),SUMIFS(AT_RISK,AGENCY,AN12,WIN,"<>P",CUSTOM,OFFSET(AY$10,FILT_C,0),BET_TYPE,OFFSET(AW$10,FILT_B,0),CAPPER,OFFSET(AX$10,FILT_T,0)), IF(AND(FILT_D=1,FILT_B=1,FILT_S>1,FILT_T>1,FILT_C>1),SUMIFS(AT_RISK,AGENCY,AN12,WIN,"<>P",CUSTOM,OFFSET(AY$10,FILT_C,0),SPORT,OFFSET(AV$10,FILT_S,0),CAPPER,OFFSET(AX$10,FILT_T,0)), IF(AND(FILT_D>1,FILT_B>1,FILT_S>1,FILT_T=1,FILT_C>1),SUMIFS(AT_RISK,AGENCY,AN12,WIN,"<>P",CUSTOM,OFFSET(AY$10,FILT_C,0),BET_DATE,">="&DATE(OFFSET(AZ$11,FILT_YS,0),FILT_MS,FILT_DS),BET_DATE,"<="&DATE(OFFSET(AZ$11,FILT_YE,0),FILT_ME,FILT_DE),BET_TYPE,OFFSET(AW$10,FILT_B,0),SPORT,OFFSET(AV$10,FILT_S,0)), IF(AND(FILT_D=1,FILT_B>1,FILT_S>1,FILT_T>1,FILT_C>1),SUMIFS(AT_RISK,AGENCY,AN12,WIN,"<>P",CUSTOM,OFFSET(AY$10,FILT_C,0),BET_TYPE,OFFSET(AW$10,FILT_B,0),SPORT,OFFSET(AV$10,FILT_S,0),CAPPER,OFFSET(AX$10,FILT_T,0)), IF(AND(FILT_D>1,FILT_B=1,FILT_S>1,FILT_T>1,FILT_C>1),SUMIFS(AT_RISK,AGENCY,AN12,WIN,"<>P",CUSTOM,OFFSET(AY$10,FILT_C,0),BET_DATE,">="&DATE(OFFSET(AZ$11,FILT_YS,0),FILT_MS,FILT_DS),BET_DATE,"<="&DATE(OFFSET(AZ$11,FILT_YE,0),FILT_ME,FILT_DE),SPORT,OFFSET(AV$10,FILT_S,0),CAPPER,OFFSET(AX$10,FILT_T,0)), IF(AND(FILT_D>1,FILT_B>1,FILT_S=1,FILT_T>1,FILT_C>1),SUMIFS(AT_RISK,AGENCY,AN12,WIN,"<>P",CUSTOM,OFFSET(AY$10,FILT_C,0),BET_DATE,">="&DATE(OFFSET(AZ$11,FILT_YS,0),FILT_MS,FILT_DS),BET_DATE,"<="&DATE(OFFSET(AZ$11,FILT_YE,0),FILT_ME,FILT_DE),BET_TYPE,OFFSET(AW$10,FILT_B,0),CAPPER,OFFSET(AX$10,FILT_T,0)), IF(AND(FILT_D>1,FILT_B>1,FILT_S>1,FILT_T>1,FILT_C>1),SUMIFS(AT_RISK,AGENCY,AN12,WIN,"<>P",CUSTOM,OFFSET(AY$10,FILT_C,0),BET_DATE,">="&DATE(OFFSET(AZ$11,FILT_YS,0),FILT_MS,FILT_DS),BET_DATE,"<="&DATE(OFFSET(AZ$11,FILT_YE,0),FILT_ME,FILT_DE),BET_TYPE,OFFSET(AW$10,FILT_B,0),SPORT,OFFSET(AV$10,FILT_S,0),CAPPER,OFFSET(AX$10,FILT_T,0)), "")))))))))))))))))))))))))))))))), "") -> 115 | AP12: =IF(AN12<>"", IF(AND(FILT_D=1,FILT_B=1,FILT_S=1,FILT_T=1,FILT_C=1),SUMIFS(PROFIT,AGENCY,AN12,WIN,"<>P"), IF(AND(FILT_D>1,FILT_B=1,FILT_S=1,FILT_T=1,FILT_C=1),SUMIFS(PROFIT,AGENCY,AN12,WIN,"<>P",BET_DATE,">="&DATE(OFFSET(AZ$11,FILT_YS,0),FILT_MS,FILT_DS),BET_DATE,"<="&DATE(OFFSET(AZ$11,FILT_YE,0),FILT_ME,FILT_DE)), IF(AND(FILT_D=1,FILT_B>1,FILT_S=1,FILT_T=1,FILT_C=1),SUMIFS(PROFIT,AGENCY,AN12,WIN,"<>P",BET_TYPE,OFFSET(AW$10,FILT_B,0)), IF(AND(FILT_D=1,FILT_B=1,FILT_S>1,FILT_T=1,FILT_C=1),SUMIFS(PROFIT,AGENCY,AN12,WIN,"<>P",SPORT,OFFSET(AV$10,FILT_S,0)), IF(AND(FILT_D=1,FILT_B=1,FILT_S=1,FILT_T>1,FILT_C=1),SUMIFS(PROFIT,AGENCY,AN12,WIN,"<>P",CAPPER,OFFSET(AX$10,FILT_T,0)), IF(AND(FILT_D>1,FILT_B>1,FILT_S=1,FILT_T=1,FILT_C=1),SUMIFS(PROFIT,AGENCY,AN12,WIN,"<>P",BET_DATE,">="&DATE(OFFSET(AZ$11,FILT_YS,0),FILT_MS,FILT_DS),BET_DATE,"<="&DATE(OFFSET(AZ$11,FILT_YE,0),FILT_ME,FILT_DE),BET_TYPE,OFFSET(AW$10,FILT_B,0)), IF(AND(FILT_D>1,FILT_B=1,FILT_S>1,FILT_T=1,FILT_C=1),SUMIFS(PROFIT,AGENCY,AN12,WIN,"<>P",BET_DATE,">="&DATE(OFFSET(AZ$11,FILT_YS,0),FILT_MS,FILT_DS),BET_DATE,"<="&DATE(OFFSET(AZ$11,FILT_YE,0),FILT_ME,FILT_DE),SPORT,OFFSET(AV$10,FILT_S,0)), IF(AND(FILT_D>1,FILT_B=1,FILT_S=1,FILT_T>1,FILT_C=1),SUMIFS(PROFIT,AGENCY,AN12,WIN,"<>P",BET_DATE,">="&DATE(OFFSET(AZ$11,FILT_YS,0),FILT_MS,FILT_DS),BET_DATE,"<="&DATE(OFFSET(AZ$11,FILT_YE,0),FILT_ME,FILT_DE),CAPPER,OFFSET(AX$10,FILT_T,0)), IF(AND(FILT_D=1,FILT_B>1,FILT_S>1,FILT_T=1,FILT_C=1),SUMIFS(PROFIT,AGENCY,AN12,WIN,"<>P",BET_TYPE,OFFSET(AW$10,FILT_B,0),SPORT,OFFSET(AV$10,FILT_S,0)), IF(AND(FILT_D=1,FILT_B>1,FILT_S=1,FILT_T>1,FILT_C=1),SUMIFS(PROFIT,AGENCY,AN12,WIN,"<>P",BET_TYPE,OFFSET(AW$10,FILT_B,0),CAPPER,OFFSET(AX$10,FILT_T,0)), IF(AND(FILT_D=1,FILT_B=1,FILT_S>1,FILT_T>1,FILT_C=1),SUMIFS(PROFIT,AGENCY,AN12,WIN,"<>P",SPORT,OFFSET(AV$10,FILT_S,0),CAPPER,OFFSET(AX$10,FILT_T,0)), IF(AND(FILT_D>1,FILT_B>1,FILT_S>1,FILT_T=1,FILT_C=1),SUMIFS(PROFIT,AGENCY,AN12,WIN,"<>P",BET_DATE,">="&DATE(OFFSET(AZ$11,FILT_YS,0),FILT_MS,FILT_DS),BET_DATE,"<="&DATE(OFFSET(AZ$11,FILT_YE,0),FILT_ME,FILT_DE),BET_TYPE,OFFSET(AW$10,FILT_B,0),SPORT,OFFSET(AV$10,FILT_S,0)), IF(AND(FILT_D=1,FILT_B>1,FILT_S>1,FILT_T>1,FILT_C=1),SUMIFS(PROFIT,AGENCY,AN12,WIN,"<>P",BET_TYPE,OFFSET(AW$10,FILT_B,0),SPORT,OFFSET(AV$10,FILT_S,0),CAPPER,OFFSET(AX$10,FILT_T,0)), IF(AND(FILT_D>1,FILT_B=1,FILT_S>1,FILT_T>1,FILT_C=1),SUMIFS(PROFIT,AGENCY,AN12,WIN,"<>P",BET_DATE,">="&DATE(OFFSET(AZ$11,FILT_YS,0),FILT_MS,FILT_DS),BET_DATE,"<="&DATE(OFFSET(AZ$11,FILT_YE,0),FILT_ME,FILT_DE),SPORT,OFFSET(AV$10,FILT_S,0),CAPPER,OFFSET(AX$10,FILT_T,0)), IF(AND(FILT_D>1,FILT_B>1,FILT_S=1,FILT_T>1,FILT_C=1),SUMIFS(PROFIT,AGENCY,AN12,WIN,"<>P",BET_DATE,">="&DATE(OFFSET(AZ$11,FILT_YS,0),FILT_MS,FILT_DS),BET_DATE,"<="&DATE(OFFSET(AZ$11,FILT_YE,0),FILT_ME,FILT_DE),BET_TYPE,OFFSET(AW$10,FILT_B,0),CAPPER,OFFSET(AX$10,FILT_T,0)), IF(AND(FILT_D>1,FILT_B>1,FILT_S>1,FILT_T>1,FILT_C=1),SUMIFS(PROFIT,AGENCY,AN12,WIN,"<>P",BET_DATE,">="&DATE(OFFSET(AZ$11,FILT_YS,0),FILT_MS,FILT_DS),BET_DATE,"<="&DATE(OFFSET(AZ$11,FILT_YE,0),FILT_ME,FILT_DE),BET_TYPE,OFFSET(AW$10,FILT_B,0),SPORT,OFFSET(AV$10,FILT_S,0),CAPPER,OFFSET(AX$10,FILT_T,0)), IF(AND(FILT_D=1,FILT_B=1,FILT_S=1,FILT_T=1,FILT_C>1),SUMIFS(PROFIT,AGENCY,AN12,WIN,"<>P",CUSTOM,OFFSET(AY$10,FILT_C,0)), IF(AND(FILT_D>1,FILT_B=1,FILT_S=1,FILT_T=1,FILT_C>1),SUMIFS(PROFIT,AGENCY,AN12,WIN,"<>P",CUSTOM,OFFSET(AY$10,FILT_C,0),BET_DATE,">="&DATE(OFFSET(AZ$11,FILT_YS,0),FILT_MS,FILT_DS),BET_DATE,"<="&DATE(OFFSET(AZ$11,FILT_YE,0),FILT_ME,FILT_DE)), IF(AND(FILT_D=1,FILT_B>1,FILT_S=1,FILT_T=1,FILT_C>1),SUMIFS(PROFIT,AGENCY,AN12,WIN,"<>P",CUSTOM,OFFSET(AY$10,FILT_C,0),BET_TYPE,OFFSET(AW$10,FILT_B,0)), IF(AND(FILT_D=1,FILT_B=1,FILT_S>1,FILT_T=1,FILT_C>1),SUMIFS(PROFIT,AGENCY,AN12,WIN,"<>P",CUSTOM,OFFSET(AY$10,FILT_C,0),SPORT,OFFSET(AV$10,FILT_S,0)), IF(AND(FILT_D=1,FILT_B=1,FILT_S=1,FILT_T>1,FILT_C>1),SUMIFS(PROFIT,AGENCY,AN12,WIN,"<>P",CUSTOM,OFFSET(AY$10,FILT_C,0),CAPPER,OFFSET(AX$10,FILT_T,0)), IF(AND(FILT_D>1,FILT_B>1,FILT_S=1,FILT_T=1,FILT_C>1),SUMIFS(PROFIT,AGENCY,AN12,WIN,"<>P",CUSTOM,OFFSET(AY$10,FILT_C,0),BET_DATE,">="&DATE(OFFSET(AZ$11,FILT_YS,0),FILT_MS,FILT_DS),BET_DATE,"<="&DATE(OFFSET(AZ$11,FILT_YE,0),FILT_ME,FILT_DE),BET_TYPE,OFFSET(AW$10,FILT_B,0)), IF(AND(FILT_D>1,FILT_B=1,FILT_S>1,FILT_T=1,FILT_C>1),SUMIFS(PROFIT,AGENCY,AN12,WIN,"<>P",CUSTOM,OFFSET(AY$10,FILT_C,0),BET_DATE,">="&DATE(OFFSET(AZ$11,FILT_YS,0),FILT_MS,FILT_DS),BET_DATE,"<="&DATE(OFFSET(AZ$11,FILT_YE,0),FILT_ME,FILT_DE),SPORT,OFFSET(AV$10,FILT_S,0)), IF(AND(FILT_D>1,FILT_B=1,FILT_S=1,FILT_T>1,FILT_C>1),SUMIFS(PROFIT,AGENCY,AN12,WIN,"<>P",CUSTOM,OFFSET(AY$10,FILT_C,0),BET_DATE,">="&DATE(OFFSET(AZ$11,FILT_YS,0),FILT_MS,FILT_DS),BET_DATE,"<="&DATE(OFFSET(AZ$11,FILT_YE,0),FILT_ME,FILT_DE),CAPPER,OFFSET(AX$10,FILT_T,0)), IF(AND(FILT_D=1,FILT_B>1,FILT_S>1,FILT_T=1,FILT_C>1),SUMIFS(PROFIT,AGENCY,AN12,WIN,"<>P",CUSTOM,OFFSET(AY$10,FILT_C,0),BET_TYPE,OFFSET(AW$10,FILT_B,0),SPORT,OFFSET(AV$10,FILT_S,0)), IF(AND(FILT_D=1,FILT_B>1,FILT_S=1,FILT_T>1,FILT_C>1),SUMIFS(PROFIT,AGENCY,AN12,WIN,"<>P",CUSTOM,OFFSET(AY$10,FILT_C,0),BET_TYPE,OFFSET(AW$10,FILT_B,0),CAPPER,OFFSET(AX$10,FILT_T,0)), IF(AND(FILT_D=1,FILT_B=1,FILT_S>1,FILT_T>1,FILT_C>1),SUMIFS(PROFIT,AGENCY,AN12,WIN,"<>P",CUSTOM,OFFSET(AY$10,FILT_C,0),SPORT,OFFSET(AV$10,FILT_S,0),CAPPER,OFFSET(AX$10,FILT_T,0)), IF(AND(FILT_D>1,FILT_B>1,FILT_S>1,FILT_T=1,FILT_C>1),SUMIFS(PROFIT,AGENCY,AN12,WIN,"<>P",CUSTOM,OFFSET(AY$10,FILT_C,0),BET_DATE,">="&DATE(OFFSET(AZ$11,FILT_YS,0),FILT_MS,FILT_DS),BET_DATE,"<="&DATE(OFFSET(AZ$11,FILT_YE,0),FILT_ME,FILT_DE),BET_TYPE,OFFSET(AW$10,FILT_B,0),SPORT,OFFSET(AV$10,FILT_S,0)), IF(AND(FILT_D=1,FILT_B>1,FILT_S>1,FILT_T>1,FILT_C>1),SUMIFS(PROFIT,AGENCY,AN12,WIN,"<>P",CUSTOM,OFFSET(AY$10,FILT_C,0),BET_TYPE,OFFSET(AW$10,FILT_B,0),SPORT,OFFSET(AV$10,FILT_S,0),CAPPER,OFFSET(AX$10,FILT_T,0)), IF(AND(FILT_D>1,FILT_B=1,FILT_S>1,FILT_T>1,FILT_C>1),SUMIFS(PROFIT,AGENCY,AN12,WIN,"<>P",CUSTOM,OFFSET(AY$10,FILT_C,0),BET_DATE,">="&DATE(OFFSET(AZ$11,FILT_YS,0),FILT_MS,FILT_DS),BET_DATE,"<="&DATE(OFFSET(AZ$11,FILT_YE,0),FILT_ME,FILT_DE),SPORT,OFFSET(AV$10,FILT_S,0),CAPPER,OFFSET(AX$10,FILT_T,0)), IF(AND(FILT_D>1,FILT_B>1,FILT_S=1,FILT_T>1,FILT_C>1),SUMIFS(PROFIT,AGENCY,AN12,WIN,"<>P",CUSTOM,OFFSET(AY$10,FILT_C,0),BET_DATE,">="&DATE(OFFSET(AZ$11,FILT_YS,0),FILT_MS,FILT_DS),BET_DATE,"<="&DATE(OFFSET(AZ$11,FILT_YE,0),FILT_ME,FILT_DE),BET_TYPE,OFFSET(AW$10,FILT_B,0),CAPPER,OFFSET(AX$10,FILT_T,0)), IF(AND(FILT_D>1,FILT_B>1,FILT_S>1,FILT_T>1,FILT_C>1),SUMIFS(PROFIT,AGENCY,AN12,WIN,"<>P",CUSTOM,OFFSET(AY$10,FILT_C,0),BET_DATE,">="&DATE(OFFSET(AZ$11,FILT_YS,0),FILT_MS,FILT_DS),BET_DATE,"<="&DATE(OFFSET(AZ$11,FILT_YE,0),FILT_ME,FILT_DE),BET_TYPE,OFFSET(AW$10,FILT_B,0),SPORT,OFFSET(AV$10,FILT_S,0),CAPPER,OFFSET(AX$10,FILT_T,0)), "")))))))))))))))))))))))))))))))), "") -> -20.5 | AQ12: =IF(AND(AO12<>"",AO12>0),AP12/AO12,"") -> -0.1782608696 | AR12: =IF(AN12<>"", IF(FILT_D>1,AP12+SUMIFS(CREDIT_AMOUNT,CREDIT_AGENCY,AN12,CREDIT_DATE,">="&DATE(OFFSET(AZ$11,FILT_YS,0),FILT_MS,FILT_DS),CREDIT_DATE,"<="&DATE(OFFSET(AZ$11,FILT_YE,0),FILT_ME,FILT_DE)),AP12+SUMIFS(CREDIT_AMOUNT,CREDIT_AGENCY,AN12) ),"") -> -20.5 | AS12: =IF(AN12<>"", IF(AND(FILT_D=1,FILT_B=1,FILT_S=1,FILT_T=1,FILT_C=1),COUNTIFS(AGENCY,AN12,WIN,"Y"), IF(AND(FILT_D>1,FILT_B=1,FILT_S=1,FILT_T=1,FILT_C=1),COUNTIFS(AGENCY,AN12,WIN,"Y",BET_DATE,">="&DATE(OFFSET(AZ$11,FILT_YS,0),FILT_MS,FILT_DS),BET_DATE,"<="&DATE(OFFSET(AZ$11,FILT_YE,0),FILT_ME,FILT_DE)), IF(AND(FILT_D=1,FILT_B>1,FILT_S=1,FILT_T=1,FILT_C=1),COUNTIFS(AGENCY,AN12,WIN,"Y",BET_TYPE,OFFSET(AW$10,FILT_B,0)), IF(AND(FILT_D=1,FILT_B=1,FILT_S>1,FILT_T=1,FILT_C=1),COUNTIFS(AGENCY,AN12,WIN,"Y",SPORT,OFFSET(AV$10,FILT_S,0)), IF(AND(FILT_D=1,FILT_B=1,FILT_S=1,FILT_T>1,FILT_C=1),COUNTIFS(AGENCY,AN12,WIN,"Y",CAPPER,OFFSET(AX$10,FILT_T,0)), IF(AND(FILT_D>1,FILT_B>1,FILT_S=1,FILT_T=1,FILT_C=1),COUNTIFS(AGENCY,AN12,WIN,"Y",BET_DATE,">="&DATE(OFFSET(AZ$11,FILT_YS,0),FILT_MS,FILT_DS),BET_DATE,"<="&DATE(OFFSET(AZ$11,FILT_YE,0),FILT_ME,FILT_DE),BET_TYPE,OFFSET(AW$10,FILT_B,0)), IF(AND(FILT_D>1,FILT_B=1,FILT_S>1,FILT_T=1,FILT_C=1),COUNTIFS(AGENCY,AN12,WIN,"Y",BET_DATE,">="&DATE(OFFSET(AZ$11,FILT_YS,0),FILT_MS,FILT_DS),BET_DATE,"<="&DATE(OFFSET(AZ$11,FILT_YE,0),FILT_ME,FILT_DE),SPORT,OFFSET(AV$10,FILT_S,0)), IF(AND(FILT_D>1,FILT_B=1,FILT_S=1,FILT_T>1,FILT_C=1),COUNTIFS(AGENCY,AN12,WIN,"Y",BET_DATE,">="&DATE(OFFSET(AZ$11,FILT_YS,0),FILT_MS,FILT_DS),BET_DATE,"<="&DATE(OFFSET(AZ$11,FILT_YE,0),FILT_ME,FILT_DE),CAPPER,OFFSET(AX$10,FILT_T,0)), IF(AND(FILT_D=1,FILT_B>1,FILT_S>1,FILT_T=1,FILT_C=1),COUNTIFS(AGENCY,AN12,WIN,"Y",BET_TYPE,OFFSET(AW$10,FILT_B,0),SPORT,OFFSET(AV$10,FILT_S,0)), IF(AND(FILT_D=1,FILT_B>1,FILT_S=1,FILT_T>1,FILT_C=1),COUNTIFS(AGENCY,AN12,WIN,"Y",BET_TYPE,OFFSET(AW$10,FILT_B,0),CAPPER,OFFSET(AX$10,FILT_T,0)), IF(AND(FILT_D=1,FILT_B=1,FILT_S>1,FILT_T>1,FILT_C=1),COUNTIFS(AGENCY,AN12,WIN,"Y",SPORT,OFFSET(AV$10,FILT_S,0),CAPPER,OFFSET(AX$10,FILT_T,0)), IF(AND(FILT_D>1,FILT_B>1,FILT_S>1,FILT_T=1,FILT_C=1),COUNTIFS(AGENCY,AN12,WIN,"Y",BET_DATE,">="&DATE(OFFSET(AZ$11,FILT_YS,0),FILT_MS,FILT_DS),BET_DATE,"<="&DATE(OFFSET(AZ$11,FILT_YE,0),FILT_ME,FILT_DE),BET_TYPE,OFFSET(AW$10,FILT_B,0),SPORT,OFFSET(AV$10,FILT_S,0)), IF(AND(FILT_D=1,FILT_B>1,FILT_S>1,FILT_T>1,FILT_C=1),COUNTIFS(AGENCY,AN12,WIN,"Y",BET_TYPE,OFFSET(AW$10,FILT_B,0),SPORT,OFFSET(AV$10,FILT_S,0),CAPPER,OFFSET(AX$10,FILT_T,0)), IF(AND(FILT_D>1,FILT_B=1,FILT_S>1,FILT_T>1,FILT_C=1),COUNTIFS(AGENCY,AN12,WIN,"Y",BET_DATE,">="&DATE(OFFSET(AZ$11,FILT_YS,0),FILT_MS,FILT_DS),BET_DATE,"<="&DATE(OFFSET(AZ$11,FILT_YE,0),FILT_ME,FILT_DE),SPORT,OFFSET(AV$10,FILT_S,0),CAPPER,OFFSET(AX$10,FILT_T,0)), IF(AND(FILT_D>1,FILT_B>1,FILT_S=1,FILT_T>1,FILT_C=1),COUNTIFS(AGENCY,AN12,WIN,"Y",BET_DATE,">="&DATE(OFFSET(AZ$11,FILT_YS,0),FILT_MS,FILT_DS),BET_DATE,"<="&DATE(OFFSET(AZ$11,FILT_YE,0),FILT_ME,FILT_DE),BET_TYPE,OFFSET(AW$10,FILT_B,0),CAPPER,OFFSET(AX$10,FILT_T,0)), IF(AND(FILT_D>1,FILT_B>1,FILT_S>1,FILT_T>1,FILT_C=1),COUNTIFS(AGENCY,AN12,WIN,"Y",BET_DATE,">="&DATE(OFFSET(AZ$11,FILT_YS,0),FILT_MS,FILT_DS),BET_DATE,"<="&DATE(OFFSET(AZ$11,FILT_YE,0),FILT_ME,FILT_DE),BET_TYPE,OFFSET(AW$10,FILT_B,0),SPORT,OFFSET(AV$10,FILT_S,0),CAPPER,OFFSET(AX$10,FILT_T,0)), IF(AND(FILT_D=1,FILT_B=1,FILT_S=1,FILT_T=1,FILT_C>1),COUNTIFS(AGENCY,AN12,WIN,"Y",CUSTOM,OFFSET(AY$10,FILT_C,0)), IF(AND(FILT_D>1,FILT_B=1,FILT_S=1,FILT_T=1,FILT_C>1),COUNTIFS(AGENCY,AN12,WIN,"Y",CUSTOM,OFFSET(AY$10,FILT_C,0),BET_DATE,">="&DATE(OFFSET(AZ$11,FILT_YS,0),FILT_MS,FILT_DS),BET_DATE,"<="&DATE(OFFSET(AZ$11,FILT_YE,0),FILT_ME,FILT_DE)), IF(AND(FILT_D=1,FILT_B>1,FILT_S=1,FILT_T=1,FILT_C>1),COUNTIFS(AGENCY,AN12,WIN,"Y",CUSTOM,OFFSET(AY$10,FILT_C,0),BET_TYPE,OFFSET(AW$10,FILT_B,0)), IF(AND(FILT_D=1,FILT_B=1,FILT_S>1,FILT_T=1,FILT_C>1),COUNTIFS(AGENCY,AN12,WIN,"Y",CUSTOM,OFFSET(AY$10,FILT_C,0),SPORT,OFFSET(AV$10,FILT_S,0)), IF(AND(FILT_D=1,FILT_B=1,FILT_S=1,FILT_T>1,FILT_C>1),COUNTIFS(AGENCY,AN12,WIN,"Y",CUSTOM,OFFSET(AY$10,FILT_C,0),CAPPER,OFFSET(AX$10,FILT_T,0)), IF(AND(FILT_D>1,FILT_B>1,FILT_S=1,FILT_T=1,FILT_C>1),COUNTIFS(AGENCY,AN12,WIN,"Y",CUSTOM,OFFSET(AY$10,FILT_C,0),BET_DATE,">="&DATE(OFFSET(AZ$11,FILT_YS,0),FILT_MS,FILT_DS),BET_DATE,"<="&DATE(OFFSET(AZ$11,FILT_YE,0),FILT_ME,FILT_DE),BET_TYPE,OFFSET(AW$10,FILT_B,0)), IF(AND(FILT_D>1,FILT_B=1,FILT_S>1,FILT_T=1,FILT_C>1),COUNTIFS(AGENCY,AN12,WIN,"Y",CUSTOM,OFFSET(AY$10,FILT_C,0),BET_DATE,">="&DATE(OFFSET(AZ$11,FILT_YS,0),FILT_MS,FILT_DS),BET_DATE,"<="&DATE(OFFSET(AZ$11,FILT_YE,0),FILT_ME,FILT_DE),SPORT,OFFSET(AV$10,FILT_S,0)), IF(AND(FILT_D>1,FILT_B=1,FILT_S=1,FILT_T>1,FILT_C>1),COUNTIFS(AGENCY,AN12,WIN,"Y",CUSTOM,OFFSET(AY$10,FILT_C,0),BET_DATE,">="&DATE(OFFSET(AZ$11,FILT_YS,0),FILT_MS,FILT_DS),BET_DATE,"<="&DATE(OFFSET(AZ$11,FILT_YE,0),FILT_ME,FILT_DE),CAPPER,OFFSET(AX$10,FILT_T,0)), IF(AND(FILT_D=1,FILT_B>1,FILT_S>1,FILT_T=1,FILT_C>1),COUNTIFS(AGENCY,AN12,WIN,"Y",CUSTOM,OFFSET(AY$10,FILT_C,0),BET_TYPE,OFFSET(AW$10,FILT_B,0),SPORT,OFFSET(AV$10,FILT_S,0)), IF(AND(FILT_D=1,FILT_B>1,FILT_S=1,FILT_T>1,FILT_C>1),COUNTIFS(AGENCY,AN12,WIN,"Y",CUSTOM,OFFSET(AY$10,FILT_C,0),BET_TYPE,OFFSET(AW$10,FILT_B,0),CAPPER,OFFSET(AX$10,FILT_T,0)), IF(AND(FILT_D=1,FILT_B=1,FILT_S>1,FILT_T>1,FILT_C>1),COUNTIFS(AGENCY,AN12,WIN,"Y",CUSTOM,OFFSET(AY$10,FILT_C,0),SPORT,OFFSET(AV$10,FILT_S,0),CAPPER,OFFSET(AX$10,FILT_T,0)), IF(AND(FILT_D>1,FILT_B>1,FILT_S>1,FILT_T=1,FILT_C>1),COUNTIFS(AGENCY,AN12,WIN,"Y",CUSTOM,OFFSET(AY$10,FILT_C,0),BET_DATE,">="&DATE(OFFSET(AZ$11,FILT_YS,0),FILT_MS,FILT_DS),BET_DATE,"<="&DATE(OFFSET(AZ$11,FILT_YE,0),FILT_ME,FILT_DE),BET_TYPE,OFFSET(AW$10,FILT_B,0),SPORT,OFFSET(AV$10,FILT_S,0)), IF(AND(FILT_D=1,FILT_B>1,FILT_S>1,FILT_T>1,FILT_C>1),COUNTIFS(AGENCY,AN12,WIN,"Y",CUSTOM,OFFSET(AY$10,FILT_C,0),BET_TYPE,OFFSET(AW$10,FILT_B,0),SPORT,OFFSET(AV$10,FILT_S,0),CAPPER,OFFSET(AX$10,FILT_T,0)), IF(AND(FILT_D>1,FILT_B=1,FILT_S>1,FILT_T>1,FILT_C>1),COUNTIFS(AGENCY,AN12,WIN,"Y",CUSTOM,OFFSET(AY$10,FILT_C,0),BET_DATE,">="&DATE(OFFSET(AZ$11,FILT_YS,0),FILT_MS,FILT_DS),BET_DATE,"<="&DATE(OFFSET(AZ$11,FILT_YE,0),FILT_ME,FILT_DE),SPORT,OFFSET(AV$10,FILT_S,0),CAPPER,OFFSET(AX$10,FILT_T,0)), IF(AND(FILT_D>1,FILT_B>1,FILT_S=1,FILT_T>1,FILT_C>1),COUNTIFS(AGENCY,AN12,WIN,"Y",CUSTOM,OFFSET(AY$10,FILT_C,0),BET_DATE,">="&DATE(OFFSET(AZ$11,FILT_YS,0),FILT_MS,FILT_DS),BET_DATE,"<="&DATE(OFFSET(AZ$11,FILT_YE,0),FILT_ME,FILT_DE),BET_TYPE,OFFSET(AW$10,FILT_B,0),CAPPER,OFFSET(AX$10,FILT_T,0)), IF(AND(FILT_D>1,FILT_B>1,FILT_S>1,FILT_T>1,FILT_C>1),COUNTIFS(AGENCY,AN12,WIN,"Y",CUSTOM,OFFSET(AY$10,FILT_C,0),BET_DATE,">="&DATE(OFFSET(AZ$11,FILT_YS,0),FILT_MS,FILT_DS),BET_DATE,"<="&DATE(OFFSET(AZ$11,FILT_YE,0),FILT_ME,FILT_DE),BET_TYPE,OFFSET(AW$10,FILT_B,0),SPORT,OFFSET(AV$10,FILT_S,0),CAPPER,OFFSET(AX$10,FILT_T,0)), "")))))))))))))))))))))))))))))))), "") -> 1 | AT12: =IF(AN12<>"", IF(AND(FILT_D=1,FILT_B=1,FILT_S=1,FILT_T=1,FILT_C=1),COUNTIFS(AGENCY,AN12,WIN,"<>P",WIN,"<>R",WIN,"<>PU"), IF(AND(FILT_D>1,FILT_B=1,FILT_S=1,FILT_T=1,FILT_C=1),COUNTIFS(AGENCY,AN12,WIN,"<>P",WIN,"<>R",WIN,"<>PU",BET_DATE,">="&DATE(OFFSET(AZ$11,FILT_YS,0),FILT_MS,FILT_DS),BET_DATE,"<="&DATE(OFFSET(AZ$11,FILT_YE,0),FILT_ME,FILT_DE)), IF(AND(FILT_D=1,FILT_B>1,FILT_S=1,FILT_T=1,FILT_C=1),COUNTIFS(AGENCY,AN12,WIN,"<>P",WIN,"<>R",WIN,"<>PU",BET_TYPE,OFFSET(AW$10,FILT_B,0)), IF(AND(FILT_D=1,FILT_B=1,FILT_S>1,FILT_T=1,FILT_C=1),COUNTIFS(AGENCY,AN12,WIN,"<>P",WIN,"<>R",WIN,"<>PU",SPORT,OFFSET(AV$10,FILT_S,0)), IF(AND(FILT_D=1,FILT_B=1,FILT_S=1,FILT_T>1,FILT_C=1),COUNTIFS(AGENCY,AN12,WIN,"<>P",WIN,"<>R",WIN,"<>PU",CAPPER,OFFSET(AX$10,FILT_T,0)), IF(AND(FILT_D>1,FILT_B>1,FILT_S=1,FILT_T=1,FILT_C=1),COUNTIFS(AGENCY,AN12,WIN,"<>P",WIN,"<>R",WIN,"<>PU",BET_DATE,">="&DATE(OFFSET(AZ$11,FILT_YS,0),FILT_MS,FILT_DS),BET_DATE,"<="&DATE(OFFSET(AZ$11,FILT_YE,0),FILT_ME,FILT_DE),BET_TYPE,OFFSET(AW$10,FILT_B,0)), IF(AND(FILT_D>1,FILT_B=1,FILT_S>1,FILT_T=1,FILT_C=1),COUNTIFS(AGENCY,AN12,WIN,"<>P",WIN,"<>R",WIN,"<>PU",BET_DATE,">="&DATE(OFFSET(AZ$11,FILT_YS,0),FILT_MS,FILT_DS),BET_DATE,"<="&DATE(OFFSET(AZ$11,FILT_YE,0),FILT_ME,FILT_DE),SPORT,OFFSET(AV$10,FILT_S,0)), IF(AND(FILT_D>1,FILT_B=1,FILT_S=1,FILT_T>1,FILT_C=1),COUNTIFS(AGENCY,AN12,WIN,"<>P",WIN,"<>R",WIN,"<>PU",BET_DATE,">="&DATE(OFFSET(AZ$11,FILT_YS,0),FILT_MS,FILT_DS),BET_DATE,"<="&DATE(OFFSET(AZ$11,FILT_YE,0),FILT_ME,FILT_DE),CAPPER,OFFSET(AX$10,FILT_T,0)), IF(AND(FILT_D=1,FILT_B>1,FILT_S>1,FILT_T=1,FILT_C=1),COUNTIFS(AGENCY,AN12,WIN,"<>P",WIN,"<>R",WIN,"<>PU",BET_TYPE,OFFSET(AW$10,FILT_B,0),SPORT,OFFSET(AV$10,FILT_S,0)), IF(AND(FILT_D=1,FILT_B>1,FILT_S=1,FILT_T>1,FILT_C=1),COUNTIFS(AGENCY,AN12,WIN,"<>P",WIN,"<>R",WIN,"<>PU",BET_TYPE,OFFSET(AW$10,FILT_B,0),CAPPER,OFFSET(AX$10,FILT_T,0)), IF(AND(FILT_D=1,FILT_B=1,FILT_S>1,FILT_T>1,FILT_C=1),COUNTIFS(AGENCY,AN12,WIN,"<>P",WIN,"<>R",WIN,"<>PU",SPORT,OFFSET(AV$10,FILT_S,0),CAPPER,OFFSET(AX$10,FILT_T,0)), IF(AND(FILT_D>1,FILT_B>1,FILT_S>1,FILT_T=1,FILT_C=1),COUNTIFS(AGENCY,AN12,WIN,"<>P",WIN,"<>R",WIN,"<>PU",BET_DATE,">="&DATE(OFFSET(AZ$11,FILT_YS,0),FILT_MS,FILT_DS),BET_DATE,"<="&DATE(OFFSET(AZ$11,FILT_YE,0),FILT_ME,FILT_DE),BET_TYPE,OFFSET(AW$10,FILT_B,0),SPORT,OFFSET(AV$10,FILT_S,0)), IF(AND(FILT_D=1,FILT_B>1,FILT_S>1,FILT_T>1,FILT_C=1),COUNTIFS(AGENCY,AN12,WIN,"<>P",WIN,"<>R",WIN,"<>PU",BET_TYPE,OFFSET(AW$10,FILT_B,0),SPORT,OFFSET(AV$10,FILT_S,0),CAPPER,OFFSET(AX$10,FILT_T,0)), IF(AND(FILT_D>1,FILT_B=1,FILT_S>1,FILT_T>1,FILT_C=1),COUNTIFS(AGENCY,AN12,WIN,"<>P",WIN,"<>R",WIN,"<>PU",BET_DATE,">="&DATE(OFFSET(AZ$11,FILT_YS,0),FILT_MS,FILT_DS),BET_DATE,"<="&DATE(OFFSET(AZ$11,FILT_YE,0),FILT_ME,FILT_DE),SPORT,OFFSET(AV$10,FILT_S,0),CAPPER,OFFSET(AX$10,FILT_T,0)), IF(AND(FILT_D>1,FILT_B>1,FILT_S=1,FILT_T>1,FILT_C=1),COUNTIFS(AGENCY,AN12,WIN,"<>P",WIN,"<>R",WIN,"<>PU",BET_DATE,">="&DATE(OFFSET(AZ$11,FILT_YS,0),FILT_MS,FILT_DS),BET_DATE,"<="&DATE(OFFSET(AZ$11,FILT_YE,0),FILT_ME,FILT_DE),BET_TYPE,OFFSET(AW$10,FILT_B,0),CAPPER,OFFSET(AX$10,FILT_T,0)), IF(AND(FILT_D>1,FILT_B>1,FILT_S>1,FILT_T>1,FILT_C=1),COUNTIFS(AGENCY,AN12,WIN,"<>P",WIN,"<>R",WIN,"<>PU",BET_DATE,">="&DATE(OFFSET(AZ$11,FILT_YS,0),FILT_MS,FILT_DS),BET_DATE,"<="&DATE(OFFSET(AZ$11,FILT_YE,0),FILT_ME,FILT_DE),BET_TYPE,OFFSET(AW$10,FILT_B,0),SPORT,OFFSET(AV$10,FILT_S,0),CAPPER,OFFSET(AX$10,FILT_T,0)), IF(AND(FILT_D=1,FILT_B=1,FILT_S=1,FILT_T=1,FILT_C>1),COUNTIFS(AGENCY,AN12,WIN,"<>P",WIN,"<>R",WIN,"<>PU",CUSTOM,OFFSET(AY$10,FILT_C,0)), IF(AND(FILT_D>1,FILT_B=1,FILT_S=1,FILT_T=1,FILT_C>1),COUNTIFS(AGENCY,AN12,WIN,"<>P",WIN,"<>R",WIN,"<>PU",CUSTOM,OFFSET(AY$10,FILT_C,0),BET_DATE,">="&DATE(OFFSET(AZ$11,FILT_YS,0),FILT_MS,FILT_DS),BET_DATE,"<="&DATE(OFFSET(AZ$11,FILT_YE,0),FILT_ME,FILT_DE)), IF(AND(FILT_D=1,FILT_B>1,FILT_S=1,FILT_T=1,FILT_C>1),COUNTIFS(AGENCY,AN12,WIN,"<>P",WIN,"<>R",WIN,"<>PU",CUSTOM,OFFSET(AY$10,FILT_C,0),BET_TYPE,OFFSET(AW$10,FILT_B,0)), IF(AND(FILT_D=1,FILT_B=1,FILT_S>1,FILT_T=1,FILT_C>1),COUNTIFS(AGENCY,AN12,WIN,"<>P",WIN,"<>R",WIN,"<>PU",CUSTOM,OFFSET(AY$10,FILT_C,0),SPORT,OFFSET(AV$10,FILT_S,0)), IF(AND(FILT_D=1,FILT_B=1,FILT_S=1,FILT_T>1,FILT_C>1),COUNTIFS(AGENCY,AN12,WIN,"<>P",WIN,"<>R",WIN,"<>PU",CUSTOM,OFFSET(AY$10,FILT_C,0),CAPPER,OFFSET(AX$10,FILT_T,0)), IF(AND(FILT_D>1,FILT_B>1,FILT_S=1,FILT_T=1,FILT_C>1),COUNTIFS(AGENCY,AN12,WIN,"<>P",WIN,"<>R",WIN,"<>PU",CUSTOM,OFFSET(AY$10,FILT_C,0),BET_DATE,">="&DATE(OFFSET(AZ$11,FILT_YS,0),FILT_MS,FILT_DS),BET_DATE,"<="&DATE(OFFSET(AZ$11,FILT_YE,0),FILT_ME,FILT_DE),BET_TYPE,OFFSET(AW$10,FILT_B,0)), IF(AND(FILT_D>1,FILT_B=1,FILT_S>1,FILT_T=1,FILT_C>1),COUNTIFS(AGENCY,AN12,WIN,"<>P",WIN,"<>R",WIN,"<>PU",CUSTOM,OFFSET(AY$10,FILT_C,0),BET_DATE,">="&DATE(OFFSET(AZ$11,FILT_YS,0),FILT_MS,FILT_DS),BET_DATE,"<="&DATE(OFFSET(AZ$11,FILT_YE,0),FILT_ME,FILT_DE),SPORT,OFFSET(AV$10,FILT_S,0)), IF(AND(FILT_D>1,FILT_B=1,FILT_S=1,FILT_T>1,FILT_C>1),COUNTIFS(AGENCY,AN12,WIN,"<>P",WIN,"<>R",WIN,"<>PU",CUSTOM,OFFSET(AY$10,FILT_C,0),BET_DATE,">="&DATE(OFFSET(AZ$11,FILT_YS,0),FILT_MS,FILT_DS),BET_DATE,"<="&DATE(OFFSET(AZ$11,FILT_YE,0),FILT_ME,FILT_DE),CAPPER,OFFSET(AX$10,FILT_T,0)), IF(AND(FILT_D=1,FILT_B>1,FILT_S>1,FILT_T=1,FILT_C>1),COUNTIFS(AGENCY,AN12,WIN,"<>P",WIN,"<>R",WIN,"<>PU",CUSTOM,OFFSET(AY$10,FILT_C,0),BET_TYPE,OFFSET(AW$10,FILT_B,0),SPORT,OFFSET(AV$10,FILT_S,0)), IF(AND(FILT_D=1,FILT_B>1,FILT_S=1,FILT_T>1,FILT_C>1),COUNTIFS(AGENCY,AN12,WIN,"<>P",WIN,"<>R",WIN,"<>PU",CUSTOM,OFFSET(AY$10,FILT_C,0),BET_TYPE,OFFSET(AW$10,FILT_B,0),CAPPER,OFFSET(AX$10,FILT_T,0)), IF(AND(FILT_D=1,FILT_B=1,FILT_S>1,FILT_T>1,FILT_C>1),COUNTIFS(AGENCY,AN12,WIN,"<>P",WIN,"<>R",WIN,"<>PU",CUSTOM,OFFSET(AY$10,FILT_C,0),SPORT,OFFSET(AV$10,FILT_S,0),CAPPER,OFFSET(AX$10,FILT_T,0)), IF(AND(FILT_D>1,FILT_B>1,FILT_S>1,FILT_T=1,FILT_C>1),COUNTIFS(AGENCY,AN12,WIN,"<>P",WIN,"<>R",WIN,"<>PU",CUSTOM,OFFSET(AY$10,FILT_C,0),BET_DATE,">="&DATE(OFFSET(AZ$11,FILT_YS,0),FILT_MS,FILT_DS),BET_DATE,"<="&DATE(OFFSET(AZ$11,FILT_YE,0),FILT_ME,FILT_DE),BET_TYPE,OFFSET(AW$10,FILT_B,0),SPORT,OFFSET(AV$10,FILT_S,0)), IF(AND(FILT_D=1,FILT_B>1,FILT_S>1,FILT_T>1,FILT_C>1),COUNTIFS(AGENCY,AN12,WIN,"<>P",WIN,"<>R",WIN,"<>PU",CUSTOM,OFFSET(AY$10,FILT_C,0),BET_TYPE,OFFSET(AW$10,FILT_B,0),SPORT,OFFSET(AV$10,FILT_S,0),CAPPER,OFFSET(AX$10,FILT_T,0)), IF(AND(FILT_D>1,FILT_B=1,FILT_S>1,FILT_T>1,FILT_C>1),COUNTIFS(AGENCY,AN12,WIN,"<>P",WIN,"<>R",WIN,"<>PU",CUSTOM,OFFSET(AY$10,FILT_C,0),BET_DATE,">="&DATE(OFFSET(AZ$11,FILT_YS,0),FILT_MS,FILT_DS),BET_DATE,"<="&DATE(OFFSET(AZ$11,FILT_YE,0),FILT_ME,FILT_DE),SPORT,OFFSET(AV$10,FILT_S,0),CAPPER,OFFSET(AX$10,FILT_T,0)), IF(AND(FILT_D>1,FILT_B>1,FILT_S=1,FILT_T>1,FILT_C>1),COUNTIFS(AGENCY,AN12,WIN,"<>P",WIN,"<>R",WIN,"<>PU",CUSTOM,OFFSET(AY$10,FILT_C,0),BET_DATE,">="&DATE(OFFSET(AZ$11,FILT_YS,0),FILT_MS,FILT_DS),BET_DATE,"<="&DATE(OFFSET(AZ$11,FILT_YE,0),FILT_ME,FILT_DE),BET_TYPE,OFFSET(AW$10,FILT_B,0),CAPPER,OFFSET(AX$10,FILT_T,0)), IF(AND(FILT_D>1,FILT_B>1,FILT_S>1,FILT_T>1,FILT_C>1),COUNTIFS(AGENCY,AN12,WIN,"<>P",WIN,"<>R",WIN,"<>PU",CUSTOM,OFFSET(AY$10,FILT_C,0),BET_DATE,">="&DATE(OFFSET(AZ$11,FILT_YS,0),FILT_MS,FILT_DS),BET_DATE,"<="&DATE(OFFSET(AZ$11,FILT_YE,0),FILT_ME,FILT_DE),BET_TYPE,OFFSET(AW$10,FILT_B,0),SPORT,OFFSET(AV$10,FILT_S,0),CAPPER,OFFSET(AX$10,FILT_T,0)), "")))))))))))))))))))))))))))))))), "") -> 2 | AU12: =IF(AND(AT12<>"",AT12>0),AS12/AT12,"") -> 0.5 | AV12: =IF(Settings!G6<>"",Settings!G6,"") -> Basketball - VTB | AW12: =IF(Settings!I6<>"",Settings!I6,"") -> Winner | AX12: =IF(Settings!K6<>"",Settings!K6,"") -> My own bets | AY12: =IF(Settings!M6<>"",Settings!M6,"") -> Home Fav | AZ12: =MIN(2012,YEAR(MIN(BET_DATE))) -> 2012 | BA12: Jan | BB12: 1
B13: Concluded Bets | C13: Net Profit | D13: Return | E13: Incl Bon Cred | H13: =IF(AND(Settings!G7<>"",Settings!G7<>"--"),Settings!G7,"") -> Football - EPL | I13: 0 | J13: 0 | K13: =IF(AND(I13<>"",I13>0),J13/I13,"") ->  | L13: 0 | M13: 0 | N13: =IF(AND(M13<>"",M13>0),L13/M13,"") ->  | P13: =IF(AND(Settings!I7<>"",Settings!I7<>"--"),Settings!I7,"") -> Live | Q13: 0 | R13: 0 | S13: =IF(AND(Q13<>"",Q13>0),R13/Q13,"") ->  | T13: 0 | U13: 0 | V13: =IF(AND(U13<>"",U13>0),T13/U13,"") ->  | X13: =IF(AND(Settings!K7<>"",Settings!K7<>"--"),Settings!K7,"") ->  | AA13: =IF(AND(Y13<>"",Y13>0),Z13/Y13,"") ->  | AD13: =IF(AND(AC13<>"",AC13>0),AB13/AC13,"") ->  | AF13: =IF(AND(Settings!M7<>"",Settings!M7<>"--"),Settings!M7,"") -> Home Dog | AG13: 0 | AH13: 0 | AI13: =IF(AND(AG13<>"",AG13>0),AH13/AG13,"") ->  | AJ13: 0 | AK13: 0 | AL13: =IF(AND(AK13<>"",AK13>0),AJ13/AK13,"") ->  | AN13: =IF(AND(Settings!D7<>"",Settings!D7<>"--"),Settings!D7,"") -> Pinnacle Sports | AO13: 10070 | AP13: 955.35 | AQ13: =IF(AND(AO13<>"",AO13>0),AP13/AO13,"") -> 0.09487090367 | AR13: =IF(AN13<>"", IF(FILT_D>1,AP13+SUMIFS(CREDIT_AMOUNT,CREDIT_AGENCY,AN13,CREDIT_DATE,">="&DATE(OFFSET(AZ$11,FILT_YS,0),FILT_MS,FILT_DS),CREDIT_DATE,"<="&DATE(OFFSET(AZ$11,FILT_YE,0),FILT_ME,FILT_DE)),AP13+SUMIFS(CREDIT_AMOUNT,CREDIT_AGENCY,AN13) ),"") -> 955.35 | AS13: 105 | AT13: 240 | AU13: =IF(AND(AT13<>"",AT13>0),AS13/AT13,"") -> 0.4375 | AV13: =IF(Settings!G7<>"",Settings!G7,"") -> Football - EPL | AW13: =IF(Settings!I7<>"",Settings!I7,"") -> Live | AX13: =IF(Settings!K7<>"",Settings!K7,"") ->  | AY13: =IF(Settings!M7<>"",Settings!M7,"") -> Home Dog | AZ13: =IF(AZ12<>"",IF(YEAR(MAX(BET_DATE))>=AZ12+1,AZ12+1,""),"") -> 2013 | BA13: Feb | BB13: 2
B14: =SUM(AO12:AO311) -> 10185 | C14: =SUM(AP12:AP311) -> 934.85 | D14: =IF(B14>0,C14/B14,"") -> 0.09178694158 | E14: =SUM(AR12:AR311) -> 934.85 | H14: =IF(AND(Settings!G8<>"",Settings!G8<>"--"),Settings!G8,"") -> Football - LaLiga | I14: 220 | J14: -9.9 | K14: -0.045 | L14: 1 | M14: 4 | N14: 0.25 | P14: =IF(AND(Settings!I8<>"",Settings!I8<>"--"),Settings!I8,"") -> Head to Head | Q14: 0 | R14: 0 | T14: 0 | U14: 0 | X14: =IF(AND(Settings!K8<>"",Settings!K8<>"--"),Settings!K8,"") ->  | AF14: =IF(AND(Settings!M8<>"",Settings!M8<>"--"),Settings!M8,"") -> Away Fav | AG14: 0 | AH14: 0 | AJ14: 0 | AK14: 0 | AN14: =IF(AND(Settings!D8<>"",Settings!D8<>"--"),Settings!D8,"") ->  | AV14: =IF(Settings!G8<>"",Settings!G8,"") -> Football - LaLiga | AW14: =IF(Settings!I8<>"",Settings!I8,"") -> Head to Head | AX14: =IF(Settings!K8<>"",Settings!K8,"") ->  | AY14: =IF(Settings!M8<>"",Settings!M8,"") -> Away Fav | AZ14: 2014 | BA14: Mar | BB14: 3
H15: =IF(AND(Settings!G9<>"",Settings!G9<>"--"),Settings!G9,"") -> Football - Russia | I15: 0 | J15: 0 | L15: 0 | M15: 0 | P15: =IF(AND(Settings!I9<>"",Settings!I9<>"--"),Settings!I9,"") -> Not to Win | Q15: 0 | R15: 0 | T15: 0 | U15: 0 | X15: =IF(AND(Settings!K9<>"",Settings!K9<>"--"),Settings!K9,"") ->  | AF15: =IF(AND(Settings!M9<>"",Settings!M9<>"--"),Settings!M9,"") -> Away Dog | AG15: 0 | AH15: 0 | AJ15: 0 | AK15: 0 | AN15: =IF(AND(Settings!D9<>"",Settings!D9<>"--"),Settings!D9,"") ->  | AV15: =IF(Settings!G9<>"",Settings!G9,"") -> Football - Russia | AW15: =IF(Settings!I9<>"",Settings!I9,"") -> Not to Win | AX15: =IF(Settings!K9<>"",Settings!K9,"") ->  | AY15: =IF(Settings!M9<>"",Settings!M9,"") -> Away Dog | AZ15: 2015 | BA15: Apr | BB15: 4
B16: Outcome Frequencies | H16: =IF(AND(Settings!G10<>"",Settings!G10<>"--"),Settings!G10,"") -> Football - Serie B | I16: 50 | J16: -50 | K16: -1 | L16: 0 | M16: 1 | N16: 0 | P16: =IF(AND(Settings!I10<>"",Settings!I10<>"--"),Settings!I10,"") -> Other | Q16: 0 | R16: 0 | T16: 0 | U16: 0 | X16: =IF(AND(Settings!K10<>"",Settings!K10<>"--"),Settings!K10,"") ->  | AF16: =IF(AND(Settings!M10<>"",Settings!M10<>"--"),Settings!M10,"") ->  | AN16: =IF(AND(Settings!D10<>"",Settings!D10<>"--"),Settings!D10,"") ->  | AV16: =IF(Settings!G10<>"",Settings!G10,"") -> Football - Serie B | AW16: =IF(Settings!I10<>"",Settings!I10,"") -> Other | AX16: =IF(Settings!K10<>"",Settings!K10,"") ->  | AY16: =IF(Settings!M10<>"",Settings!M10,"") ->  | BA16: May | BB16: 5
H17: =IF(AND(Settings!G11<>"",Settings!G11<>"--"),Settings!G11,"") -> Football - Serie A | I17: 210 | J17: -105.5 | K17: -0.5023809524 | L17: 1 | M17: 5 | N17: 0.2 | P17: =IF(AND(Settings!I11<>"",Settings!I11<>"--"),Settings!I11,"") -> Doubles | Q17: 0 | R17: 0 | T17: 0 | U17: 0 | X17: =IF(AND(Settings!K11<>"",Settings!K11<>"--"),Settings!K11,"") ->  | AF17: =IF(AND(Settings!M11<>"",Settings!M11<>"--"),Settings!M11,"") ->  | AN17: =IF(AND(Settings!D11<>"",Settings!D11<>"--"),Settings!D11,"") ->  | AV17: =IF(Settings!G11<>"",Settings!G11,"") -> Football - Serie A | AW17: =IF(Settings!I11<>"",Settings!I11,"") -> Doubles | AX17: =IF(Settings!K11<>"",Settings!K11,"") ->  | AY17: =IF(Settings!M11<>"",Settings!M11,"") ->  | BA17: Jun | BB17: 6
C18: # Bets | D18: % Total | E18: % W/L | H18: =IF(AND(Settings!G12<>"",Settings!G12<>"--"),Settings!G12,"") -> Football - Bundesliga | I18: 110 | J18: -17 | K18: -0.1545454545 | L18: 1 | M18: 3 | N18: 0.3333333333 | P18: =IF(AND(Settings!I12<>"",Settings!I12<>"--"),Settings!I12,"") -> Triples | Q18: 0 | R18: 0 | T18: 0 | U18: 0 | X18: =IF(AND(Settings!K12<>"",Settings!K12<>"--"),Settings!K12,"") ->  | AF18: =IF(AND(Settings!M12<>"",Settings!M12<>"--"),Settings!M12,"") ->  | AN18: =IF(AND(Settings!D12<>"",Settings!D12<>"--"),Settings!D12,"") ->  | AV18: =IF(Settings!G12<>"",Settings!G12,"") -> Football - Bundesliga | AW18: =IF(Settings!I12<>"",Settings!I12,"") -> Triples | AX18: =IF(Settings!K12<>"",Settings!K12,"") ->  | AY18: =IF(Settings!M12<>"",Settings!M12,"") ->  | BA18: Jul | BB18: 7
B19: Won | C19: =IF(AND(FILT_D=1,FILT_B=1,FILT_S=1,FILT_T=1,FILT_C=1),COUNTIFS(WIN,"Y"), IF(AND(FILT_D>1,FILT_B=1,FILT_S=1,FILT_T=1,FILT_C=1),COUNTIFS(WIN,"Y",BET_DATE,">="&DATE(OFFSET(AZ$11,FILT_YS,0),FILT_MS,FILT_DS),BET_DATE,"<="&DATE(OFFSET(AZ$11,FILT_YE,0),FILT_ME,FILT_DE)), IF(AND(FILT_D=1,FILT_B>1,FILT_S=1,FILT_T=1,FILT_C=1),COUNTIFS(WIN,"Y",BET_TYPE,OFFSET(AW$10,FILT_B,0)), IF(AND(FILT_D=1,FILT_B=1,FILT_S>1,FILT_T=1,FILT_C=1),COUNTIFS(WIN,"Y",SPORT,OFFSET(AV$10,FILT_S,0)), IF(AND(FILT_D=1,FILT_B=1,FILT_S=1,FILT_T>1,FILT_C=1),COUNTIFS(WIN,"Y",CAPPER,OFFSET(AX$10,FILT_T,0)), IF(AND(FILT_D>1,FILT_B>1,FILT_S=1,FILT_T=1,FILT_C=1),COUNTIFS(WIN,"Y",BET_DATE,">="&DATE(OFFSET(AZ$11,FILT_YS,0),FILT_MS,FILT_DS),BET_DATE,"<="&DATE(OFFSET(AZ$11,FILT_YE,0),FILT_ME,FILT_DE),BET_TYPE,OFFSET(AW$10,FILT_B,0)), IF(AND(FILT_D>1,FILT_B=1,FILT_S>1,FILT_T=1,FILT_C=1),COUNTIFS(WIN,"Y",BET_DATE,">="&DATE(OFFSET(AZ$11,FILT_YS,0),FILT_MS,FILT_DS),BET_DATE,"<="&DATE(OFFSET(AZ$11,FILT_YE,0),FILT_ME,FILT_DE),SPORT,OFFSET(AV$10,FILT_S,0)), IF(AND(FILT_D>1,FILT_B=1,FILT_S=1,FILT_T>1,FILT_C=1),COUNTIFS(WIN,"Y",BET_DATE,">="&DATE(OFFSET(AZ$11,FILT_YS,0),FILT_MS,FILT_DS),BET_DATE,"<="&DATE(OFFSET(AZ$11,FILT_YE,0),FILT_ME,FILT_DE),CAPPER,OFFSET(AX$10,FILT_T,0)), IF(AND(FILT_D=1,FILT_B>1,FILT_S>1,FILT_T=1,FILT_C=1),COUNTIFS(WIN,"Y",BET_TYPE,OFFSET(AW$10,FILT_B,0),SPORT,OFFSET(AV$10,FILT_S,0)), IF(AND(FILT_D=1,FILT_B>1,FILT_S=1,FILT_T>1,FILT_C=1),COUNTIFS(WIN,"Y",BET_TYPE,OFFSET(AW$10,FILT_B,0),CAPPER,OFFSET(AX$10,FILT_T,0)), IF(AND(FILT_D=1,FILT_B=1,FILT_S>1,FILT_T>1,FILT_C=1),COUNTIFS(WIN,"Y",SPORT,OFFSET(AV$10,FILT_S,0),CAPPER,OFFSET(AX$10,FILT_T,0)), IF(AND(FILT_D>1,FILT_B>1,FILT_S>1,FILT_T=1,FILT_C=1),COUNTIFS(WIN,"Y",BET_DATE,">="&DATE(OFFSET(AZ$11,FILT_YS,0),FILT_MS,FILT_DS),BET_DATE,"<="&DATE(OFFSET(AZ$11,FILT_YE,0),FILT_ME,FILT_DE),BET_TYPE,OFFSET(AW$10,FILT_B,0),SPORT,OFFSET(AV$10,FILT_S,0)), IF(AND(FILT_D=1,FILT_B>1,FILT_S>1,FILT_T>1,FILT_C=1),COUNTIFS(WIN,"Y",BET_TYPE,OFFSET(AW$10,FILT_B,0),SPORT,OFFSET(AV$10,FILT_S,0),CAPPER,OFFSET(AX$10,FILT_T,0)), IF(AND(FILT_D>1,FILT_B=1,FILT_S>1,FILT_T>1,FILT_C=1),COUNTIFS(WIN,"Y",BET_DATE,">="&DATE(OFFSET(AZ$11,FILT_YS,0),FILT_MS,FILT_DS),BET_DATE,"<="&DATE(OFFSET(AZ$11,FILT_YE,0),FILT_ME,FILT_DE),SPORT,OFFSET(AV$10,FILT_S,0),CAPPER,OFFSET(AX$10,FILT_T,0)), IF(AND(FILT_D>1,FILT_B>1,FILT_S=1,FILT_T>1,FILT_C=1),COUNTIFS(WIN,"Y",BET_DATE,">="&DATE(OFFSET(AZ$11,FILT_YS,0),FILT_MS,FILT_DS),BET_DATE,"<="&DATE(OFFSET(AZ$11,FILT_YE,0),FILT_ME,FILT_DE),BET_TYPE,OFFSET(AW$10,FILT_B,0),CAPPER,OFFSET(AX$10,FILT_T,0)), IF(AND(FILT_D>1,FILT_B>1,FILT_S>1,FILT_T>1,FILT_C=1),COUNTIFS(WIN,"Y",BET_DATE,">="&DATE(OFFSET(AZ$11,FILT_YS,0),FILT_MS,FILT_DS),BET_DATE,"<="&DATE(OFFSET(AZ$11,FILT_YE,0),FILT_ME,FILT_DE),BET_TYPE,OFFSET(AW$10,FILT_B,0),SPORT,OFFSET(AV$10,FILT_S,0),CAPPER,OFFSET(AX$10,FILT_T,0)), IF(AND(FILT_D=1,FILT_B=1,FILT_S=1,FILT_T=1,FILT_C>1),COUNTIFS(WIN,"Y",CUSTOM,OFFSET(AY$10,FILT_C,0)), IF(AND(FILT_D>1,FILT_B=1,FILT_S=1,FILT_T=1,FILT_C>1),COUNTIFS(WIN,"Y",CUSTOM,OFFSET(AY$10,FILT_C,0),BET_DATE,">="&DATE(OFFSET(AZ$11,FILT_YS,0),FILT_MS,FILT_DS),BET_DATE,"<="&DATE(OFFSET(AZ$11,FILT_YE,0),FILT_ME,FILT_DE)), IF(AND(FILT_D=1,FILT_B>1,FILT_S=1,FILT_T=1,FILT_C>1),COUNTIFS(WIN,"Y",CUSTOM,OFFSET(AY$10,FILT_C,0),BET_TYPE,OFFSET(AW$10,FILT_B,0)), IF(AND(FILT_D=1,FILT_B=1,FILT_S>1,FILT_T=1,FILT_C>1),COUNTIFS(WIN,"Y",CUSTOM,OFFSET(AY$10,FILT_C,0),SPORT,OFFSET(AV$10,FILT_S,0)), IF(AND(FILT_D=1,FILT_B=1,FILT_S=1,FILT_T>1,FILT_C>1),COUNTIFS(WIN,"Y",CUSTOM,OFFSET(AY$10,FILT_C,0),CAPPER,OFFSET(AX$10,FILT_T,0)), IF(AND(FILT_D>1,FILT_B>1,FILT_S=1,FILT_T=1,FILT_C>1),COUNTIFS(WIN,"Y",CUSTOM,OFFSET(AY$10,FILT_C,0),BET_DATE,">="&DATE(OFFSET(AZ$11,FILT_YS,0),FILT_MS,FILT_DS),BET_DATE,"<="&DATE(OFFSET(AZ$11,FILT_YE,0),FILT_ME,FILT_DE),BET_TYPE,OFFSET(AW$10,FILT_B,0)), IF(AND(FILT_D>1,FILT_B=1,FILT_S>1,FILT_T=1,FILT_C>1),COUNTIFS(WIN,"Y",CUSTOM,OFFSET(AY$10,FILT_C,0),BET_DATE,">="&DATE(OFFSET(AZ$11,FILT_YS,0),FILT_MS,FILT_DS),BET_DATE,"<="&DATE(OFFSET(AZ$11,FILT_YE,0),FILT_ME,FILT_DE),SPORT,OFFSET(AV$10,FILT_S,0)), IF(AND(FILT_D>1,FILT_B=1,FILT_S=1,FILT_T>1,FILT_C>1),COUNTIFS(WIN,"Y",CUSTOM,OFFSET(AY$10,FILT_C,0),BET_DATE,">="&DATE(OFFSET(AZ$11,FILT_YS,0),FILT_MS,FILT_DS),BET_DATE,"<="&DATE(OFFSET(AZ$11,FILT_YE,0),FILT_ME,FILT_DE),CAPPER,OFFSET(AX$10,FILT_T,0)), IF(AND(FILT_D=1,FILT_B>1,FILT_S>1,FILT_T=1,FILT_C>1),COUNTIFS(WIN,"Y",CUSTOM,OFFSET(AY$10,FILT_C,0),BET_TYPE,OFFSET(AW$10,FILT_B,0),SPORT,OFFSET(AV$10,FILT_S,0)), IF(AND(FILT_D=1,FILT_B>1,FILT_S=1,FILT_T>1,FILT_C>1),COUNTIFS(WIN,"Y",CUSTOM,OFFSET(AY$10,FILT_C,0),BET_TYPE,OFFSET(AW$10,FILT_B,0),CAPPER,OFFSET(AX$10,FILT_T,0)), IF(AND(FILT_D=1,FILT_B=1,FILT_S>1,FILT_T>1,FILT_C>1),COUNTIFS(WIN,"Y",CUSTOM,OFFSET(AY$10,FILT_C,0),SPORT,OFFSET(AV$10,FILT_S,0),CAPPER,OFFSET(AX$10,FILT_T,0)), IF(AND(FILT_D>1,FILT_B>1,FILT_S>1,FILT_T=1,FILT_C>1),COUNTIFS(WIN,"Y",CUSTOM,OFFSET(AY$10,FILT_C,0),BET_DATE,">="&DATE(OFFSET(AZ$11,FILT_YS,0),FILT_MS,FILT_DS),BET_DATE,"<="&DATE(OFFSET(AZ$11,FILT_YE,0),FILT_ME,FILT_DE),BET_TYPE,OFFSET(AW$10,FILT_B,0),SPORT,OFFSET(AV$10,FILT_S,0)), IF(AND(FILT_D=1,FILT_B>1,FILT_S>1,FILT_T>1,FILT_C>1),COUNTIFS(WIN,"Y",CUSTOM,OFFSET(AY$10,FILT_C,0),BET_TYPE,OFFSET(AW$10,FILT_B,0),SPORT,OFFSET(AV$10,FILT_S,0),CAPPER,OFFSET(AX$10,FILT_T,0)), IF(AND(FILT_D>1,FILT_B=1,FILT_S>1,FILT_T>1,FILT_C>1),COUNTIFS(WIN,"Y",CUSTOM,OFFSET(AY$10,FILT_C,0),BET_DATE,">="&DATE(OFFSET(AZ$11,FILT_YS,0),FILT_MS,FILT_DS),BET_DATE,"<="&DATE(OFFSET(AZ$11,FILT_YE,0),FILT_ME,FILT_DE),SPORT,OFFSET(AV$10,FILT_S,0),CAPPER,OFFSET(AX$10,FILT_T,0)), IF(AND(FILT_D>1,FILT_B>1,FILT_S=1,FILT_T>1,FILT_C>1),COUNTIFS(WIN,"Y",CUSTOM,OFFSET(AY$10,FILT_C,0),BET_DATE,">="&DATE(OFFSET(AZ$11,FILT_YS,0),FILT_MS,FILT_DS),BET_DATE,"<="&DATE(OFFSET(AZ$11,FILT_YE,0),FILT_ME,FILT_DE),BET_TYPE,OFFSET(AW$10,FILT_B,0),CAPPER,OFFSET(AX$10,FILT_T,0)), IF(AND(FILT_D>1,FILT_B>1,FILT_S>1,FILT_T>1,FILT_C>1),COUNTIFS(WIN,"Y",CUSTOM,OFFSET(AY$10,FILT_C,0),BET_DATE,">="&DATE(OFFSET(AZ$11,FILT_YS,0),FILT_MS,FILT_DS),BET_DATE,"<="&DATE(OFFSET(AZ$11,FILT_YE,0),FILT_ME,FILT_DE),BET_TYPE,OFFSET(AW$10,FILT_B,0),SPORT,OFFSET(AV$10,FILT_S,0),CAPPER,OFFSET(AX$10,FILT_T,0)), "")))))))))))))))))))))))))))))))) -> 106 | D19: =IF(C$26>0,C19/C$26,"") -> 0.4308943089 | E19: =IF(C$19+C$20>0,C19/(C$19+C$20),0) -> 0.4416666667 | H19: =IF(AND(Settings!G13<>"",Settings!G13<>"--"),Settings!G13,"") -> Basketball - Spain | I19: 530 | J19: -15 | K19: -0.02830188679 | L19: 5 | M19: 12 | N19: 0.4166666667 | P19: =IF(AND(Settings!I13<>"",Settings!I13<>"--"),Settings!I13,"") -> Accumulator | Q19: 0 | R19: 0 | T19: 0 | U19: 0 | X19: =IF(AND(Settings!K13<>"",Settings!K13<>"--"),Settings!K13,"") ->  | AF19: =IF(AND(Settings!M13<>"",Settings!M13<>"--"),Settings!M13,"") ->  | AN19: =IF(AND(Settings!D13<>"",Settings!D13<>"--"),Settings!D13,"") ->  | AV19: =IF(Settings!G13<>"",Settings!G13,"") -> Basketball - Spain | AW19: =IF(Settings!I13<>"",Settings!I13,"") -> Accumulator | AX19: =IF(Settings!K13<>"",Settings!K13,"") ->  | AY19: =IF(Settings!M13<>"",Settings!M13,"") ->  | BA19: Aug | BB19: 8
B20: Lost | C20: =IF(AND(FILT_D=1,FILT_B=1,FILT_S=1,FILT_T=1,FILT_C=1),COUNTIFS(WIN,"N"), IF(AND(FILT_D>1,FILT_B=1,FILT_S=1,FILT_T=1,FILT_C=1),COUNTIFS(WIN,"N",BET_DATE,">="&DATE(OFFSET(AZ$11,FILT_YS,0),FILT_MS,FILT_DS),BET_DATE,"<="&DATE(OFFSET(AZ$11,FILT_YE,0),FILT_ME,FILT_DE)), IF(AND(FILT_D=1,FILT_B>1,FILT_S=1,FILT_T=1,FILT_C=1),COUNTIFS(WIN,"N",BET_TYPE,OFFSET(AW$10,FILT_B,0)), IF(AND(FILT_D=1,FILT_B=1,FILT_S>1,FILT_T=1,FILT_C=1),COUNTIFS(WIN,"N",SPORT,OFFSET(AV$10,FILT_S,0)), IF(AND(FILT_D=1,FILT_B=1,FILT_S=1,FILT_T>1,FILT_C=1),COUNTIFS(WIN,"N",CAPPER,OFFSET(AX$10,FILT_T,0)), IF(AND(FILT_D>1,FILT_B>1,FILT_S=1,FILT_T=1,FILT_C=1),COUNTIFS(WIN,"N",BET_DATE,">="&DATE(OFFSET(AZ$11,FILT_YS,0),FILT_MS,FILT_DS),BET_DATE,"<="&DATE(OFFSET(AZ$11,FILT_YE,0),FILT_ME,FILT_DE),BET_TYPE,OFFSET(AW$10,FILT_B,0)), IF(AND(FILT_D>1,FILT_B=1,FILT_S>1,FILT_T=1,FILT_C=1),COUNTIFS(WIN,"N",BET_DATE,">="&DATE(OFFSET(AZ$11,FILT_YS,0),FILT_MS,FILT_DS),BET_DATE,"<="&DATE(OFFSET(AZ$11,FILT_YE,0),FILT_ME,FILT_DE),SPORT,OFFSET(AV$10,FILT_S,0)), IF(AND(FILT_D>1,FILT_B=1,FILT_S=1,FILT_T>1,FILT_C=1),COUNTIFS(WIN,"N",BET_DATE,">="&DATE(OFFSET(AZ$11,FILT_YS,0),FILT_MS,FILT_DS),BET_DATE,"<="&DATE(OFFSET(AZ$11,FILT_YE,0),FILT_ME,FILT_DE),CAPPER,OFFSET(AX$10,FILT_T,0)), IF(AND(FILT_D=1,FILT_B>1,FILT_S>1,FILT_T=1,FILT_C=1),COUNTIFS(WIN,"N",BET_TYPE,OFFSET(AW$10,FILT_B,0),SPORT,OFFSET(AV$10,FILT_S,0)), IF(AND(FILT_D=1,FILT_B>1,FILT_S=1,FILT_T>1,FILT_C=1),COUNTIFS(WIN,"N",BET_TYPE,OFFSET(AW$10,FILT_B,0),CAPPER,OFFSET(AX$10,FILT_T,0)), IF(AND(FILT_D=1,FILT_B=1,FILT_S>1,FILT_T>1,FILT_C=1),COUNTIFS(WIN,"N",SPORT,OFFSET(AV$10,FILT_S,0),CAPPER,OFFSET(AX$10,FILT_T,0)), IF(AND(FILT_D>1,FILT_B>1,FILT_S>1,FILT_T=1,FILT_C=1),COUNTIFS(WIN,"N",BET_DATE,">="&DATE(OFFSET(AZ$11,FILT_YS,0),FILT_MS,FILT_DS),BET_DATE,"<="&DATE(OFFSET(AZ$11,FILT_YE,0),FILT_ME,FILT_DE),BET_TYPE,OFFSET(AW$10,FILT_B,0),SPORT,OFFSET(AV$10,FILT_S,0)), IF(AND(FILT_D=1,FILT_B>1,FILT_S>1,FILT_T>1,FILT_C=1),COUNTIFS(WIN,"N",BET_TYPE,OFFSET(AW$10,FILT_B,0),SPORT,OFFSET(AV$10,FILT_S,0),CAPPER,OFFSET(AX$10,FILT_T,0)), IF(AND(FILT_D>1,FILT_B=1,FILT_S>1,FILT_T>1,FILT_C=1),COUNTIFS(WIN,"N",BET_DATE,">="&DATE(OFFSET(AZ$11,FILT_YS,0),FILT_MS,FILT_DS),BET_DATE,"<="&DATE(OFFSET(AZ$11,FILT_YE,0),FILT_ME,FILT_DE),SPORT,OFFSET(AV$10,FILT_S,0),CAPPER,OFFSET(AX$10,FILT_T,0)), IF(AND(FILT_D>1,FILT_B>1,FILT_S=1,FILT_T>1,FILT_C=1),COUNTIFS(WIN,"N",BET_DATE,">="&DATE(OFFSET(AZ$11,FILT_YS,0),FILT_MS,FILT_DS),BET_DATE,"<="&DATE(OFFSET(AZ$11,FILT_YE,0),FILT_ME,FILT_DE),BET_TYPE,OFFSET(AW$10,FILT_B,0),CAPPER,OFFSET(AX$10,FILT_T,0)), IF(AND(FILT_D>1,FILT_B>1,FILT_S>1,FILT_T>1,FILT_C=1),COUNTIFS(WIN,"N",BET_DATE,">="&DATE(OFFSET(AZ$11,FILT_YS,0),FILT_MS,FILT_DS),BET_DATE,"<="&DATE(OFFSET(AZ$11,FILT_YE,0),FILT_ME,FILT_DE),BET_TYPE,OFFSET(AW$10,FILT_B,0),SPORT,OFFSET(AV$10,FILT_S,0),CAPPER,OFFSET(AX$10,FILT_T,0)), IF(AND(FILT_D=1,FILT_B=1,FILT_S=1,FILT_T=1,FILT_C>1),COUNTIFS(WIN,"N",CUSTOM,OFFSET(AY$10,FILT_C,0)), IF(AND(FILT_D>1,FILT_B=1,FILT_S=1,FILT_T=1,FILT_C>1),COUNTIFS(WIN,"N",CUSTOM,OFFSET(AY$10,FILT_C,0),BET_DATE,">="&DATE(OFFSET(AZ$11,FILT_YS,0),FILT_MS,FILT_DS),BET_DATE,"<="&DATE(OFFSET(AZ$11,FILT_YE,0),FILT_ME,FILT_DE)), IF(AND(FILT_D=1,FILT_B>1,FILT_S=1,FILT_T=1,FILT_C>1),COUNTIFS(WIN,"N",CUSTOM,OFFSET(AY$10,FILT_C,0),BET_TYPE,OFFSET(AW$10,FILT_B,0)), IF(AND(FILT_D=1,FILT_B=1,FILT_S>1,FILT_T=1,FILT_C>1),COUNTIFS(WIN,"N",CUSTOM,OFFSET(AY$10,FILT_C,0),SPORT,OFFSET(AV$10,FILT_S,0)), IF(AND(FILT_D=1,FILT_B=1,FILT_S=1,FILT_T>1,FILT_C>1),COUNTIFS(WIN,"N",CUSTOM,OFFSET(AY$10,FILT_C,0),CAPPER,OFFSET(AX$10,FILT_T,0)), IF(AND(FILT_D>1,FILT_B>1,FILT_S=1,FILT_T=1,FILT_C>1),COUNTIFS(WIN,"N",CUSTOM,OFFSET(AY$10,FILT_C,0),BET_DATE,">="&DATE(OFFSET(AZ$11,FILT_YS,0),FILT_MS,FILT_DS),BET_DATE,"<="&DATE(OFFSET(AZ$11,FILT_YE,0),FILT_ME,FILT_DE),BET_TYPE,OFFSET(AW$10,FILT_B,0)), IF(AND(FILT_D>1,FILT_B=1,FILT_S>1,FILT_T=1,FILT_C>1),COUNTIFS(WIN,"N",CUSTOM,OFFSET(AY$10,FILT_C,0),BET_DATE,">="&DATE(OFFSET(AZ$11,FILT_YS,0),FILT_MS,FILT_DS),BET_DATE,"<="&DATE(OFFSET(AZ$11,FILT_YE,0),FILT_ME,FILT_DE),SPORT,OFFSET(AV$10,FILT_S,0)), IF(AND(FILT_D>1,FILT_B=1,FILT_S=1,FILT_T>1,FILT_C>1),COUNTIFS(WIN,"N",CUSTOM,OFFSET(AY$10,FILT_C,0),BET_DATE,">="&DATE(OFFSET(AZ$11,FILT_YS,0),FILT_MS,FILT_DS),BET_DATE,"<="&DATE(OFFSET(AZ$11,FILT_YE,0),FILT_ME,FILT_DE),CAPPER,OFFSET(AX$10,FILT_T,0)), IF(AND(FILT_D=1,FILT_B>1,FILT_S>1,FILT_T=1,FILT_C>1),COUNTIFS(WIN,"N",CUSTOM,OFFSET(AY$10,FILT_C,0),BET_TYPE,OFFSET(AW$10,FILT_B,0),SPORT,OFFSET(AV$10,FILT_S,0)), IF(AND(FILT_D=1,FILT_B>1,FILT_S=1,FILT_T>1,FILT_C>1),COUNTIFS(WIN,"N",CUSTOM,OFFSET(AY$10,FILT_C,0),BET_TYPE,OFFSET(AW$10,FILT_B,0),CAPPER,OFFSET(AX$10,FILT_T,0)), IF(AND(FILT_D=1,FILT_B=1,FILT_S>1,FILT_T>1,FILT_C>1),COUNTIFS(WIN,"N",CUSTOM,OFFSET(AY$10,FILT_C,0),SPORT,OFFSET(AV$10,FILT_S,0),CAPPER,OFFSET(AX$10,FILT_T,0)), IF(AND(FILT_D>1,FILT_B>1,FILT_S>1,FILT_T=1,FILT_C>1),COUNTIFS(WIN,"N",CUSTOM,OFFSET(AY$10,FILT_C,0),BET_DATE,">="&DATE(OFFSET(AZ$11,FILT_YS,0),FILT_MS,FILT_DS),BET_DATE,"<="&DATE(OFFSET(AZ$11,FILT_YE,0),FILT_ME,FILT_DE),BET_TYPE,OFFSET(AW$10,FILT_B,0),SPORT,OFFSET(AV$10,FILT_S,0)), IF(AND(FILT_D=1,FILT_B>1,FILT_S>1,FILT_T>1,FILT_C>1),COUNTIFS(WIN,"N",CUSTOM,OFFSET(AY$10,FILT_C,0),BET_TYPE,OFFSET(AW$10,FILT_B,0),SPORT,OFFSET(AV$10,FILT_S,0),CAPPER,OFFSET(AX$10,FILT_T,0)), IF(AND(FILT_D>1,FILT_B=1,FILT_S>1,FILT_T>1,FILT_C>1),COUNTIFS(WIN,"N",CUSTOM,OFFSET(AY$10,FILT_C,0),BET_DATE,">="&DATE(OFFSET(AZ$11,FILT_YS,0),FILT_MS,FILT_DS),BET_DATE,"<="&DATE(OFFSET(AZ$11,FILT_YE,0),FILT_ME,FILT_DE),SPORT,OFFSET(AV$10,FILT_S,0),CAPPER,OFFSET(AX$10,FILT_T,0)), IF(AND(FILT_D>1,FILT_B>1,FILT_S=1,FILT_T>1,FILT_C>1),COUNTIFS(WIN,"N",CUSTOM,OFFSET(AY$10,FILT_C,0),BET_DATE,">="&DATE(OFFSET(AZ$11,FILT_YS,0),FILT_MS,FILT_DS),BET_DATE,"<="&DATE(OFFSET(AZ$11,FILT_YE,0),FILT_ME,FILT_DE),BET_TYPE,OFFSET(AW$10,FILT_B,0),CAPPER,OFFSET(AX$10,FILT_T,0)), IF(AND(FILT_D>1,FILT_B>1,FILT_S>1,FILT_T>1,FILT_C>1),COUNTIFS(WIN,"N",CUSTOM,OFFSET(AY$10,FILT_C,0),BET_DATE,">="&DATE(OFFSET(AZ$11,FILT_YS,0),FILT_MS,FILT_DS),BET_DATE,"<="&DATE(OFFSET(AZ$11,FILT_YE,0),FILT_ME,FILT_DE),BET_TYPE,OFFSET(AW$10,FILT_B,0),SPORT,OFFSET(AV$10,FILT_S,0),CAPPER,OFFSET(AX$10,FILT_T,0)), "")))))))))))))))))))))))))))))))) -> 134 | D20: =IF(C$26>0,C20/C$26,"") -> 0.5447154472 | E20: =IF(C$19+C$20>0,C20/(C$19+C$20),0) -> 0.5583333333 | H20: =IF(AND(Settings!G14<>"",Settings!G14<>"--"),Settings!G14,"") -> Basketball - Italy | I20: 285 | J20: 14.15 | K20: 0.04964912281 | L20: 3 | M20: 6 | N20: 0.5 | P20: =IF(AND(Settings!I14<>"",Settings!I14<>"--"),Settings!I14,"") -> Each Way | Q20: 0 | R20: 0 | T20: 0 | U20: 0 | X20: =IF(AND(Settings!K14<>"",Settings!K14<>"--"),Settings!K14,"") ->  | AF20: =IF(AND(Settings!M14<>"",Settings!M14<>"--"),Settings!M14,"") ->  | AN20: =IF(AND(Settings!D14<>"",Settings!D14<>"--"),Settings!D14,"") ->  | AV20: =IF(Settings!G14<>"",Settings!G14,"") -> Basketball - Italy | AW20: =IF(Settings!I14<>"",Settings!I14,"") -> Each Way | AX20: =IF(Settings!K14<>"",Settings!K14,"") ->  | AY20: =IF(Settings!M14<>"",Settings!M14,"") ->  | BA20: Sep | BB20: 9
B21: Half Payout | C21: =IF(AND(FILT_D=1,FILT_B=1,FILT_S=1,FILT_T=1,FILT_C=1),COUNTIFS(WIN,"H"), IF(AND(FILT_D>1,FILT_B=1,FILT_S=1,FILT_T=1,FILT_C=1),COUNTIFS(WIN,"H",BET_DATE,">="&DATE(OFFSET(AZ$11,FILT_YS,0),FILT_MS,FILT_DS),BET_DATE,"<="&DATE(OFFSET(AZ$11,FILT_YE,0),FILT_ME,FILT_DE)), IF(AND(FILT_D=1,FILT_B>1,FILT_S=1,FILT_T=1,FILT_C=1),COUNTIFS(WIN,"H",BET_TYPE,OFFSET(AW$10,FILT_B,0)), IF(AND(FILT_D=1,FILT_B=1,FILT_S>1,FILT_T=1,FILT_C=1),COUNTIFS(WIN,"H",SPORT,OFFSET(AV$10,FILT_S,0)), IF(AND(FILT_D=1,FILT_B=1,FILT_S=1,FILT_T>1,FILT_C=1),COUNTIFS(WIN,"H",CAPPER,OFFSET(AX$10,FILT_T,0)), IF(AND(FILT_D>1,FILT_B>1,FILT_S=1,FILT_T=1,FILT_C=1),COUNTIFS(WIN,"H",BET_DATE,">="&DATE(OFFSET(AZ$11,FILT_YS,0),FILT_MS,FILT_DS),BET_DATE,"<="&DATE(OFFSET(AZ$11,FILT_YE,0),FILT_ME,FILT_DE),BET_TYPE,OFFSET(AW$10,FILT_B,0)), IF(AND(FILT_D>1,FILT_B=1,FILT_S>1,FILT_T=1,FILT_C=1),COUNTIFS(WIN,"H",BET_DATE,">="&DATE(OFFSET(AZ$11,FILT_YS,0),FILT_MS,FILT_DS),BET_DATE,"<="&DATE(OFFSET(AZ$11,FILT_YE,0),FILT_ME,FILT_DE),SPORT,OFFSET(AV$10,FILT_S,0)), IF(AND(FILT_D>1,FILT_B=1,FILT_S=1,FILT_T>1,FILT_C=1),COUNTIFS(WIN,"H",BET_DATE,">="&DATE(OFFSET(AZ$11,FILT_YS,0),FILT_MS,FILT_DS),BET_DATE,"<="&DATE(OFFSET(AZ$11,FILT_YE,0),FILT_ME,FILT_DE),CAPPER,OFFSET(AX$10,FILT_T,0)), IF(AND(FILT_D=1,FILT_B>1,FILT_S>1,FILT_T=1,FILT_C=1),COUNTIFS(WIN,"H",BET_TYPE,OFFSET(AW$10,FILT_B,0),SPORT,OFFSET(AV$10,FILT_S,0)), IF(AND(FILT_D=1,FILT_B>1,FILT_S=1,FILT_T>1,FILT_C=1),COUNTIFS(WIN,"H",BET_TYPE,OFFSET(AW$10,FILT_B,0),CAPPER,OFFSET(AX$10,FILT_T,0)), IF(AND(FILT_D=1,FILT_B=1,FILT_S>1,FILT_T>1,FILT_C=1),COUNTIFS(WIN,"H",SPORT,OFFSET(AV$10,FILT_S,0),CAPPER,OFFSET(AX$10,FILT_T,0)), IF(AND(FILT_D>1,FILT_B>1,FILT_S>1,FILT_T=1,FILT_C=1),COUNTIFS(WIN,"H",BET_DATE,">="&DATE(OFFSET(AZ$11,FILT_YS,0),FILT_MS,FILT_DS),BET_DATE,"<="&DATE(OFFSET(AZ$11,FILT_YE,0),FILT_ME,FILT_DE),BET_TYPE,OFFSET(AW$10,FILT_B,0),SPORT,OFFSET(AV$10,FILT_S,0)), IF(AND(FILT_D=1,FILT_B>1,FILT_S>1,FILT_T>1,FILT_C=1),COUNTIFS(WIN,"H",BET_TYPE,OFFSET(AW$10,FILT_B,0),SPORT,OFFSET(AV$10,FILT_S,0),CAPPER,OFFSET(AX$10,FILT_T,0)), IF(AND(FILT_D>1,FILT_B=1,FILT_S>1,FILT_T>1,FILT_C=1),COUNTIFS(WIN,"H",BET_DATE,">="&DATE(OFFSET(AZ$11,FILT_YS,0),FILT_MS,FILT_DS),BET_DATE,"<="&DATE(OFFSET(AZ$11,FILT_YE,0),FILT_ME,FILT_DE),SPORT,OFFSET(AV$10,FILT_S,0),CAPPER,OFFSET(AX$10,FILT_T,0)), IF(AND(FILT_D>1,FILT_B>1,FILT_S=1,FILT_T>1,FILT_C=1),COUNTIFS(WIN,"H",BET_DATE,">="&DATE(OFFSET(AZ$11,FILT_YS,0),FILT_MS,FILT_DS),BET_DATE,"<="&DATE(OFFSET(AZ$11,FILT_YE,0),FILT_ME,FILT_DE),BET_TYPE,OFFSET(AW$10,FILT_B,0),CAPPER,OFFSET(AX$10,FILT_T,0)), IF(AND(FILT_D>1,FILT_B>1,FILT_S>1,FILT_T>1,FILT_C=1),COUNTIFS(WIN,"H",BET_DATE,">="&DATE(OFFSET(AZ$11,FILT_YS,0),FILT_MS,FILT_DS),BET_DATE,"<="&DATE(OFFSET(AZ$11,FILT_YE,0),FILT_ME,FILT_DE),BET_TYPE,OFFSET(AW$10,FILT_B,0),SPORT,OFFSET(AV$10,FILT_S,0),CAPPER,OFFSET(AX$10,FILT_T,0)), IF(AND(FILT_D=1,FILT_B=1,FILT_S=1,FILT_T=1,FILT_C>1),COUNTIFS(WIN,"H",CUSTOM,OFFSET(AY$10,FILT_C,0)), IF(AND(FILT_D>1,FILT_B=1,FILT_S=1,FILT_T=1,FILT_C>1),COUNTIFS(WIN,"H",CUSTOM,OFFSET(AY$10,FILT_C,0),BET_DATE,">="&DATE(OFFSET(AZ$11,FILT_YS,0),FILT_MS,FILT_DS),BET_DATE,"<="&DATE(OFFSET(AZ$11,FILT_YE,0),FILT_ME,FILT_DE)), IF(AND(FILT_D=1,FILT_B>1,FILT_S=1,FILT_T=1,FILT_C>1),COUNTIFS(WIN,"H",CUSTOM,OFFSET(AY$10,FILT_C,0),BET_TYPE,OFFSET(AW$10,FILT_B,0)), IF(AND(FILT_D=1,FILT_B=1,FILT_S>1,FILT_T=1,FILT_C>1),COUNTIFS(WIN,"H",CUSTOM,OFFSET(AY$10,FILT_C,0),SPORT,OFFSET(AV$10,FILT_S,0)), IF(AND(FILT_D=1,FILT_B=1,FILT_S=1,FILT_T>1,FILT_C>1),COUNTIFS(WIN,"H",CUSTOM,OFFSET(AY$10,FILT_C,0),CAPPER,OFFSET(AX$10,FILT_T,0)), IF(AND(FILT_D>1,FILT_B>1,FILT_S=1,FILT_T=1,FILT_C>1),COUNTIFS(WIN,"H",CUSTOM,OFFSET(AY$10,FILT_C,0),BET_DATE,">="&DATE(OFFSET(AZ$11,FILT_YS,0),FILT_MS,FILT_DS),BET_DATE,"<="&DATE(OFFSET(AZ$11,FILT_YE,0),FILT_ME,FILT_DE),BET_TYPE,OFFSET(AW$10,FILT_B,0)), IF(AND(FILT_D>1,FILT_B=1,FILT_S>1,FILT_T=1,FILT_C>1),COUNTIFS(WIN,"H",CUSTOM,OFFSET(AY$10,FILT_C,0),BET_DATE,">="&DATE(OFFSET(AZ$11,FILT_YS,0),FILT_MS,FILT_DS),BET_DATE,"<="&DATE(OFFSET(AZ$11,FILT_YE,0),FILT_ME,FILT_DE),SPORT,OFFSET(AV$10,FILT_S,0)), IF(AND(FILT_D>1,FILT_B=1,FILT_S=1,FILT_T>1,FILT_C>1),COUNTIFS(WIN,"H",CUSTOM,OFFSET(AY$10,FILT_C,0),BET_DATE,">="&DATE(OFFSET(AZ$11,FILT_YS,0),FILT_MS,FILT_DS),BET_DATE,"<="&DATE(OFFSET(AZ$11,FILT_YE,0),FILT_ME,FILT_DE),CAPPER,OFFSET(AX$10,FILT_T,0)), IF(AND(FILT_D=1,FILT_B>1,FILT_S>1,FILT_T=1,FILT_C>1),COUNTIFS(WIN,"H",CUSTOM,OFFSET(AY$10,FILT_C,0),BET_TYPE,OFFSET(AW$10,FILT_B,0),SPORT,OFFSET(AV$10,FILT_S,0)), IF(AND(FILT_D=1,FILT_B>1,FILT_S=1,FILT_T>1,FILT_C>1),COUNTIFS(WIN,"H",CUSTOM,OFFSET(AY$10,FILT_C,0),BET_TYPE,OFFSET(AW$10,FILT_B,0),CAPPER,OFFSET(AX$10,FILT_T,0)), IF(AND(FILT_D=1,FILT_B=1,FILT_S>1,FILT_T>1,FILT_C>1),COUNTIFS(WIN,"H",CUSTOM,OFFSET(AY$10,FILT_C,0),SPORT,OFFSET(AV$10,FILT_S,0),CAPPER,OFFSET(AX$10,FILT_T,0)), IF(AND(FILT_D>1,FILT_B>1,FILT_S>1,FILT_T=1,FILT_C>1),COUNTIFS(WIN,"H",CUSTOM,OFFSET(AY$10,FILT_C,0),BET_DATE,">="&DATE(OFFSET(AZ$11,FILT_YS,0),FILT_MS,FILT_DS),BET_DATE,"<="&DATE(OFFSET(AZ$11,FILT_YE,0),FILT_ME,FILT_DE),BET_TYPE,OFFSET(AW$10,FILT_B,0),SPORT,OFFSET(AV$10,FILT_S,0)), IF(AND(FILT_D=1,FILT_B>1,FILT_S>1,FILT_T>1,FILT_C>1),COUNTIFS(WIN,"H",CUSTOM,OFFSET(AY$10,FILT_C,0),BET_TYPE,OFFSET(AW$10,FILT_B,0),SPORT,OFFSET(AV$10,FILT_S,0),CAPPER,OFFSET(AX$10,FILT_T,0)), IF(AND(FILT_D>1,FILT_B=1,FILT_S>1,FILT_T>1,FILT_C>1),COUNTIFS(WIN,"H",CUSTOM,OFFSET(AY$10,FILT_C,0),BET_DATE,">="&DATE(OFFSET(AZ$11,FILT_YS,0),FILT_MS,FILT_DS),BET_DATE,"<="&DATE(OFFSET(AZ$11,FILT_YE,0),FILT_ME,FILT_DE),SPORT,OFFSET(AV$10,FILT_S,0),CAPPER,OFFSET(AX$10,FILT_T,0)), IF(AND(FILT_D>1,FILT_B>1,FILT_S=1,FILT_T>1,FILT_C>1),COUNTIFS(WIN,"H",CUSTOM,OFFSET(AY$10,FILT_C,0),BET_DATE,">="&DATE(OFFSET(AZ$11,FILT_YS,0),FILT_MS,FILT_DS),BET_DATE,"<="&DATE(OFFSET(AZ$11,FILT_YE,0),FILT_ME,FILT_DE),BET_TYPE,OFFSET(AW$10,FILT_B,0),CAPPER,OFFSET(AX$10,FILT_T,0)), IF(AND(FILT_D>1,FILT_B>1,FILT_S>1,FILT_T>1,FILT_C>1),COUNTIFS(WIN,"H",CUSTOM,OFFSET(AY$10,FILT_C,0),BET_DATE,">="&DATE(OFFSET(AZ$11,FILT_YS,0),FILT_MS,FILT_DS),BET_DATE,"<="&DATE(OFFSET(AZ$11,FILT_YE,0),FILT_ME,FILT_DE),BET_TYPE,OFFSET(AW$10,FILT_B,0),SPORT,OFFSET(AV$10,FILT_S,0),CAPPER,OFFSET(AX$10,FILT_T,0)), "")))))))))))))))))))))))))))))))) -> 0 | D21: 0 | H21: =IF(AND(Settings!G15<>"",Settings!G15<>"--"),Settings!G15,"") -> Basketball - Eurocup | I21: 480 | J21: -20.1 | K21: -0.041875 | L21: 4 | M21: 10 | N21: 0.4 | P21: =IF(AND(Settings!I15<>"",Settings!I15<>"--"),Settings!I15,"") -> Draw No Bet | Q21: 0 | R21: 0 | T21: 0 | U21: 0 | X21: =IF(AND(Settings!K15<>"",Settings!K15<>"--"),Settings!K15,"") ->  | AF21: =IF(AND(Settings!M15<>"",Settings!M15<>"--"),Settings!M15,"") ->  | AN21: =IF(AND(Settings!D15<>"",Settings!D15<>"--"),Settings!D15,"") ->  | AV21: =IF(Settings!G15<>"",Settings!G15,"") -> Basketball - Eurocup | AW21: =IF(Settings!I15<>"",Settings!I15,"") -> Draw No Bet | AX21: =IF(Settings!K15<>"",Settings!K15,"") ->  | AY21: =IF(Settings!M15<>"",Settings!M15,"") ->  | BA21: Oct | BB21: 10
B22: Refunded | C22: =IF(AND(FILT_D=1,FILT_B=1,FILT_S=1,FILT_T=1,FILT_C=1),COUNTIFS(WIN,"R"), IF(AND(FILT_D>1,FILT_B=1,FILT_S=1,FILT_T=1,FILT_C=1),COUNTIFS(WIN,"R",BET_DATE,">="&DATE(OFFSET(AZ$11,FILT_YS,0),FILT_MS,FILT_DS),BET_DATE,"<="&DATE(OFFSET(AZ$11,FILT_YE,0),FILT_ME,FILT_DE)), IF(AND(FILT_D=1,FILT_B>1,FILT_S=1,FILT_T=1,FILT_C=1),COUNTIFS(WIN,"R",BET_TYPE,OFFSET(AW$10,FILT_B,0)), IF(AND(FILT_D=1,FILT_B=1,FILT_S>1,FILT_T=1,FILT_C=1),COUNTIFS(WIN,"R",SPORT,OFFSET(AV$10,FILT_S,0)), IF(AND(FILT_D=1,FILT_B=1,FILT_S=1,FILT_T>1,FILT_C=1),COUNTIFS(WIN,"R",CAPPER,OFFSET(AX$10,FILT_T,0)), IF(AND(FILT_D>1,FILT_B>1,FILT_S=1,FILT_T=1,FILT_C=1),COUNTIFS(WIN,"R",BET_DATE,">="&DATE(OFFSET(AZ$11,FILT_YS,0),FILT_MS,FILT_DS),BET_DATE,"<="&DATE(OFFSET(AZ$11,FILT_YE,0),FILT_ME,FILT_DE),BET_TYPE,OFFSET(AW$10,FILT_B,0)), IF(AND(FILT_D>1,FILT_B=1,FILT_S>1,FILT_T=1,FILT_C=1),COUNTIFS(WIN,"R",BET_DATE,">="&DATE(OFFSET(AZ$11,FILT_YS,0),FILT_MS,FILT_DS),BET_DATE,"<="&DATE(OFFSET(AZ$11,FILT_YE,0),FILT_ME,FILT_DE),SPORT,OFFSET(AV$10,FILT_S,0)), IF(AND(FILT_D>1,FILT_B=1,FILT_S=1,FILT_T>1,FILT_C=1),COUNTIFS(WIN,"R",BET_DATE,">="&DATE(OFFSET(AZ$11,FILT_YS,0),FILT_MS,FILT_DS),BET_DATE,"<="&DATE(OFFSET(AZ$11,FILT_YE,0),FILT_ME,FILT_DE),CAPPER,OFFSET(AX$10,FILT_T,0)), IF(AND(FILT_D=1,FILT_B>1,FILT_S>1,FILT_T=1,FILT_C=1),COUNTIFS(WIN,"R",BET_TYPE,OFFSET(AW$10,FILT_B,0),SPORT,OFFSET(AV$10,FILT_S,0)), IF(AND(FILT_D=1,FILT_B>1,FILT_S=1,FILT_T>1,FILT_C=1),COUNTIFS(WIN,"R",BET_TYPE,OFFSET(AW$10,FILT_B,0),CAPPER,OFFSET(AX$10,FILT_T,0)), IF(AND(FILT_D=1,FILT_B=1,FILT_S>1,FILT_T>1,FILT_C=1),COUNTIFS(WIN,"R",SPORT,OFFSET(AV$10,FILT_S,0),CAPPER,OFFSET(AX$10,FILT_T,0)), IF(AND(FILT_D>1,FILT_B>1,FILT_S>1,FILT_T=1,FILT_C=1),COUNTIFS(WIN,"R",BET_DATE,">="&DATE(OFFSET(AZ$11,FILT_YS,0),FILT_MS,FILT_DS),BET_DATE,"<="&DATE(OFFSET(AZ$11,FILT_YE,0),FILT_ME,FILT_DE),BET_TYPE,OFFSET(AW$10,FILT_B,0),SPORT,OFFSET(AV$10,FILT_S,0)), IF(AND(FILT_D=1,FILT_B>1,FILT_S>1,FILT_T>1,FILT_C=1),COUNTIFS(WIN,"R",BET_TYPE,OFFSET(AW$10,FILT_B,0),SPORT,OFFSET(AV$10,FILT_S,0),CAPPER,OFFSET(AX$10,FILT_T,0)), IF(AND(FILT_D>1,FILT_B=1,FILT_S>1,FILT_T>1,FILT_C=1),COUNTIFS(WIN,"R",BET_DATE,">="&DATE(OFFSET(AZ$11,FILT_YS,0),FILT_MS,FILT_DS),BET_DATE,"<="&DATE(OFFSET(AZ$11,FILT_YE,0),FILT_ME,FILT_DE),SPORT,OFFSET(AV$10,FILT_S,0),CAPPER,OFFSET(AX$10,FILT_T,0)), IF(AND(FILT_D>1,FILT_B>1,FILT_S=1,FILT_T>1,FILT_C=1),COUNTIFS(WIN,"R",BET_DATE,">="&DATE(OFFSET(AZ$11,FILT_YS,0),FILT_MS,FILT_DS),BET_DATE,"<="&DATE(OFFSET(AZ$11,FILT_YE,0),FILT_ME,FILT_DE),BET_TYPE,OFFSET(AW$10,FILT_B,0),CAPPER,OFFSET(AX$10,FILT_T,0)), IF(AND(FILT_D>1,FILT_B>1,FILT_S>1,FILT_T>1,FILT_C=1),COUNTIFS(WIN,"R",BET_DATE,">="&DATE(OFFSET(AZ$11,FILT_YS,0),FILT_MS,FILT_DS),BET_DATE,"<="&DATE(OFFSET(AZ$11,FILT_YE,0),FILT_ME,FILT_DE),BET_TYPE,OFFSET(AW$10,FILT_B,0),SPORT,OFFSET(AV$10,FILT_S,0),CAPPER,OFFSET(AX$10,FILT_T,0)), IF(AND(FILT_D=1,FILT_B=1,FILT_S=1,FILT_T=1,FILT_C>1),COUNTIFS(WIN,"R",CUSTOM,OFFSET(AY$10,FILT_C,0)), IF(AND(FILT_D>1,FILT_B=1,FILT_S=1,FILT_T=1,FILT_C>1),COUNTIFS(WIN,"R",CUSTOM,OFFSET(AY$10,FILT_C,0),BET_DATE,">="&DATE(OFFSET(AZ$11,FILT_YS,0),FILT_MS,FILT_DS),BET_DATE,"<="&DATE(OFFSET(AZ$11,FILT_YE,0),FILT_ME,FILT_DE)), IF(AND(FILT_D=1,FILT_B>1,FILT_S=1,FILT_T=1,FILT_C>1),COUNTIFS(WIN,"R",CUSTOM,OFFSET(AY$10,FILT_C,0),BET_TYPE,OFFSET(AW$10,FILT_B,0)), IF(AND(FILT_D=1,FILT_B=1,FILT_S>1,FILT_T=1,FILT_C>1),COUNTIFS(WIN,"R",CUSTOM,OFFSET(AY$10,FILT_C,0),SPORT,OFFSET(AV$10,FILT_S,0)), IF(AND(FILT_D=1,FILT_B=1,FILT_S=1,FILT_T>1,FILT_C>1),COUNTIFS(WIN,"R",CUSTOM,OFFSET(AY$10,FILT_C,0),CAPPER,OFFSET(AX$10,FILT_T,0)), IF(AND(FILT_D>1,FILT_B>1,FILT_S=1,FILT_T=1,FILT_C>1),COUNTIFS(WIN,"R",CUSTOM,OFFSET(AY$10,FILT_C,0),BET_DATE,">="&DATE(OFFSET(AZ$11,FILT_YS,0),FILT_MS,FILT_DS),BET_DATE,"<="&DATE(OFFSET(AZ$11,FILT_YE,0),FILT_ME,FILT_DE),BET_TYPE,OFFSET(AW$10,FILT_B,0)), IF(AND(FILT_D>1,FILT_B=1,FILT_S>1,FILT_T=1,FILT_C>1),COUNTIFS(WIN,"R",CUSTOM,OFFSET(AY$10,FILT_C,0),BET_DATE,">="&DATE(OFFSET(AZ$11,FILT_YS,0),FILT_MS,FILT_DS),BET_DATE,"<="&DATE(OFFSET(AZ$11,FILT_YE,0),FILT_ME,FILT_DE),SPORT,OFFSET(AV$10,FILT_S,0)), IF(AND(FILT_D>1,FILT_B=1,FILT_S=1,FILT_T>1,FILT_C>1),COUNTIFS(WIN,"R",CUSTOM,OFFSET(AY$10,FILT_C,0),BET_DATE,">="&DATE(OFFSET(AZ$11,FILT_YS,0),FILT_MS,FILT_DS),BET_DATE,"<="&DATE(OFFSET(AZ$11,FILT_YE,0),FILT_ME,FILT_DE),CAPPER,OFFSET(AX$10,FILT_T,0)), IF(AND(FILT_D=1,FILT_B>1,FILT_S>1,FILT_T=1,FILT_C>1),COUNTIFS(WIN,"R",CUSTOM,OFFSET(AY$10,FILT_C,0),BET_TYPE,OFFSET(AW$10,FILT_B,0),SPORT,OFFSET(AV$10,FILT_S,0)), IF(AND(FILT_D=1,FILT_B>1,FILT_S=1,FILT_T>1,FILT_C>1),COUNTIFS(WIN,"R",CUSTOM,OFFSET(AY$10,FILT_C,0),BET_TYPE,OFFSET(AW$10,FILT_B,0),CAPPER,OFFSET(AX$10,FILT_T,0)), IF(AND(FILT_D=1,FILT_B=1,FILT_S>1,FILT_T>1,FILT_C>1),COUNTIFS(WIN,"R",CUSTOM,OFFSET(AY$10,FILT_C,0),SPORT,OFFSET(AV$10,FILT_S,0),CAPPER,OFFSET(AX$10,FILT_T,0)), IF(AND(FILT_D>1,FILT_B>1,FILT_S>1,FILT_T=1,FILT_C>1),COUNTIFS(WIN,"R",CUSTOM,OFFSET(AY$10,FILT_C,0),BET_DATE,">="&DATE(OFFSET(AZ$11,FILT_YS,0),FILT_MS,FILT_DS),BET_DATE,"<="&DATE(OFFSET(AZ$11,FILT_YE,0),FILT_ME,FILT_DE),BET_TYPE,OFFSET(AW$10,FILT_B,0),SPORT,OFFSET(AV$10,FILT_S,0)), IF(AND(FILT_D=1,FILT_B>1,FILT_S>1,FILT_T>1,FILT_C>1),COUNTIFS(WIN,"R",CUSTOM,OFFSET(AY$10,FILT_C,0),BET_TYPE,OFFSET(AW$10,FILT_B,0),SPORT,OFFSET(AV$10,FILT_S,0),CAPPER,OFFSET(AX$10,FILT_T,0)), IF(AND(FILT_D>1,FILT_B=1,FILT_S>1,FILT_T>1,FILT_C>1),COUNTIFS(WIN,"R",CUSTOM,OFFSET(AY$10,FILT_C,0),BET_DATE,">="&DATE(OFFSET(AZ$11,FILT_YS,0),FILT_MS,FILT_DS),BET_DATE,"<="&DATE(OFFSET(AZ$11,FILT_YE,0),FILT_ME,FILT_DE),SPORT,OFFSET(AV$10,FILT_S,0),CAPPER,OFFSET(AX$10,FILT_T,0)), IF(AND(FILT_D>1,FILT_B>1,FILT_S=1,FILT_T>1,FILT_C>1),COUNTIFS(WIN,"R",CUSTOM,OFFSET(AY$10,FILT_C,0),BET_DATE,">="&DATE(OFFSET(AZ$11,FILT_YS,0),FILT_MS,FILT_DS),BET_DATE,"<="&DATE(OFFSET(AZ$11,FILT_YE,0),FILT_ME,FILT_DE),BET_TYPE,OFFSET(AW$10,FILT_B,0),CAPPER,OFFSET(AX$10,FILT_T,0)), IF(AND(FILT_D>1,FILT_B>1,FILT_S>1,FILT_T>1,FILT_C>1),COUNTIFS(WIN,"R",CUSTOM,OFFSET(AY$10,FILT_C,0),BET_DATE,">="&DATE(OFFSET(AZ$11,FILT_YS,0),FILT_MS,FILT_DS),BET_DATE,"<="&DATE(OFFSET(AZ$11,FILT_YE,0),FILT_ME,FILT_DE),BET_TYPE,OFFSET(AW$10,FILT_B,0),SPORT,OFFSET(AV$10,FILT_S,0),CAPPER,OFFSET(AX$10,FILT_T,0)), "")))))))))))))))))))))))))))))))) -> 0 | D22: 0 | H22: =IF(AND(Settings!G16<>"",Settings!G16<>"--"),Settings!G16,"") -> Basketball - Eurochallenge | I22: 600 | J22: 57.55 | K22: 0.09591666667 | L22: 6 | M22: 13 | N22: 0.4615384615 | P22: =IF(AND(Settings!I16<>"",Settings!I16<>"--"),Settings!I16,"") -> Half Ball | Q22: 0 | R22: 0 | T22: 0 | U22: 0 | X22: =IF(AND(Settings!K16<>"",Settings!K16<>"--"),Settings!K16,"") ->  | AF22: =IF(AND(Settings!M16<>"",Settings!M16<>"--"),Settings!M16,"") ->  | AN22: =IF(AND(Settings!D16<>"",Settings!D16<>"--"),Settings!D16,"") ->  | AV22: =IF(Settings!G16<>"",Settings!G16,"") -> Basketball - Eurochallenge | AW22: =IF(Settings!I16<>"",Settings!I16,"") -> Half Ball | AX22: =IF(Settings!K16<>"",Settings!K16,"") ->  | AY22: =IF(Settings!M16<>"",Settings!M16,"") ->  | BA22: Nov | BB22: 11
B23: Half Win | C23: =IF(AND(FILT_D=1,FILT_B=1,FILT_S=1,FILT_T=1,FILT_C=1),COUNTIFS(WIN,"HW"), IF(AND(FILT_D>1,FILT_B=1,FILT_S=1,FILT_T=1,FILT_C=1),COUNTIFS(WIN,"HW",BET_DATE,">="&DATE(OFFSET(AZ$11,FILT_YS,0),FILT_MS,FILT_DS),BET_DATE,"<="&DATE(OFFSET(AZ$11,FILT_YE,0),FILT_ME,FILT_DE)), IF(AND(FILT_D=1,FILT_B>1,FILT_S=1,FILT_T=1,FILT_C=1),COUNTIFS(WIN,"HW",BET_TYPE,OFFSET(AW$10,FILT_B,0)), IF(AND(FILT_D=1,FILT_B=1,FILT_S>1,FILT_T=1,FILT_C=1),COUNTIFS(WIN,"HW",SPORT,OFFSET(AV$10,FILT_S,0)), IF(AND(FILT_D=1,FILT_B=1,FILT_S=1,FILT_T>1,FILT_C=1),COUNTIFS(WIN,"HW",CAPPER,OFFSET(AX$10,FILT_T,0)), IF(AND(FILT_D>1,FILT_B>1,FILT_S=1,FILT_T=1,FILT_C=1),COUNTIFS(WIN,"HW",BET_DATE,">="&DATE(OFFSET(AZ$11,FILT_YS,0),FILT_MS,FILT_DS),BET_DATE,"<="&DATE(OFFSET(AZ$11,FILT_YE,0),FILT_ME,FILT_DE),BET_TYPE,OFFSET(AW$10,FILT_B,0)), IF(AND(FILT_D>1,FILT_B=1,FILT_S>1,FILT_T=1,FILT_C=1),COUNTIFS(WIN,"HW",BET_DATE,">="&DATE(OFFSET(AZ$11,FILT_YS,0),FILT_MS,FILT_DS),BET_DATE,"<="&DATE(OFFSET(AZ$11,FILT_YE,0),FILT_ME,FILT_DE),SPORT,OFFSET(AV$10,FILT_S,0)), IF(AND(FILT_D>1,FILT_B=1,FILT_S=1,FILT_T>1,FILT_C=1),COUNTIFS(WIN,"HW",BET_DATE,">="&DATE(OFFSET(AZ$11,FILT_YS,0),FILT_MS,FILT_DS),BET_DATE,"<="&DATE(OFFSET(AZ$11,FILT_YE,0),FILT_ME,FILT_DE),CAPPER,OFFSET(AX$10,FILT_T,0)), IF(AND(FILT_D=1,FILT_B>1,FILT_S>1,FILT_T=1,FILT_C=1),COUNTIFS(WIN,"HW",BET_TYPE,OFFSET(AW$10,FILT_B,0),SPORT,OFFSET(AV$10,FILT_S,0)), IF(AND(FILT_D=1,FILT_B>1,FILT_S=1,FILT_T>1,FILT_C=1),COUNTIFS(WIN,"HW",BET_TYPE,OFFSET(AW$10,FILT_B,0),CAPPER,OFFSET(AX$10,FILT_T,0)), IF(AND(FILT_D=1,FILT_B=1,FILT_S>1,FILT_T>1,FILT_C=1),COUNTIFS(WIN,"HW",SPORT,OFFSET(AV$10,FILT_S,0),CAPPER,OFFSET(AX$10,FILT_T,0)), IF(AND(FILT_D>1,FILT_B>1,FILT_S>1,FILT_T=1,FILT_C=1),COUNTIFS(WIN,"HW",BET_DATE,">="&DATE(OFFSET(AZ$11,FILT_YS,0),FILT_MS,FILT_DS),BET_DATE,"<="&DATE(OFFSET(AZ$11,FILT_YE,0),FILT_ME,FILT_DE),BET_TYPE,OFFSET(AW$10,FILT_B,0),SPORT,OFFSET(AV$10,FILT_S,0)), IF(AND(FILT_D=1,FILT_B>1,FILT_S>1,FILT_T>1,FILT_C=1),COUNTIFS(WIN,"HW",BET_TYPE,OFFSET(AW$10,FILT_B,0),SPORT,OFFSET(AV$10,FILT_S,0),CAPPER,OFFSET(AX$10,FILT_T,0)), IF(AND(FILT_D>1,FILT_B=1,FILT_S>1,FILT_T>1,FILT_C=1),COUNTIFS(WIN,"HW",BET_DATE,">="&DATE(OFFSET(AZ$11,FILT_YS,0),FILT_MS,FILT_DS),BET_DATE,"<="&DATE(OFFSET(AZ$11,FILT_YE,0),FILT_ME,FILT_DE),SPORT,OFFSET(AV$10,FILT_S,0),CAPPER,OFFSET(AX$10,FILT_T,0)), IF(AND(FILT_D>1,FILT_B>1,FILT_S=1,FILT_T>1,FILT_C=1),COUNTIFS(WIN,"HW",BET_DATE,">="&DATE(OFFSET(AZ$11,FILT_YS,0),FILT_MS,FILT_DS),BET_DATE,"<="&DATE(OFFSET(AZ$11,FILT_YE,0),FILT_ME,FILT_DE),BET_TYPE,OFFSET(AW$10,FILT_B,0),CAPPER,OFFSET(AX$10,FILT_T,0)), IF(AND(FILT_D>1,FILT_B>1,FILT_S>1,FILT_T>1,FILT_C=1),COUNTIFS(WIN,"HW",BET_DATE,">="&DATE(OFFSET(AZ$11,FILT_YS,0),FILT_MS,FILT_DS),BET_DATE,"<="&DATE(OFFSET(AZ$11,FILT_YE,0),FILT_ME,FILT_DE),BET_TYPE,OFFSET(AW$10,FILT_B,0),SPORT,OFFSET(AV$10,FILT_S,0),CAPPER,OFFSET(AX$10,FILT_T,0)), IF(AND(FILT_D=1,FILT_B=1,FILT_S=1,FILT_T=1,FILT_C>1),COUNTIFS(WIN,"HW",CUSTOM,OFFSET(AY$10,FILT_C,0)), IF(AND(FILT_D>1,FILT_B=1,FILT_S=1,FILT_T=1,FILT_C>1),COUNTIFS(WIN,"HW",CUSTOM,OFFSET(AY$10,FILT_C,0),BET_DATE,">="&DATE(OFFSET(AZ$11,FILT_YS,0),FILT_MS,FILT_DS),BET_DATE,"<="&DATE(OFFSET(AZ$11,FILT_YE,0),FILT_ME,FILT_DE)), IF(AND(FILT_D=1,FILT_B>1,FILT_S=1,FILT_T=1,FILT_C>1),COUNTIFS(WIN,"HW",CUSTOM,OFFSET(AY$10,FILT_C,0),BET_TYPE,OFFSET(AW$10,FILT_B,0)), IF(AND(FILT_D=1,FILT_B=1,FILT_S>1,FILT_T=1,FILT_C>1),COUNTIFS(WIN,"HW",CUSTOM,OFFSET(AY$10,FILT_C,0),SPORT,OFFSET(AV$10,FILT_S,0)), IF(AND(FILT_D=1,FILT_B=1,FILT_S=1,FILT_T>1,FILT_C>1),COUNTIFS(WIN,"HW",CUSTOM,OFFSET(AY$10,FILT_C,0),CAPPER,OFFSET(AX$10,FILT_T,0)), IF(AND(FILT_D>1,FILT_B>1,FILT_S=1,FILT_T=1,FILT_C>1),COUNTIFS(WIN,"HW",CUSTOM,OFFSET(AY$10,FILT_C,0),BET_DATE,">="&DATE(OFFSET(AZ$11,FILT_YS,0),FILT_MS,FILT_DS),BET_DATE,"<="&DATE(OFFSET(AZ$11,FILT_YE,0),FILT_ME,FILT_DE),BET_TYPE,OFFSET(AW$10,FILT_B,0)), IF(AND(FILT_D>1,FILT_B=1,FILT_S>1,FILT_T=1,FILT_C>1),COUNTIFS(WIN,"HW",CUSTOM,OFFSET(AY$10,FILT_C,0),BET_DATE,">="&DATE(OFFSET(AZ$11,FILT_YS,0),FILT_MS,FILT_DS),BET_DATE,"<="&DATE(OFFSET(AZ$11,FILT_YE,0),FILT_ME,FILT_DE),SPORT,OFFSET(AV$10,FILT_S,0)), IF(AND(FILT_D>1,FILT_B=1,FILT_S=1,FILT_T>1,FILT_C>1),COUNTIFS(WIN,"HW",CUSTOM,OFFSET(AY$10,FILT_C,0),BET_DATE,">="&DATE(OFFSET(AZ$11,FILT_YS,0),FILT_MS,FILT_DS),BET_DATE,"<="&DATE(OFFSET(AZ$11,FILT_YE,0),FILT_ME,FILT_DE),CAPPER,OFFSET(AX$10,FILT_T,0)), IF(AND(FILT_D=1,FILT_B>1,FILT_S>1,FILT_T=1,FILT_C>1),COUNTIFS(WIN,"HW",CUSTOM,OFFSET(AY$10,FILT_C,0),BET_TYPE,OFFSET(AW$10,FILT_B,0),SPORT,OFFSET(AV$10,FILT_S,0)), IF(AND(FILT_D=1,FILT_B>1,FILT_S=1,FILT_T>1,FILT_C>1),COUNTIFS(WIN,"HW",CUSTOM,OFFSET(AY$10,FILT_C,0),BET_TYPE,OFFSET(AW$10,FILT_B,0),CAPPER,OFFSET(AX$10,FILT_T,0)), IF(AND(FILT_D=1,FILT_B=1,FILT_S>1,FILT_T>1,FILT_C>1),COUNTIFS(WIN,"HW",CUSTOM,OFFSET(AY$10,FILT_C,0),SPORT,OFFSET(AV$10,FILT_S,0),CAPPER,OFFSET(AX$10,FILT_T,0)), IF(AND(FILT_D>1,FILT_B>1,FILT_S>1,FILT_T=1,FILT_C>1),COUNTIFS(WIN,"HW",CUSTOM,OFFSET(AY$10,FILT_C,0),BET_DATE,">="&DATE(OFFSET(AZ$11,FILT_YS,0),FILT_MS,FILT_DS),BET_DATE,"<="&DATE(OFFSET(AZ$11,FILT_YE,0),FILT_ME,FILT_DE),BET_TYPE,OFFSET(AW$10,FILT_B,0),SPORT,OFFSET(AV$10,FILT_S,0)), IF(AND(FILT_D=1,FILT_B>1,FILT_S>1,FILT_T>1,FILT_C>1),COUNTIFS(WIN,"HW",CUSTOM,OFFSET(AY$10,FILT_C,0),BET_TYPE,OFFSET(AW$10,FILT_B,0),SPORT,OFFSET(AV$10,FILT_S,0),CAPPER,OFFSET(AX$10,FILT_T,0)), IF(AND(FILT_D>1,FILT_B=1,FILT_S>1,FILT_T>1,FILT_C>1),COUNTIFS(WIN,"HW",CUSTOM,OFFSET(AY$10,FILT_C,0),BET_DATE,">="&DATE(OFFSET(AZ$11,FILT_YS,0),FILT_MS,FILT_DS),BET_DATE,"<="&DATE(OFFSET(AZ$11,FILT_YE,0),FILT_ME,FILT_DE),SPORT,OFFSET(AV$10,FILT_S,0),CAPPER,OFFSET(AX$10,FILT_T,0)), IF(AND(FILT_D>1,FILT_B>1,FILT_S=1,FILT_T>1,FILT_C>1),COUNTIFS(WIN,"HW",CUSTOM,OFFSET(AY$10,FILT_C,0),BET_DATE,">="&DATE(OFFSET(AZ$11,FILT_YS,0),FILT_MS,FILT_DS),BET_DATE,"<="&DATE(OFFSET(AZ$11,FILT_YE,0),FILT_ME,FILT_DE),BET_TYPE,OFFSET(AW$10,FILT_B,0),CAPPER,OFFSET(AX$10,FILT_T,0)), IF(AND(FILT_D>1,FILT_B>1,FILT_S>1,FILT_T>1,FILT_C>1),COUNTIFS(WIN,"HW",CUSTOM,OFFSET(AY$10,FILT_C,0),BET_DATE,">="&DATE(OFFSET(AZ$11,FILT_YS,0),FILT_MS,FILT_DS),BET_DATE,"<="&DATE(OFFSET(AZ$11,FILT_YE,0),FILT_ME,FILT_DE),BET_TYPE,OFFSET(AW$10,FILT_B,0),SPORT,OFFSET(AV$10,FILT_S,0),CAPPER,OFFSET(AX$10,FILT_T,0)), "")))))))))))))))))))))))))))))))) -> 0 | D23: 0 | H23: =IF(AND(Settings!G17<>"",Settings!G17<>"--"),Settings!G17,"") -> Basketball - Serbia | I23: 255 | J23: -47.5 | K23: -0.1862745098 | L23: 2 | M23: 5 | N23: 0.4 | P23: =IF(AND(Settings!I17<>"",Settings!I17<>"--"),Settings!I17,"") -> Over / Under | Q23: 165 | R23: -41 | S23: -0.2484848485 | T23: 1 | U23: 3 | V23: 0.3333333333 | X23: =IF(AND(Settings!K17<>"",Settings!K17<>"--"),Settings!K17,"") ->  | AF23: =IF(AND(Settings!M17<>"",Settings!M17<>"--"),Settings!M17,"") ->  | AN23: =IF(AND(Settings!D17<>"",Settings!D17<>"--"),Settings!D17,"") ->  | AV23: =IF(Settings!G17<>"",Settings!G17,"") -> Basketball - Serbia | AW23: =IF(Settings!I17<>"",Settings!I17,"") -> Over / Under | AX23: =IF(Settings!K17<>"",Settings!K17,"") ->  | AY23: =IF(Settings!M17<>"",Settings!M17,"") ->  | BA23: Dec | BB23: 12
B24: Half Lose | C24: =IF(AND(FILT_D=1,FILT_B=1,FILT_S=1,FILT_T=1,FILT_C=1),COUNTIFS(WIN,"HL"), IF(AND(FILT_D>1,FILT_B=1,FILT_S=1,FILT_T=1,FILT_C=1),COUNTIFS(WIN,"HL",BET_DATE,">="&DATE(OFFSET(AZ$11,FILT_YS,0),FILT_MS,FILT_DS),BET_DATE,"<="&DATE(OFFSET(AZ$11,FILT_YE,0),FILT_ME,FILT_DE)), IF(AND(FILT_D=1,FILT_B>1,FILT_S=1,FILT_T=1,FILT_C=1),COUNTIFS(WIN,"HL",BET_TYPE,OFFSET(AW$10,FILT_B,0)), IF(AND(FILT_D=1,FILT_B=1,FILT_S>1,FILT_T=1,FILT_C=1),COUNTIFS(WIN,"HL",SPORT,OFFSET(AV$10,FILT_S,0)), IF(AND(FILT_D=1,FILT_B=1,FILT_S=1,FILT_T>1,FILT_C=1),COUNTIFS(WIN,"HL",CAPPER,OFFSET(AX$10,FILT_T,0)), IF(AND(FILT_D>1,FILT_B>1,FILT_S=1,FILT_T=1,FILT_C=1),COUNTIFS(WIN,"HL",BET_DATE,">="&DATE(OFFSET(AZ$11,FILT_YS,0),FILT_MS,FILT_DS),BET_DATE,"<="&DATE(OFFSET(AZ$11,FILT_YE,0),FILT_ME,FILT_DE),BET_TYPE,OFFSET(AW$10,FILT_B,0)), IF(AND(FILT_D>1,FILT_B=1,FILT_S>1,FILT_T=1,FILT_C=1),COUNTIFS(WIN,"HL",BET_DATE,">="&DATE(OFFSET(AZ$11,FILT_YS,0),FILT_MS,FILT_DS),BET_DATE,"<="&DATE(OFFSET(AZ$11,FILT_YE,0),FILT_ME,FILT_DE),SPORT,OFFSET(AV$10,FILT_S,0)), IF(AND(FILT_D>1,FILT_B=1,FILT_S=1,FILT_T>1,FILT_C=1),COUNTIFS(WIN,"HL",BET_DATE,">="&DATE(OFFSET(AZ$11,FILT_YS,0),FILT_MS,FILT_DS),BET_DATE,"<="&DATE(OFFSET(AZ$11,FILT_YE,0),FILT_ME,FILT_DE),CAPPER,OFFSET(AX$10,FILT_T,0)), IF(AND(FILT_D=1,FILT_B>1,FILT_S>1,FILT_T=1,FILT_C=1),COUNTIFS(WIN,"HL",BET_TYPE,OFFSET(AW$10,FILT_B,0),SPORT,OFFSET(AV$10,FILT_S,0)), IF(AND(FILT_D=1,FILT_B>1,FILT_S=1,FILT_T>1,FILT_C=1),COUNTIFS(WIN,"HL",BET_TYPE,OFFSET(AW$10,FILT_B,0),CAPPER,OFFSET(AX$10,FILT_T,0)), IF(AND(FILT_D=1,FILT_B=1,FILT_S>1,FILT_T>1,FILT_C=1),COUNTIFS(WIN,"HL",SPORT,OFFSET(AV$10,FILT_S,0),CAPPER,OFFSET(AX$10,FILT_T,0)), IF(AND(FILT_D>1,FILT_B>1,FILT_S>1,FILT_T=1,FILT_C=1),COUNTIFS(WIN,"HL",BET_DATE,">="&DATE(OFFSET(AZ$11,FILT_YS,0),FILT_MS,FILT_DS),BET_DATE,"<="&DATE(OFFSET(AZ$11,FILT_YE,0),FILT_ME,FILT_DE),BET_TYPE,OFFSET(AW$10,FILT_B,0),SPORT,OFFSET(AV$10,FILT_S,0)), IF(AND(FILT_D=1,FILT_B>1,FILT_S>1,FILT_T>1,FILT_C=1),COUNTIFS(WIN,"HL",BET_TYPE,OFFSET(AW$10,FILT_B,0),SPORT,OFFSET(AV$10,FILT_S,0),CAPPER,OFFSET(AX$10,FILT_T,0)), IF(AND(FILT_D>1,FILT_B=1,FILT_S>1,FILT_T>1,FILT_C=1),COUNTIFS(WIN,"HL",BET_DATE,">="&DATE(OFFSET(AZ$11,FILT_YS,0),FILT_MS,FILT_DS),BET_DATE,"<="&DATE(OFFSET(AZ$11,FILT_YE,0),FILT_ME,FILT_DE),SPORT,OFFSET(AV$10,FILT_S,0),CAPPER,OFFSET(AX$10,FILT_T,0)), IF(AND(FILT_D>1,FILT_B>1,FILT_S=1,FILT_T>1,FILT_C=1),COUNTIFS(WIN,"HL",BET_DATE,">="&DATE(OFFSET(AZ$11,FILT_YS,0),FILT_MS,FILT_DS),BET_DATE,"<="&DATE(OFFSET(AZ$11,FILT_YE,0),FILT_ME,FILT_DE),BET_TYPE,OFFSET(AW$10,FILT_B,0),CAPPER,OFFSET(AX$10,FILT_T,0)), IF(AND(FILT_D>1,FILT_B>1,FILT_S>1,FILT_T>1,FILT_C=1),COUNTIFS(WIN,"HL",BET_DATE,">="&DATE(OFFSET(AZ$11,FILT_YS,0),FILT_MS,FILT_DS),BET_DATE,"<="&DATE(OFFSET(AZ$11,FILT_YE,0),FILT_ME,FILT_DE),BET_TYPE,OFFSET(AW$10,FILT_B,0),SPORT,OFFSET(AV$10,FILT_S,0),CAPPER,OFFSET(AX$10,FILT_T,0)), IF(AND(FILT_D=1,FILT_B=1,FILT_S=1,FILT_T=1,FILT_C>1),COUNTIFS(WIN,"HL",CUSTOM,OFFSET(AY$10,FILT_C,0)), IF(AND(FILT_D>1,FILT_B=1,FILT_S=1,FILT_T=1,FILT_C>1),COUNTIFS(WIN,"HL",CUSTOM,OFFSET(AY$10,FILT_C,0),BET_DATE,">="&DATE(OFFSET(AZ$11,FILT_YS,0),FILT_MS,FILT_DS),BET_DATE,"<="&DATE(OFFSET(AZ$11,FILT_YE,0),FILT_ME,FILT_DE)), IF(AND(FILT_D=1,FILT_B>1,FILT_S=1,FILT_T=1,FILT_C>1),COUNTIFS(WIN,"HL",CUSTOM,OFFSET(AY$10,FILT_C,0),BET_TYPE,OFFSET(AW$10,FILT_B,0)), IF(AND(FILT_D=1,FILT_B=1,FILT_S>1,FILT_T=1,FILT_C>1),COUNTIFS(WIN,"HL",CUSTOM,OFFSET(AY$10,FILT_C,0),SPORT,OFFSET(AV$10,FILT_S,0)), IF(AND(FILT_D=1,FILT_B=1,FILT_S=1,FILT_T>1,FILT_C>1),COUNTIFS(WIN,"HL",CUSTOM,OFFSET(AY$10,FILT_C,0),CAPPER,OFFSET(AX$10,FILT_T,0)), IF(AND(FILT_D>1,FILT_B>1,FILT_S=1,FILT_T=1,FILT_C>1),COUNTIFS(WIN,"HL",CUSTOM,OFFSET(AY$10,FILT_C,0),BET_DATE,">="&DATE(OFFSET(AZ$11,FILT_YS,0),FILT_MS,FILT_DS),BET_DATE,"<="&DATE(OFFSET(AZ$11,FILT_YE,0),FILT_ME,FILT_DE),BET_TYPE,OFFSET(AW$10,FILT_B,0)), IF(AND(FILT_D>1,FILT_B=1,FILT_S>1,FILT_T=1,FILT_C>1),COUNTIFS(WIN,"HL",CUSTOM,OFFSET(AY$10,FILT_C,0),BET_DATE,">="&DATE(OFFSET(AZ$11,FILT_YS,0),FILT_MS,FILT_DS),BET_DATE,"<="&DATE(OFFSET(AZ$11,FILT_YE,0),FILT_ME,FILT_DE),SPORT,OFFSET(AV$10,FILT_S,0)), IF(AND(FILT_D>1,FILT_B=1,FILT_S=1,FILT_T>1,FILT_C>1),COUNTIFS(WIN,"HL",CUSTOM,OFFSET(AY$10,FILT_C,0),BET_DATE,">="&DATE(OFFSET(AZ$11,FILT_YS,0),FILT_MS,FILT_DS),BET_DATE,"<="&DATE(OFFSET(AZ$11,FILT_YE,0),FILT_ME,FILT_DE),CAPPER,OFFSET(AX$10,FILT_T,0)), IF(AND(FILT_D=1,FILT_B>1,FILT_S>1,FILT_T=1,FILT_C>1),COUNTIFS(WIN,"HL",CUSTOM,OFFSET(AY$10,FILT_C,0),BET_TYPE,OFFSET(AW$10,FILT_B,0),SPORT,OFFSET(AV$10,FILT_S,0)), IF(AND(FILT_D=1,FILT_B>1,FILT_S=1,FILT_T>1,FILT_C>1),COUNTIFS(WIN,"HL",CUSTOM,OFFSET(AY$10,FILT_C,0),BET_TYPE,OFFSET(AW$10,FILT_B,0),CAPPER,OFFSET(AX$10,FILT_T,0)), IF(AND(FILT_D=1,FILT_B=1,FILT_S>1,FILT_T>1,FILT_C>1),COUNTIFS(WIN,"HL",CUSTOM,OFFSET(AY$10,FILT_C,0),SPORT,OFFSET(AV$10,FILT_S,0),CAPPER,OFFSET(AX$10,FILT_T,0)), IF(AND(FILT_D>1,FILT_B>1,FILT_S>1,FILT_T=1,FILT_C>1),COUNTIFS(WIN,"HL",CUSTOM,OFFSET(AY$10,FILT_C,0),BET_DATE,">="&DATE(OFFSET(AZ$11,FILT_YS,0),FILT_MS,FILT_DS),BET_DATE,"<="&DATE(OFFSET(AZ$11,FILT_YE,0),FILT_ME,FILT_DE),BET_TYPE,OFFSET(AW$10,FILT_B,0),SPORT,OFFSET(AV$10,FILT_S,0)), IF(AND(FILT_D=1,FILT_B>1,FILT_S>1,FILT_T>1,FILT_C>1),COUNTIFS(WIN,"HL",CUSTOM,OFFSET(AY$10,FILT_C,0),BET_TYPE,OFFSET(AW$10,FILT_B,0),SPORT,OFFSET(AV$10,FILT_S,0),CAPPER,OFFSET(AX$10,FILT_T,0)), IF(AND(FILT_D>1,FILT_B=1,FILT_S>1,FILT_T>1,FILT_C>1),COUNTIFS(WIN,"HL",CUSTOM,OFFSET(AY$10,FILT_C,0),BET_DATE,">="&DATE(OFFSET(AZ$11,FILT_YS,0),FILT_MS,FILT_DS),BET_DATE,"<="&DATE(OFFSET(AZ$11,FILT_YE,0),FILT_ME,FILT_DE),SPORT,OFFSET(AV$10,FILT_S,0),CAPPER,OFFSET(AX$10,FILT_T,0)), IF(AND(FILT_D>1,FILT_B>1,FILT_S=1,FILT_T>1,FILT_C>1),COUNTIFS(WIN,"HL",CUSTOM,OFFSET(AY$10,FILT_C,0),BET_DATE,">="&DATE(OFFSET(AZ$11,FILT_YS,0),FILT_MS,FILT_DS),BET_DATE,"<="&DATE(OFFSET(AZ$11,FILT_YE,0),FILT_ME,FILT_DE),BET_TYPE,OFFSET(AW$10,FILT_B,0),CAPPER,OFFSET(AX$10,FILT_T,0)), IF(AND(FILT_D>1,FILT_B>1,FILT_S>1,FILT_T>1,FILT_C>1),COUNTIFS(WIN,"HL",CUSTOM,OFFSET(AY$10,FILT_C,0),BET_DATE,">="&DATE(OFFSET(AZ$11,FILT_YS,0),FILT_MS,FILT_DS),BET_DATE,"<="&DATE(OFFSET(AZ$11,FILT_YE,0),FILT_ME,FILT_DE),BET_TYPE,OFFSET(AW$10,FILT_B,0),SPORT,OFFSET(AV$10,FILT_S,0),CAPPER,OFFSET(AX$10,FILT_T,0)), "")))))))))))))))))))))))))))))))) -> 2 | D24: 0.008130081301 | H24: =IF(AND(Settings!G18<>"",Settings!G18<>"--"),Settings!G18,"") -> Basketball - Turkey | I24: 510 | J24: 52.2 | K24: 0.1023529412 | L24: 5 | M24: 11 | N24: 0.4545454545 | P24: =IF(AND(Settings!I18<>"",Settings!I18<>"--"),Settings!I18,"") -> Halftime Line | Q24: 0 | R24: 0 | T24: 0 | U24: 0 | X24: =IF(AND(Settings!K18<>"",Settings!K18<>"--"),Settings!K18,"") ->  | AF24: =IF(AND(Settings!M18<>"",Settings!M18<>"--"),Settings!M18,"") ->  | AN24: =IF(AND(Settings!D18<>"",Settings!D18<>"--"),Settings!D18,"") ->  | AV24: =IF(Settings!G18<>"",Settings!G18,"") -> Basketball - Turkey | AW24: =IF(Settings!I18<>"",Settings!I18,"") -> Halftime Line | AX24: =IF(Settings!K18<>"",Settings!K18,"") ->  | AY24: =IF(Settings!M18<>"",Settings!M18,"") ->  | BB24: 13
B25: Push | C25: =IF(AND(FILT_D=1,FILT_B=1,FILT_S=1,FILT_T=1,FILT_C=1),COUNTIFS(WIN,"PU"), IF(AND(FILT_D>1,FILT_B=1,FILT_S=1,FILT_T=1,FILT_C=1),COUNTIFS(WIN,"PU",BET_DATE,">="&DATE(OFFSET(AZ$11,FILT_YS,0),FILT_MS,FILT_DS),BET_DATE,"<="&DATE(OFFSET(AZ$11,FILT_YE,0),FILT_ME,FILT_DE)), IF(AND(FILT_D=1,FILT_B>1,FILT_S=1,FILT_T=1,FILT_C=1),COUNTIFS(WIN,"PU",BET_TYPE,OFFSET(AW$10,FILT_B,0)), IF(AND(FILT_D=1,FILT_B=1,FILT_S>1,FILT_T=1,FILT_C=1),COUNTIFS(WIN,"PU",SPORT,OFFSET(AV$10,FILT_S,0)), IF(AND(FILT_D=1,FILT_B=1,FILT_S=1,FILT_T>1,FILT_C=1),COUNTIFS(WIN,"PU",CAPPER,OFFSET(AX$10,FILT_T,0)), IF(AND(FILT_D>1,FILT_B>1,FILT_S=1,FILT_T=1,FILT_C=1),COUNTIFS(WIN,"PU",BET_DATE,">="&DATE(OFFSET(AZ$11,FILT_YS,0),FILT_MS,FILT_DS),BET_DATE,"<="&DATE(OFFSET(AZ$11,FILT_YE,0),FILT_ME,FILT_DE),BET_TYPE,OFFSET(AW$10,FILT_B,0)), IF(AND(FILT_D>1,FILT_B=1,FILT_S>1,FILT_T=1,FILT_C=1),COUNTIFS(WIN,"PU",BET_DATE,">="&DATE(OFFSET(AZ$11,FILT_YS,0),FILT_MS,FILT_DS),BET_DATE,"<="&DATE(OFFSET(AZ$11,FILT_YE,0),FILT_ME,FILT_DE),SPORT,OFFSET(AV$10,FILT_S,0)), IF(AND(FILT_D>1,FILT_B=1,FILT_S=1,FILT_T>1,FILT_C=1),COUNTIFS(WIN,"PU",BET_DATE,">="&DATE(OFFSET(AZ$11,FILT_YS,0),FILT_MS,FILT_DS),BET_DATE,"<="&DATE(OFFSET(AZ$11,FILT_YE,0),FILT_ME,FILT_DE),CAPPER,OFFSET(AX$10,FILT_T,0)), IF(AND(FILT_D=1,FILT_B>1,FILT_S>1,FILT_T=1,FILT_C=1),COUNTIFS(WIN,"PU",BET_TYPE,OFFSET(AW$10,FILT_B,0),SPORT,OFFSET(AV$10,FILT_S,0)), IF(AND(FILT_D=1,FILT_B>1,FILT_S=1,FILT_T>1,FILT_C=1),COUNTIFS(WIN,"PU",BET_TYPE,OFFSET(AW$10,FILT_B,0),CAPPER,OFFSET(AX$10,FILT_T,0)), IF(AND(FILT_D=1,FILT_B=1,FILT_S>1,FILT_T>1,FILT_C=1),COUNTIFS(WIN,"PU",SPORT,OFFSET(AV$10,FILT_S,0),CAPPER,OFFSET(AX$10,FILT_T,0)), IF(AND(FILT_D>1,FILT_B>1,FILT_S>1,FILT_T=1,FILT_C=1),COUNTIFS(WIN,"PU",BET_DATE,">="&DATE(OFFSET(AZ$11,FILT_YS,0),FILT_MS,FILT_DS),BET_DATE,"<="&DATE(OFFSET(AZ$11,FILT_YE,0),FILT_ME,FILT_DE),BET_TYPE,OFFSET(AW$10,FILT_B,0),SPORT,OFFSET(AV$10,FILT_S,0)), IF(AND(FILT_D=1,FILT_B>1,FILT_S>1,FILT_T>1,FILT_C=1),COUNTIFS(WIN,"PU",BET_TYPE,OFFSET(AW$10,FILT_B,0),SPORT,OFFSET(AV$10,FILT_S,0),CAPPER,OFFSET(AX$10,FILT_T,0)), IF(AND(FILT_D>1,FILT_B=1,FILT_S>1,FILT_T>1,FILT_C=1),COUNTIFS(WIN,"PU",BET_DATE,">="&DATE(OFFSET(AZ$11,FILT_YS,0),FILT_MS,FILT_DS),BET_DATE,"<="&DATE(OFFSET(AZ$11,FILT_YE,0),FILT_ME,FILT_DE),SPORT,OFFSET(AV$10,FILT_S,0),CAPPER,OFFSET(AX$10,FILT_T,0)), IF(AND(FILT_D>1,FILT_B>1,FILT_S=1,FILT_T>1,FILT_C=1),COUNTIFS(WIN,"PU",BET_DATE,">="&DATE(OFFSET(AZ$11,FILT_YS,0),FILT_MS,FILT_DS),BET_DATE,"<="&DATE(OFFSET(AZ$11,FILT_YE,0),FILT_ME,FILT_DE),BET_TYPE,OFFSET(AW$10,FILT_B,0),CAPPER,OFFSET(AX$10,FILT_T,0)), IF(AND(FILT_D>1,FILT_B>1,FILT_S>1,FILT_T>1,FILT_C=1),COUNTIFS(WIN,"PU",BET_DATE,">="&DATE(OFFSET(AZ$11,FILT_YS,0),FILT_MS,FILT_DS),BET_DATE,"<="&DATE(OFFSET(AZ$11,FILT_YE,0),FILT_ME,FILT_DE),BET_TYPE,OFFSET(AW$10,FILT_B,0),SPORT,OFFSET(AV$10,FILT_S,0),CAPPER,OFFSET(AX$10,FILT_T,0)), IF(AND(FILT_D=1,FILT_B=1,FILT_S=1,FILT_T=1,FILT_C>1),COUNTIFS(WIN,"PU",CUSTOM,OFFSET(AY$10,FILT_C,0)), IF(AND(FILT_D>1,FILT_B=1,FILT_S=1,FILT_T=1,FILT_C>1),COUNTIFS(WIN,"PU",CUSTOM,OFFSET(AY$10,FILT_C,0),BET_DATE,">="&DATE(OFFSET(AZ$11,FILT_YS,0),FILT_MS,FILT_DS),BET_DATE,"<="&DATE(OFFSET(AZ$11,FILT_YE,0),FILT_ME,FILT_DE)), IF(AND(FILT_D=1,FILT_B>1,FILT_S=1,FILT_T=1,FILT_C>1),COUNTIFS(WIN,"PU",CUSTOM,OFFSET(AY$10,FILT_C,0),BET_TYPE,OFFSET(AW$10,FILT_B,0)), IF(AND(FILT_D=1,FILT_B=1,FILT_S>1,FILT_T=1,FILT_C>1),COUNTIFS(WIN,"PU",CUSTOM,OFFSET(AY$10,FILT_C,0),SPORT,OFFSET(AV$10,FILT_S,0)), IF(AND(FILT_D=1,FILT_B=1,FILT_S=1,FILT_T>1,FILT_C>1),COUNTIFS(WIN,"PU",CUSTOM,OFFSET(AY$10,FILT_C,0),CAPPER,OFFSET(AX$10,FILT_T,0)), IF(AND(FILT_D>1,FILT_B>1,FILT_S=1,FILT_T=1,FILT_C>1),COUNTIFS(WIN,"PU",CUSTOM,OFFSET(AY$10,FILT_C,0),BET_DATE,">="&DATE(OFFSET(AZ$11,FILT_YS,0),FILT_MS,FILT_DS),BET_DATE,"<="&DATE(OFFSET(AZ$11,FILT_YE,0),FILT_ME,FILT_DE),BET_TYPE,OFFSET(AW$10,FILT_B,0)), IF(AND(FILT_D>1,FILT_B=1,FILT_S>1,FILT_T=1,FILT_C>1),COUNTIFS(WIN,"PU",CUSTOM,OFFSET(AY$10,FILT_C,0),BET_DATE,">="&DATE(OFFSET(AZ$11,FILT_YS,0),FILT_MS,FILT_DS),BET_DATE,"<="&DATE(OFFSET(AZ$11,FILT_YE,0),FILT_ME,FILT_DE),SPORT,OFFSET(AV$10,FILT_S,0)), IF(AND(FILT_D>1,FILT_B=1,FILT_S=1,FILT_T>1,FILT_C>1),COUNTIFS(WIN,"PU",CUSTOM,OFFSET(AY$10,FILT_C,0),BET_DATE,">="&DATE(OFFSET(AZ$11,FILT_YS,0),FILT_MS,FILT_DS),BET_DATE,"<="&DATE(OFFSET(AZ$11,FILT_YE,0),FILT_ME,FILT_DE),CAPPER,OFFSET(AX$10,FILT_T,0)), IF(AND(FILT_D=1,FILT_B>1,FILT_S>1,FILT_T=1,FILT_C>1),COUNTIFS(WIN,"PU",CUSTOM,OFFSET(AY$10,FILT_C,0),BET_TYPE,OFFSET(AW$10,FILT_B,0),SPORT,OFFSET(AV$10,FILT_S,0)), IF(AND(FILT_D=1,FILT_B>1,FILT_S=1,FILT_T>1,FILT_C>1),COUNTIFS(WIN,"PU",CUSTOM,OFFSET(AY$10,FILT_C,0),BET_TYPE,OFFSET(AW$10,FILT_B,0),CAPPER,OFFSET(AX$10,FILT_T,0)), IF(AND(FILT_D=1,FILT_B=1,FILT_S>1,FILT_T>1,FILT_C>1),COUNTIFS(WIN,"PU",CUSTOM,OFFSET(AY$10,FILT_C,0),SPORT,OFFSET(AV$10,FILT_S,0),CAPPER,OFFSET(AX$10,FILT_T,0)), IF(AND(FILT_D>1,FILT_B>1,FILT_S>1,FILT_T=1,FILT_C>1),COUNTIFS(WIN,"PU",CUSTOM,OFFSET(AY$10,FILT_C,0),BET_DATE,">="&DATE(OFFSET(AZ$11,FILT_YS,0),FILT_MS,FILT_DS),BET_DATE,"<="&DATE(OFFSET(AZ$11,FILT_YE,0),FILT_ME,FILT_DE),BET_TYPE,OFFSET(AW$10,FILT_B,0),SPORT,OFFSET(AV$10,FILT_S,0)), IF(AND(FILT_D=1,FILT_B>1,FILT_S>1,FILT_T>1,FILT_C>1),COUNTIFS(WIN,"PU",CUSTOM,OFFSET(AY$10,FILT_C,0),BET_TYPE,OFFSET(AW$10,FILT_B,0),SPORT,OFFSET(AV$10,FILT_S,0),CAPPER,OFFSET(AX$10,FILT_T,0)), IF(AND(FILT_D>1,FILT_B=1,FILT_S>1,FILT_T>1,FILT_C>1),COUNTIFS(WIN,"PU",CUSTOM,OFFSET(AY$10,FILT_C,0),BET_DATE,">="&DATE(OFFSET(AZ$11,FILT_YS,0),FILT_MS,FILT_DS),BET_DATE,"<="&DATE(OFFSET(AZ$11,FILT_YE,0),FILT_ME,FILT_DE),SPORT,OFFSET(AV$10,FILT_S,0),CAPPER,OFFSET(AX$10,FILT_T,0)), IF(AND(FILT_D>1,FILT_B>1,FILT_S=1,FILT_T>1,FILT_C>1),COUNTIFS(WIN,"PU",CUSTOM,OFFSET(AY$10,FILT_C,0),BET_DATE,">="&DATE(OFFSET(AZ$11,FILT_YS,0),FILT_MS,FILT_DS),BET_DATE,"<="&DATE(OFFSET(AZ$11,FILT_YE,0),FILT_ME,FILT_DE),BET_TYPE,OFFSET(AW$10,FILT_B,0),CAPPER,OFFSET(AX$10,FILT_T,0)), IF(AND(FILT_D>1,FILT_B>1,FILT_S>1,FILT_T>1,FILT_C>1),COUNTIFS(WIN,"PU",CUSTOM,OFFSET(AY$10,FILT_C,0),BET_DATE,">="&DATE(OFFSET(AZ$11,FILT_YS,0),FILT_MS,FILT_DS),BET_DATE,"<="&DATE(OFFSET(AZ$11,FILT_YE,0),FILT_ME,FILT_DE),BET_TYPE,OFFSET(AW$10,FILT_B,0),SPORT,OFFSET(AV$10,FILT_S,0),CAPPER,OFFSET(AX$10,FILT_T,0)), "")))))))))))))))))))))))))))))))) -> 4 | D25: 0.0162601626 | H25: =IF(AND(Settings!G19<>"",Settings!G19<>"--"),Settings!G19,"") -> Football - Belgium | I25: 95 | J25: -45 | K25: -0.4736842105 | L25: 0 | M25: 2 | N25: 0 | P25: =IF(AND(Settings!I19<>"",Settings!I19<>"--"),Settings!I19,"") -> Asian Handicap | Q25: 5135 | R25: 696.9 | S25: 0.1357156767 | T25: 55 | U25: 96 | V25: 0.5729166667 | X25: =IF(AND(Settings!K19<>"",Settings!K19<>"--"),Settings!K19,"") ->  | AF25: =IF(AND(Settings!M19<>"",Settings!M19<>"--"),Settings!M19,"") ->  | AN25: =IF(AND(Settings!D19<>"",Settings!D19<>"--"),Settings!D19,"") ->  | AV25: =IF(Settings!G19<>"",Settings!G19,"") -> Football - Belgium | AW25: =IF(Settings!I19<>"",Settings!I19,"") -> Asian Handicap | AX25: =IF(Settings!K19<>"",Settings!K19,"") ->  | AY25: =IF(Settings!M19<>"",Settings!M19,"") ->  | BB25: 14
B26: Total | C26: =SUM(C19:C25) -> 246 | D26: =SUM(D19:D25) -> 1 | H26: =IF(AND(Settings!G20<>"",Settings!G20<>"--"),Settings!G20,"") -> Basketball - France | I26: 560 | J26: 350.95 | K26: 0.6266964286 | L26: 9 | M26: 14 | N26: 0.6428571429 | P26: =IF(AND(Settings!I20<>"",Settings!I20<>"--"),Settings!I20,"") ->  | X26: =IF(AND(Settings!K20<>"",Settings!K20<>"--"),Settings!K20,"") ->  | AF26: =IF(AND(Settings!M20<>"",Settings!M20<>"--"),Settings!M20,"") ->  | AN26: =IF(AND(Settings!D20<>"",Settings!D20<>"--"),Settings!D20,"") ->  | AV26: =IF(Settings!G20<>"",Settings!G20,"") -> Basketball - France | AW26: =IF(Settings!I20<>"",Settings!I20,"") ->  | AX26: =IF(Settings!K20<>"",Settings!K20,"") ->  | AY26: =IF(Settings!M20<>"",Settings!M20,"") ->  | BB26: 15
H27: =IF(AND(Settings!G21<>"",Settings!G21<>"--"),Settings!G21,"") -> Basketball - Germany | I27: 645 | J27: 241.9 | K27: 0.3750387597 | L27: 10 | M27: 17 | N27: 0.5882352941 | P27: =IF(AND(Settings!I21<>"",Settings!I21<>"--"),Settings!I21,"") ->  | X27: =IF(AND(Settings!K21<>"",Settings!K21<>"--"),Settings!K21,"") ->  | AF27: =IF(AND(Settings!M21<>"",Settings!M21<>"--"),Settings!M21,"") ->  | AN27: =IF(AND(Settings!D21<>"",Settings!D21<>"--"),Settings!D21,"") ->  | AV27: =IF(Settings!G21<>"",Settings!G21,"") -> Basketball - Germany | AW27: =IF(Settings!I21<>"",Settings!I21,"") ->  | AX27: =IF(Settings!K21<>"",Settings!K21,"") ->  | AY27: =IF(Settings!M21<>"",Settings!M21,"") ->  | BB27: 16
B28: Pending Bets | H28: =IF(AND(Settings!G22<>"",Settings!G22<>"--"),Settings!G22,"") -> Basketball - Adriatic | I28: 130 | J28: -40.9 | K28: -0.3146153846 | L28: 1 | M28: 3 | N28: 0.3333333333 | P28: =IF(AND(Settings!I22<>"",Settings!I22<>"--"),Settings!I22,"") ->  | X28: =IF(AND(Settings!K22<>"",Settings!K22<>"--"),Settings!K22,"") ->  | AF28: =IF(AND(Settings!M22<>"",Settings!M22<>"--"),Settings!M22,"") ->  | AN28: =IF(AND(Settings!D22<>"",Settings!D22<>"--"),Settings!D22,"") ->  | AV28: =IF(Settings!G22<>"",Settings!G22,"") -> Basketball - Adriatic | AW28: =IF(Settings!I22<>"",Settings!I22,"") ->  | AX28: =IF(Settings!K22<>"",Settings!K22,"") ->  | AY28: =IF(Settings!M22<>"",Settings!M22,"") ->  | BB28: 17
H29: =IF(AND(Settings!G23<>"",Settings!G23<>"--"),Settings!G23,"") -> Football - Portugal | I29: 275 | J29: -97 | K29: -0.3527272727 | L29: 1 | M29: 8 | N29: 0.125 | P29: =IF(AND(Settings!I23<>"",Settings!I23<>"--"),Settings!I23,"") ->  | X29: =IF(AND(Settings!K23<>"",Settings!K23<>"--"),Settings!K23,"") ->  | AF29: =IF(AND(Settings!M23<>"",Settings!M23<>"--"),Settings!M23,"") ->  | AN29: =IF(AND(Settings!D23<>"",Settings!D23<>"--"),Settings!D23,"") ->  | AV29: =IF(Settings!G23<>"",Settings!G23,"") -> Football - Portugal | AW29: =IF(Settings!I23<>"",Settings!I23,"") ->  | AX29: =IF(Settings!K23<>"",Settings!K23,"") ->  | AY29: =IF(Settings!M23<>"",Settings!M23,"") ->  | BB29: 18
B30: Pending Bets | D30: =IF(AND(FILT_D=1,FILT_B=1,FILT_S=1,FILT_T=1,FILT_C=1),COUNTIFS(WIN,"P",AMOUNT,">0"), IF(AND(FILT_D>1,FILT_B=1,FILT_S=1,FILT_T=1,FILT_C=1),COUNTIFS(WIN,"P",AMOUNT,">0",BET_DATE,">="&DATE(OFFSET(AZ$11,FILT_YS,0),FILT_MS,FILT_DS),BET_DATE,"<="&DATE(OFFSET(AZ$11,FILT_YE,0),FILT_ME,FILT_DE)), IF(AND(FILT_D=1,FILT_B>1,FILT_S=1,FILT_T=1,FILT_C=1),COUNTIFS(WIN,"P",AMOUNT,">0",BET_TYPE,OFFSET(AW$10,FILT_B,0)), IF(AND(FILT_D=1,FILT_B=1,FILT_S>1,FILT_T=1,FILT_C=1),COUNTIFS(WIN,"P",AMOUNT,">0",SPORT,OFFSET(AV$10,FILT_S,0)), IF(AND(FILT_D=1,FILT_B=1,FILT_S=1,FILT_T>1,FILT_C=1),COUNTIFS(WIN,"P",AMOUNT,">0",CAPPER,OFFSET(AX$10,FILT_T,0)), IF(AND(FILT_D>1,FILT_B>1,FILT_S=1,FILT_T=1,FILT_C=1),COUNTIFS(WIN,"P",AMOUNT,">0",BET_DATE,">="&DATE(OFFSET(AZ$11,FILT_YS,0),FILT_MS,FILT_DS),BET_DATE,"<="&DATE(OFFSET(AZ$11,FILT_YE,0),FILT_ME,FILT_DE),BET_TYPE,OFFSET(AW$10,FILT_B,0)), IF(AND(FILT_D>1,FILT_B=1,FILT_S>1,FILT_T=1,FILT_C=1),COUNTIFS(WIN,"P",AMOUNT,">0",BET_DATE,">="&DATE(OFFSET(AZ$11,FILT_YS,0),FILT_MS,FILT_DS),BET_DATE,"<="&DATE(OFFSET(AZ$11,FILT_YE,0),FILT_ME,FILT_DE),SPORT,OFFSET(AV$10,FILT_S,0)), IF(AND(FILT_D>1,FILT_B=1,FILT_S=1,FILT_T>1,FILT_C=1),COUNTIFS(WIN,"P",AMOUNT,">0",BET_DATE,">="&DATE(OFFSET(AZ$11,FILT_YS,0),FILT_MS,FILT_DS),BET_DATE,"<="&DATE(OFFSET(AZ$11,FILT_YE,0),FILT_ME,FILT_DE),CAPPER,OFFSET(AX$10,FILT_T,0)), IF(AND(FILT_D=1,FILT_B>1,FILT_S>1,FILT_T=1,FILT_C=1),COUNTIFS(WIN,"P",AMOUNT,">0",BET_TYPE,OFFSET(AW$10,FILT_B,0),SPORT,OFFSET(AV$10,FILT_S,0)), IF(AND(FILT_D=1,FILT_B>1,FILT_S=1,FILT_T>1,FILT_C=1),COUNTIFS(WIN,"P",AMOUNT,">0",BET_TYPE,OFFSET(AW$10,FILT_B,0),CAPPER,OFFSET(AX$10,FILT_T,0)), IF(AND(FILT_D=1,FILT_B=1,FILT_S>1,FILT_T>1,FILT_C=1),COUNTIFS(WIN,"P",AMOUNT,">0",SPORT,OFFSET(AV$10,FILT_S,0),CAPPER,OFFSET(AX$10,FILT_T,0)), IF(AND(FILT_D>1,FILT_B>1,FILT_S>1,FILT_T=1,FILT_C=1),COUNTIFS(WIN,"P",AMOUNT,">0",BET_DATE,">="&DATE(OFFSET(AZ$11,FILT_YS,0),FILT_MS,FILT_DS),BET_DATE,"<="&DATE(OFFSET(AZ$11,FILT_YE,0),FILT_ME,FILT_DE),BET_TYPE,OFFSET(AW$10,FILT_B,0),SPORT,OFFSET(AV$10,FILT_S,0)), IF(AND(FILT_D=1,FILT_B>1,FILT_S>1,FILT_T>1,FILT_C=1),COUNTIFS(WIN,"P",AMOUNT,">0",BET_TYPE,OFFSET(AW$10,FILT_B,0),SPORT,OFFSET(AV$10,FILT_S,0),CAPPER,OFFSET(AX$10,FILT_T,0)), IF(AND(FILT_D>1,FILT_B=1,FILT_S>1,FILT_T>1,FILT_C=1),COUNTIFS(WIN,"P",AMOUNT,">0",BET_DATE,">="&DATE(OFFSET(AZ$11,FILT_YS,0),FILT_MS,FILT_DS),BET_DATE,"<="&DATE(OFFSET(AZ$11,FILT_YE,0),FILT_ME,FILT_DE),SPORT,OFFSET(AV$10,FILT_S,0),CAPPER,OFFSET(AX$10,FILT_T,0)), IF(AND(FILT_D>1,FILT_B>1,FILT_S=1,FILT_T>1,FILT_C=1),COUNTIFS(WIN,"P",AMOUNT,">0",BET_DATE,">="&DATE(OFFSET(AZ$11,FILT_YS,0),FILT_MS,FILT_DS),BET_DATE,"<="&DATE(OFFSET(AZ$11,FILT_YE,0),FILT_ME,FILT_DE),BET_TYPE,OFFSET(AW$10,FILT_B,0),CAPPER,OFFSET(AX$10,FILT_T,0)), IF(AND(FILT_D>1,FILT_B>1,FILT_S>1,FILT_T>1,FILT_C=1),COUNTIFS(WIN,"P",AMOUNT,">0",BET_DATE,">="&DATE(OFFSET(AZ$11,FILT_YS,0),FILT_MS,FILT_DS),BET_DATE,"<="&DATE(OFFSET(AZ$11,FILT_YE,0),FILT_ME,FILT_DE),BET_TYPE,OFFSET(AW$10,FILT_B,0),SPORT,OFFSET(AV$10,FILT_S,0),CAPPER,OFFSET(AX$10,FILT_T,0)), IF(AND(FILT_D=1,FILT_B=1,FILT_S=1,FILT_T=1,FILT_C>1),COUNTIFS(WIN,"P",AMOUNT,">0",CUSTOM,OFFSET(AY$10,FILT_C,0)), IF(AND(FILT_D>1,FILT_B=1,FILT_S=1,FILT_T=1,FILT_C>1),COUNTIFS(WIN,"P",AMOUNT,">0",CUSTOM,OFFSET(AY$10,FILT_C,0),BET_DATE,">="&DATE(OFFSET(AZ$11,FILT_YS,0),FILT_MS,FILT_DS),BET_DATE,"<="&DATE(OFFSET(AZ$11,FILT_YE,0),FILT_ME,FILT_DE)), IF(AND(FILT_D=1,FILT_B>1,FILT_S=1,FILT_T=1,FILT_C>1),COUNTIFS(WIN,"P",AMOUNT,">0",CUSTOM,OFFSET(AY$10,FILT_C,0),BET_TYPE,OFFSET(AW$10,FILT_B,0)), IF(AND(FILT_D=1,FILT_B=1,FILT_S>1,FILT_T=1,FILT_C>1),COUNTIFS(WIN,"P",AMOUNT,">0",CUSTOM,OFFSET(AY$10,FILT_C,0),SPORT,OFFSET(AV$10,FILT_S,0)), IF(AND(FILT_D=1,FILT_B=1,FILT_S=1,FILT_T>1,FILT_C>1),COUNTIFS(WIN,"P",AMOUNT,">0",CUSTOM,OFFSET(AY$10,FILT_C,0),CAPPER,OFFSET(AX$10,FILT_T,0)), IF(AND(FILT_D>1,FILT_B>1,FILT_S=1,FILT_T=1,FILT_C>1),COUNTIFS(WIN,"P",AMOUNT,">0",CUSTOM,OFFSET(AY$10,FILT_C,0),BET_DATE,">="&DATE(OFFSET(AZ$11,FILT_YS,0),FILT_MS,FILT_DS),BET_DATE,"<="&DATE(OFFSET(AZ$11,FILT_YE,0),FILT_ME,FILT_DE),BET_TYPE,OFFSET(AW$10,FILT_B,0)), IF(AND(FILT_D>1,FILT_B=1,FILT_S>1,FILT_T=1,FILT_C>1),COUNTIFS(WIN,"P",AMOUNT,">0",CUSTOM,OFFSET(AY$10,FILT_C,0),BET_DATE,">="&DATE(OFFSET(AZ$11,FILT_YS,0),FILT_MS,FILT_DS),BET_DATE,"<="&DATE(OFFSET(AZ$11,FILT_YE,0),FILT_ME,FILT_DE),SPORT,OFFSET(AV$10,FILT_S,0)), IF(AND(FILT_D>1,FILT_B=1,FILT_S=1,FILT_T>1,FILT_C>1),COUNTIFS(WIN,"P",AMOUNT,">0",CUSTOM,OFFSET(AY$10,FILT_C,0),BET_DATE,">="&DATE(OFFSET(AZ$11,FILT_YS,0),FILT_MS,FILT_DS),BET_DATE,"<="&DATE(OFFSET(AZ$11,FILT_YE,0),FILT_ME,FILT_DE),CAPPER,OFFSET(AX$10,FILT_T,0)), IF(AND(FILT_D=1,FILT_B>1,FILT_S>1,FILT_T=1,FILT_C>1),COUNTIFS(WIN,"P",AMOUNT,">0",CUSTOM,OFFSET(AY$10,FILT_C,0),BET_TYPE,OFFSET(AW$10,FILT_B,0),SPORT,OFFSET(AV$10,FILT_S,0)), IF(AND(FILT_D=1,FILT_B>1,FILT_S=1,FILT_T>1,FILT_C>1),COUNTIFS(WIN,"P",AMOUNT,">0",CUSTOM,OFFSET(AY$10,FILT_C,0),BET_TYPE,OFFSET(AW$10,FILT_B,0),CAPPER,OFFSET(AX$10,FILT_T,0)), IF(AND(FILT_D=1,FILT_B=1,FILT_S>1,FILT_T>1,FILT_C>1),COUNTIFS(WIN,"P",AMOUNT,">0",CUSTOM,OFFSET(AY$10,FILT_C,0),SPORT,OFFSET(AV$10,FILT_S,0),CAPPER,OFFSET(AX$10,FILT_T,0)), IF(AND(FILT_D>1,FILT_B>1,FILT_S>1,FILT_T=1,FILT_C>1),COUNTIFS(WIN,"P",AMOUNT,">0",CUSTOM,OFFSET(AY$10,FILT_C,0),BET_DATE,">="&DATE(OFFSET(AZ$11,FILT_YS,0),FILT_MS,FILT_DS),BET_DATE,"<="&DATE(OFFSET(AZ$11,FILT_YE,0),FILT_ME,FILT_DE),BET_TYPE,OFFSET(AW$10,FILT_B,0),SPORT,OFFSET(AV$10,FILT_S,0)), IF(AND(FILT_D=1,FILT_B>1,FILT_S>1,FILT_T>1,FILT_C>1),COUNTIFS(WIN,"P",AMOUNT,">0",CUSTOM,OFFSET(AY$10,FILT_C,0),BET_TYPE,OFFSET(AW$10,FILT_B,0),SPORT,OFFSET(AV$10,FILT_S,0),CAPPER,OFFSET(AX$10,FILT_T,0)), IF(AND(FILT_D>1,FILT_B=1,FILT_S>1,FILT_T>1,FILT_C>1),COUNTIFS(WIN,"P",AMOUNT,">0",CUSTOM,OFFSET(AY$10,FILT_C,0),BET_DATE,">="&DATE(OFFSET(AZ$11,FILT_YS,0),FILT_MS,FILT_DS),BET_DATE,"<="&DATE(OFFSET(AZ$11,FILT_YE,0),FILT_ME,FILT_DE),SPORT,OFFSET(AV$10,FILT_S,0),CAPPER,OFFSET(AX$10,FILT_T,0)), IF(AND(FILT_D>1,FILT_B>1,FILT_S=1,FILT_T>1,FILT_C>1),COUNTIFS(WIN,"P",AMOUNT,">0",CUSTOM,OFFSET(AY$10,FILT_C,0),BET_DATE,">="&DATE(OFFSET(AZ$11,FILT_YS,0),FILT_MS,FILT_DS),BET_DATE,"<="&DATE(OFFSET(AZ$11,FILT_YE,0),FILT_ME,FILT_DE),BET_TYPE,OFFSET(AW$10,FILT_B,0),CAPPER,OFFSET(AX$10,FILT_T,0)), IF(AND(FILT_D>1,FILT_B>1,FILT_S>1,FILT_T>1,FILT_C>1),COUNTIFS(WIN,"P",AMOUNT,">0",CUSTOM,OFFSET(AY$10,FILT_C,0),BET_DATE,">="&DATE(OFFSET(AZ$11,FILT_YS,0),FILT_MS,FILT_DS),BET_DATE,"<="&DATE(OFFSET(AZ$11,FILT_YE,0),FILT_ME,FILT_DE),BET_TYPE,OFFSET(AW$10,FILT_B,0),SPORT,OFFSET(AV$10,FILT_S,0),CAPPER,OFFSET(AX$10,FILT_T,0)), "")))))))))))))))))))))))))))))))) -> 0 | H30: =IF(AND(Settings!G24<>"",Settings!G24<>"--"),Settings!G24,"") -> Basketball - Euroleague | I30: 280 | J30: 181.7 | K30: 0.6489285714 | L30: 4 | M30: 7 | N30: 0.5714285714 | P30: =IF(AND(Settings!I24<>"",Settings!I24<>"--"),Settings!I24,"") ->  | X30: =IF(AND(Settings!K24<>"",Settings!K24<>"--"),Settings!K24,"") ->  | AF30: =IF(AND(Settings!M24<>"",Settings!M24<>"--"),Settings!M24,"") ->  | AN30: =IF(AND(Settings!D24<>"",Settings!D24<>"--"),Settings!D24,"") ->  | AV30: =IF(Settings!G24<>"",Settings!G24,"") -> Basketball - Euroleague | AW30: =IF(Settings!I24<>"",Settings!I24,"") ->  | AX30: =IF(Settings!K24<>"",Settings!K24,"") ->  | AY30: =IF(Settings!M24<>"",Settings!M24,"") ->  | BB30: 19
B31: Pending Amount at Risk | D31: =IF(AND(FILT_D=1,FILT_B=1,FILT_S=1,FILT_T=1,FILT_C=1),SUMIFS(AT_RISK,WIN,"P"), IF(AND(FILT_D>1,FILT_B=1,FILT_S=1,FILT_T=1,FILT_C=1),SUMIFS(AT_RISK,WIN,"P",BET_DATE,">="&DATE(OFFSET(AZ$11,FILT_YS,0),FILT_MS,FILT_DS),BET_DATE,"<="&DATE(OFFSET(AZ$11,FILT_YE,0),FILT_ME,FILT_DE)), IF(AND(FILT_D=1,FILT_B>1,FILT_S=1,FILT_T=1,FILT_C=1),SUMIFS(AT_RISK,WIN,"P",BET_TYPE,OFFSET(AW$10,FILT_B,0)), IF(AND(FILT_D=1,FILT_B=1,FILT_S>1,FILT_T=1,FILT_C=1),SUMIFS(AT_RISK,WIN,"P",SPORT,OFFSET(AV$10,FILT_S,0)), IF(AND(FILT_D=1,FILT_B=1,FILT_S=1,FILT_T>1,FILT_C=1),SUMIFS(AT_RISK,WIN,"P",CAPPER,OFFSET(AX$10,FILT_T,0)), IF(AND(FILT_D>1,FILT_B>1,FILT_S=1,FILT_T=1,FILT_C=1),SUMIFS(AT_RISK,WIN,"P",BET_DATE,">="&DATE(OFFSET(AZ$11,FILT_YS,0),FILT_MS,FILT_DS),BET_DATE,"<="&DATE(OFFSET(AZ$11,FILT_YE,0),FILT_ME,FILT_DE),BET_TYPE,OFFSET(AW$10,FILT_B,0)), IF(AND(FILT_D>1,FILT_B=1,FILT_S>1,FILT_T=1,FILT_C=1),SUMIFS(AT_RISK,WIN,"P",BET_DATE,">="&DATE(OFFSET(AZ$11,FILT_YS,0),FILT_MS,FILT_DS),BET_DATE,"<="&DATE(OFFSET(AZ$11,FILT_YE,0),FILT_ME,FILT_DE),SPORT,OFFSET(AV$10,FILT_S,0)), IF(AND(FILT_D>1,FILT_B=1,FILT_S=1,FILT_T>1,FILT_C=1),SUMIFS(AT_RISK,WIN,"P",BET_DATE,">="&DATE(OFFSET(AZ$11,FILT_YS,0),FILT_MS,FILT_DS),BET_DATE,"<="&DATE(OFFSET(AZ$11,FILT_YE,0),FILT_ME,FILT_DE),CAPPER,OFFSET(AX$10,FILT_T,0)), IF(AND(FILT_D=1,FILT_B>1,FILT_S>1,FILT_T=1,FILT_C=1),SUMIFS(AT_RISK,WIN,"P",BET_TYPE,OFFSET(AW$10,FILT_B,0),SPORT,OFFSET(AV$10,FILT_S,0)), IF(AND(FILT_D=1,FILT_B>1,FILT_S=1,FILT_T>1,FILT_C=1),SUMIFS(AT_RISK,WIN,"P",BET_TYPE,OFFSET(AW$10,FILT_B,0),CAPPER,OFFSET(AX$10,FILT_T,0)), IF(AND(FILT_D=1,FILT_B=1,FILT_S>1,FILT_T>1,FILT_C=1),SUMIFS(AT_RISK,WIN,"P",SPORT,OFFSET(AV$10,FILT_S,0),CAPPER,OFFSET(AX$10,FILT_T,0)), IF(AND(FILT_D>1,FILT_B>1,FILT_S>1,FILT_T=1,FILT_C=1),SUMIFS(AT_RISK,WIN,"P",BET_DATE,">="&DATE(OFFSET(AZ$11,FILT_YS,0),FILT_MS,FILT_DS),BET_DATE,"<="&DATE(OFFSET(AZ$11,FILT_YE,0),FILT_ME,FILT_DE),BET_TYPE,OFFSET(AW$10,FILT_B,0),SPORT,OFFSET(AV$10,FILT_S,0)), IF(AND(FILT_D=1,FILT_B>1,FILT_S>1,FILT_T>1,FILT_C=1),SUMIFS(AT_RISK,WIN,"P",BET_TYPE,OFFSET(AW$10,FILT_B,0),SPORT,OFFSET(AV$10,FILT_S,0),CAPPER,OFFSET(AX$10,FILT_T,0)), IF(AND(FILT_D>1,FILT_B=1,FILT_S>1,FILT_T>1,FILT_C=1),SUMIFS(AT_RISK,WIN,"P",BET_DATE,">="&DATE(OFFSET(AZ$11,FILT_YS,0),FILT_MS,FILT_DS),BET_DATE,"<="&DATE(OFFSET(AZ$11,FILT_YE,0),FILT_ME,FILT_DE),SPORT,OFFSET(AV$10,FILT_S,0),CAPPER,OFFSET(AX$10,FILT_T,0)), IF(AND(FILT_D>1,FILT_B>1,FILT_S=1,FILT_T>1,FILT_C=1),SUMIFS(AT_RISK,WIN,"P",BET_DATE,">="&DATE(OFFSET(AZ$11,FILT_YS,0),FILT_MS,FILT_DS),BET_DATE,"<="&DATE(OFFSET(AZ$11,FILT_YE,0),FILT_ME,FILT_DE),BET_TYPE,OFFSET(AW$10,FILT_B,0),CAPPER,OFFSET(AX$10,FILT_T,0)), IF(AND(FILT_D>1,FILT_B>1,FILT_S>1,FILT_T>1,FILT_C=1),SUMIFS(AT_RISK,WIN,"P",BET_DATE,">="&DATE(OFFSET(AZ$11,FILT_YS,0),FILT_MS,FILT_DS),BET_DATE,"<="&DATE(OFFSET(AZ$11,FILT_YE,0),FILT_ME,FILT_DE),BET_TYPE,OFFSET(AW$10,FILT_B,0),SPORT,OFFSET(AV$10,FILT_S,0),CAPPER,OFFSET(AX$10,FILT_T,0)), IF(AND(FILT_D=1,FILT_B=1,FILT_S=1,FILT_T=1,FILT_C>1),SUMIFS(AT_RISK,WIN,"P",CUSTOM,OFFSET(AY$10,FILT_C,0)), IF(AND(FILT_D>1,FILT_B=1,FILT_S=1,FILT_T=1,FILT_C>1),SUMIFS(AT_RISK,WIN,"P",CUSTOM,OFFSET(AY$10,FILT_C,0),BET_DATE,">="&DATE(OFFSET(AZ$11,FILT_YS,0),FILT_MS,FILT_DS),BET_DATE,"<="&DATE(OFFSET(AZ$11,FILT_YE,0),FILT_ME,FILT_DE)), IF(AND(FILT_D=1,FILT_B>1,FILT_S=1,FILT_T=1,FILT_C>1),SUMIFS(AT_RISK,WIN,"P",CUSTOM,OFFSET(AY$10,FILT_C,0),BET_TYPE,OFFSET(AW$10,FILT_B,0)), IF(AND(FILT_D=1,FILT_B=1,FILT_S>1,FILT_T=1,FILT_C>1),SUMIFS(AT_RISK,WIN,"P",CUSTOM,OFFSET(AY$10,FILT_C,0),SPORT,OFFSET(AV$10,FILT_S,0)), IF(AND(FILT_D=1,FILT_B=1,FILT_S=1,FILT_T>1,FILT_C>1),SUMIFS(AT_RISK,WIN,"P",CUSTOM,OFFSET(AY$10,FILT_C,0),CAPPER,OFFSET(AX$10,FILT_T,0)), IF(AND(FILT_D>1,FILT_B>1,FILT_S=1,FILT_T=1,FILT_C>1),SUMIFS(AT_RISK,WIN,"P",CUSTOM,OFFSET(AY$10,FILT_C,0),BET_DATE,">="&DATE(OFFSET(AZ$11,FILT_YS,0),FILT_MS,FILT_DS),BET_DATE,"<="&DATE(OFFSET(AZ$11,FILT_YE,0),FILT_ME,FILT_DE),BET_TYPE,OFFSET(AW$10,FILT_B,0)), IF(AND(FILT_D>1,FILT_B=1,FILT_S>1,FILT_T=1,FILT_C>1),SUMIFS(AT_RISK,WIN,"P",CUSTOM,OFFSET(AY$10,FILT_C,0),BET_DATE,">="&DATE(OFFSET(AZ$11,FILT_YS,0),FILT_MS,FILT_DS),BET_DATE,"<="&DATE(OFFSET(AZ$11,FILT_YE,0),FILT_ME,FILT_DE),SPORT,OFFSET(AV$10,FILT_S,0)), IF(AND(FILT_D>1,FILT_B=1,FILT_S=1,FILT_T>1,FILT_C>1),SUMIFS(AT_RISK,WIN,"P",CUSTOM,OFFSET(AY$10,FILT_C,0),BET_DATE,">="&DATE(OFFSET(AZ$11,FILT_YS,0),FILT_MS,FILT_DS),BET_DATE,"<="&DATE(OFFSET(AZ$11,FILT_YE,0),FILT_ME,FILT_DE),CAPPER,OFFSET(AX$10,FILT_T,0)), IF(AND(FILT_D=1,FILT_B>1,FILT_S>1,FILT_T=1,FILT_C>1),SUMIFS(AT_RISK,WIN,"P",CUSTOM,OFFSET(AY$10,FILT_C,0),BET_TYPE,OFFSET(AW$10,FILT_B,0),SPORT,OFFSET(AV$10,FILT_S,0)), IF(AND(FILT_D=1,FILT_B>1,FILT_S=1,FILT_T>1,FILT_C>1),SUMIFS(AT_RISK,WIN,"P",CUSTOM,OFFSET(AY$10,FILT_C,0),BET_TYPE,OFFSET(AW$10,FILT_B,0),CAPPER,OFFSET(AX$10,FILT_T,0)), IF(AND(FILT_D=1,FILT_B=1,FILT_S>1,FILT_T>1,FILT_C>1),SUMIFS(AT_RISK,WIN,"P",CUSTOM,OFFSET(AY$10,FILT_C,0),SPORT,OFFSET(AV$10,FILT_S,0),CAPPER,OFFSET(AX$10,FILT_T,0)), IF(AND(FILT_D>1,FILT_B>1,FILT_S>1,FILT_T=1,FILT_C>1),SUMIFS(AT_RISK,WIN,"P",CUSTOM,OFFSET(AY$10,FILT_C,0),BET_DATE,">="&DATE(OFFSET(AZ$11,FILT_YS,0),FILT_MS,FILT_DS),BET_DATE,"<="&DATE(OFFSET(AZ$11,FILT_YE,0),FILT_ME,FILT_DE),BET_TYPE,OFFSET(AW$10,FILT_B,0),SPORT,OFFSET(AV$10,FILT_S,0)), IF(AND(FILT_D=1,FILT_B>1,FILT_S>1,FILT_T>1,FILT_C>1),SUMIFS(AT_RISK,WIN,"P",CUSTOM,OFFSET(AY$10,FILT_C,0),BET_TYPE,OFFSET(AW$10,FILT_B,0),SPORT,OFFSET(AV$10,FILT_S,0),CAPPER,OFFSET(AX$10,FILT_T,0)), IF(AND(FILT_D>1,FILT_B=1,FILT_S>1,FILT_T>1,FILT_C>1),SUMIFS(AT_RISK,WIN,"P",CUSTOM,OFFSET(AY$10,FILT_C,0),BET_DATE,">="&DATE(OFFSET(AZ$11,FILT_YS,0),FILT_MS,FILT_DS),BET_DATE,"<="&DATE(OFFSET(AZ$11,FILT_YE,0),FILT_ME,FILT_DE),SPORT,OFFSET(AV$10,FILT_S,0),CAPPER,OFFSET(AX$10,FILT_T,0)), IF(AND(FILT_D>1,FILT_B>1,FILT_S=1,FILT_T>1,FILT_C>1),SUMIFS(AT_RISK,WIN,"P",CUSTOM,OFFSET(AY$10,FILT_C,0),BET_DATE,">="&DATE(OFFSET(AZ$11,FILT_YS,0),FILT_MS,FILT_DS),BET_DATE,"<="&DATE(OFFSET(AZ$11,FILT_YE,0),FILT_ME,FILT_DE),BET_TYPE,OFFSET(AW$10,FILT_B,0),CAPPER,OFFSET(AX$10,FILT_T,0)), IF(AND(FILT_D>1,FILT_B>1,FILT_S>1,FILT_T>1,FILT_C>1),SUMIFS(AT_RISK,WIN,"P",CUSTOM,OFFSET(AY$10,FILT_C,0),BET_DATE,">="&DATE(OFFSET(AZ$11,FILT_YS,0),FILT_MS,FILT_DS),BET_DATE,"<="&DATE(OFFSET(AZ$11,FILT_YE,0),FILT_ME,FILT_DE),BET_TYPE,OFFSET(AW$10,FILT_B,0),SPORT,OFFSET(AV$10,FILT_S,0),CAPPER,OFFSET(AX$10,FILT_T,0)), "")))))))))))))))))))))))))))))))) -> 0 | H31: =IF(AND(Settings!G25<>"",Settings!G25<>"--"),Settings!G25,"") -> Football - Turkey | I31: 110 | J31: -7.1 | K31: -0.06454545455 | L31: 1 | M31: 3 | N31: 0.3333333333 | P31: =IF(AND(Settings!I25<>"",Settings!I25<>"--"),Settings!I25,"") ->  | X31: =IF(AND(Settings!K25<>"",Settings!K25<>"--"),Settings!K25,"") ->  | AF31: =IF(AND(Settings!M25<>"",Settings!M25<>"--"),Settings!M25,"") ->  | AN31: =IF(AND(Settings!D25<>"",Settings!D25<>"--"),Settings!D25,"") ->  | AV31: =IF(Settings!G25<>"",Settings!G25,"") -> Football - Turkey | AW31: =IF(Settings!I25<>"",Settings!I25,"") ->  | AX31: =IF(Settings!K25<>"",Settings!K25,"") ->  | AY31: =IF(Settings!M25<>"",Settings!M25,"") ->  | BB31: 20
